Workbook

Sheet Cover
A1: 2025 Long-Term Plan REC Pricing Model
B3: INSTRUCTIONS:
B4: 1. Make sure macros have been enabled if the user plans to run the model.
B5: 2. Users can customize the input assumptions in worksheets that are green, blue, or purple. Users should avoid altering the contents of grey worksheets.
B6: 3. Users can run the model by selecting a Block Group, Program, and Category in cells B2:B4 of the "Scenario & Results" Worksheet. Note that the contents of the worksheet will not be updated until the user clicks the "Run Scenario" button on the worksheet.
B7: 4. Results will be populated into rows 8-15 of the "Scenario & Results" worksheet.
B9: WORKSHEET CONTENTS:
B10: Cover | C10: Provides instructions and worksheet contents.
B11: Scenario & Results | C11: Allows user to select a Block Group, Block Program, and Block Category. Users can make a selection and hit "Run Scenario" to run the model and retrieve REC Prices for the selected Group, Program, and Category.
B12: Program Adjustment Factors | C12: Contains program specific adjustment to the final REC prices
B13: ABP Scenario InputAssumptions | C13: Contains input assumptions specific to ABP projects. Users can edit the inputs in the cells but should take care not to alter the format of the worksheet.
B14: ILSfA Scenario InputAssumptions | C14: Contains input assumptions specific to ILSFA projects. Users can edit the inputs in the cells but should take care not to alter the format of the worksheet.
B15: Net Metering Credit | C15: Contains all of the Net Metering Credits projects are assumed to receive for 25 years in express in $/kWh
B16: Ameren Rates | C16: Contains Ameren Net Metering Rates and Rate sheets
B17: ComEd Rates | C17: Contains ComEd Net Metering Rates and Rate sheets
B18: Ameren PEC Capacity EEA | C18: Contains Ameren backend data for residential rates
B19: ComEd PtC | C19: Contains ComEd backend data for residential rates
B20: EIA_861_Sales | C20: Contains 2021 EIA 861 sales data for Illinois utilties
B21: NREL ATB Cost Curve | C21: Contains NREL ATB cost curves used to scale community solar costs
B22: NREL Capital Costs | C22: Contains capital costs for all project sizes, expressed in $/W dc
B23: Size-specific Assumptions | C23: Contains size-specific model input assumptions
B24: Group-specific Assumptions | C24: Contains group-specific model input assumptions
B25: Program-specific Assumptions | C25: Contains program-specific model input assumptions
B26: CREST Inputs | C26: Contains the input assumptions for the currently selected Group, Program, and Category. Inputs from this worksheet directly read into the Cash Flow worksheet.
B27: Cash Flow | C27: Contains the cash flows for the currently selected Group, Program, and Category. Users should not alter the contents of this worksheet.
B28: Annual Cash Flows & Returns | C28: Provides an annual overview of cash flows from the cash flow worksheet.
B29: Public Schools_Group A | C29: Contains the calculation for ABP Public Schools REC Prices for Group A, based on modeled ABP DG results
B30: Public Schools_Group B | C30: Contains the calculation for ABP Public Schools REC Prices for Group B, based on modeled ABP DG results
B31: Data Processing | C31: Contains currently selected model run data. Users should not alter the contents of this worksheet.
B33: Version updated March 5, 2025

Sheet Scenario & Results
A1: To retrieve the REC prices for a specfic Block, based on the assumptions reflected in the model, please select a Block Group, Block Program, and Block Category in the orange cells below: | J1: Notes
A2: Block Group | B2: Group A | G2: Program Adjustments | H2: On | J2: To reproduce REC prices for rates with select program adjustments, users need to run the model with Program Adjustment Factors toggle "ON".
A3: Block Program | B3: Adjustable Block Program | G3: Residential IRR Adjustment | H3: Off | J3: To reproduce REC prices for DG, users need to run the model twice: First with Residential IRR toggle "ON" to get values for 0-10 kW systems; second with Residential toggle "Off" to get values for 10-5000 kW DG systems.
A4: Block Category | B4: Distributed Generation
A5: Data Quadrant | B5: =VLOOKUP(_xlfn.CONCAT(B2,B3,B4),'Data Processing'!$T$15:$X$30,5,0) -> 1
E8: =IF(ISNUMBER(B14),"",_xlfn.CONCAT('Scenario & Results'!B2,"_",'Scenario & Results'!B3,"_",'Scenario & Results'!B4)) -> Group A_Adjustable Block Program_Distributed Generation | H8: IPA Pricing Bin Adders | K8: Discount Rate | L8: 25-yr Net Present Value Cost of Energy ($) | M8: 25-yr Net Present Value Net Metering Credit ($) | N8: Revenue Shortfall ($) | O8: REC Production (MWh) | P8: Shortfall per REC ($/REC)
A9: ='Scenario & Results'!D9 -> 0 - 10 kW | B9: NA | D9: =IF(ISNUMBER(SEARCH("*Distributed Generation*",'Scenario & Results'!$B$4)),"0 - 10 kW","") -> 0 - 10 kW | E9: =IF(ISNUMBER(SEARCH("*Distributed Generation*",'Scenario & Results'!$B$4)),(H9+$P$15)* (1+IF($H$2="On",INDEX('Program Adjustment Factors'!$B7:$Q7,1,MATCH('Scenario & Results'!$B$2&'Scenario & Results'!$B$3&'Scenario & Results'!$B$4,'Program Adjustment Factors'!$B$3:$Q$3,0)),0)),"") -> 54.34249134 | G9: =IF(ISNUMBER(SEARCH("*Distributed Generation*",'Scenario & Results'!$B$4)),"0 - 10 kW","") -> 0 - 10 kW | H9: =IF(ISNUMBER(SEARCH("*Distributed Generation*",'Scenario & Results'!$B$4)),P9-$P$15,"") -> 25.01290493 | J9: 10 kW | K9: 0.06144629693 | L9: 31212.24585 | M9: 19003.21567 | N9: =L9-M9 -> 12209.03018 | O9: 224.6682086 | P9: =(N9/O9)+INDEX('Program-specific Assumptions'!$O$2:$O$9,MATCH('Scenario & Results'!$B$4,'Program-specific Assumptions'!$C$2:$C$9,0)) -> 54.34249134
A10: ='Scenario & Results'!D10 -> 10 - 25 kW | B10: NA | D10: =IF(ISNUMBER(SEARCH("*Distributed Generation*",'Scenario & Results'!$B$4)),"10 - 25 kW","0 - 25 kW") -> 10 - 25 kW | E10: =($P$15+H10)* (1+IF($H$2="On",INDEX('Program Adjustment Factors'!$B8:$Q8,1,MATCH('Scenario & Results'!$B$2&'Scenario & Results'!$B$3&'Scenario & Results'!$B$4,'Program Adjustment Factors'!$B$3:$Q$3,0)),0)) -> 54.19702702 | G10: =IF(ISNUMBER(SEARCH("*Distributed Generation*",'Scenario & Results'!$B$4)),"10 - 25 kW","0 - 25 kW") -> 10 - 25 kW | H10: =IF(ISNUMBER(SEARCH("*Distributed Generation*",'Scenario & Results'!$B$4)),AVERAGE(P9:P10)-$P$15,P10-$P$15) -> 24.86744062 | J10: 25 kW | K10: 0.05980017961 | L10: 61661.88057 | M10: 31726.23346 | N10: =L10-M10 -> 29935.64711 | O10: 553.8349977 | P10: =(N10/O10)+INDEX('Program-specific Assumptions'!$O$2:$O$9,MATCH('Scenario & Results'!$B$4,'Program-specific Assumptions'!$C$2:$C$9,0)) -> 54.05156271
A11: ='Scenario & Results'!D11 -> 25 - 100 kW | B11: NA | D11: 25 - 100 kW | E11: =($P$15+H11)* (1+IF($H$2="On",INDEX('Program Adjustment Factors'!$B9:$Q9,1,MATCH('Scenario & Results'!$B$2&'Scenario & Results'!$B$3&'Scenario & Results'!$B$4,'Program Adjustment Factors'!$B$3:$Q$3,0)),0)) -> 56.27132228 | G11: 25 - 100 kW | H11: =AVERAGE(P10:P11)-$P$15 -> 26.94173587 | J11: 100 kW | K11: 0.06012268727 | L11: 260628.2824 | M11: 128743.2775 | N11: 131885.0049 | O11: 2254.788263 | P11: =(N11/O11)+INDEX('Program-specific Assumptions'!$O$2:$O$9,MATCH('Scenario & Results'!$B$4,'Program-specific Assumptions'!$C$2:$C$9,0)) -> 58.49108184
A12: ='Scenario & Results'!D12 -> 100 - 200 kW | B12: NA | D12: 100 - 200 kW | E12: =($P$15+H12)* (1+IF($H$2="On",INDEX('Program Adjustment Factors'!$B10:$Q10,1,MATCH('Scenario & Results'!$B$2&'Scenario & Results'!$B$3&'Scenario & Results'!$B$4,'Program Adjustment Factors'!$B$3:$Q$3,0)),0)) -> 52.70166417 | G12: 100 - 200 kW | H12: =AVERAGE(P11:P12)-$P$15 -> 23.37207777 | J12: 200 kW | K12: 0.05945851745 | L12: 475528.1604 | M12: 261840.708 | N12: 213687.4524 | O12: 4555.046248 | P12: =(N12/O12)+INDEX('Program-specific Assumptions'!$O$2:$O$9,MATCH('Scenario & Results'!$B$4,'Program-specific Assumptions'!$C$2:$C$9,0)) -> 46.9122465
A13: ='Scenario & Results'!D13 -> 200 - 500 kW | B13: NA | D13: 200 - 500 kW | E13: =($P$15+H13)* (1+IF($H$2="On",INDEX('Program Adjustment Factors'!$B11:$Q11,1,MATCH('Scenario & Results'!$B$2&'Scenario & Results'!$B$3&'Scenario & Results'!$B$4,'Program Adjustment Factors'!$B$3:$Q$3,0)),0)) -> 43.34852976 | G13: 200 - 500 kW | H13: =AVERAGE(P12:P13)-$P$15 -> 14.01894336 | J13: 500 kW | K13: 0.05903383334 | L13: 1136963.11 | M13: 673108.4431 | N13: 463854.6673 | O13: 11659.08878 | P13: =(N13/O13)+INDEX('Program-specific Assumptions'!$O$2:$O$9,MATCH('Scenario & Results'!$B$4,'Program-specific Assumptions'!$C$2:$C$9,0)) -> 39.78481302
A14: ='Scenario & Results'!D14 -> 500 - 2000 kW | B14: NA | D14: 500 - 2000 kW | E14: =($P$15+H14)* (1+IF($H$2="On",INDEX('Program Adjustment Factors'!$B12:$Q12,1,MATCH('Scenario & Results'!$B$2&'Scenario & Results'!$B$3&'Scenario & Results'!$B$4,'Program Adjustment Factors'!$B$3:$Q$3,0)),0)) -> 40.07976466 | G14: 500 - 2000 kW | H14: =AVERAGE(P13:P14)-$P$15 -> 10.75017825 | J14: 2000 kW | K14: 0.05927495636 | L14: 4655716.451 | M14: 2736951.339 | N14: 1918765.112 | O14: 47523.92805 | P14: =(N14/O14)+INDEX('Program-specific Assumptions'!$O$2:$O$9,MATCH('Scenario & Results'!$B$4,'Program-specific Assumptions'!$C$2:$C$9,0)) -> 40.37471629
A15: ='Scenario & Results'!D15 -> 2000 - 5000 kW | B15: NA | D15: 2000 - 5000 kW | E15: =($P$15+H15)* (1+IF($H$2="On",INDEX('Program Adjustment Factors'!$B13:$Q13,1,MATCH('Scenario & Results'!$B$2&'Scenario & Results'!$B$3&'Scenario & Results'!$B$4,'Program Adjustment Factors'!$B$3:$Q$3,0)),0)) -> 29.32958641 | G15: 2000 - 5000 kW | H15: 0 | J15: 5000 kW | K15: 0.05844914049 | L15: 10832772.76 | M15: 7197831.417 | N15: 3634941.338 | O15: 123934.2856 | P15: =(N15/O15)+INDEX('Program-specific Assumptions'!$O$2:$O$9,MATCH('Scenario & Results'!$B$4,'Program-specific Assumptions'!$C$2:$C$9,0)) -> 29.32958641
A19: Please note that the REC Prices presented below do not auto-populate when a new scenario is run. These prices reflect the assumptions provided with the download of this model.
B23: Group A_Adjustable Block Program_Distributed Generation | C23: Group B_Adjustable Block Program_Distributed Generation
A24: 0 - 10 kW | B24: 60.89873481 | C24: 73.07848177
A25: 10 - 25 kW | B25: 54.19702702 | C25: 65.03643243
A26: 25 - 100 kW | B26: 56.27132228 | C26: 67.52558673
A27: 100 - 200 kW | B27: 52.70166417 | C27: 63.24199701
A28: 200 - 500 kW | B28: 43.34852976 | C28: 52.01823572
A29: 500 - 2000 kW | B29: 40.07976466 | C29: 48.09571759
A30: 2000- 5000 kW | B30: 29.32958641 | C30: 35.19550369
B32: Group A_Adjustable Block Program_Community Solar | C32: Group B_Adjustable Block Program_Community Solar
A33: 0 - 25 kW | B33: 57.43378336 | C33: 63.492661
A34: 25 - 100 kW | B34: 58.78652021 | C34: 64.50953157
A35: 100 - 200 kW | B35: 56.28069664 | C35: 62.24498721
A36: 200 - 500 kW | B36: 48.77534462 | C36: 55.9051656
A37: 500 - 2000 kW | B37: 42.24896601 | C37: 46.0241805
A38: 2000- 5000 kW | B38: 34.35926363 | C38: 33.62379421
B40: Group A_Adjustable Block Program_Community-driven Solar | C40: Group B_Adjustable Block Program_Community-driven Solar
A41: 0 - 25 kW | B41: 74.14787674 | C41: 81.63013753
A42: 25 - 100 kW | B42: 75.68175239 | C42: 83.10790375
A43: 100 - 200 kW | B43: 72.20446304 | C43: 79.90494142
A44: 200 - 500 kW | B44: 62.42579849 | C44: 71.11760065
A45: 500 - 2000 kW | B45: 53.44963119 | C45: 58.02489132
A46: 2000- 5000 kW | B46: 42.27840154 | C46: 42.05791768
B48: Group A_Adjustable Block Program_Public Schools | C48: Group B_Adjustable Block Program_Public Schools
A49: 0 - 25 kW | B49: 77.16515344 | C49: 93.17294226
A50: 25 - 100 kW | B50: 68.5664085 | C50: 84.96300606
A51: 100 - 200 kW | B51: 65.81412202 | C51: 76.90590506
A52: 200 - 500 kW | B52: 57.7235158 | C52: 66.87709945
A53: 500 - 2000 kW | B53: 54.50889657 | C53: 61.03877227
A54: 2000- 5000 kW | B54: 42.15160887 | C54: 46.74262598
B57: Group A_IL Solar for All_Distributed Generation (1-4 Unit) | C57: Group B_IL Solar for All_Distributed Generation (1-4 Unit)
A58: 0 - 10 kW | B58: 190.559825 | C58: 180.8918487
A59: 10 - 25 kW | B59: 165.4008654 | C59: 160.9241631
A60: 25 - 100 kW | B60: 141.8046866 | C60: 139.3696126
A61: 100 - 200 kW | B61: 136.5911852 | C61: 132.1421736
A62: 200 - 500 kW | B62: 125.4428611 | C62: 121.5523243
A63: 500 - 2000 kW | B63: 121.6687347 | C63: 115.4890051
A64: 2000- 5000 kW | B64: 105.3807753 | C64: 102.5275776
B66: Group A_IL Solar for All_Distributed Generation (5+ Units) | C66: Group B_IL Solar for All_Distributed Generation (5+ Units)
A67: 0 - 10 kW | B67: 109.1084946 | C67: 122.4253389
A68: 10 - 25 kW | B68: 92.52461794 | C68: 107.7200468
A69: 25 - 100 kW | B69: 78.51739297 | C69: 91.88203371
A70: 100 - 200 kW | B70: 76.6575207 | C70: 85.11737778
A71: 200 - 500 kW | B71: 69.63588381 | C71: 76.92007831
A72: 500 - 2000 kW | B72: 66.61201198 | C72: 72.18424334
A73: 2000- 5000 kW | B73: 55.44757824 | C73: 58.83743227
B75: Group A_IL Solar for All_Low-Income Community Solar | C75: Group B_IL Solar for All_Low-Income Community Solar
A76: 0 - 25 kW | B76: 101.0836922 | C76: 112.7973367
A77: 25 - 100 kW | B77: 102.8190445 | C77: 114.7298083
A78: 100 - 200 kW | B78: 99.80792354 | C78: 112.2420866
A79: 200 - 500 kW | B79: 89.9036465 | C79: 103.9188454
A80: 500 - 2000 kW | B80: 80.36908877 | C80: 90.11622868
A81: 2000- 5000 kW | B81: 68.2618699 | C81: 72.46885999
B83: Group A_IL Solar for All_Non-profit & Public Facility | C83: Group B_IL Solar for All_Non-profit & Public Facility
A84: 0 - 25 kW | B84: 101.9258599 | C84: 115.9690157
A85: 25 - 100 kW | B85: 103.3428438 | C85: 113.3247816
A86: 100 - 200 kW | B86: 98.74742327 | C86: 104.9964836
A87: 200 - 500 kW | B87: 88.78974486 | C87: 94.43365044
A88: 500 - 2000 kW | B88: 84.81307746 | C88: 87.94860631
A89: 2000- 5000 kW | B89: 70.8046724 | C89: 74.24640671

Sheet Program Adjustment Factors
A1: Percentages applied to augment the values of the 2024-25 REC outputs only (i.e. no underlying inputs or other outputs are changed)
A3: Index | B3: =B4&B5&B6 -> Group AAdjustable Block ProgramDistributed Generation | C3: =C4&C5&C6 -> Group AAdjustable Block ProgramCommunity Solar | D3: Group AAdjustable Block ProgramCommunity-driven Solar | E3: Group AAdjustable Block ProgramPublic Schools | F3: Group AIL Solar for AllDistributed Generation (1-4 Unit) | G3: Group AIL Solar for AllDistributed Generation (5+ Units) | H3: Group AIL Solar for AllLow-Income Community Solar | I3: Group AIL Solar for AllNon-profit & Public Facility | J3: Group BAdjustable Block ProgramDistributed Generation | K3: Group BAdjustable Block ProgramCommunity Solar | L3: Group BAdjustable Block ProgramCommunity-driven Solar | M3: Group BAdjustable Block ProgramPublic Schools | N3: Group BIL Solar for AllDistributed Generation (1-4 Unit) | O3: Group BIL Solar for AllDistributed Generation (5+ Units) | P3: Group BIL Solar for AllLow-Income Community Solar | Q3: Group BIL Solar for AllNon-profit & Public Facility
A4: Block Group | B4: Group A | C4: Group A | D4: Group A | E4: Group A | F4: Group A | G4: Group A | H4: Group A | I4: Group A | J4: Group B | K4: Group B | L4: Group B | M4: Group B | N4: Group B | O4: Group B | P4: Group B | Q4: Group B
A5: Block Program | B5: Adjustable Block Program | C5: Adjustable Block Program | D5: Adjustable Block Program | E5: Adjustable Block Program | F5: IL Solar for All | G5: IL Solar for All | H5: IL Solar for All | I5: IL Solar for All | J5: Adjustable Block Program | K5: Adjustable Block Program | L5: Adjustable Block Program | M5: Adjustable Block Program | N5: IL Solar for All | O5: IL Solar for All | P5: IL Solar for All | Q5: IL Solar for All
A6: Block Category | B6: Distributed Generation | C6: Community Solar | D6: Community-driven Solar | E6: Public Schools | F6: Distributed Generation (1-4 Unit) | G6: Distributed Generation (5+ Units) | H6: Low-Income Community Solar | I6: Non-profit & Public Facility | J6: Distributed Generation | K6: Community Solar | L6: Community-driven Solar | M6: Public Schools | N6: Distributed Generation (1-4 Unit) | O6: Distributed Generation (5+ Units) | P6: Low-Income Community Solar | Q6: Non-profit & Public Facility
A7: 0 - 10 kW / "" | B7: 0 | C7: 0 | D7: 0 | E7: 0 | F7: 0 | G7: 0.05809864859 | H7: 0 | I7: 0 | J7: 0.07812469432 | K7: 0 | L7: 0 | M7: 0 | N7: 0 | O7: 0.06515592109 | P7: 0 | Q7: 0
A8: 10 - 25 kW / 0 - 25 kW | B8: 0 | C8: 0 | D8: 0 | E8: 0.18415631 | F8: 0 | G8: 0.08879179328 | H8: 0 | I8: 0 | J8: 0.06609191777 | K8: 0 | L8: 0 | M8: 0.2812253827 | N8: 0 | O8: 0.1262260415 | P8: 0 | Q8: 0
A9: 25 - 100 kW | B9: 0 | C9: 0 | D9: 0 | E9: 0.01496685767 | F9: 0 | G9: 0.008880649879 | H9: 0 | I9: 0 | J9: 0.1196493587 | K9: 0 | L9: 0 | M9: 0.1793121421 | N9: 0 | O9: 0.07126186047 | P9: 0 | Q9: 0
A10: 100 - 200 kW | B10: 0 | C10: 0 | D10: 0 | E10: 0.03802876234 | F10: 0 | G10: 0.02544914368 | H10: 0 | I10: 0 | J10: 0.1829552927 | K10: 0 | L10: 0 | M10: 0.1970817437 | N10: 0 | O10: 0.06605166076 | P10: 0 | Q10: 0
A11: 200 - 500 kW | B11: 0 | C11: 0 | D11: 0 | E11: 0.09033769195 | F11: 0 | G11: 0.05664742576 | H11: 0 | I11: 0 | J11: 0.206304932 | K11: 0 | L11: 0 | M11: 0.2692468173 | N11: 0 | O11: 0.09197976698 | P11: 0 | Q11: 0
A12: 500 - 2000 kW | B12: 0 | C12: 0 | D12: 0 | E12: 0.1033142683 | F12: 0 | G12: 0.0642438798 | H12: 0 | I12: 0 | J12: 0.2809816677 | K12: 0 | L12: 0 | M12: 0.3099153924 | N12: 0 | O12: 0.1085898181 | P12: 0 | Q12: 0
A13: 2000- 5000 kW | B13: 0 | C13: 0 | D13: 0 | E13: 0.1277600339 | F13: 0 | G13: 0.0711571504 | H13: 0 | I13: 0 | J13: 0.2831282247 | K13: 0 | L13: 0 | M13: 0.3249466278 | N13: 0 | O13: 0.08974344024 | P13: 0 | Q13: 0

Sheet ABP Scenario InputAssumptions
B1: Adjustable Block Program
B2: Group A | L2: Group B
B3: Distributed Generation | L3: Distributed Generation | V3: =IF('Scenario & Results'!B3="Adjustable Block Program",'Scenario & Results'!B4,"") -> Distributed Generation
B4: Generator Nameplate Capacity | C4: kW ac | D4: 10 | E4: 25 | F4: 100 | G4: 200 | H4: 500 | I4: 2000 | J4: 5000 | K4: =L$3 -> Distributed Generation | L4: Generator Nameplate Capacity | M4: kW ac | N4: 10 | O4: 25 | P4: 100 | Q4: 200 | R4: 500 | S4: 2000 | T4: 5000 | V4: Generator Nameplate Capacity | W4: kW ac | X4: 10 | Y4: 25 | Z4: 100 | AA4: 200 | AB4: 500 | AC4: 2000 | AD4: 5000
B5: Generator Nameplate Capacity | C5: kW dc | D5: =D4/D6 -> 12.18355626 | E5: ='Group-specific Assumptions'!E4 -> 30.08357677 | F5: ='Group-specific Assumptions'!F4 -> 118.8177372 | G5: ='Group-specific Assumptions'!G4 -> 239.9110343 | H5: ='Group-specific Assumptions'!H4 -> 607.1812396 | I5: ='Group-specific Assumptions'!I4 -> 2507.904844 | J5: ='Group-specific Assumptions'!J4 -> 6392.03639 | K5: =L$3 -> Distributed Generation | L5: Generator Nameplate Capacity | M5: kW dc | N5: =N4/N6 -> 12.04852455 | O5: =O4/O6 -> 29.77585505 | P5: 123.0671089 | Q5: 247.9143324 | R5: 615.4555235 | S5: =S4/S6 -> 2551.484943 | T5: =T4/T6 -> 6378.712359 | V5: Generator Nameplate Capacity | W5: kW dc | X5: =IF($V$3="","",IF('Scenario & Results'!$B$5=1,'ABP Scenario InputAssumptions'!D5,IF('Scenario & Results'!$B$5=2,'ABP Scenario InputAssumptions'!D31,IF('Scenario & Results'!$B$5=3,'ABP Scenario InputAssumptions'!D57,IF('Scenario & Results'!$B$5=4,'ABP Scenario InputAssumptions'!D83,IF('Scenario & Results'!$B$5=5,'ABP Scenario InputAssumptions'!N5,IF('Scenario & Results'!$B$5=6,'ABP Scenario InputAssumptions'!N31,IF('Scenario & Results'!$B$5=7,'ABP Scenario InputAssumptions'!N57,IF('Scenario & Results'!$B$5=8,'ABP Scenario InputAssumptions'!N83,"Invalid"))))))))) -> 12.18355626 | Y5: =IF($V$3="","",IF('Scenario & Results'!$B$5=1,'ABP Scenario InputAssumptions'!E5,IF('Scenario & Results'!$B$5=2,'ABP Scenario InputAssumptions'!E31,IF('Scenario & Results'!$B$5=3,'ABP Scenario InputAssumptions'!E57,IF('Scenario & Results'!$B$5=4,'ABP Scenario InputAssumptions'!E83,IF('Scenario & Results'!$B$5=5,'ABP Scenario InputAssumptions'!O5,IF('Scenario & Results'!$B$5=6,'ABP Scenario InputAssumptions'!O31,IF('Scenario & Results'!$B$5=7,'ABP Scenario InputAssumptions'!O57,IF('Scenario & Results'!$B$5=8,'ABP Scenario InputAssumptions'!O83,"Invalid"))))))))) -> 30.08357677 | Z5: =IF($V$3="","",IF('Scenario & Results'!$B$5=1,'ABP Scenario InputAssumptions'!F5,IF('Scenario & Results'!$B$5=2,'ABP Scenario InputAssumptions'!F31,IF('Scenario & Results'!$B$5=3,'ABP Scenario InputAssumptions'!F57,IF('Scenario & Results'!$B$5=4,'ABP Scenario InputAssumptions'!F83,IF('Scenario & Results'!$B$5=5,'ABP Scenario InputAssumptions'!P5,IF('Scenario & Results'!$B$5=6,'ABP Scenario InputAssumptions'!P31,IF('Scenario & Results'!$B$5=7,'ABP Scenario InputAssumptions'!P57,IF('Scenario & Results'!$B$5=8,'ABP Scenario InputAssumptions'!P83,"Invalid"))))))))) -> 118.8177372 | AA5: =IF($V$3="","",IF('Scenario & Results'!$B$5=1,'ABP Scenario InputAssumptions'!G5,IF('Scenario & Results'!$B$5=2,'ABP Scenario InputAssumptions'!G31,IF('Scenario & Results'!$B$5=3,'ABP Scenario InputAssumptions'!G57,IF('Scenario & Results'!$B$5=4,'ABP Scenario InputAssumptions'!G83,IF('Scenario & Results'!$B$5=5,'ABP Scenario InputAssumptions'!Q5,IF('Scenario & Results'!$B$5=6,'ABP Scenario InputAssumptions'!Q31,IF('Scenario & Results'!$B$5=7,'ABP Scenario InputAssumptions'!Q57,IF('Scenario & Results'!$B$5=8,'ABP Scenario InputAssumptions'!Q83,"Invalid"))))))))) -> 239.9110343 | AB5: =IF($V$3="","",IF('Scenario & Results'!$B$5=1,'ABP Scenario InputAssumptions'!H5,IF('Scenario & Results'!$B$5=2,'ABP Scenario InputAssumptions'!H31,IF('Scenario & Results'!$B$5=3,'ABP Scenario InputAssumptions'!H57,IF('Scenario & Results'!$B$5=4,'ABP Scenario InputAssumptions'!H83,IF('Scenario & Results'!$B$5=5,'ABP Scenario InputAssumptions'!R5,IF('Scenario & Results'!$B$5=6,'ABP Scenario InputAssumptions'!R31,IF('Scenario & Results'!$B$5=7,'ABP Scenario InputAssumptions'!R57,IF('Scenario & Results'!$B$5=8,'ABP Scenario InputAssumptions'!R83,"Invalid"))))))))) -> 607.1812396 | AC5: =IF($V$3="","",IF('Scenario & Results'!$B$5=1,'ABP Scenario InputAssumptions'!I5,IF('Scenario & Results'!$B$5=2,'ABP Scenario InputAssumptions'!I31,IF('Scenario & Results'!$B$5=3,'ABP Scenario InputAssumptions'!I57,IF('Scenario & Results'!$B$5=4,'ABP Scenario InputAssumptions'!I83,IF('Scenario & Results'!$B$5=5,'ABP Scenario InputAssumptions'!S5,IF('Scenario & Results'!$B$5=6,'ABP Scenario InputAssumptions'!S31,IF('Scenario & Results'!$B$5=7,'ABP Scenario InputAssumptions'!S57,IF('Scenario & Results'!$B$5=8,'ABP Scenario InputAssumptions'!S83,"Invalid"))))))))) -> 2507.904844 | AD5: =IF($V$3="","",IF('Scenario & Results'!$B$5=1,'ABP Scenario InputAssumptions'!J5,IF('Scenario & Results'!$B$5=2,'ABP Scenario InputAssumptions'!J31,IF('Scenario & Results'!$B$5=3,'ABP Scenario InputAssumptions'!J57,IF('Scenario & Results'!$B$5=4,'ABP Scenario InputAssumptions'!J83,IF('Scenario & Results'!$B$5=5,'ABP Scenario InputAssumptions'!T5,IF('Scenario & Results'!$B$5=6,'ABP Scenario InputAssumptions'!T31,IF('Scenario & Results'!$B$5=7,'ABP Scenario InputAssumptions'!T57,IF('Scenario & Results'!$B$5=8,'ABP Scenario InputAssumptions'!T83,"Invalid"))))))))) -> 6392.03639
B6: AC to DC Conversion Factor | C6: % | D6: ='Group-specific Assumptions'!D$5 -> 0.8207784155 | E6: ='Group-specific Assumptions'!E$5 -> 0.831018206 | F6: ='Group-specific Assumptions'!F$5 -> 0.8416251842 | G6: ='Group-specific Assumptions'!G$5 -> 0.8336423566 | H6: ='Group-specific Assumptions'!H$5 -> 0.8234773531 | I6: ='Group-specific Assumptions'!I$5 -> 0.7974784231 | J6: ='Group-specific Assumptions'!J$5 -> 0.7822233314 | K6: Distributed Generation | L6: AC to DC Conversion Factor | M6: % | N6: ='Group-specific Assumptions'!N$5 -> 0.8299771445 | O6: ='Group-specific Assumptions'!O$5 -> 0.8396064514 | P6: ='Group-specific Assumptions'!P$5 -> 0.8125647942 | Q6: ='Group-specific Assumptions'!Q$5 -> 0.806730285 | R6: ='Group-specific Assumptions'!R$5 -> 0.81240639 | S6: ='Group-specific Assumptions'!S$5 -> 0.7838572613 | T6: ='Group-specific Assumptions'!T$5 -> 0.7838572613 | V6: AC to DC Conversion Factor | W6: % | X6: =IF($V$3="","",IF('Scenario & Results'!$B$5=1,'ABP Scenario InputAssumptions'!D6,IF('Scenario & Results'!$B$5=2,'ABP Scenario InputAssumptions'!D32,IF('Scenario & Results'!$B$5=3,'ABP Scenario InputAssumptions'!D58,IF('Scenario & Results'!$B$5=4,'ABP Scenario InputAssumptions'!D84,IF('Scenario & Results'!$B$5=5,'ABP Scenario InputAssumptions'!N6,IF('Scenario & Results'!$B$5=6,'ABP Scenario InputAssumptions'!N32,IF('Scenario & Results'!$B$5=7,'ABP Scenario InputAssumptions'!N58,IF('Scenario & Results'!$B$5=8,'ABP Scenario InputAssumptions'!N84,"Invalid"))))))))) -> 0.8207784155 | Y6: =IF($V$3="","",IF('Scenario & Results'!$B$5=1,'ABP Scenario InputAssumptions'!E6,IF('Scenario & Results'!$B$5=2,'ABP Scenario InputAssumptions'!E32,IF('Scenario & Results'!$B$5=3,'ABP Scenario InputAssumptions'!E58,IF('Scenario & Results'!$B$5=4,'ABP Scenario InputAssumptions'!E84,IF('Scenario & Results'!$B$5=5,'ABP Scenario InputAssumptions'!O6,IF('Scenario & Results'!$B$5=6,'ABP Scenario InputAssumptions'!O32,IF('Scenario & Results'!$B$5=7,'ABP Scenario InputAssumptions'!O58,IF('Scenario & Results'!$B$5=8,'ABP Scenario InputAssumptions'!O84,"Invalid"))))))))) -> 0.831018206 | Z6: =IF($V$3="","",IF('Scenario & Results'!$B$5=1,'ABP Scenario InputAssumptions'!F6,IF('Scenario & Results'!$B$5=2,'ABP Scenario InputAssumptions'!F32,IF('Scenario & Results'!$B$5=3,'ABP Scenario InputAssumptions'!F58,IF('Scenario & Results'!$B$5=4,'ABP Scenario InputAssumptions'!F84,IF('Scenario & Results'!$B$5=5,'ABP Scenario InputAssumptions'!P6,IF('Scenario & Results'!$B$5=6,'ABP Scenario InputAssumptions'!P32,IF('Scenario & Results'!$B$5=7,'ABP Scenario InputAssumptions'!P58,IF('Scenario & Results'!$B$5=8,'ABP Scenario InputAssumptions'!P84,"Invalid"))))))))) -> 0.8416251842 | AA6: =IF($V$3="","",IF('Scenario & Results'!$B$5=1,'ABP Scenario InputAssumptions'!G6,IF('Scenario & Results'!$B$5=2,'ABP Scenario InputAssumptions'!G32,IF('Scenario & Results'!$B$5=3,'ABP Scenario InputAssumptions'!G58,IF('Scenario & Results'!$B$5=4,'ABP Scenario InputAssumptions'!G84,IF('Scenario & Results'!$B$5=5,'ABP Scenario InputAssumptions'!Q6,IF('Scenario & Results'!$B$5=6,'ABP Scenario InputAssumptions'!Q32,IF('Scenario & Results'!$B$5=7,'ABP Scenario InputAssumptions'!Q58,IF('Scenario & Results'!$B$5=8,'ABP Scenario InputAssumptions'!Q84,"Invalid"))))))))) -> 0.8336423566 | AB6: =IF($V$3="","",IF('Scenario & Results'!$B$5=1,'ABP Scenario InputAssumptions'!H6,IF('Scenario & Results'!$B$5=2,'ABP Scenario InputAssumptions'!H32,IF('Scenario & Results'!$B$5=3,'ABP Scenario InputAssumptions'!H58,IF('Scenario & Results'!$B$5=4,'ABP Scenario InputAssumptions'!H84,IF('Scenario & Results'!$B$5=5,'ABP Scenario InputAssumptions'!R6,IF('Scenario & Results'!$B$5=6,'ABP Scenario InputAssumptions'!R32,IF('Scenario & Results'!$B$5=7,'ABP Scenario InputAssumptions'!R58,IF('Scenario & Results'!$B$5=8,'ABP Scenario InputAssumptions'!R84,"Invalid"))))))))) -> 0.8234773531 | AC6: =IF($V$3="","",IF('Scenario & Results'!$B$5=1,'ABP Scenario InputAssumptions'!I6,IF('Scenario & Results'!$B$5=2,'ABP Scenario InputAssumptions'!I32,IF('Scenario & Results'!$B$5=3,'ABP Scenario InputAssumptions'!I58,IF('Scenario & Results'!$B$5=4,'ABP Scenario InputAssumptions'!I84,IF('Scenario & Results'!$B$5=5,'ABP Scenario InputAssumptions'!S6,IF('Scenario & Results'!$B$5=6,'ABP Scenario InputAssumptions'!S32,IF('Scenario & Results'!$B$5=7,'ABP Scenario InputAssumptions'!S58,IF('Scenario & Results'!$B$5=8,'ABP Scenario InputAssumptions'!S84,"Invalid"))))))))) -> 0.7974784231 | AD6: =IF($V$3="","",IF('Scenario & Results'!$B$5=1,'ABP Scenario InputAssumptions'!J6,IF('Scenario & Results'!$B$5=2,'ABP Scenario InputAssumptions'!J32,IF('Scenario & Results'!$B$5=3,'ABP Scenario InputAssumptions'!J58,IF('Scenario & Results'!$B$5=4,'ABP Scenario InputAssumptions'!J84,IF('Scenario & Results'!$B$5=5,'ABP Scenario InputAssumptions'!T6,IF('Scenario & Results'!$B$5=6,'ABP Scenario InputAssumptions'!T32,IF('Scenario & Results'!$B$5=7,'ABP Scenario InputAssumptions'!T58,IF('Scenario & Results'!$B$5=8,'ABP Scenario InputAssumptions'!T84,"Invalid"))))))))) -> 0.7822233314
B7: Net Capacity Factor | C7: % | D7: ='Group-specific Assumptions'!D$6 -> 0.1453144423 | E7: ='Group-specific Assumptions'!E$6 -> 0.1450748585 | F7: ='Group-specific Assumptions'!F$6 -> 0.1495428723 | G7: ='Group-specific Assumptions'!G$6 -> 0.1496179837 | H7: ='Group-specific Assumptions'!H$6 -> 0.1513169208 | I7: ='Group-specific Assumptions'!I$6 -> 0.1493284322 | J7: ='Group-specific Assumptions'!J$6 -> 0.1527894821 | K7: Distributed Generation | L7: Net Capacity Factor | M7: % | N7: ='Group-specific Assumptions'!N$6 -> 0.133954531 | O7: ='Group-specific Assumptions'!O$6 -> 0.1312064847 | P7: ='Group-specific Assumptions'!P$6 -> 0.1424904402 | Q7: ='Group-specific Assumptions'!Q$6 -> 0.1402534344 | R7: ='Group-specific Assumptions'!R$6 -> 0.1429491239 | S7: ='Group-specific Assumptions'!S$6 -> 0.145083104 | T7: ='Group-specific Assumptions'!T$6 -> 0.145083104 | V7: Net Capacity Factor | W7: % | X7: =IF($V$3="","",IF('Scenario & Results'!$B$5=1,'ABP Scenario InputAssumptions'!D7,IF('Scenario & Results'!$B$5=2,'ABP Scenario InputAssumptions'!D33,IF('Scenario & Results'!$B$5=3,'ABP Scenario InputAssumptions'!D59,IF('Scenario & Results'!$B$5=4,'ABP Scenario InputAssumptions'!D85,IF('Scenario & Results'!$B$5=5,'ABP Scenario InputAssumptions'!N7,IF('Scenario & Results'!$B$5=6,'ABP Scenario InputAssumptions'!N33,IF('Scenario & Results'!$B$5=7,'ABP Scenario InputAssumptions'!N59,IF('Scenario & Results'!$B$5=8,'ABP Scenario InputAssumptions'!N85,"Invalid"))))))))) -> 0.1453144423 | Y7: =IF($V$3="","",IF('Scenario & Results'!$B$5=1,'ABP Scenario InputAssumptions'!E7,IF('Scenario & Results'!$B$5=2,'ABP Scenario InputAssumptions'!E33,IF('Scenario & Results'!$B$5=3,'ABP Scenario InputAssumptions'!E59,IF('Scenario & Results'!$B$5=4,'ABP Scenario InputAssumptions'!E85,IF('Scenario & Results'!$B$5=5,'ABP Scenario InputAssumptions'!O7,IF('Scenario & Results'!$B$5=6,'ABP Scenario InputAssumptions'!O33,IF('Scenario & Results'!$B$5=7,'ABP Scenario InputAssumptions'!O59,IF('Scenario & Results'!$B$5=8,'ABP Scenario InputAssumptions'!O85,"Invalid"))))))))) -> 0.1450748585 | Z7: =IF($V$3="","",IF('Scenario & Results'!$B$5=1,'ABP Scenario InputAssumptions'!F7,IF('Scenario & Results'!$B$5=2,'ABP Scenario InputAssumptions'!F33,IF('Scenario & Results'!$B$5=3,'ABP Scenario InputAssumptions'!F59,IF('Scenario & Results'!$B$5=4,'ABP Scenario InputAssumptions'!F85,IF('Scenario & Results'!$B$5=5,'ABP Scenario InputAssumptions'!P7,IF('Scenario & Results'!$B$5=6,'ABP Scenario InputAssumptions'!P33,IF('Scenario & Results'!$B$5=7,'ABP Scenario InputAssumptions'!P59,IF('Scenario & Results'!$B$5=8,'ABP Scenario InputAssumptions'!P85,"Invalid"))))))))) -> 0.1495428723 | AA7: =IF($V$3="","",IF('Scenario & Results'!$B$5=1,'ABP Scenario InputAssumptions'!G7,IF('Scenario & Results'!$B$5=2,'ABP Scenario InputAssumptions'!G33,IF('Scenario & Results'!$B$5=3,'ABP Scenario InputAssumptions'!G59,IF('Scenario & Results'!$B$5=4,'ABP Scenario InputAssumptions'!G85,IF('Scenario & Results'!$B$5=5,'ABP Scenario InputAssumptions'!Q7,IF('Scenario & Results'!$B$5=6,'ABP Scenario InputAssumptions'!Q33,IF('Scenario & Results'!$B$5=7,'ABP Scenario InputAssumptions'!Q59,IF('Scenario & Results'!$B$5=8,'ABP Scenario InputAssumptions'!Q85,"Invalid"))))))))) -> 0.1496179837 | AB7: =IF($V$3="","",IF('Scenario & Results'!$B$5=1,'ABP Scenario InputAssumptions'!H7,IF('Scenario & Results'!$B$5=2,'ABP Scenario InputAssumptions'!H33,IF('Scenario & Results'!$B$5=3,'ABP Scenario InputAssumptions'!H59,IF('Scenario & Results'!$B$5=4,'ABP Scenario InputAssumptions'!H85,IF('Scenario & Results'!$B$5=5,'ABP Scenario InputAssumptions'!R7,IF('Scenario & Results'!$B$5=6,'ABP Scenario InputAssumptions'!R33,IF('Scenario & Results'!$B$5=7,'ABP Scenario InputAssumptions'!R59,IF('Scenario & Results'!$B$5=8,'ABP Scenario InputAssumptions'!R85,"Invalid"))))))))) -> 0.1513169208 | AC7: =IF($V$3="","",IF('Scenario & Results'!$B$5=1,'ABP Scenario InputAssumptions'!I7,IF('Scenario & Results'!$B$5=2,'ABP Scenario InputAssumptions'!I33,IF('Scenario & Results'!$B$5=3,'ABP Scenario InputAssumptions'!I59,IF('Scenario & Results'!$B$5=4,'ABP Scenario InputAssumptions'!I85,IF('Scenario & Results'!$B$5=5,'ABP Scenario InputAssumptions'!S7,IF('Scenario & Results'!$B$5=6,'ABP Scenario InputAssumptions'!S33,IF('Scenario & Results'!$B$5=7,'ABP Scenario InputAssumptions'!S59,IF('Scenario & Results'!$B$5=8,'ABP Scenario InputAssumptions'!S85,"Invalid"))))))))) -> 0.1493284322 | AD7: =IF($V$3="","",IF('Scenario & Results'!$B$5=1,'ABP Scenario InputAssumptions'!J7,IF('Scenario & Results'!$B$5=2,'ABP Scenario InputAssumptions'!J33,IF('Scenario & Results'!$B$5=3,'ABP Scenario InputAssumptions'!J59,IF('Scenario & Results'!$B$5=4,'ABP Scenario InputAssumptions'!J85,IF('Scenario & Results'!$B$5=5,'ABP Scenario InputAssumptions'!T7,IF('Scenario & Results'!$B$5=6,'ABP Scenario InputAssumptions'!T33,IF('Scenario & Results'!$B$5=7,'ABP Scenario InputAssumptions'!T59,IF('Scenario & Results'!$B$5=8,'ABP Scenario InputAssumptions'!T85,"Invalid"))))))))) -> 0.1527894821
B8: Generation Equipment | C8: $ | D8: ='NREL Capital Costs'!C$5*D$5 -> 8858.605334 | E8: ='NREL Capital Costs'!F$5*E$5 -> 13730.07325 | F8: ='NREL Capital Costs'!G$5*F$5 -> 54228.13412 | G8: ='NREL Capital Costs'!H$5*G$5 -> 105975.3491 | H8: ='NREL Capital Costs'!I$5*H$5 -> 263542.1095 | I8: ='NREL Capital Costs'!J$5*I$5 -> 1080500.259 | J8: ='NREL Capital Costs'!K$5*J$5 -> 2251686.689 | K8: Distributed Generation | L8: Generation Equipment | M8: $ | N8: ='NREL Capital Costs'!C$5*N$5 -> 8760.424426 | O8: ='NREL Capital Costs'!F$5*O$5 -> 13589.62979 | P8: ='NREL Capital Costs'!G$5*P$5 -> 56167.53727 | Q8: ='NREL Capital Costs'!H$5*Q$5 -> 109510.6275 | R8: ='NREL Capital Costs'!I$5*R$5 -> 267133.4955 | S8: ='NREL Capital Costs'!J$5*S$5 -> 1099276.214 | T8: ='NREL Capital Costs'!K$5*T$5 -> 2246993.108 | V8: Generation Equipment | W8: $ | X8: =IF($V$3="","",IF('Scenario & Results'!$B$5=1,'ABP Scenario InputAssumptions'!D8,IF('Scenario & Results'!$B$5=2,'ABP Scenario InputAssumptions'!D34,IF('Scenario & Results'!$B$5=3,'ABP Scenario InputAssumptions'!D60,IF('Scenario & Results'!$B$5=4,'ABP Scenario InputAssumptions'!D86,IF('Scenario & Results'!$B$5=5,'ABP Scenario InputAssumptions'!N8,IF('Scenario & Results'!$B$5=6,'ABP Scenario InputAssumptions'!N34,IF('Scenario & Results'!$B$5=7,'ABP Scenario InputAssumptions'!N60,IF('Scenario & Results'!$B$5=8,'ABP Scenario InputAssumptions'!N86,"Invalid"))))))))) -> 8858.605334 | Y8: =IF($V$3="","",IF('Scenario & Results'!$B$5=1,'ABP Scenario InputAssumptions'!E8,IF('Scenario & Results'!$B$5=2,'ABP Scenario InputAssumptions'!E34,IF('Scenario & Results'!$B$5=3,'ABP Scenario InputAssumptions'!E60,IF('Scenario & Results'!$B$5=4,'ABP Scenario InputAssumptions'!E86,IF('Scenario & Results'!$B$5=5,'ABP Scenario InputAssumptions'!O8,IF('Scenario & Results'!$B$5=6,'ABP Scenario InputAssumptions'!O34,IF('Scenario & Results'!$B$5=7,'ABP Scenario InputAssumptions'!O60,IF('Scenario & Results'!$B$5=8,'ABP Scenario InputAssumptions'!O86,"Invalid"))))))))) -> 13730.07325 | Z8: =IF($V$3="","",IF('Scenario & Results'!$B$5=1,'ABP Scenario InputAssumptions'!F8,IF('Scenario & Results'!$B$5=2,'ABP Scenario InputAssumptions'!F34,IF('Scenario & Results'!$B$5=3,'ABP Scenario InputAssumptions'!F60,IF('Scenario & Results'!$B$5=4,'ABP Scenario InputAssumptions'!F86,IF('Scenario & Results'!$B$5=5,'ABP Scenario InputAssumptions'!P8,IF('Scenario & Results'!$B$5=6,'ABP Scenario InputAssumptions'!P34,IF('Scenario & Results'!$B$5=7,'ABP Scenario InputAssumptions'!P60,IF('Scenario & Results'!$B$5=8,'ABP Scenario InputAssumptions'!P86,"Invalid"))))))))) -> 54228.13412 | AA8: =IF($V$3="","",IF('Scenario & Results'!$B$5=1,'ABP Scenario InputAssumptions'!G8,IF('Scenario & Results'!$B$5=2,'ABP Scenario InputAssumptions'!G34,IF('Scenario & Results'!$B$5=3,'ABP Scenario InputAssumptions'!G60,IF('Scenario & Results'!$B$5=4,'ABP Scenario InputAssumptions'!G86,IF('Scenario & Results'!$B$5=5,'ABP Scenario InputAssumptions'!Q8,IF('Scenario & Results'!$B$5=6,'ABP Scenario InputAssumptions'!Q34,IF('Scenario & Results'!$B$5=7,'ABP Scenario InputAssumptions'!Q60,IF('Scenario & Results'!$B$5=8,'ABP Scenario InputAssumptions'!Q86,"Invalid"))))))))) -> 105975.3491 | AB8: =IF($V$3="","",IF('Scenario & Results'!$B$5=1,'ABP Scenario InputAssumptions'!H8,IF('Scenario & Results'!$B$5=2,'ABP Scenario InputAssumptions'!H34,IF('Scenario & Results'!$B$5=3,'ABP Scenario InputAssumptions'!H60,IF('Scenario & Results'!$B$5=4,'ABP Scenario InputAssumptions'!H86,IF('Scenario & Results'!$B$5=5,'ABP Scenario InputAssumptions'!R8,IF('Scenario & Results'!$B$5=6,'ABP Scenario InputAssumptions'!R34,IF('Scenario & Results'!$B$5=7,'ABP Scenario InputAssumptions'!R60,IF('Scenario & Results'!$B$5=8,'ABP Scenario InputAssumptions'!R86,"Invalid"))))))))) -> 263542.1095 | AC8: =IF($V$3="","",IF('Scenario & Results'!$B$5=1,'ABP Scenario InputAssumptions'!I8,IF('Scenario & Results'!$B$5=2,'ABP Scenario InputAssumptions'!I34,IF('Scenario & Results'!$B$5=3,'ABP Scenario InputAssumptions'!I60,IF('Scenario & Results'!$B$5=4,'ABP Scenario InputAssumptions'!I86,IF('Scenario & Results'!$B$5=5,'ABP Scenario InputAssumptions'!S8,IF('Scenario & Results'!$B$5=6,'ABP Scenario InputAssumptions'!S34,IF('Scenario & Results'!$B$5=7,'ABP Scenario InputAssumptions'!S60,IF('Scenario & Results'!$B$5=8,'ABP Scenario InputAssumptions'!S86,"Invalid"))))))))) -> 1080500.259 | AD8: =IF($V$3="","",IF('Scenario & Results'!$B$5=1,'ABP Scenario InputAssumptions'!J8,IF('Scenario & Results'!$B$5=2,'ABP Scenario InputAssumptions'!J34,IF('Scenario & Results'!$B$5=3,'ABP Scenario InputAssumptions'!J60,IF('Scenario & Results'!$B$5=4,'ABP Scenario InputAssumptions'!J86,IF('Scenario & Results'!$B$5=5,'ABP Scenario InputAssumptions'!T8,IF('Scenario & Results'!$B$5=6,'ABP Scenario InputAssumptions'!T34,IF('Scenario & Results'!$B$5=7,'ABP Scenario InputAssumptions'!T60,IF('Scenario & Results'!$B$5=8,'ABP Scenario InputAssumptions'!T86,"Invalid"))))))))) -> 2251686.689
B9: Balance of Plant | C9: $ | D9: =IF(D4=10,'NREL Capital Costs'!C$6,'NREL Capital Costs'!C$7)*D$5 -> 10162.93986 | E9: =IF(E4=10,'NREL Capital Costs'!F$6,'NREL Capital Costs'!F$7)*E$5 -> 28301.8615 | F9: =IF(F4=10,'NREL Capital Costs'!G$6,'NREL Capital Costs'!G$7)*F$5 -> 111780.6958 | G9: =IF(G4=10,'NREL Capital Costs'!H$6,'NREL Capital Costs'!H$7)*G$5 -> 195182.54 | H9: =IF(H4=10,'NREL Capital Costs'!I$6,'NREL Capital Costs'!I$7)*H$5 -> 453466.0053 | I9: =IF(I4=10,'NREL Capital Costs'!J$6,'NREL Capital Costs'!J$7)*I$5 -> 1803126.513 | J9: =IF(J4=10,'NREL Capital Costs'!K$6,'NREL Capital Costs'!K$7)*J$5 -> 4610112.43 | K9: Distributed Generation | L9: Balance of Plant | M9: $ | N9: =IF(N4=10,'NREL Capital Costs'!C$6,'NREL Capital Costs'!C$7)*N$5 -> 10050.30287 | O9: =IF(E4=10,'NREL Capital Costs'!F$6,'NREL Capital Costs'!F$7)*O$5 -> 28012.36476 | P9: =IF(F4=10,'NREL Capital Costs'!G$6,'NREL Capital Costs'!G$7)*P$5 -> 115778.3962 | Q9: =IF(G4=10,'NREL Capital Costs'!H$6,'NREL Capital Costs'!H$7)*Q$5 -> 201693.7205 | R9: =IF(H4=10,'NREL Capital Costs'!I$6,'NREL Capital Costs'!I$7)*R$5 -> 459645.5547 | S9: =IF(I4=10,'NREL Capital Costs'!J$6,'NREL Capital Costs'!J$7)*S$5 -> 1834459.613 | T9: =IF(J4=10,'NREL Capital Costs'!K$6,'NREL Capital Costs'!K$7)*T$5 -> 4600502.772 | V9: Balance of Plant | W9: $ | X9: =IF($V$3="","",IF('Scenario & Results'!$B$5=1,'ABP Scenario InputAssumptions'!D9,IF('Scenario & Results'!$B$5=2,'ABP Scenario InputAssumptions'!D35,IF('Scenario & Results'!$B$5=3,'ABP Scenario InputAssumptions'!D61,IF('Scenario & Results'!$B$5=4,'ABP Scenario InputAssumptions'!D87,IF('Scenario & Results'!$B$5=5,'ABP Scenario InputAssumptions'!N9,IF('Scenario & Results'!$B$5=6,'ABP Scenario InputAssumptions'!N35,IF('Scenario & Results'!$B$5=7,'ABP Scenario InputAssumptions'!N61,IF('Scenario & Results'!$B$5=8,'ABP Scenario InputAssumptions'!N87,"Invalid"))))))))) -> 10162.93986 | Y9: =IF($V$3="","",IF('Scenario & Results'!$B$5=1,'ABP Scenario InputAssumptions'!E9,IF('Scenario & Results'!$B$5=2,'ABP Scenario InputAssumptions'!E35,IF('Scenario & Results'!$B$5=3,'ABP Scenario InputAssumptions'!E61,IF('Scenario & Results'!$B$5=4,'ABP Scenario InputAssumptions'!E87,IF('Scenario & Results'!$B$5=5,'ABP Scenario InputAssumptions'!O9,IF('Scenario & Results'!$B$5=6,'ABP Scenario InputAssumptions'!O35,IF('Scenario & Results'!$B$5=7,'ABP Scenario InputAssumptions'!O61,IF('Scenario & Results'!$B$5=8,'ABP Scenario InputAssumptions'!O87,"Invalid"))))))))) -> 28301.8615 | Z9: =IF($V$3="","",IF('Scenario & Results'!$B$5=1,'ABP Scenario InputAssumptions'!F9,IF('Scenario & Results'!$B$5=2,'ABP Scenario InputAssumptions'!F35,IF('Scenario & Results'!$B$5=3,'ABP Scenario InputAssumptions'!F61,IF('Scenario & Results'!$B$5=4,'ABP Scenario InputAssumptions'!F87,IF('Scenario & Results'!$B$5=5,'ABP Scenario InputAssumptions'!P9,IF('Scenario & Results'!$B$5=6,'ABP Scenario InputAssumptions'!P35,IF('Scenario & Results'!$B$5=7,'ABP Scenario InputAssumptions'!P61,IF('Scenario & Results'!$B$5=8,'ABP Scenario InputAssumptions'!P87,"Invalid"))))))))) -> 111780.6958 | AA9: =IF($V$3="","",IF('Scenario & Results'!$B$5=1,'ABP Scenario InputAssumptions'!G9,IF('Scenario & Results'!$B$5=2,'ABP Scenario InputAssumptions'!G35,IF('Scenario & Results'!$B$5=3,'ABP Scenario InputAssumptions'!G61,IF('Scenario & Results'!$B$5=4,'ABP Scenario InputAssumptions'!G87,IF('Scenario & Results'!$B$5=5,'ABP Scenario InputAssumptions'!Q9,IF('Scenario & Results'!$B$5=6,'ABP Scenario InputAssumptions'!Q35,IF('Scenario & Results'!$B$5=7,'ABP Scenario InputAssumptions'!Q61,IF('Scenario & Results'!$B$5=8,'ABP Scenario InputAssumptions'!Q87,"Invalid"))))))))) -> 195182.54 | AB9: =IF($V$3="","",IF('Scenario & Results'!$B$5=1,'ABP Scenario InputAssumptions'!H9,IF('Scenario & Results'!$B$5=2,'ABP Scenario InputAssumptions'!H35,IF('Scenario & Results'!$B$5=3,'ABP Scenario InputAssumptions'!H61,IF('Scenario & Results'!$B$5=4,'ABP Scenario InputAssumptions'!H87,IF('Scenario & Results'!$B$5=5,'ABP Scenario InputAssumptions'!R9,IF('Scenario & Results'!$B$5=6,'ABP Scenario InputAssumptions'!R35,IF('Scenario & Results'!$B$5=7,'ABP Scenario InputAssumptions'!R61,IF('Scenario & Results'!$B$5=8,'ABP Scenario InputAssumptions'!R87,"Invalid"))))))))) -> 453466.0053 | AC9: =IF($V$3="","",IF('Scenario & Results'!$B$5=1,'ABP Scenario InputAssumptions'!I9,IF('Scenario & Results'!$B$5=2,'ABP Scenario InputAssumptions'!I35,IF('Scenario & Results'!$B$5=3,'ABP Scenario InputAssumptions'!I61,IF('Scenario & Results'!$B$5=4,'ABP Scenario InputAssumptions'!I87,IF('Scenario & Results'!$B$5=5,'ABP Scenario InputAssumptions'!S9,IF('Scenario & Results'!$B$5=6,'ABP Scenario InputAssumptions'!S35,IF('Scenario & Results'!$B$5=7,'ABP Scenario InputAssumptions'!S61,IF('Scenario & Results'!$B$5=8,'ABP Scenario InputAssumptions'!S87,"Invalid"))))))))) -> 1803126.513 | AD9: =IF($V$3="","",IF('Scenario & Results'!$B$5=1,'ABP Scenario InputAssumptions'!J9,IF('Scenario & Results'!$B$5=2,'ABP Scenario InputAssumptions'!J35,IF('Scenario & Results'!$B$5=3,'ABP Scenario InputAssumptions'!J61,IF('Scenario & Results'!$B$5=4,'ABP Scenario InputAssumptions'!J87,IF('Scenario & Results'!$B$5=5,'ABP Scenario InputAssumptions'!T9,IF('Scenario & Results'!$B$5=6,'ABP Scenario InputAssumptions'!T35,IF('Scenario & Results'!$B$5=7,'ABP Scenario InputAssumptions'!T61,IF('Scenario & Results'!$B$5=8,'ABP Scenario InputAssumptions'!T87,"Invalid"))))))))) -> 4610112.43
B10: Interconnection | C10: $ | D10: 200 | E10: 200 | F10: ='NREL Capital Costs'!G$8*F$5 -> 15210.51871 | G10: ='NREL Capital Costs'!H$8*G$5 -> 24026.90398 | H10: ='NREL Capital Costs'!I$8*H$5 -> 50620.8969 | I10: ='NREL Capital Costs'!J$8*I$5 -> 195054.6786 | J10: ='NREL Capital Costs'!K$8*J$5 -> 421762.8929 | K10: Distributed Generation | L10: Interconnection | M10: $ | N10: 200 | O10: 200 | P10: ='NREL Capital Costs'!G$8*P$5 -> 15754.50438 | Q10: ='NREL Capital Costs'!H$8*Q$5 -> 24828.42807 | R10: ='NREL Capital Costs'!I$8*R$5 -> 51310.72663 | S10: ='NREL Capital Costs'!J$8*S$5 -> 198444.1622 | T10: ='NREL Capital Costs'!K$8*T$5 -> 420883.7392 | V10: Interconnection | W10: $ | X10: =IF($V$3="","",IF('Scenario & Results'!$B$5=1,'ABP Scenario InputAssumptions'!D10,IF('Scenario & Results'!$B$5=2,'ABP Scenario InputAssumptions'!D36,IF('Scenario & Results'!$B$5=3,'ABP Scenario InputAssumptions'!D62,IF('Scenario & Results'!$B$5=4,'ABP Scenario InputAssumptions'!D88,IF('Scenario & Results'!$B$5=5,'ABP Scenario InputAssumptions'!N10,IF('Scenario & Results'!$B$5=6,'ABP Scenario InputAssumptions'!N36,IF('Scenario & Results'!$B$5=7,'ABP Scenario InputAssumptions'!N62,IF('Scenario & Results'!$B$5=8,'ABP Scenario InputAssumptions'!N88,"Invalid"))))))))) -> 200 | Y10: =IF($V$3="","",IF('Scenario & Results'!$B$5=1,'ABP Scenario InputAssumptions'!E10,IF('Scenario & Results'!$B$5=2,'ABP Scenario InputAssumptions'!E36,IF('Scenario & Results'!$B$5=3,'ABP Scenario InputAssumptions'!E62,IF('Scenario & Results'!$B$5=4,'ABP Scenario InputAssumptions'!E88,IF('Scenario & Results'!$B$5=5,'ABP Scenario InputAssumptions'!O10,IF('Scenario & Results'!$B$5=6,'ABP Scenario InputAssumptions'!O36,IF('Scenario & Results'!$B$5=7,'ABP Scenario InputAssumptions'!O62,IF('Scenario & Results'!$B$5=8,'ABP Scenario InputAssumptions'!O88,"Invalid"))))))))) -> 200 | Z10: =IF($V$3="","",IF('Scenario & Results'!$B$5=1,'ABP Scenario InputAssumptions'!F10,IF('Scenario & Results'!$B$5=2,'ABP Scenario InputAssumptions'!F36,IF('Scenario & Results'!$B$5=3,'ABP Scenario InputAssumptions'!F62,IF('Scenario & Results'!$B$5=4,'ABP Scenario InputAssumptions'!F88,IF('Scenario & Results'!$B$5=5,'ABP Scenario InputAssumptions'!P10,IF('Scenario & Results'!$B$5=6,'ABP Scenario InputAssumptions'!P36,IF('Scenario & Results'!$B$5=7,'ABP Scenario InputAssumptions'!P62,IF('Scenario & Results'!$B$5=8,'ABP Scenario InputAssumptions'!P88,"Invalid"))))))))) -> 15210.51871 | AA10: =IF($V$3="","",IF('Scenario & Results'!$B$5=1,'ABP Scenario InputAssumptions'!G10,IF('Scenario & Results'!$B$5=2,'ABP Scenario InputAssumptions'!G36,IF('Scenario & Results'!$B$5=3,'ABP Scenario InputAssumptions'!G62,IF('Scenario & Results'!$B$5=4,'ABP Scenario InputAssumptions'!G88,IF('Scenario & Results'!$B$5=5,'ABP Scenario InputAssumptions'!Q10,IF('Scenario & Results'!$B$5=6,'ABP Scenario InputAssumptions'!Q36,IF('Scenario & Results'!$B$5=7,'ABP Scenario InputAssumptions'!Q62,IF('Scenario & Results'!$B$5=8,'ABP Scenario InputAssumptions'!Q88,"Invalid"))))))))) -> 24026.90398 | AB10: =IF($V$3="","",IF('Scenario & Results'!$B$5=1,'ABP Scenario InputAssumptions'!H10,IF('Scenario & Results'!$B$5=2,'ABP Scenario InputAssumptions'!H36,IF('Scenario & Results'!$B$5=3,'ABP Scenario InputAssumptions'!H62,IF('Scenario & Results'!$B$5=4,'ABP Scenario InputAssumptions'!H88,IF('Scenario & Results'!$B$5=5,'ABP Scenario InputAssumptions'!R10,IF('Scenario & Results'!$B$5=6,'ABP Scenario InputAssumptions'!R36,IF('Scenario & Results'!$B$5=7,'ABP Scenario InputAssumptions'!R62,IF('Scenario & Results'!$B$5=8,'ABP Scenario InputAssumptions'!R88,"Invalid"))))))))) -> 50620.8969 | AC10: =IF($V$3="","",IF('Scenario & Results'!$B$5=1,'ABP Scenario InputAssumptions'!I10,IF('Scenario & Results'!$B$5=2,'ABP Scenario InputAssumptions'!I36,IF('Scenario & Results'!$B$5=3,'ABP Scenario InputAssumptions'!I62,IF('Scenario & Results'!$B$5=4,'ABP Scenario InputAssumptions'!I88,IF('Scenario & Results'!$B$5=5,'ABP Scenario InputAssumptions'!S10,IF('Scenario & Results'!$B$5=6,'ABP Scenario InputAssumptions'!S36,IF('Scenario & Results'!$B$5=7,'ABP Scenario InputAssumptions'!S62,IF('Scenario & Results'!$B$5=8,'ABP Scenario InputAssumptions'!S88,"Invalid"))))))))) -> 195054.6786 | AD10: =IF($V$3="","",IF('Scenario & Results'!$B$5=1,'ABP Scenario InputAssumptions'!J10,IF('Scenario & Results'!$B$5=2,'ABP Scenario InputAssumptions'!J36,IF('Scenario & Results'!$B$5=3,'ABP Scenario InputAssumptions'!J62,IF('Scenario & Results'!$B$5=4,'ABP Scenario InputAssumptions'!J88,IF('Scenario & Results'!$B$5=5,'ABP Scenario InputAssumptions'!T10,IF('Scenario & Results'!$B$5=6,'ABP Scenario InputAssumptions'!T36,IF('Scenario & Results'!$B$5=7,'ABP Scenario InputAssumptions'!T62,IF('Scenario & Results'!$B$5=8,'ABP Scenario InputAssumptions'!T88,"Invalid"))))))))) -> 421762.8929
B11: Development Costs & Fee | C11: $ | D11: ='NREL Capital Costs'!C$9*D$5 -> 14402.02708 | E11: ='NREL Capital Costs'!F$9*E$5 -> 23335.50091 | F11: ='NREL Capital Costs'!G$9*F$5 -> 92165.61702 | G11: ='NREL Capital Costs'!H$9*G$5 -> 170024.8985 | H11: ='NREL Capital Costs'!I$9*H$5 -> 408287.3163 | I11: ='NREL Capital Costs'!J$9*I$5 -> 1650265.241 | J11: ='NREL Capital Costs'!K$9*J$5 -> 3491669.709 | K11: Distributed Generation | L11: Development Costs & Fee | M11: $ | N11: ='NREL Capital Costs'!C$9*N$5 -> 14242.40781 | O11: ='NREL Capital Costs'!F$9*O$5 -> 23096.80454 | P11: ='NREL Capital Costs'!G$9*P$5 -> 95461.80803 | Q11: ='NREL Capital Costs'!H$9*Q$5 -> 175696.8341 | R11: ='NREL Capital Costs'!I$9*R$5 -> 413851.1989 | S11: ='NREL Capital Costs'!J$9*S$5 -> 1678942.057 | T11: ='NREL Capital Costs'!K$9*T$5 -> 3484391.415 | V11: Development Costs & Fee | W11: $ | X11: =IF($V$3="","",IF('Scenario & Results'!$B$5=1,'ABP Scenario InputAssumptions'!D11,IF('Scenario & Results'!$B$5=2,'ABP Scenario InputAssumptions'!D37,IF('Scenario & Results'!$B$5=3,'ABP Scenario InputAssumptions'!D63,IF('Scenario & Results'!$B$5=4,'ABP Scenario InputAssumptions'!D89,IF('Scenario & Results'!$B$5=5,'ABP Scenario InputAssumptions'!N11,IF('Scenario & Results'!$B$5=6,'ABP Scenario InputAssumptions'!N37,IF('Scenario & Results'!$B$5=7,'ABP Scenario InputAssumptions'!N63,IF('Scenario & Results'!$B$5=8,'ABP Scenario InputAssumptions'!N89,"Invalid"))))))))) -> 14402.02708 | Y11: =IF($V$3="","",IF('Scenario & Results'!$B$5=1,'ABP Scenario InputAssumptions'!E11,IF('Scenario & Results'!$B$5=2,'ABP Scenario InputAssumptions'!E37,IF('Scenario & Results'!$B$5=3,'ABP Scenario InputAssumptions'!E63,IF('Scenario & Results'!$B$5=4,'ABP Scenario InputAssumptions'!E89,IF('Scenario & Results'!$B$5=5,'ABP Scenario InputAssumptions'!O11,IF('Scenario & Results'!$B$5=6,'ABP Scenario InputAssumptions'!O37,IF('Scenario & Results'!$B$5=7,'ABP Scenario InputAssumptions'!O63,IF('Scenario & Results'!$B$5=8,'ABP Scenario InputAssumptions'!O89,"Invalid"))))))))) -> 23335.50091 | Z11: =IF($V$3="","",IF('Scenario & Results'!$B$5=1,'ABP Scenario InputAssumptions'!F11,IF('Scenario & Results'!$B$5=2,'ABP Scenario InputAssumptions'!F37,IF('Scenario & Results'!$B$5=3,'ABP Scenario InputAssumptions'!F63,IF('Scenario & Results'!$B$5=4,'ABP Scenario InputAssumptions'!F89,IF('Scenario & Results'!$B$5=5,'ABP Scenario InputAssumptions'!P11,IF('Scenario & Results'!$B$5=6,'ABP Scenario InputAssumptions'!P37,IF('Scenario & Results'!$B$5=7,'ABP Scenario InputAssumptions'!P63,IF('Scenario & Results'!$B$5=8,'ABP Scenario InputAssumptions'!P89,"Invalid"))))))))) -> 92165.61702 | AA11: =IF($V$3="","",IF('Scenario & Results'!$B$5=1,'ABP Scenario InputAssumptions'!G11,IF('Scenario & Results'!$B$5=2,'ABP Scenario InputAssumptions'!G37,IF('Scenario & Results'!$B$5=3,'ABP Scenario InputAssumptions'!G63,IF('Scenario & Results'!$B$5=4,'ABP Scenario InputAssumptions'!G89,IF('Scenario & Results'!$B$5=5,'ABP Scenario InputAssumptions'!Q11,IF('Scenario & Results'!$B$5=6,'ABP Scenario InputAssumptions'!Q37,IF('Scenario & Results'!$B$5=7,'ABP Scenario InputAssumptions'!Q63,IF('Scenario & Results'!$B$5=8,'ABP Scenario InputAssumptions'!Q89,"Invalid"))))))))) -> 170024.8985 | AB11: =IF($V$3="","",IF('Scenario & Results'!$B$5=1,'ABP Scenario InputAssumptions'!H11,IF('Scenario & Results'!$B$5=2,'ABP Scenario InputAssumptions'!H37,IF('Scenario & Results'!$B$5=3,'ABP Scenario InputAssumptions'!H63,IF('Scenario & Results'!$B$5=4,'ABP Scenario InputAssumptions'!H89,IF('Scenario & Results'!$B$5=5,'ABP Scenario InputAssumptions'!R11,IF('Scenario & Results'!$B$5=6,'ABP Scenario InputAssumptions'!R37,IF('Scenario & Results'!$B$5=7,'ABP Scenario InputAssumptions'!R63,IF('Scenario & Results'!$B$5=8,'ABP Scenario InputAssumptions'!R89,"Invalid"))))))))) -> 408287.3163 | AC11: =IF($V$3="","",IF('Scenario & Results'!$B$5=1,'ABP Scenario InputAssumptions'!I11,IF('Scenario & Results'!$B$5=2,'ABP Scenario InputAssumptions'!I37,IF('Scenario & Results'!$B$5=3,'ABP Scenario InputAssumptions'!I63,IF('Scenario & Results'!$B$5=4,'ABP Scenario InputAssumptions'!I89,IF('Scenario & Results'!$B$5=5,'ABP Scenario InputAssumptions'!S11,IF('Scenario & Results'!$B$5=6,'ABP Scenario InputAssumptions'!S37,IF('Scenario & Results'!$B$5=7,'ABP Scenario InputAssumptions'!S63,IF('Scenario & Results'!$B$5=8,'ABP Scenario InputAssumptions'!S89,"Invalid"))))))))) -> 1650265.241 | AD11: =IF($V$3="","",IF('Scenario & Results'!$B$5=1,'ABP Scenario InputAssumptions'!J11,IF('Scenario & Results'!$B$5=2,'ABP Scenario InputAssumptions'!J37,IF('Scenario & Results'!$B$5=3,'ABP Scenario InputAssumptions'!J63,IF('Scenario & Results'!$B$5=4,'ABP Scenario InputAssumptions'!J89,IF('Scenario & Results'!$B$5=5,'ABP Scenario InputAssumptions'!T11,IF('Scenario & Results'!$B$5=6,'ABP Scenario InputAssumptions'!T37,IF('Scenario & Results'!$B$5=7,'ABP Scenario InputAssumptions'!T63,IF('Scenario & Results'!$B$5=8,'ABP Scenario InputAssumptions'!T89,"Invalid"))))))))) -> 3491669.709
B12: Project Management Yr 1 | C12: $/yr | D12: =VLOOKUP($B3,'Program-specific Assumptions'!$C$1:$N$9,3,0)*D$5 -> 85.2848938 | E12: =VLOOKUP($B3,'Program-specific Assumptions'!$C$1:$N$9,3,0)*E$5 -> 210.5850374 | F12: =VLOOKUP($B3,'Program-specific Assumptions'!$C$1:$N$9,3,0)*F$5 -> 831.7241607 | G12: =VLOOKUP($B3,'Program-specific Assumptions'!$C$1:$N$9,3,0)*G$5 -> 1679.37724 | H12: =VLOOKUP($B3,'Program-specific Assumptions'!$C$1:$N$9,3,0)*H$5 -> 4250.268677 | I12: =VLOOKUP($B3,'Program-specific Assumptions'!$C$1:$N$9,3,0)*I$5 -> 17555.33391 | J12: =VLOOKUP($B3,'Program-specific Assumptions'!$C$1:$N$9,3,0)*J$5 -> 44744.25473 | K12: Distributed Generation | L12: Project Management Yr 1 | M12: $/yr | N12: =VLOOKUP($B3,'Program-specific Assumptions'!$C$1:$N$9,3,0)*N$5 -> 84.33967184 | O12: =VLOOKUP($B3,'Program-specific Assumptions'!$C$1:$N$9,3,0)*O$5 -> 208.4309854 | P12: =VLOOKUP($B3,'Program-specific Assumptions'!$C$1:$N$9,3,0)*P$5 -> 861.4697621 | Q12: =VLOOKUP($B3,'Program-specific Assumptions'!$C$1:$N$9,3,0)*Q$5 -> 1735.400326 | R12: =VLOOKUP($B3,'Program-specific Assumptions'!$C$1:$N$9,3,0)*R$5 -> 4308.188664 | S12: =VLOOKUP($B3,'Program-specific Assumptions'!$C$1:$N$9,3,0)*S$5 -> 17860.3946 | T12: =VLOOKUP($B3,'Program-specific Assumptions'!$C$1:$N$9,3,0)*T$5 -> 44650.98651 | V12: Project Management Yr 1 | W12: $/yr | X12: =IF($V$3="","",IF('Scenario & Results'!$B$5=1,'ABP Scenario InputAssumptions'!D12,IF('Scenario & Results'!$B$5=2,'ABP Scenario InputAssumptions'!D38,IF('Scenario & Results'!$B$5=3,'ABP Scenario InputAssumptions'!D64,IF('Scenario & Results'!$B$5=4,'ABP Scenario InputAssumptions'!D90,IF('Scenario & Results'!$B$5=5,'ABP Scenario InputAssumptions'!N12,IF('Scenario & Results'!$B$5=6,'ABP Scenario InputAssumptions'!N38,IF('Scenario & Results'!$B$5=7,'ABP Scenario InputAssumptions'!N64,IF('Scenario & Results'!$B$5=8,'ABP Scenario InputAssumptions'!N90,"Invalid"))))))))) -> 85.2848938 | Y12: =IF($V$3="","",IF('Scenario & Results'!$B$5=1,'ABP Scenario InputAssumptions'!E12,IF('Scenario & Results'!$B$5=2,'ABP Scenario InputAssumptions'!E38,IF('Scenario & Results'!$B$5=3,'ABP Scenario InputAssumptions'!E64,IF('Scenario & Results'!$B$5=4,'ABP Scenario InputAssumptions'!E90,IF('Scenario & Results'!$B$5=5,'ABP Scenario InputAssumptions'!O12,IF('Scenario & Results'!$B$5=6,'ABP Scenario InputAssumptions'!O38,IF('Scenario & Results'!$B$5=7,'ABP Scenario InputAssumptions'!O64,IF('Scenario & Results'!$B$5=8,'ABP Scenario InputAssumptions'!O90,"Invalid"))))))))) -> 210.5850374 | Z12: =IF($V$3="","",IF('Scenario & Results'!$B$5=1,'ABP Scenario InputAssumptions'!F12,IF('Scenario & Results'!$B$5=2,'ABP Scenario InputAssumptions'!F38,IF('Scenario & Results'!$B$5=3,'ABP Scenario InputAssumptions'!F64,IF('Scenario & Results'!$B$5=4,'ABP Scenario InputAssumptions'!F90,IF('Scenario & Results'!$B$5=5,'ABP Scenario InputAssumptions'!P12,IF('Scenario & Results'!$B$5=6,'ABP Scenario InputAssumptions'!P38,IF('Scenario & Results'!$B$5=7,'ABP Scenario InputAssumptions'!P64,IF('Scenario & Results'!$B$5=8,'ABP Scenario InputAssumptions'!P90,"Invalid"))))))))) -> 831.7241607 | AA12: =IF($V$3="","",IF('Scenario & Results'!$B$5=1,'ABP Scenario InputAssumptions'!G12,IF('Scenario & Results'!$B$5=2,'ABP Scenario InputAssumptions'!G38,IF('Scenario & Results'!$B$5=3,'ABP Scenario InputAssumptions'!G64,IF('Scenario & Results'!$B$5=4,'ABP Scenario InputAssumptions'!G90,IF('Scenario & Results'!$B$5=5,'ABP Scenario InputAssumptions'!Q12,IF('Scenario & Results'!$B$5=6,'ABP Scenario InputAssumptions'!Q38,IF('Scenario & Results'!$B$5=7,'ABP Scenario InputAssumptions'!Q64,IF('Scenario & Results'!$B$5=8,'ABP Scenario InputAssumptions'!Q90,"Invalid"))))))))) -> 1679.37724 | AB12: =IF($V$3="","",IF('Scenario & Results'!$B$5=1,'ABP Scenario InputAssumptions'!H12,IF('Scenario & Results'!$B$5=2,'ABP Scenario InputAssumptions'!H38,IF('Scenario & Results'!$B$5=3,'ABP Scenario InputAssumptions'!H64,IF('Scenario & Results'!$B$5=4,'ABP Scenario InputAssumptions'!H90,IF('Scenario & Results'!$B$5=5,'ABP Scenario InputAssumptions'!R12,IF('Scenario & Results'!$B$5=6,'ABP Scenario InputAssumptions'!R38,IF('Scenario & Results'!$B$5=7,'ABP Scenario InputAssumptions'!R64,IF('Scenario & Results'!$B$5=8,'ABP Scenario InputAssumptions'!R90,"Invalid"))))))))) -> 4250.268677 | AC12: =IF($V$3="","",IF('Scenario & Results'!$B$5=1,'ABP Scenario InputAssumptions'!I12,IF('Scenario & Results'!$B$5=2,'ABP Scenario InputAssumptions'!I38,IF('Scenario & Results'!$B$5=3,'ABP Scenario InputAssumptions'!I64,IF('Scenario & Results'!$B$5=4,'ABP Scenario InputAssumptions'!I90,IF('Scenario & Results'!$B$5=5,'ABP Scenario InputAssumptions'!S12,IF('Scenario & Results'!$B$5=6,'ABP Scenario InputAssumptions'!S38,IF('Scenario & Results'!$B$5=7,'ABP Scenario InputAssumptions'!S64,IF('Scenario & Results'!$B$5=8,'ABP Scenario InputAssumptions'!S90,"Invalid"))))))))) -> 17555.33391 | AD12: =IF($V$3="","",IF('Scenario & Results'!$B$5=1,'ABP Scenario InputAssumptions'!J12,IF('Scenario & Results'!$B$5=2,'ABP Scenario InputAssumptions'!J38,IF('Scenario & Results'!$B$5=3,'ABP Scenario InputAssumptions'!J64,IF('Scenario & Results'!$B$5=4,'ABP Scenario InputAssumptions'!J90,IF('Scenario & Results'!$B$5=5,'ABP Scenario InputAssumptions'!T12,IF('Scenario & Results'!$B$5=6,'ABP Scenario InputAssumptions'!T38,IF('Scenario & Results'!$B$5=7,'ABP Scenario InputAssumptions'!T64,IF('Scenario & Results'!$B$5=8,'ABP Scenario InputAssumptions'!T90,"Invalid"))))))))) -> 44744.25473
B13: Property Tax or PILOT, Yr 1 | C13: $/yr | D13: =VLOOKUP($B3,'Program-specific Assumptions'!$C$1:$N$9,11,0)*D4 -> 0 | E13: =VLOOKUP($B3,'Program-specific Assumptions'!$C$1:$N$9,11,0)*E4 -> 0 | F13: =VLOOKUP($B3,'Program-specific Assumptions'!$C$1:$N$9,11,0)*F4 -> 0 | G13: =VLOOKUP($B3,'Program-specific Assumptions'!$C$1:$N$9,11,0)*G4 -> 0 | H13: =VLOOKUP($B3,'Program-specific Assumptions'!$C$1:$N$9,11,0)*H4 -> 0 | I13: =VLOOKUP($B3,'Program-specific Assumptions'!$C$1:$N$9,11,0)*I4 -> 0 | J13: =VLOOKUP($B3,'Program-specific Assumptions'!$C$1:$N$9,11,0)*J4 -> 0 | K13: Distributed Generation | L13: Property Tax or PILOT, Yr 1 | M13: $/yr | N13: =VLOOKUP($B3,'Program-specific Assumptions'!$C$1:$N$9,11,0)*N4 -> 0 | O13: =VLOOKUP($B3,'Program-specific Assumptions'!$C$1:$N$9,11,0)*O4 -> 0 | P13: =VLOOKUP($B3,'Program-specific Assumptions'!$C$1:$N$9,11,0)*P4 -> 0 | Q13: =VLOOKUP($B3,'Program-specific Assumptions'!$C$1:$N$9,11,0)*Q4 -> 0 | R13: =VLOOKUP($B3,'Program-specific Assumptions'!$C$1:$N$9,11,0)*R4 -> 0 | S13: =VLOOKUP($B3,'Program-specific Assumptions'!$C$1:$N$9,11,0)*S4 -> 0 | T13: =VLOOKUP($B3,'Program-specific Assumptions'!$C$1:$N$9,11,0)*T4 -> 0 | V13: Property Tax or PILOT, Yr 1 | W13: $/yr | X13: =IF($V$3="","",IF('Scenario & Results'!$B$5=1,'ABP Scenario InputAssumptions'!D13,IF('Scenario & Results'!$B$5=2,'ABP Scenario InputAssumptions'!D39,IF('Scenario & Results'!$B$5=3,'ABP Scenario InputAssumptions'!D65,IF('Scenario & Results'!$B$5=4,'ABP Scenario InputAssumptions'!D91,IF('Scenario & Results'!$B$5=5,'ABP Scenario InputAssumptions'!N13,IF('Scenario & Results'!$B$5=6,'ABP Scenario InputAssumptions'!N39,IF('Scenario & Results'!$B$5=7,'ABP Scenario InputAssumptions'!N65,IF('Scenario & Results'!$B$5=8,'ABP Scenario InputAssumptions'!N91,"Invalid"))))))))) -> 0 | Y13: =IF($V$3="","",IF('Scenario & Results'!$B$5=1,'ABP Scenario InputAssumptions'!E13,IF('Scenario & Results'!$B$5=2,'ABP Scenario InputAssumptions'!E39,IF('Scenario & Results'!$B$5=3,'ABP Scenario InputAssumptions'!E65,IF('Scenario & Results'!$B$5=4,'ABP Scenario InputAssumptions'!E91,IF('Scenario & Results'!$B$5=5,'ABP Scenario InputAssumptions'!O13,IF('Scenario & Results'!$B$5=6,'ABP Scenario InputAssumptions'!O39,IF('Scenario & Results'!$B$5=7,'ABP Scenario InputAssumptions'!O65,IF('Scenario & Results'!$B$5=8,'ABP Scenario InputAssumptions'!O91,"Invalid"))))))))) -> 0 | Z13: =IF($V$3="","",IF('Scenario & Results'!$B$5=1,'ABP Scenario InputAssumptions'!F13,IF('Scenario & Results'!$B$5=2,'ABP Scenario InputAssumptions'!F39,IF('Scenario & Results'!$B$5=3,'ABP Scenario InputAssumptions'!F65,IF('Scenario & Results'!$B$5=4,'ABP Scenario InputAssumptions'!F91,IF('Scenario & Results'!$B$5=5,'ABP Scenario InputAssumptions'!P13,IF('Scenario & Results'!$B$5=6,'ABP Scenario InputAssumptions'!P39,IF('Scenario & Results'!$B$5=7,'ABP Scenario InputAssumptions'!P65,IF('Scenario & Results'!$B$5=8,'ABP Scenario InputAssumptions'!P91,"Invalid"))))))))) -> 0 | AA13: =IF($V$3="","",IF('Scenario & Results'!$B$5=1,'ABP Scenario InputAssumptions'!G13,IF('Scenario & Results'!$B$5=2,'ABP Scenario InputAssumptions'!G39,IF('Scenario & Results'!$B$5=3,'ABP Scenario InputAssumptions'!G65,IF('Scenario & Results'!$B$5=4,'ABP Scenario InputAssumptions'!G91,IF('Scenario & Results'!$B$5=5,'ABP Scenario InputAssumptions'!Q13,IF('Scenario & Results'!$B$5=6,'ABP Scenario InputAssumptions'!Q39,IF('Scenario & Results'!$B$5=7,'ABP Scenario InputAssumptions'!Q65,IF('Scenario & Results'!$B$5=8,'ABP Scenario InputAssumptions'!Q91,"Invalid"))))))))) -> 0 | AB13: =IF($V$3="","",IF('Scenario & Results'!$B$5=1,'ABP Scenario InputAssumptions'!H13,IF('Scenario & Results'!$B$5=2,'ABP Scenario InputAssumptions'!H39,IF('Scenario & Results'!$B$5=3,'ABP Scenario InputAssumptions'!H65,IF('Scenario & Results'!$B$5=4,'ABP Scenario InputAssumptions'!H91,IF('Scenario & Results'!$B$5=5,'ABP Scenario InputAssumptions'!R13,IF('Scenario & Results'!$B$5=6,'ABP Scenario InputAssumptions'!R39,IF('Scenario & Results'!$B$5=7,'ABP Scenario InputAssumptions'!R65,IF('Scenario & Results'!$B$5=8,'ABP Scenario InputAssumptions'!R91,"Invalid"))))))))) -> 0 | AC13: =IF($V$3="","",IF('Scenario & Results'!$B$5=1,'ABP Scenario InputAssumptions'!I13,IF('Scenario & Results'!$B$5=2,'ABP Scenario InputAssumptions'!I39,IF('Scenario & Results'!$B$5=3,'ABP Scenario InputAssumptions'!I65,IF('Scenario & Results'!$B$5=4,'ABP Scenario InputAssumptions'!I91,IF('Scenario & Results'!$B$5=5,'ABP Scenario InputAssumptions'!S13,IF('Scenario & Results'!$B$5=6,'ABP Scenario InputAssumptions'!S39,IF('Scenario & Results'!$B$5=7,'ABP Scenario InputAssumptions'!S65,IF('Scenario & Results'!$B$5=8,'ABP Scenario InputAssumptions'!S91,"Invalid"))))))))) -> 0 | AD13: =IF($V$3="","",IF('Scenario & Results'!$B$5=1,'ABP Scenario InputAssumptions'!J13,IF('Scenario & Results'!$B$5=2,'ABP Scenario InputAssumptions'!J39,IF('Scenario & Results'!$B$5=3,'ABP Scenario InputAssumptions'!J65,IF('Scenario & Results'!$B$5=4,'ABP Scenario InputAssumptions'!J91,IF('Scenario & Results'!$B$5=5,'ABP Scenario InputAssumptions'!T13,IF('Scenario & Results'!$B$5=6,'ABP Scenario InputAssumptions'!T39,IF('Scenario & Results'!$B$5=7,'ABP Scenario InputAssumptions'!T65,IF('Scenario & Results'!$B$5=8,'ABP Scenario InputAssumptions'!T91,"Invalid"))))))))) -> 0
B14: Land Lease | C14: $/yr | D14: =VLOOKUP($B3,'Program-specific Assumptions'!$C$1:$N$9,2,0)*D$5 -> 0 | E14: =VLOOKUP($B3,'Program-specific Assumptions'!$C$1:$N$9,2,0)*E$5 -> 0 | F14: =VLOOKUP($B3,'Program-specific Assumptions'!$C$1:$N$9,2,0)*F$5 -> 0 | G14: =VLOOKUP($B3,'Program-specific Assumptions'!$C$1:$N$9,2,0)*G$5 -> 0 | H14: =VLOOKUP($B3,'Program-specific Assumptions'!$C$1:$N$9,2,0)*H$5 -> 0 | I14: =VLOOKUP($B3,'Program-specific Assumptions'!$C$1:$N$9,2,0)*I$5 -> 0 | J14: =VLOOKUP($B3,'Program-specific Assumptions'!$C$1:$N$9,2,0)*J$5 -> 0 | K14: Distributed Generation | L14: Land Lease | M14: $/yr | N14: =VLOOKUP($B3,'Program-specific Assumptions'!$C$1:$N$9,2,0)*N$5 -> 0 | O14: =VLOOKUP($B3,'Program-specific Assumptions'!$C$1:$N$9,2,0)*O$5 -> 0 | P14: =VLOOKUP($B3,'Program-specific Assumptions'!$C$1:$N$9,2,0)*P$5 -> 0 | Q14: =VLOOKUP($B3,'Program-specific Assumptions'!$C$1:$N$9,2,0)*Q$5 -> 0 | R14: =VLOOKUP($B3,'Program-specific Assumptions'!$C$1:$N$9,2,0)*R$5 -> 0 | S14: =VLOOKUP($B3,'Program-specific Assumptions'!$C$1:$N$9,2,0)*S$5 -> 0 | T14: =VLOOKUP($B3,'Program-specific Assumptions'!$C$1:$N$9,2,0)*T$5 -> 0 | V14: Land Lease | W14: $/yr | X14: =IF($V$3="","",IF('Scenario & Results'!$B$5=1,'ABP Scenario InputAssumptions'!D14,IF('Scenario & Results'!$B$5=2,'ABP Scenario InputAssumptions'!D40,IF('Scenario & Results'!$B$5=3,'ABP Scenario InputAssumptions'!D66,IF('Scenario & Results'!$B$5=4,'ABP Scenario InputAssumptions'!D92,IF('Scenario & Results'!$B$5=5,'ABP Scenario InputAssumptions'!N14,IF('Scenario & Results'!$B$5=6,'ABP Scenario InputAssumptions'!N40,IF('Scenario & Results'!$B$5=7,'ABP Scenario InputAssumptions'!N66,IF('Scenario & Results'!$B$5=8,'ABP Scenario InputAssumptions'!N92,"Invalid"))))))))) -> 0 | Y14: =IF($V$3="","",IF('Scenario & Results'!$B$5=1,'ABP Scenario InputAssumptions'!E14,IF('Scenario & Results'!$B$5=2,'ABP Scenario InputAssumptions'!E40,IF('Scenario & Results'!$B$5=3,'ABP Scenario InputAssumptions'!E66,IF('Scenario & Results'!$B$5=4,'ABP Scenario InputAssumptions'!E92,IF('Scenario & Results'!$B$5=5,'ABP Scenario InputAssumptions'!O14,IF('Scenario & Results'!$B$5=6,'ABP Scenario InputAssumptions'!O40,IF('Scenario & Results'!$B$5=7,'ABP Scenario InputAssumptions'!O66,IF('Scenario & Results'!$B$5=8,'ABP Scenario InputAssumptions'!O92,"Invalid"))))))))) -> 0 | Z14: =IF($V$3="","",IF('Scenario & Results'!$B$5=1,'ABP Scenario InputAssumptions'!F14,IF('Scenario & Results'!$B$5=2,'ABP Scenario InputAssumptions'!F40,IF('Scenario & Results'!$B$5=3,'ABP Scenario InputAssumptions'!F66,IF('Scenario & Results'!$B$5=4,'ABP Scenario InputAssumptions'!F92,IF('Scenario & Results'!$B$5=5,'ABP Scenario InputAssumptions'!P14,IF('Scenario & Results'!$B$5=6,'ABP Scenario InputAssumptions'!P40,IF('Scenario & Results'!$B$5=7,'ABP Scenario InputAssumptions'!P66,IF('Scenario & Results'!$B$5=8,'ABP Scenario InputAssumptions'!P92,"Invalid"))))))))) -> 0 | AA14: =IF($V$3="","",IF('Scenario & Results'!$B$5=1,'ABP Scenario InputAssumptions'!G14,IF('Scenario & Results'!$B$5=2,'ABP Scenario InputAssumptions'!G40,IF('Scenario & Results'!$B$5=3,'ABP Scenario InputAssumptions'!G66,IF('Scenario & Results'!$B$5=4,'ABP Scenario InputAssumptions'!G92,IF('Scenario & Results'!$B$5=5,'ABP Scenario InputAssumptions'!Q14,IF('Scenario & Results'!$B$5=6,'ABP Scenario InputAssumptions'!Q40,IF('Scenario & Results'!$B$5=7,'ABP Scenario InputAssumptions'!Q66,IF('Scenario & Results'!$B$5=8,'ABP Scenario InputAssumptions'!Q92,"Invalid"))))))))) -> 0 | AB14: =IF($V$3="","",IF('Scenario & Results'!$B$5=1,'ABP Scenario InputAssumptions'!H14,IF('Scenario & Results'!$B$5=2,'ABP Scenario InputAssumptions'!H40,IF('Scenario & Results'!$B$5=3,'ABP Scenario InputAssumptions'!H66,IF('Scenario & Results'!$B$5=4,'ABP Scenario InputAssumptions'!H92,IF('Scenario & Results'!$B$5=5,'ABP Scenario InputAssumptions'!R14,IF('Scenario & Results'!$B$5=6,'ABP Scenario InputAssumptions'!R40,IF('Scenario & Results'!$B$5=7,'ABP Scenario InputAssumptions'!R66,IF('Scenario & Results'!$B$5=8,'ABP Scenario InputAssumptions'!R92,"Invalid"))))))))) -> 0 | AC14: =IF($V$3="","",IF('Scenario & Results'!$B$5=1,'ABP Scenario InputAssumptions'!I14,IF('Scenario & Results'!$B$5=2,'ABP Scenario InputAssumptions'!I40,IF('Scenario & Results'!$B$5=3,'ABP Scenario InputAssumptions'!I66,IF('Scenario & Results'!$B$5=4,'ABP Scenario InputAssumptions'!I92,IF('Scenario & Results'!$B$5=5,'ABP Scenario InputAssumptions'!S14,IF('Scenario & Results'!$B$5=6,'ABP Scenario InputAssumptions'!S40,IF('Scenario & Results'!$B$5=7,'ABP Scenario InputAssumptions'!S66,IF('Scenario & Results'!$B$5=8,'ABP Scenario InputAssumptions'!S92,"Invalid"))))))))) -> 0 | AD14: =IF($V$3="","",IF('Scenario & Results'!$B$5=1,'ABP Scenario InputAssumptions'!J14,IF('Scenario & Results'!$B$5=2,'ABP Scenario InputAssumptions'!J40,IF('Scenario & Results'!$B$5=3,'ABP Scenario InputAssumptions'!J66,IF('Scenario & Results'!$B$5=4,'ABP Scenario InputAssumptions'!J92,IF('Scenario & Results'!$B$5=5,'ABP Scenario InputAssumptions'!T14,IF('Scenario & Results'!$B$5=6,'ABP Scenario InputAssumptions'!T40,IF('Scenario & Results'!$B$5=7,'ABP Scenario InputAssumptions'!T66,IF('Scenario & Results'!$B$5=8,'ABP Scenario InputAssumptions'!T92,"Invalid"))))))))) -> 0
B15: Construction Period | C15: months | D15: ='Size-specific Assumptions'!D$6 -> 6 | E15: ='Size-specific Assumptions'!E$6 -> 12 | F15: ='Size-specific Assumptions'!F$6 -> 12 | G15: ='Size-specific Assumptions'!G$6 -> 12 | H15: ='Size-specific Assumptions'!H$6 -> 12 | I15: ='Size-specific Assumptions'!I$6 -> 18 | J15: ='Size-specific Assumptions'!J$6 -> 18 | L15: Construction Period | M15: months | N15: ='Size-specific Assumptions'!D$6 -> 6 | O15: ='Size-specific Assumptions'!E$6 -> 12 | P15: ='Size-specific Assumptions'!F$6 -> 12 | Q15: ='Size-specific Assumptions'!G$6 -> 12 | R15: ='Size-specific Assumptions'!H$6 -> 12 | S15: ='Size-specific Assumptions'!I$6 -> 18 | T15: ='Size-specific Assumptions'!J$6 -> 18 | V15: Construction Period | W15: months | X15: =IF($V$3="","",IF('Scenario & Results'!$B$5=1,'ABP Scenario InputAssumptions'!D15,IF('Scenario & Results'!$B$5=2,'ABP Scenario InputAssumptions'!D41,IF('Scenario & Results'!$B$5=3,'ABP Scenario InputAssumptions'!D68,IF('Scenario & Results'!$B$5=4,'ABP Scenario InputAssumptions'!D94,IF('Scenario & Results'!$B$5=5,'ABP Scenario InputAssumptions'!N15,IF('Scenario & Results'!$B$5=6,'ABP Scenario InputAssumptions'!N41,IF('Scenario & Results'!$B$5=7,'ABP Scenario InputAssumptions'!N68,IF('Scenario & Results'!$B$5=8,'ABP Scenario InputAssumptions'!N94,"Invalid"))))))))) -> 6 | Y15: =IF($V$3="","",IF('Scenario & Results'!$B$5=1,'ABP Scenario InputAssumptions'!E15,IF('Scenario & Results'!$B$5=2,'ABP Scenario InputAssumptions'!E41,IF('Scenario & Results'!$B$5=3,'ABP Scenario InputAssumptions'!E67,IF('Scenario & Results'!$B$5=4,'ABP Scenario InputAssumptions'!E94,IF('Scenario & Results'!$B$5=5,'ABP Scenario InputAssumptions'!O15,IF('Scenario & Results'!$B$5=6,'ABP Scenario InputAssumptions'!O41,IF('Scenario & Results'!$B$5=7,'ABP Scenario InputAssumptions'!O67,IF('Scenario & Results'!$B$5=8,'ABP Scenario InputAssumptions'!O94,"Invalid"))))))))) -> 12 | Z15: =IF($V$3="","",IF('Scenario & Results'!$B$5=1,'ABP Scenario InputAssumptions'!F15,IF('Scenario & Results'!$B$5=2,'ABP Scenario InputAssumptions'!F41,IF('Scenario & Results'!$B$5=3,'ABP Scenario InputAssumptions'!F67,IF('Scenario & Results'!$B$5=4,'ABP Scenario InputAssumptions'!F94,IF('Scenario & Results'!$B$5=5,'ABP Scenario InputAssumptions'!P15,IF('Scenario & Results'!$B$5=6,'ABP Scenario InputAssumptions'!P41,IF('Scenario & Results'!$B$5=7,'ABP Scenario InputAssumptions'!P67,IF('Scenario & Results'!$B$5=8,'ABP Scenario InputAssumptions'!P94,"Invalid"))))))))) -> 12 | AA15: =IF($V$3="","",IF('Scenario & Results'!$B$5=1,'ABP Scenario InputAssumptions'!G15,IF('Scenario & Results'!$B$5=2,'ABP Scenario InputAssumptions'!G41,IF('Scenario & Results'!$B$5=3,'ABP Scenario InputAssumptions'!G67,IF('Scenario & Results'!$B$5=4,'ABP Scenario InputAssumptions'!G94,IF('Scenario & Results'!$B$5=5,'ABP Scenario InputAssumptions'!Q15,IF('Scenario & Results'!$B$5=6,'ABP Scenario InputAssumptions'!Q41,IF('Scenario & Results'!$B$5=7,'ABP Scenario InputAssumptions'!Q67,IF('Scenario & Results'!$B$5=8,'ABP Scenario InputAssumptions'!Q94,"Invalid"))))))))) -> 12 | AB15: =IF($V$3="","",IF('Scenario & Results'!$B$5=1,'ABP Scenario InputAssumptions'!H15,IF('Scenario & Results'!$B$5=2,'ABP Scenario InputAssumptions'!H41,IF('Scenario & Results'!$B$5=3,'ABP Scenario InputAssumptions'!H67,IF('Scenario & Results'!$B$5=4,'ABP Scenario InputAssumptions'!H94,IF('Scenario & Results'!$B$5=5,'ABP Scenario InputAssumptions'!R15,IF('Scenario & Results'!$B$5=6,'ABP Scenario InputAssumptions'!R41,IF('Scenario & Results'!$B$5=7,'ABP Scenario InputAssumptions'!R67,IF('Scenario & Results'!$B$5=8,'ABP Scenario InputAssumptions'!R94,"Invalid"))))))))) -> 12 | AC15: =IF($V$3="","",IF('Scenario & Results'!$B$5=1,'ABP Scenario InputAssumptions'!I15,IF('Scenario & Results'!$B$5=2,'ABP Scenario InputAssumptions'!I41,IF('Scenario & Results'!$B$5=3,'ABP Scenario InputAssumptions'!I67,IF('Scenario & Results'!$B$5=4,'ABP Scenario InputAssumptions'!I94,IF('Scenario & Results'!$B$5=5,'ABP Scenario InputAssumptions'!S15,IF('Scenario & Results'!$B$5=6,'ABP Scenario InputAssumptions'!S41,IF('Scenario & Results'!$B$5=7,'ABP Scenario InputAssumptions'!S67,IF('Scenario & Results'!$B$5=8,'ABP Scenario InputAssumptions'!S94,"Invalid"))))))))) -> 18 | AD15: =IF($V$3="","",IF('Scenario & Results'!$B$5=1,'ABP Scenario InputAssumptions'!J15,IF('Scenario & Results'!$B$5=2,'ABP Scenario InputAssumptions'!J41,IF('Scenario & Results'!$B$5=3,'ABP Scenario InputAssumptions'!J67,IF('Scenario & Results'!$B$5=4,'ABP Scenario InputAssumptions'!J94,IF('Scenario & Results'!$B$5=5,'ABP Scenario InputAssumptions'!T15,IF('Scenario & Results'!$B$5=6,'ABP Scenario InputAssumptions'!T41,IF('Scenario & Results'!$B$5=7,'ABP Scenario InputAssumptions'!T67,IF('Scenario & Results'!$B$5=8,'ABP Scenario InputAssumptions'!T94,"Invalid"))))))))) -> 18
B16: % Debt (% of hard costs) (mortgage-style amort.) | C16: % | D16: =VLOOKUP($B3,'Program-specific Assumptions'!$C$1:$N$9,4,0) -> 0.55 | E16: =VLOOKUP($B3,'Program-specific Assumptions'!$C$1:$N$9,4,0) -> 0.55 | F16: =VLOOKUP($B3,'Program-specific Assumptions'!$C$1:$N$9,4,0) -> 0.55 | G16: =VLOOKUP($B3,'Program-specific Assumptions'!$C$1:$N$9,4,0) -> 0.55 | H16: =VLOOKUP($B3,'Program-specific Assumptions'!$C$1:$N$9,4,0) -> 0.55 | I16: =VLOOKUP($B3,'Program-specific Assumptions'!$C$1:$N$9,4,0) -> 0.55 | J16: =VLOOKUP($B3,'Program-specific Assumptions'!$C$1:$N$9,4,0) -> 0.55 | K16: Distributed Generation | L16: % Debt (% of hard costs) (mortgage-style amort.) | M16: % | N16: =VLOOKUP($B3,'Program-specific Assumptions'!$C$1:$N$9,4,0) -> 0.55 | O16: =VLOOKUP($B3,'Program-specific Assumptions'!$C$1:$N$9,4,0) -> 0.55 | P16: =VLOOKUP($B3,'Program-specific Assumptions'!$C$1:$N$9,4,0) -> 0.55 | Q16: =VLOOKUP($B3,'Program-specific Assumptions'!$C$1:$N$9,4,0) -> 0.55 | R16: =VLOOKUP($B3,'Program-specific Assumptions'!$C$1:$N$9,4,0) -> 0.55 | S16: =VLOOKUP($B3,'Program-specific Assumptions'!$C$1:$N$9,4,0) -> 0.55 | T16: =VLOOKUP($B3,'Program-specific Assumptions'!$C$1:$N$9,4,0) -> 0.55 | V16: % Debt (% of hard costs) (mortgage-style amort.) | W16: % | X16: =IF($V$3="","",IF('Scenario & Results'!$B$5=1,'ABP Scenario InputAssumptions'!D16,IF('Scenario & Results'!$B$5=2,'ABP Scenario InputAssumptions'!D42,IF('Scenario & Results'!$B$5=3,'ABP Scenario InputAssumptions'!D68,IF('Scenario & Results'!$B$5=4,'ABP Scenario InputAssumptions'!D94,IF('Scenario & Results'!$B$5=5,'ABP Scenario InputAssumptions'!N16,IF('Scenario & Results'!$B$5=6,'ABP Scenario InputAssumptions'!N42,IF('Scenario & Results'!$B$5=7,'ABP Scenario InputAssumptions'!N68,IF('Scenario & Results'!$B$5=8,'ABP Scenario InputAssumptions'!N94,"Invalid"))))))))) -> 0.55 | Y16: =IF($V$3="","",IF('Scenario & Results'!$B$5=1,'ABP Scenario InputAssumptions'!E16,IF('Scenario & Results'!$B$5=2,'ABP Scenario InputAssumptions'!E42,IF('Scenario & Results'!$B$5=3,'ABP Scenario InputAssumptions'!E68,IF('Scenario & Results'!$B$5=4,'ABP Scenario InputAssumptions'!E94,IF('Scenario & Results'!$B$5=5,'ABP Scenario InputAssumptions'!O16,IF('Scenario & Results'!$B$5=6,'ABP Scenario InputAssumptions'!O42,IF('Scenario & Results'!$B$5=7,'ABP Scenario InputAssumptions'!O68,IF('Scenario & Results'!$B$5=8,'ABP Scenario InputAssumptions'!O94,"Invalid"))))))))) -> 0.55 | Z16: =IF($V$3="","",IF('Scenario & Results'!$B$5=1,'ABP Scenario InputAssumptions'!F16,IF('Scenario & Results'!$B$5=2,'ABP Scenario InputAssumptions'!F42,IF('Scenario & Results'!$B$5=3,'ABP Scenario InputAssumptions'!F68,IF('Scenario & Results'!$B$5=4,'ABP Scenario InputAssumptions'!F94,IF('Scenario & Results'!$B$5=5,'ABP Scenario InputAssumptions'!P16,IF('Scenario & Results'!$B$5=6,'ABP Scenario InputAssumptions'!P42,IF('Scenario & Results'!$B$5=7,'ABP Scenario InputAssumptions'!P68,IF('Scenario & Results'!$B$5=8,'ABP Scenario InputAssumptions'!P94,"Invalid"))))))))) -> 0.55 | AA16: =IF($V$3="","",IF('Scenario & Results'!$B$5=1,'ABP Scenario InputAssumptions'!G16,IF('Scenario & Results'!$B$5=2,'ABP Scenario InputAssumptions'!G42,IF('Scenario & Results'!$B$5=3,'ABP Scenario InputAssumptions'!G68,IF('Scenario & Results'!$B$5=4,'ABP Scenario InputAssumptions'!G94,IF('Scenario & Results'!$B$5=5,'ABP Scenario InputAssumptions'!Q16,IF('Scenario & Results'!$B$5=6,'ABP Scenario InputAssumptions'!Q42,IF('Scenario & Results'!$B$5=7,'ABP Scenario InputAssumptions'!Q68,IF('Scenario & Results'!$B$5=8,'ABP Scenario InputAssumptions'!Q94,"Invalid"))))))))) -> 0.55 | AB16: =IF($V$3="","",IF('Scenario & Results'!$B$5=1,'ABP Scenario InputAssumptions'!H16,IF('Scenario & Results'!$B$5=2,'ABP Scenario InputAssumptions'!H42,IF('Scenario & Results'!$B$5=3,'ABP Scenario InputAssumptions'!H68,IF('Scenario & Results'!$B$5=4,'ABP Scenario InputAssumptions'!H94,IF('Scenario & Results'!$B$5=5,'ABP Scenario InputAssumptions'!R16,IF('Scenario & Results'!$B$5=6,'ABP Scenario InputAssumptions'!R42,IF('Scenario & Results'!$B$5=7,'ABP Scenario InputAssumptions'!R68,IF('Scenario & Results'!$B$5=8,'ABP Scenario InputAssumptions'!R94,"Invalid"))))))))) -> 0.55 | AC16: =IF($V$3="","",IF('Scenario & Results'!$B$5=1,'ABP Scenario InputAssumptions'!I16,IF('Scenario & Results'!$B$5=2,'ABP Scenario InputAssumptions'!I42,IF('Scenario & Results'!$B$5=3,'ABP Scenario InputAssumptions'!I68,IF('Scenario & Results'!$B$5=4,'ABP Scenario InputAssumptions'!I94,IF('Scenario & Results'!$B$5=5,'ABP Scenario InputAssumptions'!S16,IF('Scenario & Results'!$B$5=6,'ABP Scenario InputAssumptions'!S42,IF('Scenario & Results'!$B$5=7,'ABP Scenario InputAssumptions'!S68,IF('Scenario & Results'!$B$5=8,'ABP Scenario InputAssumptions'!S94,"Invalid"))))))))) -> 0.55 | AD16: =IF($V$3="","",IF('Scenario & Results'!$B$5=1,'ABP Scenario InputAssumptions'!J16,IF('Scenario & Results'!$B$5=2,'ABP Scenario InputAssumptions'!J42,IF('Scenario & Results'!$B$5=3,'ABP Scenario InputAssumptions'!J68,IF('Scenario & Results'!$B$5=4,'ABP Scenario InputAssumptions'!J94,IF('Scenario & Results'!$B$5=5,'ABP Scenario InputAssumptions'!T16,IF('Scenario & Results'!$B$5=6,'ABP Scenario InputAssumptions'!T42,IF('Scenario & Results'!$B$5=7,'ABP Scenario InputAssumptions'!T68,IF('Scenario & Results'!$B$5=8,'ABP Scenario InputAssumptions'!T94,"Invalid"))))))))) -> 0.55
B17: Debt Term | C17: years | D17: =VLOOKUP($B3,'Program-specific Assumptions'!$C$1:$N$9,5,0) -> 15 | E17: =VLOOKUP($B3,'Program-specific Assumptions'!$C$1:$N$9,5,0) -> 15 | F17: =VLOOKUP($B3,'Program-specific Assumptions'!$C$1:$N$9,5,0) -> 15 | G17: =VLOOKUP($B3,'Program-specific Assumptions'!$C$1:$N$9,5,0) -> 15 | H17: =VLOOKUP($B3,'Program-specific Assumptions'!$C$1:$N$9,5,0) -> 15 | I17: =VLOOKUP($B3,'Program-specific Assumptions'!$C$1:$N$9,5,0) -> 15 | J17: =VLOOKUP($B3,'Program-specific Assumptions'!$C$1:$N$9,5,0) -> 15 | K17: Distributed Generation | L17: Debt Term | M17: years | N17: =VLOOKUP($B3,'Program-specific Assumptions'!$C$1:$N$9,5,0) -> 15 | O17: =VLOOKUP($B3,'Program-specific Assumptions'!$C$1:$N$9,5,0) -> 15 | P17: =VLOOKUP($B3,'Program-specific Assumptions'!$C$1:$N$9,5,0) -> 15 | Q17: =VLOOKUP($B3,'Program-specific Assumptions'!$C$1:$N$9,5,0) -> 15 | R17: =VLOOKUP($B3,'Program-specific Assumptions'!$C$1:$N$9,5,0) -> 15 | S17: =VLOOKUP($B3,'Program-specific Assumptions'!$C$1:$N$9,5,0) -> 15 | T17: =VLOOKUP($B3,'Program-specific Assumptions'!$C$1:$N$9,5,0) -> 15 | V17: Debt Term | W17: years | X17: =IF($V$3="","",IF('Scenario & Results'!$B$5=1,'ABP Scenario InputAssumptions'!D17,IF('Scenario & Results'!$B$5=2,'ABP Scenario InputAssumptions'!D43,IF('Scenario & Results'!$B$5=3,'ABP Scenario InputAssumptions'!D69,IF('Scenario & Results'!$B$5=4,'ABP Scenario InputAssumptions'!D95,IF('Scenario & Results'!$B$5=5,'ABP Scenario InputAssumptions'!N17,IF('Scenario & Results'!$B$5=6,'ABP Scenario InputAssumptions'!N43,IF('Scenario & Results'!$B$5=7,'ABP Scenario InputAssumptions'!N69,IF('Scenario & Results'!$B$5=8,'ABP Scenario InputAssumptions'!N95,"Invalid"))))))))) -> 15 | Y17: =IF($V$3="","",IF('Scenario & Results'!$B$5=1,'ABP Scenario InputAssumptions'!E17,IF('Scenario & Results'!$B$5=2,'ABP Scenario InputAssumptions'!E43,IF('Scenario & Results'!$B$5=3,'ABP Scenario InputAssumptions'!E69,IF('Scenario & Results'!$B$5=4,'ABP Scenario InputAssumptions'!E95,IF('Scenario & Results'!$B$5=5,'ABP Scenario InputAssumptions'!O17,IF('Scenario & Results'!$B$5=6,'ABP Scenario InputAssumptions'!O43,IF('Scenario & Results'!$B$5=7,'ABP Scenario InputAssumptions'!O69,IF('Scenario & Results'!$B$5=8,'ABP Scenario InputAssumptions'!O95,"Invalid"))))))))) -> 15 | Z17: =IF($V$3="","",IF('Scenario & Results'!$B$5=1,'ABP Scenario InputAssumptions'!F17,IF('Scenario & Results'!$B$5=2,'ABP Scenario InputAssumptions'!F43,IF('Scenario & Results'!$B$5=3,'ABP Scenario InputAssumptions'!F69,IF('Scenario & Results'!$B$5=4,'ABP Scenario InputAssumptions'!F95,IF('Scenario & Results'!$B$5=5,'ABP Scenario InputAssumptions'!P17,IF('Scenario & Results'!$B$5=6,'ABP Scenario InputAssumptions'!P43,IF('Scenario & Results'!$B$5=7,'ABP Scenario InputAssumptions'!P69,IF('Scenario & Results'!$B$5=8,'ABP Scenario InputAssumptions'!P95,"Invalid"))))))))) -> 15 | AA17: =IF($V$3="","",IF('Scenario & Results'!$B$5=1,'ABP Scenario InputAssumptions'!G17,IF('Scenario & Results'!$B$5=2,'ABP Scenario InputAssumptions'!G43,IF('Scenario & Results'!$B$5=3,'ABP Scenario InputAssumptions'!G69,IF('Scenario & Results'!$B$5=4,'ABP Scenario InputAssumptions'!G95,IF('Scenario & Results'!$B$5=5,'ABP Scenario InputAssumptions'!Q17,IF('Scenario & Results'!$B$5=6,'ABP Scenario InputAssumptions'!Q43,IF('Scenario & Results'!$B$5=7,'ABP Scenario InputAssumptions'!Q69,IF('Scenario & Results'!$B$5=8,'ABP Scenario InputAssumptions'!Q95,"Invalid"))))))))) -> 15 | AB17: =IF($V$3="","",IF('Scenario & Results'!$B$5=1,'ABP Scenario InputAssumptions'!H17,IF('Scenario & Results'!$B$5=2,'ABP Scenario InputAssumptions'!H43,IF('Scenario & Results'!$B$5=3,'ABP Scenario InputAssumptions'!H69,IF('Scenario & Results'!$B$5=4,'ABP Scenario InputAssumptions'!H95,IF('Scenario & Results'!$B$5=5,'ABP Scenario InputAssumptions'!R17,IF('Scenario & Results'!$B$5=6,'ABP Scenario InputAssumptions'!R43,IF('Scenario & Results'!$B$5=7,'ABP Scenario InputAssumptions'!R69,IF('Scenario & Results'!$B$5=8,'ABP Scenario InputAssumptions'!R95,"Invalid"))))))))) -> 15 | AC17: =IF($V$3="","",IF('Scenario & Results'!$B$5=1,'ABP Scenario InputAssumptions'!I17,IF('Scenario & Results'!$B$5=2,'ABP Scenario InputAssumptions'!I43,IF('Scenario & Results'!$B$5=3,'ABP Scenario InputAssumptions'!I69,IF('Scenario & Results'!$B$5=4,'ABP Scenario InputAssumptions'!I95,IF('Scenario & Results'!$B$5=5,'ABP Scenario InputAssumptions'!S17,IF('Scenario & Results'!$B$5=6,'ABP Scenario InputAssumptions'!S43,IF('Scenario & Results'!$B$5=7,'ABP Scenario InputAssumptions'!S69,IF('Scenario & Results'!$B$5=8,'ABP Scenario InputAssumptions'!S95,"Invalid"))))))))) -> 15 | AD17: =IF($V$3="","",IF('Scenario & Results'!$B$5=1,'ABP Scenario InputAssumptions'!J17,IF('Scenario & Results'!$B$5=2,'ABP Scenario InputAssumptions'!J43,IF('Scenario & Results'!$B$5=3,'ABP Scenario InputAssumptions'!J69,IF('Scenario & Results'!$B$5=4,'ABP Scenario InputAssumptions'!J95,IF('Scenario & Results'!$B$5=5,'ABP Scenario InputAssumptions'!T17,IF('Scenario & Results'!$B$5=6,'ABP Scenario InputAssumptions'!T43,IF('Scenario & Results'!$B$5=7,'ABP Scenario InputAssumptions'!T69,IF('Scenario & Results'!$B$5=8,'ABP Scenario InputAssumptions'!T95,"Invalid"))))))))) -> 15
B18: Target After-Tax Equity IRR(%) | C18: % | D18: =VLOOKUP($B3,'Program-specific Assumptions'!$C$1:$N$9,7,0) -> 0.09 | E18: =VLOOKUP($B3,'Program-specific Assumptions'!$C$1:$N$9,7,0) -> 0.09 | F18: =VLOOKUP($B3,'Program-specific Assumptions'!$C$1:$N$9,7,0) -> 0.09 | G18: =VLOOKUP($B3,'Program-specific Assumptions'!$C$1:$N$9,7,0) -> 0.09 | H18: =VLOOKUP($B3,'Program-specific Assumptions'!$C$1:$N$9,7,0) -> 0.09 | I18: =VLOOKUP($B3,'Program-specific Assumptions'!$C$1:$N$9,7,0) -> 0.09 | J18: =VLOOKUP($B3,'Program-specific Assumptions'!$C$1:$N$9,7,0) -> 0.09 | K18: Distributed Generation | L18: Target After-Tax Equity IRR(%) | M18: % | N18: =VLOOKUP($B3,'Program-specific Assumptions'!$C$1:$N$9,7,0) -> 0.09 | O18: =VLOOKUP($B3,'Program-specific Assumptions'!$C$1:$N$9,7,0) -> 0.09 | P18: =VLOOKUP($B3,'Program-specific Assumptions'!$C$1:$N$9,7,0) -> 0.09 | Q18: =VLOOKUP($B3,'Program-specific Assumptions'!$C$1:$N$9,7,0) -> 0.09 | R18: =VLOOKUP($B3,'Program-specific Assumptions'!$C$1:$N$9,7,0) -> 0.09 | S18: =VLOOKUP($B3,'Program-specific Assumptions'!$C$1:$N$9,7,0) -> 0.09 | T18: =VLOOKUP($B3,'Program-specific Assumptions'!$C$1:$N$9,7,0) -> 0.09 | V18: Target After-Tax Equity IRR(%) | W18: % | X18: =IF($V$3="","",IF('Scenario & Results'!$B$5=1,'ABP Scenario InputAssumptions'!D18,IF('Scenario & Results'!$B$5=2,'ABP Scenario InputAssumptions'!D44,IF('Scenario & Results'!$B$5=3,'ABP Scenario InputAssumptions'!D70,IF('Scenario & Results'!$B$5=4,'ABP Scenario InputAssumptions'!D96,IF('Scenario & Results'!$B$5=5,'ABP Scenario InputAssumptions'!N18,IF('Scenario & Results'!$B$5=6,'ABP Scenario InputAssumptions'!N44,IF('Scenario & Results'!$B$5=7,'ABP Scenario InputAssumptions'!N70,IF('Scenario & Results'!$B$5=8,'ABP Scenario InputAssumptions'!N96,"Invalid"))))))))) -> 0.09 | Y18: =IF($V$3="","",IF('Scenario & Results'!$B$5=1,'ABP Scenario InputAssumptions'!E18,IF('Scenario & Results'!$B$5=2,'ABP Scenario InputAssumptions'!E44,IF('Scenario & Results'!$B$5=3,'ABP Scenario InputAssumptions'!E70,IF('Scenario & Results'!$B$5=4,'ABP Scenario InputAssumptions'!E96,IF('Scenario & Results'!$B$5=5,'ABP Scenario InputAssumptions'!O18,IF('Scenario & Results'!$B$5=6,'ABP Scenario InputAssumptions'!O44,IF('Scenario & Results'!$B$5=7,'ABP Scenario InputAssumptions'!O70,IF('Scenario & Results'!$B$5=8,'ABP Scenario InputAssumptions'!O96,"Invalid"))))))))) -> 0.09 | Z18: =IF($V$3="","",IF('Scenario & Results'!$B$5=1,'ABP Scenario InputAssumptions'!F18,IF('Scenario & Results'!$B$5=2,'ABP Scenario InputAssumptions'!F44,IF('Scenario & Results'!$B$5=3,'ABP Scenario InputAssumptions'!F70,IF('Scenario & Results'!$B$5=4,'ABP Scenario InputAssumptions'!F96,IF('Scenario & Results'!$B$5=5,'ABP Scenario InputAssumptions'!P18,IF('Scenario & Results'!$B$5=6,'ABP Scenario InputAssumptions'!P44,IF('Scenario & Results'!$B$5=7,'ABP Scenario InputAssumptions'!P70,IF('Scenario & Results'!$B$5=8,'ABP Scenario InputAssumptions'!P96,"Invalid"))))))))) -> 0.09 | AA18: =IF($V$3="","",IF('Scenario & Results'!$B$5=1,'ABP Scenario InputAssumptions'!G18,IF('Scenario & Results'!$B$5=2,'ABP Scenario InputAssumptions'!G44,IF('Scenario & Results'!$B$5=3,'ABP Scenario InputAssumptions'!G70,IF('Scenario & Results'!$B$5=4,'ABP Scenario InputAssumptions'!G96,IF('Scenario & Results'!$B$5=5,'ABP Scenario InputAssumptions'!Q18,IF('Scenario & Results'!$B$5=6,'ABP Scenario InputAssumptions'!Q44,IF('Scenario & Results'!$B$5=7,'ABP Scenario InputAssumptions'!Q70,IF('Scenario & Results'!$B$5=8,'ABP Scenario InputAssumptions'!Q96,"Invalid"))))))))) -> 0.09 | AB18: =IF($V$3="","",IF('Scenario & Results'!$B$5=1,'ABP Scenario InputAssumptions'!H18,IF('Scenario & Results'!$B$5=2,'ABP Scenario InputAssumptions'!H44,IF('Scenario & Results'!$B$5=3,'ABP Scenario InputAssumptions'!H70,IF('Scenario & Results'!$B$5=4,'ABP Scenario InputAssumptions'!H96,IF('Scenario & Results'!$B$5=5,'ABP Scenario InputAssumptions'!R18,IF('Scenario & Results'!$B$5=6,'ABP Scenario InputAssumptions'!R44,IF('Scenario & Results'!$B$5=7,'ABP Scenario InputAssumptions'!R70,IF('Scenario & Results'!$B$5=8,'ABP Scenario InputAssumptions'!R96,"Invalid"))))))))) -> 0.09 | AC18: =IF($V$3="","",IF('Scenario & Results'!$B$5=1,'ABP Scenario InputAssumptions'!I18,IF('Scenario & Results'!$B$5=2,'ABP Scenario InputAssumptions'!I44,IF('Scenario & Results'!$B$5=3,'ABP Scenario InputAssumptions'!I70,IF('Scenario & Results'!$B$5=4,'ABP Scenario InputAssumptions'!I96,IF('Scenario & Results'!$B$5=5,'ABP Scenario InputAssumptions'!S18,IF('Scenario & Results'!$B$5=6,'ABP Scenario InputAssumptions'!S44,IF('Scenario & Results'!$B$5=7,'ABP Scenario InputAssumptions'!S70,IF('Scenario & Results'!$B$5=8,'ABP Scenario InputAssumptions'!S96,"Invalid"))))))))) -> 0.09 | AD18: =IF($V$3="","",IF('Scenario & Results'!$B$5=1,'ABP Scenario InputAssumptions'!J18,IF('Scenario & Results'!$B$5=2,'ABP Scenario InputAssumptions'!J44,IF('Scenario & Results'!$B$5=3,'ABP Scenario InputAssumptions'!J70,IF('Scenario & Results'!$B$5=4,'ABP Scenario InputAssumptions'!J96,IF('Scenario & Results'!$B$5=5,'ABP Scenario InputAssumptions'!T18,IF('Scenario & Results'!$B$5=6,'ABP Scenario InputAssumptions'!T44,IF('Scenario & Results'!$B$5=7,'ABP Scenario InputAssumptions'!T70,IF('Scenario & Results'!$B$5=8,'ABP Scenario InputAssumptions'!T96,"Invalid"))))))))) -> 0.09
B19: State Income Tax Rate | C19: % | D19: ='Size-specific Assumptions'!D$3 -> 0.0495 | E19: ='Size-specific Assumptions'!E$3 -> 0.095 | F19: ='Size-specific Assumptions'!F$3 -> 0.095 | G19: ='Size-specific Assumptions'!G$3 -> 0.095 | H19: ='Size-specific Assumptions'!H$3 -> 0.095 | I19: ='Size-specific Assumptions'!I$3 -> 0.095 | J19: ='Size-specific Assumptions'!J$3 -> 0.095 | K19: Distributed Generation | L19: State Income Tax Rate | M19: % | N19: ='Size-specific Assumptions'!D$3 -> 0.0495 | O19: ='Size-specific Assumptions'!E$3 -> 0.095 | P19: ='Size-specific Assumptions'!F$3 -> 0.095 | Q19: ='Size-specific Assumptions'!G$3 -> 0.095 | R19: ='Size-specific Assumptions'!H$3 -> 0.095 | S19: ='Size-specific Assumptions'!I$3 -> 0.095 | T19: ='Size-specific Assumptions'!J$3 -> 0.095 | V19: State Income Tax Rate | W19: % | X19: =IF($V$3="","",IF('Scenario & Results'!$B$5=1,'ABP Scenario InputAssumptions'!D19,IF('Scenario & Results'!$B$5=2,'ABP Scenario InputAssumptions'!D45,IF('Scenario & Results'!$B$5=3,'ABP Scenario InputAssumptions'!D71,IF('Scenario & Results'!$B$5=4,'ABP Scenario InputAssumptions'!D97,IF('Scenario & Results'!$B$5=5,'ABP Scenario InputAssumptions'!N19,IF('Scenario & Results'!$B$5=6,'ABP Scenario InputAssumptions'!N45,IF('Scenario & Results'!$B$5=7,'ABP Scenario InputAssumptions'!N71,IF('Scenario & Results'!$B$5=8,'ABP Scenario InputAssumptions'!N97,"Invalid"))))))))) -> 0.0495 | Y19: =IF($V$3="","",IF('Scenario & Results'!$B$5=1,'ABP Scenario InputAssumptions'!E19,IF('Scenario & Results'!$B$5=2,'ABP Scenario InputAssumptions'!E45,IF('Scenario & Results'!$B$5=3,'ABP Scenario InputAssumptions'!E71,IF('Scenario & Results'!$B$5=4,'ABP Scenario InputAssumptions'!E97,IF('Scenario & Results'!$B$5=5,'ABP Scenario InputAssumptions'!O19,IF('Scenario & Results'!$B$5=6,'ABP Scenario InputAssumptions'!O45,IF('Scenario & Results'!$B$5=7,'ABP Scenario InputAssumptions'!O71,IF('Scenario & Results'!$B$5=8,'ABP Scenario InputAssumptions'!O97,"Invalid"))))))))) -> 0.095 | Z19: =IF($V$3="","",IF('Scenario & Results'!$B$5=1,'ABP Scenario InputAssumptions'!F19,IF('Scenario & Results'!$B$5=2,'ABP Scenario InputAssumptions'!F45,IF('Scenario & Results'!$B$5=3,'ABP Scenario InputAssumptions'!F71,IF('Scenario & Results'!$B$5=4,'ABP Scenario InputAssumptions'!F97,IF('Scenario & Results'!$B$5=5,'ABP Scenario InputAssumptions'!P19,IF('Scenario & Results'!$B$5=6,'ABP Scenario InputAssumptions'!P45,IF('Scenario & Results'!$B$5=7,'ABP Scenario InputAssumptions'!P71,IF('Scenario & Results'!$B$5=8,'ABP Scenario InputAssumptions'!P97,"Invalid"))))))))) -> 0.095 | AA19: =IF($V$3="","",IF('Scenario & Results'!$B$5=1,'ABP Scenario InputAssumptions'!G19,IF('Scenario & Results'!$B$5=2,'ABP Scenario InputAssumptions'!G45,IF('Scenario & Results'!$B$5=3,'ABP Scenario InputAssumptions'!G71,IF('Scenario & Results'!$B$5=4,'ABP Scenario InputAssumptions'!G97,IF('Scenario & Results'!$B$5=5,'ABP Scenario InputAssumptions'!Q19,IF('Scenario & Results'!$B$5=6,'ABP Scenario InputAssumptions'!Q45,IF('Scenario & Results'!$B$5=7,'ABP Scenario InputAssumptions'!Q71,IF('Scenario & Results'!$B$5=8,'ABP Scenario InputAssumptions'!Q97,"Invalid"))))))))) -> 0.095 | AB19: =IF($V$3="","",IF('Scenario & Results'!$B$5=1,'ABP Scenario InputAssumptions'!H19,IF('Scenario & Results'!$B$5=2,'ABP Scenario InputAssumptions'!H45,IF('Scenario & Results'!$B$5=3,'ABP Scenario InputAssumptions'!H71,IF('Scenario & Results'!$B$5=4,'ABP Scenario InputAssumptions'!H97,IF('Scenario & Results'!$B$5=5,'ABP Scenario InputAssumptions'!R19,IF('Scenario & Results'!$B$5=6,'ABP Scenario InputAssumptions'!R45,IF('Scenario & Results'!$B$5=7,'ABP Scenario InputAssumptions'!R71,IF('Scenario & Results'!$B$5=8,'ABP Scenario InputAssumptions'!R97,"Invalid"))))))))) -> 0.095 | AC19: =IF($V$3="","",IF('Scenario & Results'!$B$5=1,'ABP Scenario InputAssumptions'!I19,IF('Scenario & Results'!$B$5=2,'ABP Scenario InputAssumptions'!I45,IF('Scenario & Results'!$B$5=3,'ABP Scenario InputAssumptions'!I71,IF('Scenario & Results'!$B$5=4,'ABP Scenario InputAssumptions'!I97,IF('Scenario & Results'!$B$5=5,'ABP Scenario InputAssumptions'!S19,IF('Scenario & Results'!$B$5=6,'ABP Scenario InputAssumptions'!S45,IF('Scenario & Results'!$B$5=7,'ABP Scenario InputAssumptions'!S71,IF('Scenario & Results'!$B$5=8,'ABP Scenario InputAssumptions'!S97,"Invalid"))))))))) -> 0.095 | AD19: =IF($V$3="","",IF('Scenario & Results'!$B$5=1,'ABP Scenario InputAssumptions'!J19,IF('Scenario & Results'!$B$5=2,'ABP Scenario InputAssumptions'!J45,IF('Scenario & Results'!$B$5=3,'ABP Scenario InputAssumptions'!J71,IF('Scenario & Results'!$B$5=4,'ABP Scenario InputAssumptions'!J97,IF('Scenario & Results'!$B$5=5,'ABP Scenario InputAssumptions'!T19,IF('Scenario & Results'!$B$5=6,'ABP Scenario InputAssumptions'!T45,IF('Scenario & Results'!$B$5=7,'ABP Scenario InputAssumptions'!T71,IF('Scenario & Results'!$B$5=8,'ABP Scenario InputAssumptions'!T97,"Invalid"))))))))) -> 0.095
B20: Payment Duration for Cost-Based Tariff | C20: years | D20: =VLOOKUP($B3,'Program-specific Assumptions'!$C$1:$N$9,6,0) -> 15 | E20: =VLOOKUP($B3,'Program-specific Assumptions'!$C$1:$N$9,6,0) -> 15 | F20: =VLOOKUP($B3,'Program-specific Assumptions'!$C$1:$N$9,6,0) -> 15 | G20: =VLOOKUP($B3,'Program-specific Assumptions'!$C$1:$N$9,6,0) -> 15 | H20: =VLOOKUP($B3,'Program-specific Assumptions'!$C$1:$N$9,6,0) -> 15 | I20: =VLOOKUP($B3,'Program-specific Assumptions'!$C$1:$N$9,6,0) -> 15 | J20: =VLOOKUP($B3,'Program-specific Assumptions'!$C$1:$N$9,6,0) -> 15 | K20: Distributed Generation | L20: Payment Duration for Cost-Based Tariff | M20: years | N20: =VLOOKUP($B3,'Program-specific Assumptions'!$C$1:$N$9,6,0) -> 15 | O20: =VLOOKUP($B3,'Program-specific Assumptions'!$C$1:$N$9,6,0) -> 15 | P20: =VLOOKUP($B3,'Program-specific Assumptions'!$C$1:$N$9,6,0) -> 15 | Q20: =VLOOKUP($B3,'Program-specific Assumptions'!$C$1:$N$9,6,0) -> 15 | R20: =VLOOKUP($B3,'Program-specific Assumptions'!$C$1:$N$9,6,0) -> 15 | S20: =VLOOKUP($B3,'Program-specific Assumptions'!$C$1:$N$9,6,0) -> 15 | T20: =VLOOKUP($B3,'Program-specific Assumptions'!$C$1:$N$9,6,0) -> 15 | V20: Payment Duration for Cost-Based Tariff | W20: years | X20: =IF($V$3="","",IF('Scenario & Results'!$B$5=1,'ABP Scenario InputAssumptions'!D20,IF('Scenario & Results'!$B$5=2,'ABP Scenario InputAssumptions'!D46,IF('Scenario & Results'!$B$5=3,'ABP Scenario InputAssumptions'!D72,IF('Scenario & Results'!$B$5=4,'ABP Scenario InputAssumptions'!D98,IF('Scenario & Results'!$B$5=5,'ABP Scenario InputAssumptions'!N20,IF('Scenario & Results'!$B$5=6,'ABP Scenario InputAssumptions'!N46,IF('Scenario & Results'!$B$5=7,'ABP Scenario InputAssumptions'!N72,IF('Scenario & Results'!$B$5=8,'ABP Scenario InputAssumptions'!N98,"Invalid"))))))))) -> 15 | Y20: =IF($V$3="","",IF('Scenario & Results'!$B$5=1,'ABP Scenario InputAssumptions'!E20,IF('Scenario & Results'!$B$5=2,'ABP Scenario InputAssumptions'!E46,IF('Scenario & Results'!$B$5=3,'ABP Scenario InputAssumptions'!E72,IF('Scenario & Results'!$B$5=4,'ABP Scenario InputAssumptions'!E98,IF('Scenario & Results'!$B$5=5,'ABP Scenario InputAssumptions'!O20,IF('Scenario & Results'!$B$5=6,'ABP Scenario InputAssumptions'!O46,IF('Scenario & Results'!$B$5=7,'ABP Scenario InputAssumptions'!O72,IF('Scenario & Results'!$B$5=8,'ABP Scenario InputAssumptions'!O98,"Invalid"))))))))) -> 15 | Z20: =IF($V$3="","",IF('Scenario & Results'!$B$5=1,'ABP Scenario InputAssumptions'!F20,IF('Scenario & Results'!$B$5=2,'ABP Scenario InputAssumptions'!F46,IF('Scenario & Results'!$B$5=3,'ABP Scenario InputAssumptions'!F72,IF('Scenario & Results'!$B$5=4,'ABP Scenario InputAssumptions'!F98,IF('Scenario & Results'!$B$5=5,'ABP Scenario InputAssumptions'!P20,IF('Scenario & Results'!$B$5=6,'ABP Scenario InputAssumptions'!P46,IF('Scenario & Results'!$B$5=7,'ABP Scenario InputAssumptions'!P72,IF('Scenario & Results'!$B$5=8,'ABP Scenario InputAssumptions'!P98,"Invalid"))))))))) -> 15 | AA20: =IF($V$3="","",IF('Scenario & Results'!$B$5=1,'ABP Scenario InputAssumptions'!G20,IF('Scenario & Results'!$B$5=2,'ABP Scenario InputAssumptions'!G46,IF('Scenario & Results'!$B$5=3,'ABP Scenario InputAssumptions'!G72,IF('Scenario & Results'!$B$5=4,'ABP Scenario InputAssumptions'!G98,IF('Scenario & Results'!$B$5=5,'ABP Scenario InputAssumptions'!Q20,IF('Scenario & Results'!$B$5=6,'ABP Scenario InputAssumptions'!Q46,IF('Scenario & Results'!$B$5=7,'ABP Scenario InputAssumptions'!Q72,IF('Scenario & Results'!$B$5=8,'ABP Scenario InputAssumptions'!Q98,"Invalid"))))))))) -> 15 | AB20: =IF($V$3="","",IF('Scenario & Results'!$B$5=1,'ABP Scenario InputAssumptions'!H20,IF('Scenario & Results'!$B$5=2,'ABP Scenario InputAssumptions'!H46,IF('Scenario & Results'!$B$5=3,'ABP Scenario InputAssumptions'!H72,IF('Scenario & Results'!$B$5=4,'ABP Scenario InputAssumptions'!H98,IF('Scenario & Results'!$B$5=5,'ABP Scenario InputAssumptions'!R20,IF('Scenario & Results'!$B$5=6,'ABP Scenario InputAssumptions'!R46,IF('Scenario & Results'!$B$5=7,'ABP Scenario InputAssumptions'!R72,IF('Scenario & Results'!$B$5=8,'ABP Scenario InputAssumptions'!R98,"Invalid"))))))))) -> 15 | AC20: =IF($V$3="","",IF('Scenario & Results'!$B$5=1,'ABP Scenario InputAssumptions'!I20,IF('Scenario & Results'!$B$5=2,'ABP Scenario InputAssumptions'!I46,IF('Scenario & Results'!$B$5=3,'ABP Scenario InputAssumptions'!I72,IF('Scenario & Results'!$B$5=4,'ABP Scenario InputAssumptions'!I98,IF('Scenario & Results'!$B$5=5,'ABP Scenario InputAssumptions'!S20,IF('Scenario & Results'!$B$5=6,'ABP Scenario InputAssumptions'!S46,IF('Scenario & Results'!$B$5=7,'ABP Scenario InputAssumptions'!S72,IF('Scenario & Results'!$B$5=8,'ABP Scenario InputAssumptions'!S98,"Invalid"))))))))) -> 15 | AD20: =IF($V$3="","",IF('Scenario & Results'!$B$5=1,'ABP Scenario InputAssumptions'!J20,IF('Scenario & Results'!$B$5=2,'ABP Scenario InputAssumptions'!J46,IF('Scenario & Results'!$B$5=3,'ABP Scenario InputAssumptions'!J72,IF('Scenario & Results'!$B$5=4,'ABP Scenario InputAssumptions'!J98,IF('Scenario & Results'!$B$5=5,'ABP Scenario InputAssumptions'!T20,IF('Scenario & Results'!$B$5=6,'ABP Scenario InputAssumptions'!T46,IF('Scenario & Results'!$B$5=7,'ABP Scenario InputAssumptions'!T72,IF('Scenario & Results'!$B$5=8,'ABP Scenario InputAssumptions'!T98,"Invalid"))))))))) -> 15
B21: Post-tariff market value, Yr 1 | C21: ¢/kWh | D21: ='Net Metering Credit'!$C$47*100*D27 -> 8.309536131 | E21: ='Net Metering Credit'!$C$36*100*E27 -> 6.091079952 | F21: ='Net Metering Credit'!$C$36*100*F27 -> 6.091079952 | G21: ='Net Metering Credit'!$C$36*100*G27 -> 6.091079952 | H21: ='Net Metering Credit'!$C$36*100*H27 -> 6.091079952 | I21: ='Net Metering Credit'!$C$36*100*I27 -> 6.091079952 | J21: ='Net Metering Credit'!$C$36*100*J27 -> 6.091079952 | K21: Distributed Generation | L21: Post-tariff market value, Yr 1 | M21: ¢/kWh | N21: ='Net Metering Credit'!$C$25*100*N27 -> 9.771910927 | O21: ='Net Metering Credit'!$C$13*100*O27 -> 6.564587783 | P21: ='Net Metering Credit'!$C$13*100*P27 -> 6.564587783 | Q21: ='Net Metering Credit'!$C$13*100*Q27 -> 6.564587783 | R21: ='Net Metering Credit'!$C$13*100*R27 -> 6.564587783 | S21: ='Net Metering Credit'!$C$13*100*S27 -> 6.564587783 | T21: ='Net Metering Credit'!$C$13*100*T27 -> 6.564587783 | V21: Post-tariff market value, Yr 1 | W21: ¢/kWh | X21: =IF($V$3="","",IF('Scenario & Results'!$B$5=1,'ABP Scenario InputAssumptions'!D21,IF('Scenario & Results'!$B$5=2,'ABP Scenario InputAssumptions'!D47,IF('Scenario & Results'!$B$5=3,'ABP Scenario InputAssumptions'!D73,IF('Scenario & Results'!$B$5=4,'ABP Scenario InputAssumptions'!D99,IF('Scenario & Results'!$B$5=5,'ABP Scenario InputAssumptions'!N21,IF('Scenario & Results'!$B$5=6,'ABP Scenario InputAssumptions'!N47,IF('Scenario & Results'!$B$5=7,'ABP Scenario InputAssumptions'!N73,IF('Scenario & Results'!$B$5=8,'ABP Scenario InputAssumptions'!N99,"Invalid"))))))))) -> 8.309536131 | Y21: =IF($V$3="","",IF('Scenario & Results'!$B$5=1,'ABP Scenario InputAssumptions'!E21,IF('Scenario & Results'!$B$5=2,'ABP Scenario InputAssumptions'!E47,IF('Scenario & Results'!$B$5=3,'ABP Scenario InputAssumptions'!E73,IF('Scenario & Results'!$B$5=4,'ABP Scenario InputAssumptions'!E99,IF('Scenario & Results'!$B$5=5,'ABP Scenario InputAssumptions'!O21,IF('Scenario & Results'!$B$5=6,'ABP Scenario InputAssumptions'!O47,IF('Scenario & Results'!$B$5=7,'ABP Scenario InputAssumptions'!O73,IF('Scenario & Results'!$B$5=8,'ABP Scenario InputAssumptions'!O99,"Invalid"))))))))) -> 6.091079952 | Z21: =IF($V$3="","",IF('Scenario & Results'!$B$5=1,'ABP Scenario InputAssumptions'!F21,IF('Scenario & Results'!$B$5=2,'ABP Scenario InputAssumptions'!F47,IF('Scenario & Results'!$B$5=3,'ABP Scenario InputAssumptions'!F73,IF('Scenario & Results'!$B$5=4,'ABP Scenario InputAssumptions'!F99,IF('Scenario & Results'!$B$5=5,'ABP Scenario InputAssumptions'!P21,IF('Scenario & Results'!$B$5=6,'ABP Scenario InputAssumptions'!P47,IF('Scenario & Results'!$B$5=7,'ABP Scenario InputAssumptions'!P73,IF('Scenario & Results'!$B$5=8,'ABP Scenario InputAssumptions'!P99,"Invalid"))))))))) -> 6.091079952 | AA21: =IF($V$3="","",IF('Scenario & Results'!$B$5=1,'ABP Scenario InputAssumptions'!G21,IF('Scenario & Results'!$B$5=2,'ABP Scenario InputAssumptions'!G47,IF('Scenario & Results'!$B$5=3,'ABP Scenario InputAssumptions'!G73,IF('Scenario & Results'!$B$5=4,'ABP Scenario InputAssumptions'!G99,IF('Scenario & Results'!$B$5=5,'ABP Scenario InputAssumptions'!Q21,IF('Scenario & Results'!$B$5=6,'ABP Scenario InputAssumptions'!Q47,IF('Scenario & Results'!$B$5=7,'ABP Scenario InputAssumptions'!Q73,IF('Scenario & Results'!$B$5=8,'ABP Scenario InputAssumptions'!Q99,"Invalid"))))))))) -> 6.091079952 | AB21: =IF($V$3="","",IF('Scenario & Results'!$B$5=1,'ABP Scenario InputAssumptions'!H21,IF('Scenario & Results'!$B$5=2,'ABP Scenario InputAssumptions'!H47,IF('Scenario & Results'!$B$5=3,'ABP Scenario InputAssumptions'!H73,IF('Scenario & Results'!$B$5=4,'ABP Scenario InputAssumptions'!H99,IF('Scenario & Results'!$B$5=5,'ABP Scenario InputAssumptions'!R21,IF('Scenario & Results'!$B$5=6,'ABP Scenario InputAssumptions'!R47,IF('Scenario & Results'!$B$5=7,'ABP Scenario InputAssumptions'!R73,IF('Scenario & Results'!$B$5=8,'ABP Scenario InputAssumptions'!R99,"Invalid"))))))))) -> 6.091079952 | AC21: =IF($V$3="","",IF('Scenario & Results'!$B$5=1,'ABP Scenario InputAssumptions'!I21,IF('Scenario & Results'!$B$5=2,'ABP Scenario InputAssumptions'!I47,IF('Scenario & Results'!$B$5=3,'ABP Scenario InputAssumptions'!I73,IF('Scenario & Results'!$B$5=4,'ABP Scenario InputAssumptions'!I99,IF('Scenario & Results'!$B$5=5,'ABP Scenario InputAssumptions'!S21,IF('Scenario & Results'!$B$5=6,'ABP Scenario InputAssumptions'!S47,IF('Scenario & Results'!$B$5=7,'ABP Scenario InputAssumptions'!S73,IF('Scenario & Results'!$B$5=8,'ABP Scenario InputAssumptions'!S99,"Invalid"))))))))) -> 6.091079952 | AD21: =IF($V$3="","",IF('Scenario & Results'!$B$5=1,'ABP Scenario InputAssumptions'!J21,IF('Scenario & Results'!$B$5=2,'ABP Scenario InputAssumptions'!J47,IF('Scenario & Results'!$B$5=3,'ABP Scenario InputAssumptions'!J73,IF('Scenario & Results'!$B$5=4,'ABP Scenario InputAssumptions'!J99,IF('Scenario & Results'!$B$5=5,'ABP Scenario InputAssumptions'!T21,IF('Scenario & Results'!$B$5=6,'ABP Scenario InputAssumptions'!T47,IF('Scenario & Results'!$B$5=7,'ABP Scenario InputAssumptions'!T73,IF('Scenario & Results'!$B$5=8,'ABP Scenario InputAssumptions'!T99,"Invalid"))))))))) -> 6.091079952
B22: Additional State Rebates/Grants | C22: $/Watt | D22: ='Size-specific Assumptions'!D$5 -> 0.25 | E22: ='Size-specific Assumptions'!E$5 -> 0.25 | F22: ='Size-specific Assumptions'!F$5 -> 0.25 | G22: ='Size-specific Assumptions'!G$5 -> 0.25 | H22: ='Size-specific Assumptions'!H$5 -> 0.25 | I22: ='Size-specific Assumptions'!I$5 -> 0.25 | J22: ='Size-specific Assumptions'!J$5 -> 0.25 | K22: Distributed Generation | L22: Additional State Rebates/Grants | M22: $/Watt | N22: ='Size-specific Assumptions'!D$5 -> 0.25 | O22: ='Size-specific Assumptions'!E$5 -> 0.25 | P22: ='Size-specific Assumptions'!F$5 -> 0.25 | Q22: ='Size-specific Assumptions'!G$5 -> 0.25 | R22: ='Size-specific Assumptions'!H$5 -> 0.25 | S22: ='Size-specific Assumptions'!I$5 -> 0.25 | T22: ='Size-specific Assumptions'!J$5 -> 0.25 | V22: Additional State Rebates/Grants | W22: $/Watt | X22: =IF($V$3="","",IF('Scenario & Results'!$B$5=1,'ABP Scenario InputAssumptions'!D22,IF('Scenario & Results'!$B$5=2,'ABP Scenario InputAssumptions'!D48,IF('Scenario & Results'!$B$5=3,'ABP Scenario InputAssumptions'!D74,IF('Scenario & Results'!$B$5=4,'ABP Scenario InputAssumptions'!D100,IF('Scenario & Results'!$B$5=5,'ABP Scenario InputAssumptions'!N22,IF('Scenario & Results'!$B$5=6,'ABP Scenario InputAssumptions'!N48,IF('Scenario & Results'!$B$5=7,'ABP Scenario InputAssumptions'!N74,IF('Scenario & Results'!$B$5=8,'ABP Scenario InputAssumptions'!N100,"Invalid"))))))))) -> 0.25 | Y22: =IF($V$3="","",IF('Scenario & Results'!$B$5=1,'ABP Scenario InputAssumptions'!E22,IF('Scenario & Results'!$B$5=2,'ABP Scenario InputAssumptions'!E48,IF('Scenario & Results'!$B$5=3,'ABP Scenario InputAssumptions'!E74,IF('Scenario & Results'!$B$5=4,'ABP Scenario InputAssumptions'!E100,IF('Scenario & Results'!$B$5=5,'ABP Scenario InputAssumptions'!O22,IF('Scenario & Results'!$B$5=6,'ABP Scenario InputAssumptions'!O48,IF('Scenario & Results'!$B$5=7,'ABP Scenario InputAssumptions'!O74,IF('Scenario & Results'!$B$5=8,'ABP Scenario InputAssumptions'!O100,"Invalid"))))))))) -> 0.25 | Z22: =IF($V$3="","",IF('Scenario & Results'!$B$5=1,'ABP Scenario InputAssumptions'!F22,IF('Scenario & Results'!$B$5=2,'ABP Scenario InputAssumptions'!F48,IF('Scenario & Results'!$B$5=3,'ABP Scenario InputAssumptions'!F74,IF('Scenario & Results'!$B$5=4,'ABP Scenario InputAssumptions'!F100,IF('Scenario & Results'!$B$5=5,'ABP Scenario InputAssumptions'!P22,IF('Scenario & Results'!$B$5=6,'ABP Scenario InputAssumptions'!P48,IF('Scenario & Results'!$B$5=7,'ABP Scenario InputAssumptions'!P74,IF('Scenario & Results'!$B$5=8,'ABP Scenario InputAssumptions'!P100,"Invalid"))))))))) -> 0.25 | AA22: =IF($V$3="","",IF('Scenario & Results'!$B$5=1,'ABP Scenario InputAssumptions'!G22,IF('Scenario & Results'!$B$5=2,'ABP Scenario InputAssumptions'!G48,IF('Scenario & Results'!$B$5=3,'ABP Scenario InputAssumptions'!G74,IF('Scenario & Results'!$B$5=4,'ABP Scenario InputAssumptions'!G100,IF('Scenario & Results'!$B$5=5,'ABP Scenario InputAssumptions'!Q22,IF('Scenario & Results'!$B$5=6,'ABP Scenario InputAssumptions'!Q48,IF('Scenario & Results'!$B$5=7,'ABP Scenario InputAssumptions'!Q74,IF('Scenario & Results'!$B$5=8,'ABP Scenario InputAssumptions'!Q100,"Invalid"))))))))) -> 0.25 | AB22: =IF($V$3="","",IF('Scenario & Results'!$B$5=1,'ABP Scenario InputAssumptions'!H22,IF('Scenario & Results'!$B$5=2,'ABP Scenario InputAssumptions'!H48,IF('Scenario & Results'!$B$5=3,'ABP Scenario InputAssumptions'!H74,IF('Scenario & Results'!$B$5=4,'ABP Scenario InputAssumptions'!H100,IF('Scenario & Results'!$B$5=5,'ABP Scenario InputAssumptions'!R22,IF('Scenario & Results'!$B$5=6,'ABP Scenario InputAssumptions'!R48,IF('Scenario & Results'!$B$5=7,'ABP Scenario InputAssumptions'!R74,IF('Scenario & Results'!$B$5=8,'ABP Scenario InputAssumptions'!R100,"Invalid"))))))))) -> 0.25 | AC22: =IF($V$3="","",IF('Scenario & Results'!$B$5=1,'ABP Scenario InputAssumptions'!I22,IF('Scenario & Results'!$B$5=2,'ABP Scenario InputAssumptions'!I48,IF('Scenario & Results'!$B$5=3,'ABP Scenario InputAssumptions'!I74,IF('Scenario & Results'!$B$5=4,'ABP Scenario InputAssumptions'!I100,IF('Scenario & Results'!$B$5=5,'ABP Scenario InputAssumptions'!S22,IF('Scenario & Results'!$B$5=6,'ABP Scenario InputAssumptions'!S48,IF('Scenario & Results'!$B$5=7,'ABP Scenario InputAssumptions'!S74,IF('Scenario & Results'!$B$5=8,'ABP Scenario InputAssumptions'!S100,"Invalid"))))))))) -> 0.25 | AD22: =IF($V$3="","",IF('Scenario & Results'!$B$5=1,'ABP Scenario InputAssumptions'!J22,IF('Scenario & Results'!$B$5=2,'ABP Scenario InputAssumptions'!J48,IF('Scenario & Results'!$B$5=3,'ABP Scenario InputAssumptions'!J74,IF('Scenario & Results'!$B$5=4,'ABP Scenario InputAssumptions'!J100,IF('Scenario & Results'!$B$5=5,'ABP Scenario InputAssumptions'!T22,IF('Scenario & Results'!$B$5=6,'ABP Scenario InputAssumptions'!T48,IF('Scenario & Results'!$B$5=7,'ABP Scenario InputAssumptions'!T74,IF('Scenario & Results'!$B$5=8,'ABP Scenario InputAssumptions'!T100,"Invalid"))))))))) -> 0.25
B23: 1st Replacement Cost ($ in year replaced) | C23: $/Watt dc | D23: ='Size-specific Assumptions'!D$4 -> 0.21 | E23: ='Size-specific Assumptions'!E$4 -> 0.13 | F23: ='Size-specific Assumptions'!F$4 -> 0.13 | G23: ='Size-specific Assumptions'!G$4 -> 0.13 | H23: ='Size-specific Assumptions'!H$4 -> 0.13 | I23: ='Size-specific Assumptions'!I$4 -> 0.13 | J23: ='Size-specific Assumptions'!J$4 -> 0.13 | K23: Distributed Generation | L23: 1st Replacement Cost ($ in year replaced) | M23: $/Watt dc | N23: ='Size-specific Assumptions'!D$4 -> 0.21 | O23: ='Size-specific Assumptions'!E$4 -> 0.13 | P23: ='Size-specific Assumptions'!F$4 -> 0.13 | Q23: ='Size-specific Assumptions'!G$4 -> 0.13 | R23: ='Size-specific Assumptions'!H$4 -> 0.13 | S23: ='Size-specific Assumptions'!I$4 -> 0.13 | T23: ='Size-specific Assumptions'!J$4 -> 0.13 | V23: 1st Replacement Cost ($ in year replaced) | W23: $/Watt dc | X23: =IF($V$3="","",IF('Scenario & Results'!$B$5=1,'ABP Scenario InputAssumptions'!D23,IF('Scenario & Results'!$B$5=2,'ABP Scenario InputAssumptions'!D49,IF('Scenario & Results'!$B$5=3,'ABP Scenario InputAssumptions'!D75,IF('Scenario & Results'!$B$5=4,'ABP Scenario InputAssumptions'!D101,IF('Scenario & Results'!$B$5=5,'ABP Scenario InputAssumptions'!N23,IF('Scenario & Results'!$B$5=6,'ABP Scenario InputAssumptions'!N49,IF('Scenario & Results'!$B$5=7,'ABP Scenario InputAssumptions'!N75,IF('Scenario & Results'!$B$5=8,'ABP Scenario InputAssumptions'!N101,"Invalid"))))))))) -> 0.21 | Y23: =IF($V$3="","",IF('Scenario & Results'!$B$5=1,'ABP Scenario InputAssumptions'!E23,IF('Scenario & Results'!$B$5=2,'ABP Scenario InputAssumptions'!E49,IF('Scenario & Results'!$B$5=3,'ABP Scenario InputAssumptions'!E75,IF('Scenario & Results'!$B$5=4,'ABP Scenario InputAssumptions'!E101,IF('Scenario & Results'!$B$5=5,'ABP Scenario InputAssumptions'!O23,IF('Scenario & Results'!$B$5=6,'ABP Scenario InputAssumptions'!O49,IF('Scenario & Results'!$B$5=7,'ABP Scenario InputAssumptions'!O75,IF('Scenario & Results'!$B$5=8,'ABP Scenario InputAssumptions'!O101,"Invalid"))))))))) -> 0.13 | Z23: =IF($V$3="","",IF('Scenario & Results'!$B$5=1,'ABP Scenario InputAssumptions'!F23,IF('Scenario & Results'!$B$5=2,'ABP Scenario InputAssumptions'!F49,IF('Scenario & Results'!$B$5=3,'ABP Scenario InputAssumptions'!F75,IF('Scenario & Results'!$B$5=4,'ABP Scenario InputAssumptions'!F101,IF('Scenario & Results'!$B$5=5,'ABP Scenario InputAssumptions'!P23,IF('Scenario & Results'!$B$5=6,'ABP Scenario InputAssumptions'!P49,IF('Scenario & Results'!$B$5=7,'ABP Scenario InputAssumptions'!P75,IF('Scenario & Results'!$B$5=8,'ABP Scenario InputAssumptions'!P101,"Invalid"))))))))) -> 0.13 | AA23: =IF($V$3="","",IF('Scenario & Results'!$B$5=1,'ABP Scenario InputAssumptions'!G23,IF('Scenario & Results'!$B$5=2,'ABP Scenario InputAssumptions'!G49,IF('Scenario & Results'!$B$5=3,'ABP Scenario InputAssumptions'!G75,IF('Scenario & Results'!$B$5=4,'ABP Scenario InputAssumptions'!G101,IF('Scenario & Results'!$B$5=5,'ABP Scenario InputAssumptions'!Q23,IF('Scenario & Results'!$B$5=6,'ABP Scenario InputAssumptions'!Q49,IF('Scenario & Results'!$B$5=7,'ABP Scenario InputAssumptions'!Q75,IF('Scenario & Results'!$B$5=8,'ABP Scenario InputAssumptions'!Q101,"Invalid"))))))))) -> 0.13 | AB23: =IF($V$3="","",IF('Scenario & Results'!$B$5=1,'ABP Scenario InputAssumptions'!H23,IF('Scenario & Results'!$B$5=2,'ABP Scenario InputAssumptions'!H49,IF('Scenario & Results'!$B$5=3,'ABP Scenario InputAssumptions'!H75,IF('Scenario & Results'!$B$5=4,'ABP Scenario InputAssumptions'!H101,IF('Scenario & Results'!$B$5=5,'ABP Scenario InputAssumptions'!R23,IF('Scenario & Results'!$B$5=6,'ABP Scenario InputAssumptions'!R49,IF('Scenario & Results'!$B$5=7,'ABP Scenario InputAssumptions'!R75,IF('Scenario & Results'!$B$5=8,'ABP Scenario InputAssumptions'!R101,"Invalid"))))))))) -> 0.13 | AC23: =IF($V$3="","",IF('Scenario & Results'!$B$5=1,'ABP Scenario InputAssumptions'!I23,IF('Scenario & Results'!$B$5=2,'ABP Scenario InputAssumptions'!I49,IF('Scenario & Results'!$B$5=3,'ABP Scenario InputAssumptions'!I75,IF('Scenario & Results'!$B$5=4,'ABP Scenario InputAssumptions'!I101,IF('Scenario & Results'!$B$5=5,'ABP Scenario InputAssumptions'!S23,IF('Scenario & Results'!$B$5=6,'ABP Scenario InputAssumptions'!S49,IF('Scenario & Results'!$B$5=7,'ABP Scenario InputAssumptions'!S75,IF('Scenario & Results'!$B$5=8,'ABP Scenario InputAssumptions'!S101,"Invalid"))))))))) -> 0.13 | AD23: =IF($V$3="","",IF('Scenario & Results'!$B$5=1,'ABP Scenario InputAssumptions'!J23,IF('Scenario & Results'!$B$5=2,'ABP Scenario InputAssumptions'!J49,IF('Scenario & Results'!$B$5=3,'ABP Scenario InputAssumptions'!J75,IF('Scenario & Results'!$B$5=4,'ABP Scenario InputAssumptions'!J101,IF('Scenario & Results'!$B$5=5,'ABP Scenario InputAssumptions'!T23,IF('Scenario & Results'!$B$5=6,'ABP Scenario InputAssumptions'!T49,IF('Scenario & Results'!$B$5=7,'ABP Scenario InputAssumptions'!T75,IF('Scenario & Results'!$B$5=8,'ABP Scenario InputAssumptions'!T101,"Invalid"))))))))) -> 0.13
B24: Taxable Entity | C24: Y/N | D24: =VLOOKUP($B3,'Program-specific Assumptions'!$C$1:$N$9,12,0) -> Yes | E24: =VLOOKUP($B3,'Program-specific Assumptions'!$C$1:$N$9,12,0) -> Yes | F24: =VLOOKUP($B3,'Program-specific Assumptions'!$C$1:$N$9,12,0) -> Yes | G24: =VLOOKUP($B3,'Program-specific Assumptions'!$C$1:$N$9,12,0) -> Yes | H24: =VLOOKUP($B3,'Program-specific Assumptions'!$C$1:$N$9,12,0) -> Yes | I24: =VLOOKUP($B3,'Program-specific Assumptions'!$C$1:$N$9,12,0) -> Yes | J24: =VLOOKUP($B3,'Program-specific Assumptions'!$C$1:$N$9,12,0) -> Yes | K24: Distributed Generation | L24: Taxable Entity | M24: Y/N | N24: =VLOOKUP($B3,'Program-specific Assumptions'!$C$1:$N$9,12,0) -> Yes | O24: =VLOOKUP($B3,'Program-specific Assumptions'!$C$1:$N$9,12,0) -> Yes | P24: =VLOOKUP($B3,'Program-specific Assumptions'!$C$1:$N$9,12,0) -> Yes | Q24: =VLOOKUP($B3,'Program-specific Assumptions'!$C$1:$N$9,12,0) -> Yes | R24: =VLOOKUP($B3,'Program-specific Assumptions'!$C$1:$N$9,12,0) -> Yes | S24: =VLOOKUP($B3,'Program-specific Assumptions'!$C$1:$N$9,12,0) -> Yes | T24: =VLOOKUP($B3,'Program-specific Assumptions'!$C$1:$N$9,12,0) -> Yes | V24: Taxable Entity | W24: Y/N | X24: =IF($V$3="","",IF('Scenario & Results'!$B$5=1,'ABP Scenario InputAssumptions'!D24,IF('Scenario & Results'!$B$5=2,'ABP Scenario InputAssumptions'!D50,IF('Scenario & Results'!$B$5=3,'ABP Scenario InputAssumptions'!D76,IF('Scenario & Results'!$B$5=4,'ABP Scenario InputAssumptions'!D102,IF('Scenario & Results'!$B$5=5,'ABP Scenario InputAssumptions'!N24,IF('Scenario & Results'!$B$5=6,'ABP Scenario InputAssumptions'!N50,IF('Scenario & Results'!$B$5=7,'ABP Scenario InputAssumptions'!N76,IF('Scenario & Results'!$B$5=8,'ABP Scenario InputAssumptions'!N102,"Invalid"))))))))) -> Yes | Y24: =IF($V$3="","",IF('Scenario & Results'!$B$5=1,'ABP Scenario InputAssumptions'!E24,IF('Scenario & Results'!$B$5=2,'ABP Scenario InputAssumptions'!E50,IF('Scenario & Results'!$B$5=3,'ABP Scenario InputAssumptions'!E76,IF('Scenario & Results'!$B$5=4,'ABP Scenario InputAssumptions'!E102,IF('Scenario & Results'!$B$5=5,'ABP Scenario InputAssumptions'!O24,IF('Scenario & Results'!$B$5=6,'ABP Scenario InputAssumptions'!O50,IF('Scenario & Results'!$B$5=7,'ABP Scenario InputAssumptions'!O76,IF('Scenario & Results'!$B$5=8,'ABP Scenario InputAssumptions'!O102,"Invalid"))))))))) -> Yes | Z24: =IF($V$3="","",IF('Scenario & Results'!$B$5=1,'ABP Scenario InputAssumptions'!F24,IF('Scenario & Results'!$B$5=2,'ABP Scenario InputAssumptions'!F50,IF('Scenario & Results'!$B$5=3,'ABP Scenario InputAssumptions'!F76,IF('Scenario & Results'!$B$5=4,'ABP Scenario InputAssumptions'!F102,IF('Scenario & Results'!$B$5=5,'ABP Scenario InputAssumptions'!P24,IF('Scenario & Results'!$B$5=6,'ABP Scenario InputAssumptions'!P50,IF('Scenario & Results'!$B$5=7,'ABP Scenario InputAssumptions'!P76,IF('Scenario & Results'!$B$5=8,'ABP Scenario InputAssumptions'!P102,"Invalid"))))))))) -> Yes | AA24: =IF($V$3="","",IF('Scenario & Results'!$B$5=1,'ABP Scenario InputAssumptions'!G24,IF('Scenario & Results'!$B$5=2,'ABP Scenario InputAssumptions'!G50,IF('Scenario & Results'!$B$5=3,'ABP Scenario InputAssumptions'!G76,IF('Scenario & Results'!$B$5=4,'ABP Scenario InputAssumptions'!G102,IF('Scenario & Results'!$B$5=5,'ABP Scenario InputAssumptions'!Q24,IF('Scenario & Results'!$B$5=6,'ABP Scenario InputAssumptions'!Q50,IF('Scenario & Results'!$B$5=7,'ABP Scenario InputAssumptions'!Q76,IF('Scenario & Results'!$B$5=8,'ABP Scenario InputAssumptions'!Q102,"Invalid"))))))))) -> Yes | AB24: =IF($V$3="","",IF('Scenario & Results'!$B$5=1,'ABP Scenario InputAssumptions'!H24,IF('Scenario & Results'!$B$5=2,'ABP Scenario InputAssumptions'!H50,IF('Scenario & Results'!$B$5=3,'ABP Scenario InputAssumptions'!H76,IF('Scenario & Results'!$B$5=4,'ABP Scenario InputAssumptions'!H102,IF('Scenario & Results'!$B$5=5,'ABP Scenario InputAssumptions'!R24,IF('Scenario & Results'!$B$5=6,'ABP Scenario InputAssumptions'!R50,IF('Scenario & Results'!$B$5=7,'ABP Scenario InputAssumptions'!R76,IF('Scenario & Results'!$B$5=8,'ABP Scenario InputAssumptions'!R102,"Invalid"))))))))) -> Yes | AC24: =IF($V$3="","",IF('Scenario & Results'!$B$5=1,'ABP Scenario InputAssumptions'!I24,IF('Scenario & Results'!$B$5=2,'ABP Scenario InputAssumptions'!I50,IF('Scenario & Results'!$B$5=3,'ABP Scenario InputAssumptions'!I76,IF('Scenario & Results'!$B$5=4,'ABP Scenario InputAssumptions'!I102,IF('Scenario & Results'!$B$5=5,'ABP Scenario InputAssumptions'!S24,IF('Scenario & Results'!$B$5=6,'ABP Scenario InputAssumptions'!S50,IF('Scenario & Results'!$B$5=7,'ABP Scenario InputAssumptions'!S76,IF('Scenario & Results'!$B$5=8,'ABP Scenario InputAssumptions'!S102,"Invalid"))))))))) -> Yes | AD24: =IF($V$3="","",IF('Scenario & Results'!$B$5=1,'ABP Scenario InputAssumptions'!J24,IF('Scenario & Results'!$B$5=2,'ABP Scenario InputAssumptions'!J50,IF('Scenario & Results'!$B$5=3,'ABP Scenario InputAssumptions'!J76,IF('Scenario & Results'!$B$5=4,'ABP Scenario InputAssumptions'!J102,IF('Scenario & Results'!$B$5=5,'ABP Scenario InputAssumptions'!T24,IF('Scenario & Results'!$B$5=6,'ABP Scenario InputAssumptions'!T50,IF('Scenario & Results'!$B$5=7,'ABP Scenario InputAssumptions'!T76,IF('Scenario & Results'!$B$5=8,'ABP Scenario InputAssumptions'!T102,"Invalid"))))))))) -> Yes
B25: Net Metering Credit | C25: $ | D25: =NPV('CREST Inputs'!$G$63,'Net Metering Credit'!$C$53:$AA$53)*D27 -> 4108934.738 | E25: =NPV('CREST Inputs'!$G$63,'Net Metering Credit'!$C$52:$AA$52)*E27 -> 2736951.339 | F25: =NPV('CREST Inputs'!$G$63,'Net Metering Credit'!$C$52:$AA$52)*F27 -> 2736951.339 | G25: =NPV('CREST Inputs'!$G$63,'Net Metering Credit'!$C$52:$AA$52)*G27 -> 2736951.339 | H25: =NPV('CREST Inputs'!$G$63,'Net Metering Credit'!$C$52:$AA$52)*H27 -> 2736951.339 | I25: =NPV('CREST Inputs'!$G$63,'Net Metering Credit'!$C$52:$AA$52)*I27 -> 2736951.339 | J25: =NPV('CREST Inputs'!$G$63,'Net Metering Credit'!$C$52:$AA$52)*J27 -> 2736951.339 | K25: Distributed Generation | L25: Net Metering Credit | M25: $ | N25: =NPV('CREST Inputs'!$G$63,'Net Metering Credit'!$C$51:$AA$51)*N27 -> 4564543.036 | O25: =NPV('CREST Inputs'!$G$63,'Net Metering Credit'!$C$50:$AA$50)*O27 -> 3323873.927 | P25: =NPV('CREST Inputs'!$G$63,'Net Metering Credit'!$C$50:$AA$50)*P27 -> 3323873.927 | Q25: =NPV('CREST Inputs'!$G$63,'Net Metering Credit'!$C$50:$AA$50)*Q27 -> 3323873.927 | R25: =NPV('CREST Inputs'!$G$63,'Net Metering Credit'!$C$50:$AA$50)*R27 -> 3323873.927 | S25: =NPV('CREST Inputs'!$G$63,'Net Metering Credit'!$C$50:$AA$50)*S27 -> 3323873.927 | T25: =NPV('CREST Inputs'!$G$63,'Net Metering Credit'!$C$50:$AA$50)*T27 -> 3323873.927 | V25: Net Metering Credit | W25: $ | X25: =IF($V$3="","",IF('Scenario & Results'!$B$5=1,'ABP Scenario InputAssumptions'!D25,IF('Scenario & Results'!$B$5=2,'ABP Scenario InputAssumptions'!D51,IF('Scenario & Results'!$B$5=3,'ABP Scenario InputAssumptions'!D77,IF('Scenario & Results'!$B$5=4,'ABP Scenario InputAssumptions'!D103,IF('Scenario & Results'!$B$5=5,'ABP Scenario InputAssumptions'!N25,IF('Scenario & Results'!$B$5=6,'ABP Scenario InputAssumptions'!N51,IF('Scenario & Results'!$B$5=7,'ABP Scenario InputAssumptions'!N77,IF('Scenario & Results'!$B$5=8,'ABP Scenario InputAssumptions'!N103,"Invalid"))))))))) -> 4108934.738 | Y25: =IF($V$3="","",IF('Scenario & Results'!$B$5=1,'ABP Scenario InputAssumptions'!E25,IF('Scenario & Results'!$B$5=2,'ABP Scenario InputAssumptions'!E51,IF('Scenario & Results'!$B$5=3,'ABP Scenario InputAssumptions'!E77,IF('Scenario & Results'!$B$5=4,'ABP Scenario InputAssumptions'!E103,IF('Scenario & Results'!$B$5=5,'ABP Scenario InputAssumptions'!O25,IF('Scenario & Results'!$B$5=6,'ABP Scenario InputAssumptions'!O51,IF('Scenario & Results'!$B$5=7,'ABP Scenario InputAssumptions'!O77,IF('Scenario & Results'!$B$5=8,'ABP Scenario InputAssumptions'!O103,"Invalid"))))))))) -> 2736951.339 | Z25: =IF($V$3="","",IF('Scenario & Results'!$B$5=1,'ABP Scenario InputAssumptions'!F25,IF('Scenario & Results'!$B$5=2,'ABP Scenario InputAssumptions'!F51,IF('Scenario & Results'!$B$5=3,'ABP Scenario InputAssumptions'!F77,IF('Scenario & Results'!$B$5=4,'ABP Scenario InputAssumptions'!F103,IF('Scenario & Results'!$B$5=5,'ABP Scenario InputAssumptions'!P25,IF('Scenario & Results'!$B$5=6,'ABP Scenario InputAssumptions'!P51,IF('Scenario & Results'!$B$5=7,'ABP Scenario InputAssumptions'!P77,IF('Scenario & Results'!$B$5=8,'ABP Scenario InputAssumptions'!P103,"Invalid"))))))))) -> 2736951.339 | AA25: =IF($V$3="","",IF('Scenario & Results'!$B$5=1,'ABP Scenario InputAssumptions'!G25,IF('Scenario & Results'!$B$5=2,'ABP Scenario InputAssumptions'!G51,IF('Scenario & Results'!$B$5=3,'ABP Scenario InputAssumptions'!G77,IF('Scenario & Results'!$B$5=4,'ABP Scenario InputAssumptions'!G103,IF('Scenario & Results'!$B$5=5,'ABP Scenario InputAssumptions'!Q25,IF('Scenario & Results'!$B$5=6,'ABP Scenario InputAssumptions'!Q51,IF('Scenario & Results'!$B$5=7,'ABP Scenario InputAssumptions'!Q77,IF('Scenario & Results'!$B$5=8,'ABP Scenario InputAssumptions'!Q103,"Invalid"))))))))) -> 2736951.339 | AB25: =IF($V$3="","",IF('Scenario & Results'!$B$5=1,'ABP Scenario InputAssumptions'!H25,IF('Scenario & Results'!$B$5=2,'ABP Scenario InputAssumptions'!H51,IF('Scenario & Results'!$B$5=3,'ABP Scenario InputAssumptions'!H77,IF('Scenario & Results'!$B$5=4,'ABP Scenario InputAssumptions'!H103,IF('Scenario & Results'!$B$5=5,'ABP Scenario InputAssumptions'!R25,IF('Scenario & Results'!$B$5=6,'ABP Scenario InputAssumptions'!R51,IF('Scenario & Results'!$B$5=7,'ABP Scenario InputAssumptions'!R77,IF('Scenario & Results'!$B$5=8,'ABP Scenario InputAssumptions'!R103,"Invalid"))))))))) -> 2736951.339 | AC25: =IF($V$3="","",IF('Scenario & Results'!$B$5=1,'ABP Scenario InputAssumptions'!I25,IF('Scenario & Results'!$B$5=2,'ABP Scenario InputAssumptions'!I51,IF('Scenario & Results'!$B$5=3,'ABP Scenario InputAssumptions'!I77,IF('Scenario & Results'!$B$5=4,'ABP Scenario InputAssumptions'!I103,IF('Scenario & Results'!$B$5=5,'ABP Scenario InputAssumptions'!S25,IF('Scenario & Results'!$B$5=6,'ABP Scenario InputAssumptions'!S51,IF('Scenario & Results'!$B$5=7,'ABP Scenario InputAssumptions'!S77,IF('Scenario & Results'!$B$5=8,'ABP Scenario InputAssumptions'!S103,"Invalid"))))))))) -> 2736951.339 | AD25: =IF($V$3="","",IF('Scenario & Results'!$B$5=1,'ABP Scenario InputAssumptions'!J25,IF('Scenario & Results'!$B$5=2,'ABP Scenario InputAssumptions'!J51,IF('Scenario & Results'!$B$5=3,'ABP Scenario InputAssumptions'!J77,IF('Scenario & Results'!$B$5=4,'ABP Scenario InputAssumptions'!J103,IF('Scenario & Results'!$B$5=5,'ABP Scenario InputAssumptions'!T25,IF('Scenario & Results'!$B$5=6,'ABP Scenario InputAssumptions'!T51,IF('Scenario & Results'!$B$5=7,'ABP Scenario InputAssumptions'!T77,IF('Scenario & Results'!$B$5=8,'ABP Scenario InputAssumptions'!T103,"Invalid"))))))))) -> 2736951.339
B26: Subscriber Savings | C26: % | D26: =VLOOKUP($B3,'Program-specific Assumptions'!$C$1:$N$9,8,0) -> 0.2 | E26: =VLOOKUP($B3,'Program-specific Assumptions'!$C$1:$N$9,8,0) -> 0.2 | F26: =VLOOKUP($B3,'Program-specific Assumptions'!$C$1:$N$9,8,0) -> 0.2 | G26: =VLOOKUP($B3,'Program-specific Assumptions'!$C$1:$N$9,8,0) -> 0.2 | H26: =VLOOKUP($B3,'Program-specific Assumptions'!$C$1:$N$9,8,0) -> 0.2 | I26: =VLOOKUP($B3,'Program-specific Assumptions'!$C$1:$N$9,8,0) -> 0.2 | J26: =VLOOKUP($B3,'Program-specific Assumptions'!$C$1:$N$9,8,0) -> 0.2 | K26: Distributed Generation | L26: Subscriber Savings | M26: % | N26: =VLOOKUP($B3,'Program-specific Assumptions'!$C$1:$N$9,8,0) -> 0.2 | O26: =VLOOKUP($B3,'Program-specific Assumptions'!$C$1:$N$9,8,0) -> 0.2 | P26: =VLOOKUP($B3,'Program-specific Assumptions'!$C$1:$N$9,8,0) -> 0.2 | Q26: =VLOOKUP($B3,'Program-specific Assumptions'!$C$1:$N$9,8,0) -> 0.2 | R26: =VLOOKUP($B3,'Program-specific Assumptions'!$C$1:$N$9,8,0) -> 0.2 | S26: =VLOOKUP($B3,'Program-specific Assumptions'!$C$1:$N$9,8,0) -> 0.2 | T26: =VLOOKUP($B3,'Program-specific Assumptions'!$C$1:$N$9,8,0) -> 0.2 | V26: Subscriber Savings | W26: % | X26: =IF($V$3="","",IF('Scenario & Results'!$B$5=1,'ABP Scenario InputAssumptions'!D26,IF('Scenario & Results'!$B$5=2,'ABP Scenario InputAssumptions'!D52,IF('Scenario & Results'!$B$5=3,'ABP Scenario InputAssumptions'!D78,IF('Scenario & Results'!$B$5=4,'ABP Scenario InputAssumptions'!D104,IF('Scenario & Results'!$B$5=5,'ABP Scenario InputAssumptions'!N26,IF('Scenario & Results'!$B$5=6,'ABP Scenario InputAssumptions'!N52,IF('Scenario & Results'!$B$5=7,'ABP Scenario InputAssumptions'!N78,IF('Scenario & Results'!$B$5=8,'ABP Scenario InputAssumptions'!N104,"Invalid"))))))))) -> 0.2 | Y26: =IF($V$3="","",IF('Scenario & Results'!$B$5=1,'ABP Scenario InputAssumptions'!E26,IF('Scenario & Results'!$B$5=2,'ABP Scenario InputAssumptions'!E52,IF('Scenario & Results'!$B$5=3,'ABP Scenario InputAssumptions'!E78,IF('Scenario & Results'!$B$5=4,'ABP Scenario InputAssumptions'!E104,IF('Scenario & Results'!$B$5=5,'ABP Scenario InputAssumptions'!O26,IF('Scenario & Results'!$B$5=6,'ABP Scenario InputAssumptions'!O52,IF('Scenario & Results'!$B$5=7,'ABP Scenario InputAssumptions'!O78,IF('Scenario & Results'!$B$5=8,'ABP Scenario InputAssumptions'!O104,"Invalid"))))))))) -> 0.2 | Z26: =IF($V$3="","",IF('Scenario & Results'!$B$5=1,'ABP Scenario InputAssumptions'!F26,IF('Scenario & Results'!$B$5=2,'ABP Scenario InputAssumptions'!F52,IF('Scenario & Results'!$B$5=3,'ABP Scenario InputAssumptions'!F78,IF('Scenario & Results'!$B$5=4,'ABP Scenario InputAssumptions'!F104,IF('Scenario & Results'!$B$5=5,'ABP Scenario InputAssumptions'!P26,IF('Scenario & Results'!$B$5=6,'ABP Scenario InputAssumptions'!P52,IF('Scenario & Results'!$B$5=7,'ABP Scenario InputAssumptions'!P78,IF('Scenario & Results'!$B$5=8,'ABP Scenario InputAssumptions'!P104,"Invalid"))))))))) -> 0.2 | AA26: =IF($V$3="","",IF('Scenario & Results'!$B$5=1,'ABP Scenario InputAssumptions'!G26,IF('Scenario & Results'!$B$5=2,'ABP Scenario InputAssumptions'!G52,IF('Scenario & Results'!$B$5=3,'ABP Scenario InputAssumptions'!G78,IF('Scenario & Results'!$B$5=4,'ABP Scenario InputAssumptions'!G104,IF('Scenario & Results'!$B$5=5,'ABP Scenario InputAssumptions'!Q26,IF('Scenario & Results'!$B$5=6,'ABP Scenario InputAssumptions'!Q52,IF('Scenario & Results'!$B$5=7,'ABP Scenario InputAssumptions'!Q78,IF('Scenario & Results'!$B$5=8,'ABP Scenario InputAssumptions'!Q104,"Invalid"))))))))) -> 0.2 | AB26: =IF($V$3="","",IF('Scenario & Results'!$B$5=1,'ABP Scenario InputAssumptions'!H26,IF('Scenario & Results'!$B$5=2,'ABP Scenario InputAssumptions'!H52,IF('Scenario & Results'!$B$5=3,'ABP Scenario InputAssumptions'!H78,IF('Scenario & Results'!$B$5=4,'ABP Scenario InputAssumptions'!H104,IF('Scenario & Results'!$B$5=5,'ABP Scenario InputAssumptions'!R26,IF('Scenario & Results'!$B$5=6,'ABP Scenario InputAssumptions'!R52,IF('Scenario & Results'!$B$5=7,'ABP Scenario InputAssumptions'!R78,IF('Scenario & Results'!$B$5=8,'ABP Scenario InputAssumptions'!R104,"Invalid"))))))))) -> 0.2 | AC26: =IF($V$3="","",IF('Scenario & Results'!$B$5=1,'ABP Scenario InputAssumptions'!I26,IF('Scenario & Results'!$B$5=2,'ABP Scenario InputAssumptions'!I52,IF('Scenario & Results'!$B$5=3,'ABP Scenario InputAssumptions'!I78,IF('Scenario & Results'!$B$5=4,'ABP Scenario InputAssumptions'!I104,IF('Scenario & Results'!$B$5=5,'ABP Scenario InputAssumptions'!S26,IF('Scenario & Results'!$B$5=6,'ABP Scenario InputAssumptions'!S52,IF('Scenario & Results'!$B$5=7,'ABP Scenario InputAssumptions'!S78,IF('Scenario & Results'!$B$5=8,'ABP Scenario InputAssumptions'!S104,"Invalid"))))))))) -> 0.2 | AD26: =IF($V$3="","",IF('Scenario & Results'!$B$5=1,'ABP Scenario InputAssumptions'!J26,IF('Scenario & Results'!$B$5=2,'ABP Scenario InputAssumptions'!J52,IF('Scenario & Results'!$B$5=3,'ABP Scenario InputAssumptions'!J78,IF('Scenario & Results'!$B$5=4,'ABP Scenario InputAssumptions'!J104,IF('Scenario & Results'!$B$5=5,'ABP Scenario InputAssumptions'!T26,IF('Scenario & Results'!$B$5=6,'ABP Scenario InputAssumptions'!T52,IF('Scenario & Results'!$B$5=7,'ABP Scenario InputAssumptions'!T78,IF('Scenario & Results'!$B$5=8,'ABP Scenario InputAssumptions'!T104,"Invalid"))))))))) -> 0.2
B27: % of Net Metering Value Allocated | C27: % | D27: =VLOOKUP($B3,'Program-specific Assumptions'!$C$1:$N$9,9,0) -> 0.8 | E27: =VLOOKUP($B3,'Program-specific Assumptions'!$C$1:$N$9,9,0) -> 0.8 | F27: =VLOOKUP($B3,'Program-specific Assumptions'!$C$1:$N$9,9,0) -> 0.8 | G27: =VLOOKUP($B3,'Program-specific Assumptions'!$C$1:$N$9,9,0) -> 0.8 | H27: =VLOOKUP($B3,'Program-specific Assumptions'!$C$1:$N$9,9,0) -> 0.8 | I27: =VLOOKUP($B3,'Program-specific Assumptions'!$C$1:$N$9,9,0) -> 0.8 | J27: =VLOOKUP($B3,'Program-specific Assumptions'!$C$1:$N$9,9,0) -> 0.8 | K27: Distributed Generation | L27: % of Net Metering Value Allocated | M27: % | N27: =VLOOKUP($B3,'Program-specific Assumptions'!$C$1:$N$9,9,0) -> 0.8 | O27: =VLOOKUP($B3,'Program-specific Assumptions'!$C$1:$N$9,9,0) -> 0.8 | P27: =VLOOKUP($B3,'Program-specific Assumptions'!$C$1:$N$9,9,0) -> 0.8 | Q27: =VLOOKUP($B3,'Program-specific Assumptions'!$C$1:$N$9,9,0) -> 0.8 | R27: =VLOOKUP($B3,'Program-specific Assumptions'!$C$1:$N$9,9,0) -> 0.8 | S27: =VLOOKUP($B3,'Program-specific Assumptions'!$C$1:$N$9,9,0) -> 0.8 | T27: =VLOOKUP($B3,'Program-specific Assumptions'!$C$1:$N$9,9,0) -> 0.8 | V27: % of Net Metering Value Allocated | W27: % | X27: =IF($V$3="","", IF('Scenario & Results'!$B$5=1,'ABP Scenario InputAssumptions'!D27,IF('Scenario & Results'!$B$5=2,'ABP Scenario InputAssumptions'!D53,IF('Scenario & Results'!$B$5=3,'ABP Scenario InputAssumptions'!D79,IF('Scenario & Results'!$B$5=4,'ABP Scenario InputAssumptions'!D105,IF('Scenario & Results'!$B$5=5,'ABP Scenario InputAssumptions'!N27,IF('Scenario & Results'!$B$5=6,'ABP Scenario InputAssumptions'!N53,IF('Scenario & Results'!$B$5=7,'ABP Scenario InputAssumptions'!N79,IF('Scenario & Results'!$B$5=8,'ABP Scenario InputAssumptions'!N105,"Invalid"))))))))) -> 0.8 | Y27: =IF($V$3="","", IF('Scenario & Results'!$B$5=1,'ABP Scenario InputAssumptions'!E27,IF('Scenario & Results'!$B$5=2,'ABP Scenario InputAssumptions'!E53,IF('Scenario & Results'!$B$5=3,'ABP Scenario InputAssumptions'!E79,IF('Scenario & Results'!$B$5=4,'ABP Scenario InputAssumptions'!E105,IF('Scenario & Results'!$B$5=5,'ABP Scenario InputAssumptions'!O27,IF('Scenario & Results'!$B$5=6,'ABP Scenario InputAssumptions'!O53,IF('Scenario & Results'!$B$5=7,'ABP Scenario InputAssumptions'!O79,IF('Scenario & Results'!$B$5=8,'ABP Scenario InputAssumptions'!O105,"Invalid"))))))))) -> 0.8 | Z27: =IF($V$3="","", IF('Scenario & Results'!$B$5=1,'ABP Scenario InputAssumptions'!F27,IF('Scenario & Results'!$B$5=2,'ABP Scenario InputAssumptions'!F53,IF('Scenario & Results'!$B$5=3,'ABP Scenario InputAssumptions'!F79,IF('Scenario & Results'!$B$5=4,'ABP Scenario InputAssumptions'!F105,IF('Scenario & Results'!$B$5=5,'ABP Scenario InputAssumptions'!P27,IF('Scenario & Results'!$B$5=6,'ABP Scenario InputAssumptions'!P53,IF('Scenario & Results'!$B$5=7,'ABP Scenario InputAssumptions'!P79,IF('Scenario & Results'!$B$5=8,'ABP Scenario InputAssumptions'!P105,"Invalid"))))))))) -> 0.8 | AA27: =IF($V$3="","", IF('Scenario & Results'!$B$5=1,'ABP Scenario InputAssumptions'!G27,IF('Scenario & Results'!$B$5=2,'ABP Scenario InputAssumptions'!G53,IF('Scenario & Results'!$B$5=3,'ABP Scenario InputAssumptions'!G79,IF('Scenario & Results'!$B$5=4,'ABP Scenario InputAssumptions'!G105,IF('Scenario & Results'!$B$5=5,'ABP Scenario InputAssumptions'!Q27,IF('Scenario & Results'!$B$5=6,'ABP Scenario InputAssumptions'!Q53,IF('Scenario & Results'!$B$5=7,'ABP Scenario InputAssumptions'!Q79,IF('Scenario & Results'!$B$5=8,'ABP Scenario InputAssumptions'!Q105,"Invalid"))))))))) -> 0.8 | AB27: =IF($V$3="","", IF('Scenario & Results'!$B$5=1,'ABP Scenario InputAssumptions'!H27,IF('Scenario & Results'!$B$5=2,'ABP Scenario InputAssumptions'!H53,IF('Scenario & Results'!$B$5=3,'ABP Scenario InputAssumptions'!H79,IF('Scenario & Results'!$B$5=4,'ABP Scenario InputAssumptions'!H105,IF('Scenario & Results'!$B$5=5,'ABP Scenario InputAssumptions'!R27,IF('Scenario & Results'!$B$5=6,'ABP Scenario InputAssumptions'!R53,IF('Scenario & Results'!$B$5=7,'ABP Scenario InputAssumptions'!R79,IF('Scenario & Results'!$B$5=8,'ABP Scenario InputAssumptions'!R105,"Invalid"))))))))) -> 0.8 | AC27: =IF($V$3="","", IF('Scenario & Results'!$B$5=1,'ABP Scenario InputAssumptions'!I27,IF('Scenario & Results'!$B$5=2,'ABP Scenario InputAssumptions'!I53,IF('Scenario & Results'!$B$5=3,'ABP Scenario InputAssumptions'!I79,IF('Scenario & Results'!$B$5=4,'ABP Scenario InputAssumptions'!I105,IF('Scenario & Results'!$B$5=5,'ABP Scenario InputAssumptions'!S27,IF('Scenario & Results'!$B$5=6,'ABP Scenario InputAssumptions'!S53,IF('Scenario & Results'!$B$5=7,'ABP Scenario InputAssumptions'!S79,IF('Scenario & Results'!$B$5=8,'ABP Scenario InputAssumptions'!S105,"Invalid"))))))))) -> 0.8 | AD27: =IF($V$3="","", IF('Scenario & Results'!$B$5=1,'ABP Scenario InputAssumptions'!J27,IF('Scenario & Results'!$B$5=2,'ABP Scenario InputAssumptions'!J53,IF('Scenario & Results'!$B$5=3,'ABP Scenario InputAssumptions'!J79,IF('Scenario & Results'!$B$5=4,'ABP Scenario InputAssumptions'!J105,IF('Scenario & Results'!$B$5=5,'ABP Scenario InputAssumptions'!T27,IF('Scenario & Results'!$B$5=6,'ABP Scenario InputAssumptions'!T53,IF('Scenario & Results'!$B$5=7,'ABP Scenario InputAssumptions'!T79,IF('Scenario & Results'!$B$5=8,'ABP Scenario InputAssumptions'!T105,"Invalid"))))))))) -> 0.8
P28: =(P8+P9+P10+P11)/P5 -> 2300.876721
B29: Community Solar | L29: Community Solar
B30: Generator Nameplate Capacity | C30: kW ac | D30: 10 | E30: 25 | F30: 100 | G30: 200 | H30: 500 | I30: 2000 | J30: 5000 | K30: =L$29 -> Community Solar | L30: Generator Nameplate Capacity | M30: kW ac | N30: 10 | O30: 25 | P30: 100 | Q30: 200 | R30: 500 | S30: 2000 | T30: 5000
B31: Generator Nameplate Capacity | C31: kW dc | E31: =E30/E32 -> 30.08357677 | F31: =F30/F32 -> 118.8177372 | G31: 239.9110343 | H31: 590.8833333 | I31: 2905.412481 | J31: =J30/J32 -> 7263.531202 | K31: =L$29 -> Community Solar | L31: Generator Nameplate Capacity | M31: kW dc | O31: =O30/O32 -> 29.77585505 | P31: =P30/P32 -> 123.0671089 | Q31: =Q30/Q32 -> 247.9143324 | R31: =R30/R32 -> 615.4555235 | S31: =S30/S32 -> 2854.193621 | T31: =T30/T32 -> 7135.484053
B32: AC to DC Conversion Factor | C32: % | E32: ='Group-specific Assumptions'!E$11 -> 0.831018206 | F32: ='Group-specific Assumptions'!F$11 -> 0.8416251842 | G32: ='Group-specific Assumptions'!G$11 -> 0.8336423566 | H32: ='Group-specific Assumptions'!H$11 -> 0.8461907314 | I32: ='Group-specific Assumptions'!I$11 -> 0.6883704167 | J32: ='Group-specific Assumptions'!J$11 -> 0.6883704167 | L32: AC to DC Conversion Factor | M32: % | O32: ='Group-specific Assumptions'!O$11 -> 0.8396064514 | P32: ='Group-specific Assumptions'!P$11 -> 0.8125647942 | Q32: ='Group-specific Assumptions'!Q$11 -> 0.806730285 | R32: ='Group-specific Assumptions'!R$11 -> 0.81240639 | S32: ='Group-specific Assumptions'!S$11 -> 0.7007233095 | T32: ='Group-specific Assumptions'!T$11 -> 0.7007233095
B33: Net Capacity Factor | C33: % | E33: ='Group-specific Assumptions'!E$12 -> 0.1450748585 | F33: ='Group-specific Assumptions'!F$12 -> 0.1495428723 | G33: ='Group-specific Assumptions'!G$12 -> 0.1496179837 | H33: ='Group-specific Assumptions'!H$12 -> 0.1569960094 | I33: ='Group-specific Assumptions'!I$12 -> 0.1705696593 | J33: ='Group-specific Assumptions'!J$12 -> 0.1705696593 | L33: Net Capacity Factor | M33: % | O33: ='Group-specific Assumptions'!O$12 -> 0.1312064847 | P33: ='Group-specific Assumptions'!P$12 -> 0.1424904402 | Q33: ='Group-specific Assumptions'!Q$12 -> 0.1402534344 | R33: ='Group-specific Assumptions'!R$12 -> 0.1429491239 | S33: ='Group-specific Assumptions'!S$12 -> 0.1691604043 | T33: ='Group-specific Assumptions'!T$12 -> 0.1691604043
B34: Generation Equipment | C34: $ | E34: ='NREL Capital Costs'!F$5*E$31 -> 13730.07325 | F34: ='NREL Capital Costs'!G$5*F$31 -> 54228.13412 | G34: ='NREL Capital Costs'!H$5*G$31 -> 105975.3491 | H34: ='NREL Capital Costs'!I$5*H$31 -> 256468.135 | I34: ='NREL Capital Costs'!J$5*I$31 -> 1251761.583 | J34: ='NREL Capital Costs'!K$5*J$31 -> 2558683.262 | L34: Generation Equipment | M34: $ | O34: ='NREL Capital Costs'!F$5*O$31 -> 13589.62979 | P34: ='NREL Capital Costs'!G$5*P$31 -> 56167.53727 | Q34: ='NREL Capital Costs'!H$5*Q$57 -> 109510.6275 | R34: ='NREL Capital Costs'!I$5*R$31 -> 267133.4955 | S34: ='NREL Capital Costs'!J$5*S$31 -> 1229694.561 | T34: ='NREL Capital Costs'!K$5*T$31 -> 2513576.814
B35: Balance of Plant | C35: $ | E35: =IF(E30=10,'NREL Capital Costs'!F$6,'NREL Capital Costs'!F$7)*E$31 -> 28301.8615 | F35: =IF(F30=10,'NREL Capital Costs'!G$6,'NREL Capital Costs'!G$7)*F$31 -> 111780.6958 | G35: =IF(G30=10,'NREL Capital Costs'!H$6,'NREL Capital Costs'!H$7)*G$31 -> 195182.54 | H35: =IF(H30=10,'NREL Capital Costs'!I$6,'NREL Capital Costs'!I$7)*H$31 -> 441294.1101 | I35: =IF(I30=10,'NREL Capital Costs'!J$6,'NREL Capital Costs'!J$7)*I$31 -> 2088925.458 | J35: =IF(J30=10,'NREL Capital Costs'!K$6,'NREL Capital Costs'!K$7)*J$31 -> 5238658.455 | L35: Balance of Plant | M35: $ | O35: =IF(E30=10,'NREL Capital Costs'!F$6,'NREL Capital Costs'!F$7)*O$31 -> 28012.36476 | P35: =IF(F30=10,'NREL Capital Costs'!G$6,'NREL Capital Costs'!G$7)*P$31 -> 115778.3962 | Q35: =IF(G30=10,'NREL Capital Costs'!H$6,'NREL Capital Costs'!H$7)*Q$31 -> 201693.7205 | R35: =IF(H30=10,'NREL Capital Costs'!I$6,'NREL Capital Costs'!I$7)*R$31 -> 459645.5547 | S35: =IF(I30=10,'NREL Capital Costs'!J$6,'NREL Capital Costs'!J$7)*S$31 -> 2052100.264 | T35: =IF(J30=10,'NREL Capital Costs'!K$6,'NREL Capital Costs'!K$7)*T$31 -> 5146307.33
B36: Interconnection | C36: $ | E36: 200 | F36: =F31*'Group-specific Assumptions'!$C$15 -> 13071.13927 | G36: =G31*'Group-specific Assumptions'!$C$15 -> 26392.61288 | H36: =H31*'Group-specific Assumptions'!$C$15 -> 65003.0755 | I36: =I31*'Group-specific Assumptions'!$C$15 -> 319624.427 | J36: =J31*'Group-specific Assumptions'!$C$15 -> 799061.0675 | L36: Interconnection | M36: $ | O36: 200 | P36: =P31*'Group-specific Assumptions'!$M$15 -> 26623.10766 | Q36: =Q31*'Group-specific Assumptions'!$M$15 -> 53631.30752 | R36: =R31*'Group-specific Assumptions'!$M$15 -> 133141.4934 | S36: =S31*'Group-specific Assumptions'!$M$15 -> 617447.706 | T36: =T31*'Group-specific Assumptions'!$M$15 -> 1543619.265
B37: Development Costs & Fee | C37: $ | E37: ='NREL Capital Costs'!F$9*E$31 -> 23335.50091 | F37: ='NREL Capital Costs'!G$9*F$31 -> 92165.61702 | G37: ='NREL Capital Costs'!H$9*G$31 -> 170024.8985 | H37: ='NREL Capital Costs'!I$9*H$31 -> 397328.1035 | I37: ='NREL Capital Costs'!J$9*I$31 -> 1911835.387 | J37: ='NREL Capital Costs'!K$9*J$31 -> 3967726.453 | L37: Development Costs & Fee | M37: $ | O37: ='NREL Capital Costs'!F$9*O$31 -> 23096.80454 | P37: ='NREL Capital Costs'!G$9*P$31 -> 95461.80803 | Q37: ='NREL Capital Costs'!H$9*Q$31 -> 175696.8341 | R37: ='NREL Capital Costs'!I$9*R$31 -> 413851.1989 | S37: ='NREL Capital Costs'!J$9*S$31 -> 1878132.074 | T37: ='NREL Capital Costs'!K$9*T$31 -> 3897780.3
B38: Project Management Yr 1 | C38: $/yr | E38: =VLOOKUP($B29,'Program-specific Assumptions'!$C$1:$N$9,3,0)*E$31 -> 210.5850374 | F38: =VLOOKUP($B29,'Program-specific Assumptions'!$C$1:$N$9,3,0)*F$31 -> 831.7241607 | G38: =VLOOKUP($B29,'Program-specific Assumptions'!$C$1:$N$9,3,0)*G$31 -> 1679.37724 | H38: =VLOOKUP($B29,'Program-specific Assumptions'!$C$1:$N$9,3,0)*H$31 -> 4136.183333 | I38: =VLOOKUP($B29,'Program-specific Assumptions'!$C$1:$N$9,3,0)*I$31 -> 20337.88736 | J38: =VLOOKUP($B29,'Program-specific Assumptions'!$C$1:$N$9,3,0)*J$31 -> 50844.71841 | L38: Project Management Yr 1 | M38: $/yr | O38: =VLOOKUP($B29,'Program-specific Assumptions'!$C$1:$N$9,3,0)*O$31 -> 208.4309854 | P38: =VLOOKUP($B29,'Program-specific Assumptions'!$C$1:$N$9,3,0)*P$31 -> 861.4697621 | Q38: =VLOOKUP($B29,'Program-specific Assumptions'!$C$1:$N$9,3,0)*Q$31 -> 1735.400326 | R38: =VLOOKUP($B29,'Program-specific Assumptions'!$C$1:$N$9,3,0)*R$31 -> 4308.188664 | S38: =VLOOKUP($B29,'Program-specific Assumptions'!$C$1:$N$9,3,0)*S$31 -> 19979.35535 | T38: =VLOOKUP($B29,'Program-specific Assumptions'!$C$1:$N$9,3,0)*T$31 -> 49948.38837
B39: Property Tax or PILOT, Yr 1 | C39: $/yr | E39: =VLOOKUP($B29,'Program-specific Assumptions'!$C$1:$N$9,11,0)*E30 -> 150 | F39: =VLOOKUP($B29,'Program-specific Assumptions'!$C$1:$N$9,11,0)*F30 -> 600 | G39: =VLOOKUP($B29,'Program-specific Assumptions'!$C$1:$N$9,11,0)*G30 -> 1200 | H39: =VLOOKUP($B29,'Program-specific Assumptions'!$C$1:$N$9,11,0)*H30 -> 3000 | I39: =VLOOKUP($B29,'Program-specific Assumptions'!$C$1:$N$9,11,0)*I30 -> 12000 | J39: =VLOOKUP($B29,'Program-specific Assumptions'!$C$1:$N$9,11,0)*J30 -> 30000 | L39: Property Tax or PILOT, Yr 1 | M39: $/yr | O39: =VLOOKUP($B29,'Program-specific Assumptions'!$C$1:$N$9,11,0)*O30 -> 150 | P39: =VLOOKUP($B29,'Program-specific Assumptions'!$C$1:$N$9,11,0)*P30 -> 600 | Q39: =VLOOKUP($B29,'Program-specific Assumptions'!$C$1:$N$9,11,0)*Q30 -> 1200 | R39: =VLOOKUP($B29,'Program-specific Assumptions'!$C$1:$N$9,11,0)*R30 -> 3000 | S39: =VLOOKUP($B29,'Program-specific Assumptions'!$C$1:$N$9,11,0)*S30 -> 12000 | T39: =VLOOKUP($B29,'Program-specific Assumptions'!$C$1:$N$9,11,0)*T30 -> 30000
B40: Land Lease | C40: $/yr | E40: =VLOOKUP($B29,'Program-specific Assumptions'!$C$1:$N$9,2,0)*E$31 -> 150.4178839 | F40: =VLOOKUP($B29,'Program-specific Assumptions'!$C$1:$N$9,2,0)*F$31 -> 594.0886862 | G40: =VLOOKUP($B29,'Program-specific Assumptions'!$C$1:$N$9,2,0)*G$31 -> 1199.555171 | H40: =VLOOKUP($B29,'Program-specific Assumptions'!$C$1:$N$9,2,0)*H$31 -> 2954.416667 | I40: =VLOOKUP($B29,'Program-specific Assumptions'!$C$1:$N$9,2,0)*I$31 -> 14527.0624 | J40: =VLOOKUP($B29,'Program-specific Assumptions'!$C$1:$N$9,2,0)*J$31 -> 36317.65601 | L40: Land Lease | M40: $/yr | O40: =VLOOKUP($B29,'Program-specific Assumptions'!$C$1:$N$9,2,0)*O$31 -> 148.8792753 | P40: =VLOOKUP($B29,'Program-specific Assumptions'!$C$1:$N$9,2,0)*P$31 -> 615.3355444 | Q40: =VLOOKUP($B29,'Program-specific Assumptions'!$C$1:$N$9,2,0)*Q$31 -> 1239.571662 | R40: =VLOOKUP($B29,'Program-specific Assumptions'!$C$1:$N$9,2,0)*R$31 -> 3077.277617 | S40: =VLOOKUP($B29,'Program-specific Assumptions'!$C$1:$N$9,2,0)*S$31 -> 14270.96811 | T40: =VLOOKUP($B29,'Program-specific Assumptions'!$C$1:$N$9,2,0)*T$31 -> 35677.42026
B41: Construction Period | C41: months | E41: ='Size-specific Assumptions'!E$6 -> 12 | F41: ='Size-specific Assumptions'!F$6 -> 12 | G41: ='Size-specific Assumptions'!G$6 -> 12 | H41: ='Size-specific Assumptions'!H$6 -> 12 | I41: ='Size-specific Assumptions'!I$6 -> 18 | J41: ='Size-specific Assumptions'!J$6 -> 18 | L41: Construction Period | M41: months | O41: ='Size-specific Assumptions'!E$6 -> 12 | P41: ='Size-specific Assumptions'!F$6 -> 12 | Q41: ='Size-specific Assumptions'!G$6 -> 12 | R41: ='Size-specific Assumptions'!H$6 -> 12 | S41: ='Size-specific Assumptions'!I$6 -> 18 | T41: ='Size-specific Assumptions'!J$6 -> 18
B42: % Debt (% of hard costs) (mortgage-style amort.) | C42: % | E42: =VLOOKUP($B29,'Program-specific Assumptions'!$C$1:$N$9,4,0) -> 0.55 | F42: =VLOOKUP($B29,'Program-specific Assumptions'!$C$1:$N$9,4,0) -> 0.55 | G42: =VLOOKUP($B29,'Program-specific Assumptions'!$C$1:$N$9,4,0) -> 0.55 | H42: =VLOOKUP($B29,'Program-specific Assumptions'!$C$1:$N$9,4,0) -> 0.55 | I42: =VLOOKUP($B29,'Program-specific Assumptions'!$C$1:$N$9,4,0) -> 0.55 | J42: =VLOOKUP($B29,'Program-specific Assumptions'!$C$1:$N$9,4,0) -> 0.55 | L42: % Debt (% of hard costs) (mortgage-style amort.) | M42: % | O42: =VLOOKUP($B29,'Program-specific Assumptions'!$C$1:$N$9,4,0) -> 0.55 | P42: =VLOOKUP($B29,'Program-specific Assumptions'!$C$1:$N$9,4,0) -> 0.55 | Q42: =VLOOKUP($B29,'Program-specific Assumptions'!$C$1:$N$9,4,0) -> 0.55 | R42: =VLOOKUP($B29,'Program-specific Assumptions'!$C$1:$N$9,4,0) -> 0.55 | S42: =VLOOKUP($B29,'Program-specific Assumptions'!$C$1:$N$9,4,0) -> 0.55 | T42: =VLOOKUP($B29,'Program-specific Assumptions'!$C$1:$N$9,4,0) -> 0.55
B43: Debt Term | C43: years | E43: =VLOOKUP($B29,'Program-specific Assumptions'!$C$1:$N$9,5,0) -> 20 | F43: =VLOOKUP($B29,'Program-specific Assumptions'!$C$1:$N$9,5,0) -> 20 | G43: =VLOOKUP($B29,'Program-specific Assumptions'!$C$1:$N$9,5,0) -> 20 | H43: =VLOOKUP($B29,'Program-specific Assumptions'!$C$1:$N$9,5,0) -> 20 | I43: =VLOOKUP($B29,'Program-specific Assumptions'!$C$1:$N$9,5,0) -> 20 | J43: =VLOOKUP($B29,'Program-specific Assumptions'!$C$1:$N$9,5,0) -> 20 | L43: Debt Term | M43: years | O43: =VLOOKUP($B29,'Program-specific Assumptions'!$C$1:$N$9,5,0) -> 20 | P43: =VLOOKUP($B29,'Program-specific Assumptions'!$C$1:$N$9,5,0) -> 20 | Q43: =VLOOKUP($B29,'Program-specific Assumptions'!$C$1:$N$9,5,0) -> 20 | R43: =VLOOKUP($B29,'Program-specific Assumptions'!$C$1:$N$9,5,0) -> 20 | S43: =VLOOKUP($B29,'Program-specific Assumptions'!$C$1:$N$9,5,0) -> 20 | T43: =VLOOKUP($B29,'Program-specific Assumptions'!$C$1:$N$9,5,0) -> 20
B44: Target After-Tax Equity IRR(%) | C44: % | E44: =VLOOKUP($B29,'Program-specific Assumptions'!$C$1:$N$9,7,0) -> 0.1 | F44: =VLOOKUP($B29,'Program-specific Assumptions'!$C$1:$N$9,7,0) -> 0.1 | G44: =VLOOKUP($B29,'Program-specific Assumptions'!$C$1:$N$9,7,0) -> 0.1 | H44: =VLOOKUP($B29,'Program-specific Assumptions'!$C$1:$N$9,7,0) -> 0.1 | I44: =VLOOKUP($B29,'Program-specific Assumptions'!$C$1:$N$9,7,0) -> 0.1 | J44: =VLOOKUP($B29,'Program-specific Assumptions'!$C$1:$N$9,7,0) -> 0.1 | L44: Target After-Tax Equity IRR(%) | M44: % | O44: =VLOOKUP($B29,'Program-specific Assumptions'!$C$1:$N$9,7,0) -> 0.1 | P44: =VLOOKUP($B29,'Program-specific Assumptions'!$C$1:$N$9,7,0) -> 0.1 | Q44: =VLOOKUP($B29,'Program-specific Assumptions'!$C$1:$N$9,7,0) -> 0.1 | R44: =VLOOKUP($B29,'Program-specific Assumptions'!$C$1:$N$9,7,0) -> 0.1 | S44: =VLOOKUP($B29,'Program-specific Assumptions'!$C$1:$N$9,7,0) -> 0.1 | T44: =VLOOKUP($B29,'Program-specific Assumptions'!$C$1:$N$9,7,0) -> 0.1
B45: State Income Tax Rate | C45: % | E45: ='Size-specific Assumptions'!E$3 -> 0.095 | F45: ='Size-specific Assumptions'!F$3 -> 0.095 | G45: ='Size-specific Assumptions'!G$3 -> 0.095 | H45: ='Size-specific Assumptions'!H$3 -> 0.095 | I45: ='Size-specific Assumptions'!I$3 -> 0.095 | J45: ='Size-specific Assumptions'!J$3 -> 0.095 | L45: State Income Tax Rate | M45: % | O45: ='Size-specific Assumptions'!E$3 -> 0.095 | P45: ='Size-specific Assumptions'!F$3 -> 0.095 | Q45: ='Size-specific Assumptions'!G$3 -> 0.095 | R45: ='Size-specific Assumptions'!H$3 -> 0.095 | S45: ='Size-specific Assumptions'!I$3 -> 0.095 | T45: ='Size-specific Assumptions'!J$3 -> 0.095
B46: Payment Duration for Cost-Based Tariff | C46: years | E46: =VLOOKUP($B29,'Program-specific Assumptions'!$C$1:$N$9,6,0) -> 20 | F46: =VLOOKUP($B29,'Program-specific Assumptions'!$C$1:$N$9,6,0) -> 20 | G46: =VLOOKUP($B29,'Program-specific Assumptions'!$C$1:$N$9,6,0) -> 20 | H46: =VLOOKUP($B29,'Program-specific Assumptions'!$C$1:$N$9,6,0) -> 20 | I46: =VLOOKUP($B29,'Program-specific Assumptions'!$C$1:$N$9,6,0) -> 20 | J46: =VLOOKUP($B29,'Program-specific Assumptions'!$C$1:$N$9,6,0) -> 20 | L46: Payment Duration for Cost-Based Tariff | M46: years | O46: =VLOOKUP($B29,'Program-specific Assumptions'!$C$1:$N$9,6,0) -> 20 | P46: =VLOOKUP($B29,'Program-specific Assumptions'!$C$1:$N$9,6,0) -> 20 | Q46: =VLOOKUP($B29,'Program-specific Assumptions'!$C$1:$N$9,6,0) -> 20 | R46: =VLOOKUP($B29,'Program-specific Assumptions'!$C$1:$N$9,6,0) -> 20 | S46: =VLOOKUP($B29,'Program-specific Assumptions'!$C$1:$N$9,6,0) -> 20 | T46: =VLOOKUP($B29,'Program-specific Assumptions'!$C$1:$N$9,6,0) -> 20
B47: Post-tariff market value, Yr 1 | C47: ¢/kWh | E47: ='Net Metering Credit'!$C$28*100*E53 -> 3.330590469 | F47: ='Net Metering Credit'!$C$28*100*F53 -> 3.330590469 | G47: ='Net Metering Credit'!$C$28*100*G53 -> 3.330590469 | H47: ='Net Metering Credit'!$C$28*100*H53 -> 3.330590469 | I47: ='Net Metering Credit'!$C$28*100*I53 -> 3.330590469 | J47: ='Net Metering Credit'!$C$28*100*J53 -> 3.330590469 | L47: Post-tariff market value, Yr 1 | M47: ¢/kWh | O47: ='Net Metering Credit'!$C$4*100*O53 -> 3.140068054 | P47: ='Net Metering Credit'!$C$4*100*P53 -> 3.140068054 | Q47: ='Net Metering Credit'!$C$4*100*Q53 -> 3.140068054 | R47: ='Net Metering Credit'!$C$4*100*R53 -> 3.140068054 | S47: ='Net Metering Credit'!$C$4*100*S53 -> 3.140068054 | T47: ='Net Metering Credit'!$C$4*100*T53 -> 3.140068054
B48: Additional State Rebates/Grants | C48: $/Watt | E48: ='Size-specific Assumptions'!E$5 -> 0.25 | F48: ='Size-specific Assumptions'!F$5 -> 0.25 | G48: ='Size-specific Assumptions'!G$5 -> 0.25 | H48: ='Size-specific Assumptions'!H$5 -> 0.25 | I48: ='Size-specific Assumptions'!I$5 -> 0.25 | J48: ='Size-specific Assumptions'!J$5 -> 0.25 | L48: Additional State Rebates/Grants | M48: $/Watt | O48: ='Size-specific Assumptions'!E$5 -> 0.25 | P48: ='Size-specific Assumptions'!F$5 -> 0.25 | Q48: ='Size-specific Assumptions'!G$5 -> 0.25 | R48: ='Size-specific Assumptions'!H$5 -> 0.25 | S48: ='Size-specific Assumptions'!I$5 -> 0.25 | T48: ='Size-specific Assumptions'!J$5 -> 0.25
B49: 1st Replacement Cost ($ in year replaced) | C49: $/Watt dc | E49: ='Size-specific Assumptions'!E$4 -> 0.13 | F49: ='Size-specific Assumptions'!F$4 -> 0.13 | G49: ='Size-specific Assumptions'!G$4 -> 0.13 | H49: ='Size-specific Assumptions'!H$4 -> 0.13 | I49: ='Size-specific Assumptions'!I$4 -> 0.13 | J49: ='Size-specific Assumptions'!J$4 -> 0.13 | L49: 1st Replacement Cost ($ in year replaced) | M49: $/Watt dc | O49: ='Size-specific Assumptions'!E$4 -> 0.13 | P49: ='Size-specific Assumptions'!F$4 -> 0.13 | Q49: ='Size-specific Assumptions'!G$4 -> 0.13 | R49: ='Size-specific Assumptions'!H$4 -> 0.13 | S49: ='Size-specific Assumptions'!I$4 -> 0.13 | T49: ='Size-specific Assumptions'!J$4 -> 0.13
B50: Taxable Entity | C50: Y/N | E50: =VLOOKUP($B29,'Program-specific Assumptions'!$C$1:$N$9,12,0) -> Yes | F50: =VLOOKUP($B29,'Program-specific Assumptions'!$C$1:$N$9,12,0) -> Yes | G50: =VLOOKUP($B29,'Program-specific Assumptions'!$C$1:$N$9,12,0) -> Yes | H50: =VLOOKUP($B29,'Program-specific Assumptions'!$C$1:$N$9,12,0) -> Yes | I50: =VLOOKUP($B29,'Program-specific Assumptions'!$C$1:$N$9,12,0) -> Yes | J50: =VLOOKUP($B29,'Program-specific Assumptions'!$C$1:$N$9,12,0) -> Yes | L50: Taxable Entity | M50: Y/N | O50: =VLOOKUP($B29,'Program-specific Assumptions'!$C$1:$N$9,12,0) -> Yes | P50: =VLOOKUP($B29,'Program-specific Assumptions'!$C$1:$N$9,12,0) -> Yes | Q50: =VLOOKUP($B29,'Program-specific Assumptions'!$C$1:$N$9,12,0) -> Yes | R50: =VLOOKUP($B29,'Program-specific Assumptions'!$C$1:$N$9,12,0) -> Yes | S50: =VLOOKUP($B29,'Program-specific Assumptions'!$C$1:$N$9,12,0) -> Yes | T50: =VLOOKUP($B29,'Program-specific Assumptions'!$C$1:$N$9,12,0) -> Yes
B51: Net Metering Credit | C51: $ | E51: =NPV('CREST Inputs'!$G$63,'Net Metering Credit'!$C$52:$AA$52)*E53 -> 2736951.339 | F51: =NPV('CREST Inputs'!$G$63,'Net Metering Credit'!$C$52:$AA$52)*F53 -> 2736951.339 | G51: =NPV('CREST Inputs'!$G$63,'Net Metering Credit'!$C$52:$AA$52)*G53 -> 2736951.339 | H51: =NPV('CREST Inputs'!$G$63,'Net Metering Credit'!$C$52:$AA$52)*H53 -> 2736951.339 | I51: =NPV('CREST Inputs'!$G$63,'Net Metering Credit'!$C$52:$AA$52)*I53 -> 2736951.339 | J51: =NPV('CREST Inputs'!$G$63,'Net Metering Credit'!$C$52:$AA$52)*J53 -> 2736951.339 | L51: Net Metering Credit | M51: $ | O51: =NPV('CREST Inputs'!$G$63,'Net Metering Credit'!$C$50:$AA$50)*O53 -> 3323873.927 | P51: =NPV('CREST Inputs'!$G$63,'Net Metering Credit'!$C$50:$AA$50)*P53 -> 3323873.927 | Q51: =NPV('CREST Inputs'!$G$63,'Net Metering Credit'!$C$50:$AA$50)*Q53 -> 3323873.927 | R51: =NPV('CREST Inputs'!$G$63,'Net Metering Credit'!$C$50:$AA$50)*R53 -> 3323873.927 | S51: =NPV('CREST Inputs'!$G$63,'Net Metering Credit'!$C$50:$AA$50)*S53 -> 3323873.927 | T51: =NPV('CREST Inputs'!$G$63,'Net Metering Credit'!$C$50:$AA$50)*T53 -> 3323873.927
B52: Subscriber Savings | C52: % | E52: =VLOOKUP($B29,'Program-specific Assumptions'!$C$1:$N$9,8,0) -> 0.2 | F52: =VLOOKUP($B29,'Program-specific Assumptions'!$C$1:$N$9,8,0) -> 0.2 | G52: =VLOOKUP($B29,'Program-specific Assumptions'!$C$1:$N$9,8,0) -> 0.2 | H52: =VLOOKUP($B29,'Program-specific Assumptions'!$C$1:$N$9,8,0) -> 0.2 | I52: =VLOOKUP($B29,'Program-specific Assumptions'!$C$1:$N$9,8,0) -> 0.2 | J52: =VLOOKUP($B29,'Program-specific Assumptions'!$C$1:$N$9,8,0) -> 0.2 | L52: Subscriber Savings | M52: % | O52: =VLOOKUP($B29,'Program-specific Assumptions'!$C$1:$N$9,8,0) -> 0.2 | P52: =VLOOKUP($B29,'Program-specific Assumptions'!$C$1:$N$9,8,0) -> 0.2 | Q52: =VLOOKUP($B29,'Program-specific Assumptions'!$C$1:$N$9,8,0) -> 0.2 | R52: =VLOOKUP($B29,'Program-specific Assumptions'!$C$1:$N$9,8,0) -> 0.2 | S52: =VLOOKUP($B29,'Program-specific Assumptions'!$C$1:$N$9,8,0) -> 0.2 | T52: =VLOOKUP($B29,'Program-specific Assumptions'!$C$1:$N$9,8,0) -> 0.2
B53: % of Net Metering Value Allocated | C53: % | E53: =VLOOKUP($B29,'Program-specific Assumptions'!$C$1:$N$9,9,0) -> 0.8 | F53: =VLOOKUP($B29,'Program-specific Assumptions'!$C$1:$N$9,9,0) -> 0.8 | G53: =VLOOKUP($B29,'Program-specific Assumptions'!$C$1:$N$9,9,0) -> 0.8 | H53: =VLOOKUP($B29,'Program-specific Assumptions'!$C$1:$N$9,9,0) -> 0.8 | I53: =VLOOKUP($B29,'Program-specific Assumptions'!$C$1:$N$9,9,0) -> 0.8 | J53: =VLOOKUP($B29,'Program-specific Assumptions'!$C$1:$N$9,9,0) -> 0.8 | L53: % of Net Metering Value Allocated | M53: % | O53: =VLOOKUP($B29,'Program-specific Assumptions'!$C$1:$N$9,9,0) -> 0.8 | P53: =VLOOKUP($B29,'Program-specific Assumptions'!$C$1:$N$9,9,0) -> 0.8 | Q53: =VLOOKUP($B29,'Program-specific Assumptions'!$C$1:$N$9,9,0) -> 0.8 | R53: =VLOOKUP($B29,'Program-specific Assumptions'!$C$1:$N$9,9,0) -> 0.8 | S53: =VLOOKUP($B29,'Program-specific Assumptions'!$C$1:$N$9,9,0) -> 0.8 | T53: =VLOOKUP($B29,'Program-specific Assumptions'!$C$1:$N$9,9,0) -> 0.8
B55: Community-driven Solar | L55: Community-driven Solar
B56: Generator Nameplate Capacity | C56: kW ac | D56: 10 | E56: 25 | F56: 100 | G56: 200 | H56: 500 | I56: 2000 | J56: 5000 | K56: =L$55 -> Community-driven Solar | L56: Generator Nameplate Capacity | M56: kW ac | N56: 10 | O56: 25 | P56: 100 | Q56: 200 | R56: 500 | S56: 2000 | T56: 5000
B57: Generator Nameplate Capacity | C57: kW dc | E57: =E56/E58 -> 30.08357677 | F57: =F56/F58 -> 118.8177372 | G57: =G56/G58 -> 239.9110343 | H57: =H56/H58 -> 590.8833333 | I57: =I56/I58 -> 2905.412481 | J57: 7263.531202 | K57: =L$55 -> Community-driven Solar | L57: Generator Nameplate Capacity | M57: kW dc | O57: =O56/O58 -> 29.77585505 | P57: =P56/P58 -> 123.0671089 | Q57: =Q56/Q58 -> 247.9143324 | R57: =R56/R58 -> 615.4555235 | S57: =S56/S58 -> 2854.193621 | T57: =T56/T58 -> 7135.484053
B58: AC to DC Conversion Factor | C58: % | E58: ='Group-specific Assumptions'!E$11 -> 0.831018206 | F58: ='Group-specific Assumptions'!F$11 -> 0.8416251842 | G58: ='Group-specific Assumptions'!G$11 -> 0.8336423566 | H58: ='Group-specific Assumptions'!H$11 -> 0.8461907314 | I58: ='Group-specific Assumptions'!I$11 -> 0.6883704167 | J58: ='Group-specific Assumptions'!J$11 -> 0.6883704167 | K58: Community-driven Solar | L58: AC to DC Conversion Factor | M58: % | O58: ='Group-specific Assumptions'!O$11 -> 0.8396064514 | P58: ='Group-specific Assumptions'!P$11 -> 0.8125647942 | Q58: ='Group-specific Assumptions'!Q$11 -> 0.806730285 | R58: ='Group-specific Assumptions'!R$11 -> 0.81240639 | S58: ='Group-specific Assumptions'!S$11 -> 0.7007233095 | T58: ='Group-specific Assumptions'!T$11 -> 0.7007233095
B59: Capacity Factor | C59: % | E59: ='Group-specific Assumptions'!E$12 -> 0.1450748585 | F59: ='Group-specific Assumptions'!F$12 -> 0.1495428723 | G59: ='Group-specific Assumptions'!G$12 -> 0.1496179837 | H59: ='Group-specific Assumptions'!H$12 -> 0.1569960094 | I59: ='Group-specific Assumptions'!I$12 -> 0.1705696593 | J59: ='Group-specific Assumptions'!J$12 -> 0.1705696593 | K59: Community-driven Solar | L59: Net Capacity Factor | M59: % | O59: ='Group-specific Assumptions'!O$12 -> 0.1312064847 | P59: ='Group-specific Assumptions'!P$12 -> 0.1424904402 | Q59: ='Group-specific Assumptions'!Q$12 -> 0.1402534344 | R59: ='Group-specific Assumptions'!R$12 -> 0.1429491239 | S59: ='Group-specific Assumptions'!S$12 -> 0.1691604043 | T59: ='Group-specific Assumptions'!T$12 -> 0.1691604043
B60: Generation Equipment | C60: $ | E60: ='NREL Capital Costs'!F$5*E$57 -> 13730.07325 | F60: ='NREL Capital Costs'!G$5*F$57 -> 54228.13412 | G60: ='NREL Capital Costs'!H$5*G$57 -> 105975.3491 | H60: ='NREL Capital Costs'!I$5*H$57 -> 256468.135 | I60: ='NREL Capital Costs'!J$5*I$57 -> 1251761.583 | J60: ='NREL Capital Costs'!K$5*J$57 -> 2558683.262 | K60: =L$3 -> Distributed Generation | L60: Generation Equipment | M60: $ | O60: ='NREL Capital Costs'!F$5*O$57 -> 13589.62979 | P60: ='NREL Capital Costs'!G$5*P$57 -> 56167.53727 | Q60: ='NREL Capital Costs'!H$5*Q$57 -> 109510.6275 | R60: ='NREL Capital Costs'!I$5*R$57 -> 267133.4955 | S60: ='NREL Capital Costs'!J$5*S$57 -> 1229694.561 | T60: ='NREL Capital Costs'!K$5*T$57 -> 2513576.814
B61: Balance of Plant | C61: $ | E61: =IF(E56=10,'NREL Capital Costs'!F$6,'NREL Capital Costs'!F$7)*E$57 -> 28301.8615 | F61: =IF(F56=10,'NREL Capital Costs'!G$6,'NREL Capital Costs'!G$7)*F$57 -> 111780.6958 | G61: =IF(G56=10,'NREL Capital Costs'!H$6,'NREL Capital Costs'!H$7)*G$57 -> 195182.54 | H61: =IF(H56=10,'NREL Capital Costs'!I$6,'NREL Capital Costs'!I$7)*H$57 -> 441294.1101 | I61: =IF(I56=10,'NREL Capital Costs'!J$6,'NREL Capital Costs'!J$7)*I$57 -> 2088925.458 | J61: =IF(J56=10,'NREL Capital Costs'!K$6,'NREL Capital Costs'!K$7)*J$57 -> 5238658.455 | K61: Distributed Generation | L61: Balance of Plant | M61: $ | O61: =IF(E56=10,'NREL Capital Costs'!F$6,'NREL Capital Costs'!F$7)*O$57 -> 28012.36476 | P61: =IF(F56=10,'NREL Capital Costs'!G$6,'NREL Capital Costs'!G$7)*P$57 -> 115778.3962 | Q61: =IF(G56=10,'NREL Capital Costs'!H$6,'NREL Capital Costs'!H$7)*Q$57 -> 201693.7205 | R61: =IF(H56=10,'NREL Capital Costs'!I$6,'NREL Capital Costs'!I$7)*R$57 -> 459645.5547 | S61: =IF(I56=10,'NREL Capital Costs'!J$6,'NREL Capital Costs'!J$7)*S$57 -> 2052100.264 | T61: =IF(J56=10,'NREL Capital Costs'!K$6,'NREL Capital Costs'!K$7)*T$57 -> 5146307.33
B62: Interconnection | C62: $ | E62: 200 | F62: =F57*'Group-specific Assumptions'!$C$15 -> 13071.13927 | G62: =G57*'Group-specific Assumptions'!$C$15 -> 26392.61288 | H62: =H57*'Group-specific Assumptions'!$C$15 -> 65003.0755 | I62: =I57*'Group-specific Assumptions'!$C$15 -> 319624.427 | J62: =J57*'Group-specific Assumptions'!$C$15 -> 799061.0675 | K62: =L$29 -> Community Solar | L62: Interconnection | M62: $ | O62: 200 | P62: =P57*'Group-specific Assumptions'!$M$15 -> 26623.10766 | Q62: =Q57*'Group-specific Assumptions'!$M$15 -> 53631.30752 | R62: =R57*'Group-specific Assumptions'!$M$15 -> 133141.4934 | S62: =S57*'Group-specific Assumptions'!$M$15 -> 617447.706 | T62: =T57*'Group-specific Assumptions'!$M$15 -> 1543619.265
B63: Development Costs & Fee | C63: $ | E63: ='NREL Capital Costs'!F$9*E$57 -> 23335.50091 | F63: ='NREL Capital Costs'!G$9*F$57 -> 92165.61702 | G63: ='NREL Capital Costs'!H$9*G$57 -> 170024.8985 | H63: ='NREL Capital Costs'!I$9*H$57 -> 397328.1035 | I63: ='NREL Capital Costs'!J$9*I$57 -> 1911835.387 | J63: ='NREL Capital Costs'!K$9*J$57 -> 3967726.453 | K63: =L$3 -> Distributed Generation | L63: Development Costs & Fee | M63: $ | O63: ='NREL Capital Costs'!F$9*O$57 -> 23096.80454 | P63: ='NREL Capital Costs'!G$9*P$57 -> 95461.80803 | Q63: ='NREL Capital Costs'!H$9*Q$57 -> 175696.8341 | R63: ='NREL Capital Costs'!I$9*R$57 -> 413851.1989 | S63: ='NREL Capital Costs'!J$9*S$57 -> 1878132.074 | T63: ='NREL Capital Costs'!K$9*T$57 -> 3897780.3
B64: Project Management Yr 1 | C64: $/yr | E64: =VLOOKUP($B55,'Program-specific Assumptions'!$C$1:$N$9,3,0)*E$57 -> 210.5850374 | F64: =VLOOKUP($B55,'Program-specific Assumptions'!$C$1:$N$9,3,0)*F$57 -> 831.7241607 | G64: =VLOOKUP($B55,'Program-specific Assumptions'!$C$1:$N$9,3,0)*G$57 -> 1679.37724 | H64: =VLOOKUP($B55,'Program-specific Assumptions'!$C$1:$N$9,3,0)*H$57 -> 4136.183333 | I64: =VLOOKUP($B55,'Program-specific Assumptions'!$C$1:$N$9,3,0)*I$57 -> 20337.88736 | J64: =VLOOKUP($B55,'Program-specific Assumptions'!$C$1:$N$9,3,0)*J$57 -> 50844.71841 | K64: Community-driven Solar | L64: Project Management Yr 1 | M64: $/yr | O64: =VLOOKUP($B55,'Program-specific Assumptions'!$C$1:$N$9,3,0)*O$57 -> 208.4309854 | P64: =VLOOKUP($B55,'Program-specific Assumptions'!$C$1:$N$9,3,0)*P$57 -> 861.4697621 | Q64: =VLOOKUP($B55,'Program-specific Assumptions'!$C$1:$N$9,3,0)*Q$57 -> 1735.400326 | R64: =VLOOKUP($B55,'Program-specific Assumptions'!$C$1:$N$9,3,0)*R$57 -> 4308.188664 | S64: =VLOOKUP($B55,'Program-specific Assumptions'!$C$1:$N$9,3,0)*S$57 -> 19979.35535 | T64: =VLOOKUP($B55,'Program-specific Assumptions'!$C$1:$N$9,3,0)*T$57 -> 49948.38837
B65: Property Tax or PILOT, Yr 1 | C65: $/yr | E65: =VLOOKUP($B55,'Program-specific Assumptions'!$C$1:$N$9,11,0)*E56 -> 150 | F65: =VLOOKUP($B55,'Program-specific Assumptions'!$C$1:$N$9,11,0)*F56 -> 600 | G65: =VLOOKUP($B55,'Program-specific Assumptions'!$C$1:$N$9,11,0)*G56 -> 1200 | H65: =VLOOKUP($B55,'Program-specific Assumptions'!$C$1:$N$9,11,0)*H56 -> 3000 | I65: =VLOOKUP($B55,'Program-specific Assumptions'!$C$1:$N$9,11,0)*I56 -> 12000 | J65: =VLOOKUP($B55,'Program-specific Assumptions'!$C$1:$N$9,11,0)*J56 -> 30000 | K65: Community-driven Solar | L65: Property Tax or PILOT, Yr 1 | M65: $/yr | O65: =VLOOKUP($B55,'Program-specific Assumptions'!$C$1:$N$9,11,0)*O56 -> 150 | P65: =VLOOKUP($B55,'Program-specific Assumptions'!$C$1:$N$9,11,0)*P56 -> 600 | Q65: =VLOOKUP($B55,'Program-specific Assumptions'!$C$1:$N$9,11,0)*Q56 -> 1200 | R65: =VLOOKUP($B55,'Program-specific Assumptions'!$C$1:$N$9,11,0)*R56 -> 3000 | S65: =VLOOKUP($B55,'Program-specific Assumptions'!$C$1:$N$9,11,0)*S56 -> 12000 | T65: =VLOOKUP($B55,'Program-specific Assumptions'!$C$1:$N$9,11,0)*T56 -> 30000
B66: Land Lease | C66: $/yr | E66: =VLOOKUP($B55,'Program-specific Assumptions'!$C$1:$N$9,2,0)*E$57 -> 150.4178839 | F66: =VLOOKUP($B55,'Program-specific Assumptions'!$C$1:$N$9,2,0)*F$57 -> 594.0886862 | G66: =VLOOKUP($B55,'Program-specific Assumptions'!$C$1:$N$9,2,0)*G$57 -> 1199.555171 | H66: =VLOOKUP($B55,'Program-specific Assumptions'!$C$1:$N$9,2,0)*H$57 -> 2954.416667 | I66: =VLOOKUP($B55,'Program-specific Assumptions'!$C$1:$N$9,2,0)*I$57 -> 14527.0624 | J66: =VLOOKUP($B55,'Program-specific Assumptions'!$C$1:$N$9,2,0)*J$57 -> 36317.65601 | K66: Community-driven Solar | L66: Land Lease | M66: $/yr | O66: =VLOOKUP($B55,'Program-specific Assumptions'!$C$1:$N$9,2,0)*O$31 -> 148.8792753 | P66: =VLOOKUP($B55,'Program-specific Assumptions'!$C$1:$N$9,2,0)*P$31 -> 615.3355444 | Q66: =VLOOKUP($B55,'Program-specific Assumptions'!$C$1:$N$9,2,0)*Q$31 -> 1239.571662 | R66: =VLOOKUP($B55,'Program-specific Assumptions'!$C$1:$N$9,2,0)*R$31 -> 3077.277617 | S66: =VLOOKUP($B55,'Program-specific Assumptions'!$C$1:$N$9,2,0)*S$31 -> 14270.96811 | T66: =VLOOKUP($B55,'Program-specific Assumptions'!$C$1:$N$9,2,0)*T$31 -> 35677.42026
B67: Construction Period | C67: months | E67: ='Size-specific Assumptions'!E$6 -> 12 | F67: ='Size-specific Assumptions'!F$6 -> 12 | G67: ='Size-specific Assumptions'!G$6 -> 12 | H67: ='Size-specific Assumptions'!H$6 -> 12 | I67: ='Size-specific Assumptions'!I$6 -> 18 | J67: ='Size-specific Assumptions'!J$6 -> 18 | L67: Construction Period | M67: months | O67: ='Size-specific Assumptions'!E$6 -> 12 | P67: ='Size-specific Assumptions'!F$6 -> 12 | Q67: ='Size-specific Assumptions'!G$6 -> 12 | R67: ='Size-specific Assumptions'!H$6 -> 12 | S67: ='Size-specific Assumptions'!I$6 -> 18 | T67: ='Size-specific Assumptions'!J$6 -> 18
B68: % Debt (% of hard costs) (mortgage-style amort.) | C68: % | E68: =VLOOKUP($B55,'Program-specific Assumptions'!$C$1:$N$9,4,0) -> 0.55 | F68: =VLOOKUP($B55,'Program-specific Assumptions'!$C$1:$N$9,4,0) -> 0.55 | G68: =VLOOKUP($B55,'Program-specific Assumptions'!$C$1:$N$9,4,0) -> 0.55 | H68: =VLOOKUP($B55,'Program-specific Assumptions'!$C$1:$N$9,4,0) -> 0.55 | I68: =VLOOKUP($B55,'Program-specific Assumptions'!$C$1:$N$9,4,0) -> 0.55 | J68: =VLOOKUP($B55,'Program-specific Assumptions'!$C$1:$N$9,4,0) -> 0.55 | K68: Community-driven Solar | L68: % Debt (% of hard costs) (mortgage-style amort.) | M68: % | O68: =VLOOKUP($B55,'Program-specific Assumptions'!$C$1:$N$9,4,0) -> 0.55 | P68: =VLOOKUP($B55,'Program-specific Assumptions'!$C$1:$N$9,4,0) -> 0.55 | Q68: =VLOOKUP($B55,'Program-specific Assumptions'!$C$1:$N$9,4,0) -> 0.55 | R68: =VLOOKUP($B55,'Program-specific Assumptions'!$C$1:$N$9,4,0) -> 0.55 | S68: =VLOOKUP($B55,'Program-specific Assumptions'!$C$1:$N$9,4,0) -> 0.55 | T68: =VLOOKUP($B55,'Program-specific Assumptions'!$C$1:$N$9,4,0) -> 0.55
B69: Debt Term | C69: years | E69: =VLOOKUP($B55,'Program-specific Assumptions'!$C$1:$N$9,5,0) -> 15 | F69: =VLOOKUP($B55,'Program-specific Assumptions'!$C$1:$N$9,5,0) -> 15 | G69: =VLOOKUP($B55,'Program-specific Assumptions'!$C$1:$N$9,5,0) -> 15 | H69: =VLOOKUP($B55,'Program-specific Assumptions'!$C$1:$N$9,5,0) -> 15 | I69: =VLOOKUP($B55,'Program-specific Assumptions'!$C$1:$N$9,5,0) -> 15 | J69: =VLOOKUP($B55,'Program-specific Assumptions'!$C$1:$N$9,5,0) -> 15 | K69: Community-driven Solar | L69: Debt Term | M69: years | O69: =VLOOKUP($B55,'Program-specific Assumptions'!$C$1:$N$9,5,0) -> 15 | P69: =VLOOKUP($B55,'Program-specific Assumptions'!$C$1:$N$9,5,0) -> 15 | Q69: =VLOOKUP($B55,'Program-specific Assumptions'!$C$1:$N$9,5,0) -> 15 | R69: =VLOOKUP($B55,'Program-specific Assumptions'!$C$1:$N$9,5,0) -> 15 | S69: =VLOOKUP($B55,'Program-specific Assumptions'!$C$1:$N$9,5,0) -> 15 | T69: =VLOOKUP($B55,'Program-specific Assumptions'!$C$1:$N$9,5,0) -> 15
B70: Target After-Tax Equity IRR(%) | C70: % | E70: =VLOOKUP($B55,'Program-specific Assumptions'!$C$1:$N$9,7,0) -> 0.1 | F70: =VLOOKUP($B55,'Program-specific Assumptions'!$C$1:$N$9,7,0) -> 0.1 | G70: =VLOOKUP($B55,'Program-specific Assumptions'!$C$1:$N$9,7,0) -> 0.1 | H70: =VLOOKUP($B55,'Program-specific Assumptions'!$C$1:$N$9,7,0) -> 0.1 | I70: =VLOOKUP($B55,'Program-specific Assumptions'!$C$1:$N$9,7,0) -> 0.1 | J70: =VLOOKUP($B55,'Program-specific Assumptions'!$C$1:$N$9,7,0) -> 0.1 | K70: Community-driven Solar | L70: Target After-Tax Equity IRR(%) | M70: % | O70: =VLOOKUP($B55,'Program-specific Assumptions'!$C$1:$N$9,7,0) -> 0.1 | P70: =VLOOKUP($B55,'Program-specific Assumptions'!$C$1:$N$9,7,0) -> 0.1 | Q70: =VLOOKUP($B55,'Program-specific Assumptions'!$C$1:$N$9,7,0) -> 0.1 | R70: =VLOOKUP($B55,'Program-specific Assumptions'!$C$1:$N$9,7,0) -> 0.1 | S70: =VLOOKUP($B55,'Program-specific Assumptions'!$C$1:$N$9,7,0) -> 0.1 | T70: =VLOOKUP($B55,'Program-specific Assumptions'!$C$1:$N$9,7,0) -> 0.1
B71: State Income Tax Rate | C71: % | E71: ='Size-specific Assumptions'!E$3 -> 0.095 | F71: ='Size-specific Assumptions'!F$3 -> 0.095 | G71: ='Size-specific Assumptions'!G$3 -> 0.095 | H71: ='Size-specific Assumptions'!H$3 -> 0.095 | I71: ='Size-specific Assumptions'!I$3 -> 0.095 | J71: ='Size-specific Assumptions'!J$3 -> 0.095 | K71: Community-driven Solar | L71: State Income Tax Rate | M71: % | O71: ='Size-specific Assumptions'!E$3 -> 0.095 | P71: ='Size-specific Assumptions'!F$3 -> 0.095 | Q71: ='Size-specific Assumptions'!G$3 -> 0.095 | R71: ='Size-specific Assumptions'!H$3 -> 0.095 | S71: ='Size-specific Assumptions'!I$3 -> 0.095 | T71: ='Size-specific Assumptions'!J$3 -> 0.095
B72: Payment Duration for Cost-Based Tariff | C72: years | E72: =VLOOKUP($B55,'Program-specific Assumptions'!$C$1:$N$9,6,0) -> 15 | F72: =VLOOKUP($B55,'Program-specific Assumptions'!$C$1:$N$9,6,0) -> 15 | G72: =VLOOKUP($B55,'Program-specific Assumptions'!$C$1:$N$9,6,0) -> 15 | H72: =VLOOKUP($B55,'Program-specific Assumptions'!$C$1:$N$9,6,0) -> 15 | I72: =VLOOKUP($B55,'Program-specific Assumptions'!$C$1:$N$9,6,0) -> 15 | J72: =VLOOKUP($B55,'Program-specific Assumptions'!$C$1:$N$9,6,0) -> 15 | K72: Community-driven Solar | L72: Payment Duration for Cost-Based Tariff | M72: years | O72: =VLOOKUP($B55,'Program-specific Assumptions'!$C$1:$N$9,6,0) -> 15 | P72: =VLOOKUP($B55,'Program-specific Assumptions'!$C$1:$N$9,6,0) -> 15 | Q72: =VLOOKUP($B55,'Program-specific Assumptions'!$C$1:$N$9,6,0) -> 15 | R72: =VLOOKUP($B55,'Program-specific Assumptions'!$C$1:$N$9,6,0) -> 15 | S72: =VLOOKUP($B55,'Program-specific Assumptions'!$C$1:$N$9,6,0) -> 15 | T72: =VLOOKUP($B55,'Program-specific Assumptions'!$C$1:$N$9,6,0) -> 15
B73: Post-tariff market value, Yr 1 | C73: ¢/kWh | E73: ='Net Metering Credit'!$C$28*100*E79 -> 3.330590469 | F73: ='Net Metering Credit'!$C$28*100*F79 -> 3.330590469 | G73: ='Net Metering Credit'!$C$28*100*G79 -> 3.330590469 | H73: ='Net Metering Credit'!$C$28*100*H79 -> 3.330590469 | I73: ='Net Metering Credit'!$C$28*100*I79 -> 3.330590469 | J73: ='Net Metering Credit'!$C$28*100*J79 -> 3.330590469 | K73: Community-driven Solar | L73: Post-tariff market value, Yr 1 | M73: ¢/kWh | O73: ='Net Metering Credit'!$C$4*100*O79 -> 3.140068054 | P73: ='Net Metering Credit'!$C$4*100*P79 -> 3.140068054 | Q73: ='Net Metering Credit'!$C$4*100*Q79 -> 3.140068054 | R73: ='Net Metering Credit'!$C$4*100*R79 -> 3.140068054 | S73: ='Net Metering Credit'!$C$4*100*S79 -> 3.140068054 | T73: ='Net Metering Credit'!$C$4*100*T79 -> 3.140068054
B74: Additional State Rebates/Grants | C74: $/Watt | E74: ='Size-specific Assumptions'!E$5 -> 0.25 | F74: ='Size-specific Assumptions'!F$5 -> 0.25 | G74: ='Size-specific Assumptions'!G$5 -> 0.25 | H74: ='Size-specific Assumptions'!H$5 -> 0.25 | I74: ='Size-specific Assumptions'!I$5 -> 0.25 | J74: ='Size-specific Assumptions'!J$5 -> 0.25 | K74: Community-driven Solar | L74: Additional State Rebates/Grants | M74: $/Watt | O74: ='Size-specific Assumptions'!E$5 -> 0.25 | P74: ='Size-specific Assumptions'!F$5 -> 0.25 | Q74: ='Size-specific Assumptions'!G$5 -> 0.25 | R74: ='Size-specific Assumptions'!H$5 -> 0.25 | S74: ='Size-specific Assumptions'!I$5 -> 0.25 | T74: ='Size-specific Assumptions'!J$5 -> 0.25
B75: 1st Replacement Cost ($ in year replaced) | C75: $/Watt dc | E75: ='Size-specific Assumptions'!E$4 -> 0.13 | F75: ='Size-specific Assumptions'!F$4 -> 0.13 | G75: ='Size-specific Assumptions'!G$4 -> 0.13 | H75: ='Size-specific Assumptions'!H$4 -> 0.13 | I75: ='Size-specific Assumptions'!I$4 -> 0.13 | J75: ='Size-specific Assumptions'!J$4 -> 0.13 | K75: Community-driven Solar | L75: 1st Replacement Cost ($ in year replaced) | M75: $/Watt dc | O75: ='Size-specific Assumptions'!E$4 -> 0.13 | P75: ='Size-specific Assumptions'!F$4 -> 0.13 | Q75: ='Size-specific Assumptions'!G$4 -> 0.13 | R75: ='Size-specific Assumptions'!H$4 -> 0.13 | S75: ='Size-specific Assumptions'!I$4 -> 0.13 | T75: ='Size-specific Assumptions'!J$4 -> 0.13
B76: Taxable Entity | C76: Y/N | E76: =VLOOKUP($B55,'Program-specific Assumptions'!$C$1:$N$9,12,0) -> Yes | F76: =VLOOKUP($B55,'Program-specific Assumptions'!$C$1:$N$9,12,0) -> Yes | G76: =VLOOKUP($B55,'Program-specific Assumptions'!$C$1:$N$9,12,0) -> Yes | H76: =VLOOKUP($B55,'Program-specific Assumptions'!$C$1:$N$9,12,0) -> Yes | I76: =VLOOKUP($B55,'Program-specific Assumptions'!$C$1:$N$9,12,0) -> Yes | J76: =VLOOKUP($B55,'Program-specific Assumptions'!$C$1:$N$9,12,0) -> Yes | K76: Community-driven Solar | L76: Taxable Entity | M76: Y/N | O76: =VLOOKUP($B55,'Program-specific Assumptions'!$C$1:$N$9,12,0) -> Yes | P76: =VLOOKUP($B55,'Program-specific Assumptions'!$C$1:$N$9,12,0) -> Yes | Q76: =VLOOKUP($B55,'Program-specific Assumptions'!$C$1:$N$9,12,0) -> Yes | R76: =VLOOKUP($B55,'Program-specific Assumptions'!$C$1:$N$9,12,0) -> Yes | S76: =VLOOKUP($B55,'Program-specific Assumptions'!$C$1:$N$9,12,0) -> Yes | T76: =VLOOKUP($B55,'Program-specific Assumptions'!$C$1:$N$9,12,0) -> Yes
B77: Net Metering Credit | C77: $ | E77: =NPV('CREST Inputs'!$G$63,'Net Metering Credit'!$C$52:$AA$52)*E79 -> 2736951.339 | F77: =NPV('CREST Inputs'!$G$63,'Net Metering Credit'!$C$52:$AA$52)*F79 -> 2736951.339 | G77: =NPV('CREST Inputs'!$G$63,'Net Metering Credit'!$C$52:$AA$52)*G79 -> 2736951.339 | H77: =NPV('CREST Inputs'!$G$63,'Net Metering Credit'!$C$52:$AA$52)*H79 -> 2736951.339 | I77: =NPV('CREST Inputs'!$G$63,'Net Metering Credit'!$C$52:$AA$52)*I79 -> 2736951.339 | J77: =NPV('CREST Inputs'!$G$63,'Net Metering Credit'!$C$52:$AA$52)*J79 -> 2736951.339 | K77: Community-driven Solar | L77: Net Metering Credit | M77: $ | O77: =NPV('CREST Inputs'!$G$63,'Net Metering Credit'!$C$50:$AA$50)*O79 -> 3323873.927 | P77: =NPV('CREST Inputs'!$G$63,'Net Metering Credit'!$C$50:$AA$50)*P79 -> 3323873.927 | Q77: =NPV('CREST Inputs'!$G$63,'Net Metering Credit'!$C$50:$AA$50)*Q79 -> 3323873.927 | R77: =NPV('CREST Inputs'!$G$63,'Net Metering Credit'!$C$50:$AA$50)*R79 -> 3323873.927 | S77: =NPV('CREST Inputs'!$G$63,'Net Metering Credit'!$C$50:$AA$50)*S79 -> 3323873.927 | T77: =NPV('CREST Inputs'!$G$63,'Net Metering Credit'!$C$50:$AA$50)*T79 -> 3323873.927
B78: Subscriber Savings | C78: % | E78: =VLOOKUP($B55,'Program-specific Assumptions'!$C$1:$N$9,8,0) -> 0.2 | F78: =VLOOKUP($B55,'Program-specific Assumptions'!$C$1:$N$9,8,0) -> 0.2 | G78: =VLOOKUP($B55,'Program-specific Assumptions'!$C$1:$N$9,8,0) -> 0.2 | H78: =VLOOKUP($B55,'Program-specific Assumptions'!$C$1:$N$9,8,0) -> 0.2 | I78: =VLOOKUP($B55,'Program-specific Assumptions'!$C$1:$N$9,8,0) -> 0.2 | J78: =VLOOKUP($B55,'Program-specific Assumptions'!$C$1:$N$9,8,0) -> 0.2 | K78: Community-driven Solar | L78: Subscriber Savings | M78: % | O78: =VLOOKUP($B55,'Program-specific Assumptions'!$C$1:$N$9,8,0) -> 0.2 | P78: =VLOOKUP($B55,'Program-specific Assumptions'!$C$1:$N$9,8,0) -> 0.2 | Q78: =VLOOKUP($B55,'Program-specific Assumptions'!$C$1:$N$9,8,0) -> 0.2 | R78: =VLOOKUP($B55,'Program-specific Assumptions'!$C$1:$N$9,8,0) -> 0.2 | S78: =VLOOKUP($B55,'Program-specific Assumptions'!$C$1:$N$9,8,0) -> 0.2 | T78: =VLOOKUP($B55,'Program-specific Assumptions'!$C$1:$N$9,8,0) -> 0.2
B79: % of Net Metering Value Allocated | C79: % | E79: =VLOOKUP($B55,'Program-specific Assumptions'!$C$1:$N$9,9,0) -> 0.8 | F79: =VLOOKUP($B55,'Program-specific Assumptions'!$C$1:$N$9,9,0) -> 0.8 | G79: =VLOOKUP($B55,'Program-specific Assumptions'!$C$1:$N$9,9,0) -> 0.8 | H79: =VLOOKUP($B55,'Program-specific Assumptions'!$C$1:$N$9,9,0) -> 0.8 | I79: =VLOOKUP($B55,'Program-specific Assumptions'!$C$1:$N$9,9,0) -> 0.8 | J79: =VLOOKUP($B55,'Program-specific Assumptions'!$C$1:$N$9,9,0) -> 0.8 | K79: Community-driven Solar | L79: % of Net Metering Value Allocated | M79: % | O79: =VLOOKUP($B55,'Program-specific Assumptions'!$C$1:$N$9,9,0) -> 0.8 | P79: =VLOOKUP($B55,'Program-specific Assumptions'!$C$1:$N$9,9,0) -> 0.8 | Q79: =VLOOKUP($B55,'Program-specific Assumptions'!$C$1:$N$9,9,0) -> 0.8 | R79: =VLOOKUP($B55,'Program-specific Assumptions'!$C$1:$N$9,9,0) -> 0.8 | S79: =VLOOKUP($B55,'Program-specific Assumptions'!$C$1:$N$9,9,0) -> 0.8 | T79: =VLOOKUP($B55,'Program-specific Assumptions'!$C$1:$N$9,9,0) -> 0.8

Sheet ILSfA Scenario InputAssumptions
B1: IL Solar for All
B2: Group A | L2: Group B
B3: Distributed Generation (1-4 Unit) | L3: Distributed Generation (1-4 Unit) | V3: =IF('Scenario & Results'!B3="Adjustable Block Program","",'Scenario & Results'!B4) -> 
A4: =B$3 -> Distributed Generation (1-4 Unit) | B4: Generator Nameplate Capacity | C4: kW ac | D4: 10 | E4: 25 | F4: 100 | G4: 200 | H4: 500 | I4: 2000 | J4: 5000 | K4: =L$3 -> Distributed Generation (1-4 Unit) | L4: Generator Nameplate Capacity | M4: kW ac | N4: 10 | O4: 25 | P4: 100 | Q4: 200 | R4: 500 | S4: 2000 | T4: 5000 | V4: Generator Nameplate Capacity | W4: kW ac | X4: 10 | Y4: 25 | Z4: 100 | AA4: 200 | AB4: 500 | AC4: 2000 | AD4: 5000
A5: =B$3 -> Distributed Generation (1-4 Unit) | B5: Generator Nameplate Capacity | C5: kW dc | D5: =D4/D6 -> 12.18355626 | E5: ='Group-specific Assumptions'!E4 -> 30.08357677 | F5: ='Group-specific Assumptions'!F4 -> 118.8177372 | G5: ='Group-specific Assumptions'!G4 -> 239.9110343 | H5: ='Group-specific Assumptions'!H4 -> 607.1812396 | I5: ='Group-specific Assumptions'!I4 -> 2507.904844 | J5: ='Group-specific Assumptions'!J4 -> 6392.03639 | K5: =L$3 -> Distributed Generation (1-4 Unit) | L5: Generator Nameplate Capacity | M5: kW dc | N5: =N4/N6 -> 12.04852455 | O5: =O4/O6 -> 29.77585505 | P5: 123.0671089 | Q5: 247.9143324 | R5: 615.4555235 | S5: =S4/S6 -> 2551.484943 | T5: =T4/T6 -> 6378.712359 | V5: Generator Nameplate Capacity | W5: kW dc | X5: =IF($V$3="","",IF('Scenario & Results'!$B$5=1,'ILSfA Scenario InputAssumptions'!D5,IF('Scenario & Results'!$B$5=2,'ILSfA Scenario InputAssumptions'!D31,IF('Scenario & Results'!$B$5=3,'ILSfA Scenario InputAssumptions'!D57,IF('Scenario & Results'!$B$5=4,'ILSfA Scenario InputAssumptions'!D83,IF('Scenario & Results'!$B$5=5,'ILSfA Scenario InputAssumptions'!N5,IF('Scenario & Results'!$B$5=6,'ILSfA Scenario InputAssumptions'!N31,IF('Scenario & Results'!$B$5=7,'ILSfA Scenario InputAssumptions'!N57,IF('Scenario & Results'!$B$5=8,'ILSfA Scenario InputAssumptions'!N83,"Invalid"))))))))) ->  | Y5: =IF($V$3="","",IF('Scenario & Results'!$B$5=1,'ILSfA Scenario InputAssumptions'!E5,IF('Scenario & Results'!$B$5=2,'ILSfA Scenario InputAssumptions'!E31,IF('Scenario & Results'!$B$5=3,'ILSfA Scenario InputAssumptions'!E57,IF('Scenario & Results'!$B$5=4,'ILSfA Scenario InputAssumptions'!E83,IF('Scenario & Results'!$B$5=5,'ILSfA Scenario InputAssumptions'!O5,IF('Scenario & Results'!$B$5=6,'ILSfA Scenario InputAssumptions'!O31,IF('Scenario & Results'!$B$5=7,'ILSfA Scenario InputAssumptions'!O57,IF('Scenario & Results'!$B$5=8,'ILSfA Scenario InputAssumptions'!O83,"Invalid"))))))))) ->  | Z5: =IF($V$3="","",IF('Scenario & Results'!$B$5=1,'ILSfA Scenario InputAssumptions'!F5,IF('Scenario & Results'!$B$5=2,'ILSfA Scenario InputAssumptions'!F31,IF('Scenario & Results'!$B$5=3,'ILSfA Scenario InputAssumptions'!F57,IF('Scenario & Results'!$B$5=4,'ILSfA Scenario InputAssumptions'!F83,IF('Scenario & Results'!$B$5=5,'ILSfA Scenario InputAssumptions'!P5,IF('Scenario & Results'!$B$5=6,'ILSfA Scenario InputAssumptions'!P31,IF('Scenario & Results'!$B$5=7,'ILSfA Scenario InputAssumptions'!P57,IF('Scenario & Results'!$B$5=8,'ILSfA Scenario InputAssumptions'!P83,"Invalid"))))))))) ->  | AA5: =IF($V$3="","",IF('Scenario & Results'!$B$5=1,'ILSfA Scenario InputAssumptions'!G5,IF('Scenario & Results'!$B$5=2,'ILSfA Scenario InputAssumptions'!G31,IF('Scenario & Results'!$B$5=3,'ILSfA Scenario InputAssumptions'!G57,IF('Scenario & Results'!$B$5=4,'ILSfA Scenario InputAssumptions'!G83,IF('Scenario & Results'!$B$5=5,'ILSfA Scenario InputAssumptions'!Q5,IF('Scenario & Results'!$B$5=6,'ILSfA Scenario InputAssumptions'!Q31,IF('Scenario & Results'!$B$5=7,'ILSfA Scenario InputAssumptions'!Q57,IF('Scenario & Results'!$B$5=8,'ILSfA Scenario InputAssumptions'!Q83,"Invalid"))))))))) ->  | AB5: =IF($V$3="","",IF('Scenario & Results'!$B$5=1,'ILSfA Scenario InputAssumptions'!H5,IF('Scenario & Results'!$B$5=2,'ILSfA Scenario InputAssumptions'!H31,IF('Scenario & Results'!$B$5=3,'ILSfA Scenario InputAssumptions'!H57,IF('Scenario & Results'!$B$5=4,'ILSfA Scenario InputAssumptions'!H83,IF('Scenario & Results'!$B$5=5,'ILSfA Scenario InputAssumptions'!R5,IF('Scenario & Results'!$B$5=6,'ILSfA Scenario InputAssumptions'!R31,IF('Scenario & Results'!$B$5=7,'ILSfA Scenario InputAssumptions'!R57,IF('Scenario & Results'!$B$5=8,'ILSfA Scenario InputAssumptions'!R83,"Invalid"))))))))) ->  | AC5: =IF($V$3="","",IF('Scenario & Results'!$B$5=1,'ILSfA Scenario InputAssumptions'!I5,IF('Scenario & Results'!$B$5=2,'ILSfA Scenario InputAssumptions'!I31,IF('Scenario & Results'!$B$5=3,'ILSfA Scenario InputAssumptions'!I57,IF('Scenario & Results'!$B$5=4,'ILSfA Scenario InputAssumptions'!I83,IF('Scenario & Results'!$B$5=5,'ILSfA Scenario InputAssumptions'!S5,IF('Scenario & Results'!$B$5=6,'ILSfA Scenario InputAssumptions'!S31,IF('Scenario & Results'!$B$5=7,'ILSfA Scenario InputAssumptions'!S57,IF('Scenario & Results'!$B$5=8,'ILSfA Scenario InputAssumptions'!S83,"Invalid"))))))))) ->  | AD5: =IF($V$3="","",IF('Scenario & Results'!$B$5=1,'ILSfA Scenario InputAssumptions'!J5,IF('Scenario & Results'!$B$5=2,'ILSfA Scenario InputAssumptions'!J31,IF('Scenario & Results'!$B$5=3,'ILSfA Scenario InputAssumptions'!J57,IF('Scenario & Results'!$B$5=4,'ILSfA Scenario InputAssumptions'!J83,IF('Scenario & Results'!$B$5=5,'ILSfA Scenario InputAssumptions'!T5,IF('Scenario & Results'!$B$5=6,'ILSfA Scenario InputAssumptions'!T31,IF('Scenario & Results'!$B$5=7,'ILSfA Scenario InputAssumptions'!T57,IF('Scenario & Results'!$B$5=8,'ILSfA Scenario InputAssumptions'!T83,"Invalid"))))))))) -> 
A6: Distributed Generation (1-4 Unit) | B6: AC to DC Conversion Factor | C6: % | D6: ='Group-specific Assumptions'!D$5 -> 0.8207784155 | E6: ='Group-specific Assumptions'!E$5 -> 0.831018206 | F6: ='Group-specific Assumptions'!F$5 -> 0.8416251842 | G6: ='Group-specific Assumptions'!G$5 -> 0.8336423566 | H6: ='Group-specific Assumptions'!H$5 -> 0.8234773531 | I6: ='Group-specific Assumptions'!I$5 -> 0.7974784231 | J6: ='Group-specific Assumptions'!J$5 -> 0.7822233314 | K6: Distributed Generation (1-4 Unit) | L6: AC to DC Conversion Factor | M6: % | N6: ='Group-specific Assumptions'!N$5 -> 0.8299771445 | O6: ='Group-specific Assumptions'!O$5 -> 0.8396064514 | P6: ='Group-specific Assumptions'!P$5 -> 0.8125647942 | Q6: ='Group-specific Assumptions'!Q$5 -> 0.806730285 | R6: ='Group-specific Assumptions'!R$5 -> 0.81240639 | S6: ='Group-specific Assumptions'!S$5 -> 0.7838572613 | T6: ='Group-specific Assumptions'!T$5 -> 0.7838572613 | V6: AC to DC Conversion Factor | W6: % | X6: =IF($V$3="","",IF('Scenario & Results'!$B$5=1,'ILSfA Scenario InputAssumptions'!D6,IF('Scenario & Results'!$B$5=2,'ILSfA Scenario InputAssumptions'!D32,IF('Scenario & Results'!$B$5=3,'ILSfA Scenario InputAssumptions'!D58,IF('Scenario & Results'!$B$5=4,'ILSfA Scenario InputAssumptions'!D84,IF('Scenario & Results'!$B$5=5,'ILSfA Scenario InputAssumptions'!N6,IF('Scenario & Results'!$B$5=6,'ILSfA Scenario InputAssumptions'!N32,IF('Scenario & Results'!$B$5=7,'ILSfA Scenario InputAssumptions'!N58,IF('Scenario & Results'!$B$5=8,'ILSfA Scenario InputAssumptions'!N84,"Invalid"))))))))) ->  | Y6: =IF($V$3="","",IF('Scenario & Results'!$B$5=1,'ILSfA Scenario InputAssumptions'!E6,IF('Scenario & Results'!$B$5=2,'ILSfA Scenario InputAssumptions'!E32,IF('Scenario & Results'!$B$5=3,'ILSfA Scenario InputAssumptions'!E58,IF('Scenario & Results'!$B$5=4,'ILSfA Scenario InputAssumptions'!E84,IF('Scenario & Results'!$B$5=5,'ILSfA Scenario InputAssumptions'!O6,IF('Scenario & Results'!$B$5=6,'ILSfA Scenario InputAssumptions'!O32,IF('Scenario & Results'!$B$5=7,'ILSfA Scenario InputAssumptions'!O58,IF('Scenario & Results'!$B$5=8,'ILSfA Scenario InputAssumptions'!O84,"Invalid"))))))))) ->  | Z6: =IF($V$3="","",IF('Scenario & Results'!$B$5=1,'ILSfA Scenario InputAssumptions'!F6,IF('Scenario & Results'!$B$5=2,'ILSfA Scenario InputAssumptions'!F32,IF('Scenario & Results'!$B$5=3,'ILSfA Scenario InputAssumptions'!F58,IF('Scenario & Results'!$B$5=4,'ILSfA Scenario InputAssumptions'!F84,IF('Scenario & Results'!$B$5=5,'ILSfA Scenario InputAssumptions'!P6,IF('Scenario & Results'!$B$5=6,'ILSfA Scenario InputAssumptions'!P32,IF('Scenario & Results'!$B$5=7,'ILSfA Scenario InputAssumptions'!P58,IF('Scenario & Results'!$B$5=8,'ILSfA Scenario InputAssumptions'!P84,"Invalid"))))))))) ->  | AA6: =IF($V$3="","",IF('Scenario & Results'!$B$5=1,'ILSfA Scenario InputAssumptions'!G6,IF('Scenario & Results'!$B$5=2,'ILSfA Scenario InputAssumptions'!G32,IF('Scenario & Results'!$B$5=3,'ILSfA Scenario InputAssumptions'!G58,IF('Scenario & Results'!$B$5=4,'ILSfA Scenario InputAssumptions'!G84,IF('Scenario & Results'!$B$5=5,'ILSfA Scenario InputAssumptions'!Q6,IF('Scenario & Results'!$B$5=6,'ILSfA Scenario InputAssumptions'!Q32,IF('Scenario & Results'!$B$5=7,'ILSfA Scenario InputAssumptions'!Q58,IF('Scenario & Results'!$B$5=8,'ILSfA Scenario InputAssumptions'!Q84,"Invalid"))))))))) ->  | AB6: =IF($V$3="","",IF('Scenario & Results'!$B$5=1,'ILSfA Scenario InputAssumptions'!H6,IF('Scenario & Results'!$B$5=2,'ILSfA Scenario InputAssumptions'!H32,IF('Scenario & Results'!$B$5=3,'ILSfA Scenario InputAssumptions'!H58,IF('Scenario & Results'!$B$5=4,'ILSfA Scenario InputAssumptions'!H84,IF('Scenario & Results'!$B$5=5,'ILSfA Scenario InputAssumptions'!R6,IF('Scenario & Results'!$B$5=6,'ILSfA Scenario InputAssumptions'!R32,IF('Scenario & Results'!$B$5=7,'ILSfA Scenario InputAssumptions'!R58,IF('Scenario & Results'!$B$5=8,'ILSfA Scenario InputAssumptions'!R84,"Invalid"))))))))) ->  | AC6: =IF($V$3="","",IF('Scenario & Results'!$B$5=1,'ILSfA Scenario InputAssumptions'!I6,IF('Scenario & Results'!$B$5=2,'ILSfA Scenario InputAssumptions'!I32,IF('Scenario & Results'!$B$5=3,'ILSfA Scenario InputAssumptions'!I58,IF('Scenario & Results'!$B$5=4,'ILSfA Scenario InputAssumptions'!I84,IF('Scenario & Results'!$B$5=5,'ILSfA Scenario InputAssumptions'!S6,IF('Scenario & Results'!$B$5=6,'ILSfA Scenario InputAssumptions'!S32,IF('Scenario & Results'!$B$5=7,'ILSfA Scenario InputAssumptions'!S58,IF('Scenario & Results'!$B$5=8,'ILSfA Scenario InputAssumptions'!S84,"Invalid"))))))))) ->  | AD6: =IF($V$3="","",IF('Scenario & Results'!$B$5=1,'ILSfA Scenario InputAssumptions'!J6,IF('Scenario & Results'!$B$5=2,'ILSfA Scenario InputAssumptions'!J32,IF('Scenario & Results'!$B$5=3,'ILSfA Scenario InputAssumptions'!J58,IF('Scenario & Results'!$B$5=4,'ILSfA Scenario InputAssumptions'!J84,IF('Scenario & Results'!$B$5=5,'ILSfA Scenario InputAssumptions'!T6,IF('Scenario & Results'!$B$5=6,'ILSfA Scenario InputAssumptions'!T32,IF('Scenario & Results'!$B$5=7,'ILSfA Scenario InputAssumptions'!T58,IF('Scenario & Results'!$B$5=8,'ILSfA Scenario InputAssumptions'!T84,"Invalid"))))))))) -> 
A7: Distributed Generation (1-4 Unit) | B7: Capacity Factor | C7: % | D7: ='Group-specific Assumptions'!D$6 -> 0.1453144423 | E7: ='Group-specific Assumptions'!E$6 -> 0.1450748585 | F7: ='Group-specific Assumptions'!F$6 -> 0.1495428723 | G7: ='Group-specific Assumptions'!G$6 -> 0.1496179837 | H7: ='Group-specific Assumptions'!H$6 -> 0.1513169208 | I7: ='Group-specific Assumptions'!I$6 -> 0.1493284322 | J7: ='Group-specific Assumptions'!J$6 -> 0.1527894821 | K7: Distributed Generation (1-4 Unit) | L7: Capacity Factor | M7: % | N7: ='Group-specific Assumptions'!N$6 -> 0.133954531 | O7: ='Group-specific Assumptions'!O$6 -> 0.1312064847 | P7: ='Group-specific Assumptions'!P$6 -> 0.1424904402 | Q7: ='Group-specific Assumptions'!Q$6 -> 0.1402534344 | R7: ='Group-specific Assumptions'!R$6 -> 0.1429491239 | S7: ='Group-specific Assumptions'!S$6 -> 0.145083104 | T7: ='Group-specific Assumptions'!T$6 -> 0.145083104 | V7: Capacity Factor | W7: % | X7: =IF($V$3="","",IF('Scenario & Results'!$B$5=1,'ILSfA Scenario InputAssumptions'!D7,IF('Scenario & Results'!$B$5=2,'ILSfA Scenario InputAssumptions'!D33,IF('Scenario & Results'!$B$5=3,'ILSfA Scenario InputAssumptions'!D59,IF('Scenario & Results'!$B$5=4,'ILSfA Scenario InputAssumptions'!D85,IF('Scenario & Results'!$B$5=5,'ILSfA Scenario InputAssumptions'!N7,IF('Scenario & Results'!$B$5=6,'ILSfA Scenario InputAssumptions'!N33,IF('Scenario & Results'!$B$5=7,'ILSfA Scenario InputAssumptions'!N59,IF('Scenario & Results'!$B$5=8,'ILSfA Scenario InputAssumptions'!N85,"Invalid"))))))))) ->  | Y7: =IF($V$3="","",IF('Scenario & Results'!$B$5=1,'ILSfA Scenario InputAssumptions'!E7,IF('Scenario & Results'!$B$5=2,'ILSfA Scenario InputAssumptions'!E33,IF('Scenario & Results'!$B$5=3,'ILSfA Scenario InputAssumptions'!E59,IF('Scenario & Results'!$B$5=4,'ILSfA Scenario InputAssumptions'!E85,IF('Scenario & Results'!$B$5=5,'ILSfA Scenario InputAssumptions'!O7,IF('Scenario & Results'!$B$5=6,'ILSfA Scenario InputAssumptions'!O33,IF('Scenario & Results'!$B$5=7,'ILSfA Scenario InputAssumptions'!O59,IF('Scenario & Results'!$B$5=8,'ILSfA Scenario InputAssumptions'!O85,"Invalid"))))))))) ->  | Z7: =IF($V$3="","",IF('Scenario & Results'!$B$5=1,'ILSfA Scenario InputAssumptions'!F7,IF('Scenario & Results'!$B$5=2,'ILSfA Scenario InputAssumptions'!F33,IF('Scenario & Results'!$B$5=3,'ILSfA Scenario InputAssumptions'!F59,IF('Scenario & Results'!$B$5=4,'ILSfA Scenario InputAssumptions'!F85,IF('Scenario & Results'!$B$5=5,'ILSfA Scenario InputAssumptions'!P7,IF('Scenario & Results'!$B$5=6,'ILSfA Scenario InputAssumptions'!P33,IF('Scenario & Results'!$B$5=7,'ILSfA Scenario InputAssumptions'!P59,IF('Scenario & Results'!$B$5=8,'ILSfA Scenario InputAssumptions'!P85,"Invalid"))))))))) ->  | AA7: =IF($V$3="","",IF('Scenario & Results'!$B$5=1,'ILSfA Scenario InputAssumptions'!G7,IF('Scenario & Results'!$B$5=2,'ILSfA Scenario InputAssumptions'!G33,IF('Scenario & Results'!$B$5=3,'ILSfA Scenario InputAssumptions'!G59,IF('Scenario & Results'!$B$5=4,'ILSfA Scenario InputAssumptions'!G85,IF('Scenario & Results'!$B$5=5,'ILSfA Scenario InputAssumptions'!Q7,IF('Scenario & Results'!$B$5=6,'ILSfA Scenario InputAssumptions'!Q33,IF('Scenario & Results'!$B$5=7,'ILSfA Scenario InputAssumptions'!Q59,IF('Scenario & Results'!$B$5=8,'ILSfA Scenario InputAssumptions'!Q85,"Invalid"))))))))) ->  | AB7: =IF($V$3="","",IF('Scenario & Results'!$B$5=1,'ILSfA Scenario InputAssumptions'!H7,IF('Scenario & Results'!$B$5=2,'ILSfA Scenario InputAssumptions'!H33,IF('Scenario & Results'!$B$5=3,'ILSfA Scenario InputAssumptions'!H59,IF('Scenario & Results'!$B$5=4,'ILSfA Scenario InputAssumptions'!H85,IF('Scenario & Results'!$B$5=5,'ILSfA Scenario InputAssumptions'!R7,IF('Scenario & Results'!$B$5=6,'ILSfA Scenario InputAssumptions'!R33,IF('Scenario & Results'!$B$5=7,'ILSfA Scenario InputAssumptions'!R59,IF('Scenario & Results'!$B$5=8,'ILSfA Scenario InputAssumptions'!R85,"Invalid"))))))))) ->  | AC7: =IF($V$3="","",IF('Scenario & Results'!$B$5=1,'ILSfA Scenario InputAssumptions'!I7,IF('Scenario & Results'!$B$5=2,'ILSfA Scenario InputAssumptions'!I33,IF('Scenario & Results'!$B$5=3,'ILSfA Scenario InputAssumptions'!I59,IF('Scenario & Results'!$B$5=4,'ILSfA Scenario InputAssumptions'!I85,IF('Scenario & Results'!$B$5=5,'ILSfA Scenario InputAssumptions'!S7,IF('Scenario & Results'!$B$5=6,'ILSfA Scenario InputAssumptions'!S33,IF('Scenario & Results'!$B$5=7,'ILSfA Scenario InputAssumptions'!S59,IF('Scenario & Results'!$B$5=8,'ILSfA Scenario InputAssumptions'!S85,"Invalid"))))))))) ->  | AD7: =IF($V$3="","",IF('Scenario & Results'!$B$5=1,'ILSfA Scenario InputAssumptions'!J7,IF('Scenario & Results'!$B$5=2,'ILSfA Scenario InputAssumptions'!J33,IF('Scenario & Results'!$B$5=3,'ILSfA Scenario InputAssumptions'!J59,IF('Scenario & Results'!$B$5=4,'ILSfA Scenario InputAssumptions'!J85,IF('Scenario & Results'!$B$5=5,'ILSfA Scenario InputAssumptions'!T7,IF('Scenario & Results'!$B$5=6,'ILSfA Scenario InputAssumptions'!T33,IF('Scenario & Results'!$B$5=7,'ILSfA Scenario InputAssumptions'!T59,IF('Scenario & Results'!$B$5=8,'ILSfA Scenario InputAssumptions'!T85,"Invalid"))))))))) -> 
A8: Distributed Generation (1-4 Unit) | B8: Generation Equipment | C8: $ | D8: ='NREL Capital Costs'!C$5*D5 -> 8858.605334 | E8: ='NREL Capital Costs'!F$5*E5 -> 13730.07325 | F8: ='NREL Capital Costs'!G$5*F5 -> 54228.13412 | G8: ='NREL Capital Costs'!H$5*G5 -> 105975.3491 | H8: ='NREL Capital Costs'!I$5*H5 -> 263542.1095 | I8: ='NREL Capital Costs'!J$5*I5 -> 1080500.259 | J8: ='NREL Capital Costs'!K$5*J5 -> 2251686.689 | K8: Distributed Generation (1-4 Unit) | L8: Generation Equipment | M8: $ | N8: ='NREL Capital Costs'!C$5*N5 -> 8760.424426 | O8: ='NREL Capital Costs'!F$5*O5 -> 13589.62979 | P8: ='NREL Capital Costs'!G$5*P5 -> 56167.53727 | Q8: ='NREL Capital Costs'!H$5*Q5 -> 109510.6275 | R8: ='NREL Capital Costs'!I$5*R5 -> 267133.4955 | S8: ='NREL Capital Costs'!J$5*S5 -> 1099276.214 | T8: ='NREL Capital Costs'!K$5*T5 -> 2246993.108 | V8: Generation Equipment | W8: $ | X8: =IF($V$3="","",IF('Scenario & Results'!$B$5=1,'ILSfA Scenario InputAssumptions'!D8,IF('Scenario & Results'!$B$5=2,'ILSfA Scenario InputAssumptions'!D34,IF('Scenario & Results'!$B$5=3,'ILSfA Scenario InputAssumptions'!D60,IF('Scenario & Results'!$B$5=4,'ILSfA Scenario InputAssumptions'!D86,IF('Scenario & Results'!$B$5=5,'ILSfA Scenario InputAssumptions'!N8,IF('Scenario & Results'!$B$5=6,'ILSfA Scenario InputAssumptions'!N34,IF('Scenario & Results'!$B$5=7,'ILSfA Scenario InputAssumptions'!N60,IF('Scenario & Results'!$B$5=8,'ILSfA Scenario InputAssumptions'!N86,"Invalid"))))))))) ->  | Y8: =IF($V$3="","",IF('Scenario & Results'!$B$5=1,'ILSfA Scenario InputAssumptions'!E8,IF('Scenario & Results'!$B$5=2,'ILSfA Scenario InputAssumptions'!E34,IF('Scenario & Results'!$B$5=3,'ILSfA Scenario InputAssumptions'!E60,IF('Scenario & Results'!$B$5=4,'ILSfA Scenario InputAssumptions'!E86,IF('Scenario & Results'!$B$5=5,'ILSfA Scenario InputAssumptions'!O8,IF('Scenario & Results'!$B$5=6,'ILSfA Scenario InputAssumptions'!O34,IF('Scenario & Results'!$B$5=7,'ILSfA Scenario InputAssumptions'!O60,IF('Scenario & Results'!$B$5=8,'ILSfA Scenario InputAssumptions'!O86,"Invalid"))))))))) ->  | Z8: =IF($V$3="","",IF('Scenario & Results'!$B$5=1,'ILSfA Scenario InputAssumptions'!F8,IF('Scenario & Results'!$B$5=2,'ILSfA Scenario InputAssumptions'!F34,IF('Scenario & Results'!$B$5=3,'ILSfA Scenario InputAssumptions'!F60,IF('Scenario & Results'!$B$5=4,'ILSfA Scenario InputAssumptions'!F86,IF('Scenario & Results'!$B$5=5,'ILSfA Scenario InputAssumptions'!P8,IF('Scenario & Results'!$B$5=6,'ILSfA Scenario InputAssumptions'!P34,IF('Scenario & Results'!$B$5=7,'ILSfA Scenario InputAssumptions'!P60,IF('Scenario & Results'!$B$5=8,'ILSfA Scenario InputAssumptions'!P86,"Invalid"))))))))) ->  | AA8: =IF($V$3="","",IF('Scenario & Results'!$B$5=1,'ILSfA Scenario InputAssumptions'!G8,IF('Scenario & Results'!$B$5=2,'ILSfA Scenario InputAssumptions'!G34,IF('Scenario & Results'!$B$5=3,'ILSfA Scenario InputAssumptions'!G60,IF('Scenario & Results'!$B$5=4,'ILSfA Scenario InputAssumptions'!G86,IF('Scenario & Results'!$B$5=5,'ILSfA Scenario InputAssumptions'!Q8,IF('Scenario & Results'!$B$5=6,'ILSfA Scenario InputAssumptions'!Q34,IF('Scenario & Results'!$B$5=7,'ILSfA Scenario InputAssumptions'!Q60,IF('Scenario & Results'!$B$5=8,'ILSfA Scenario InputAssumptions'!Q86,"Invalid"))))))))) ->  | AB8: =IF($V$3="","",IF('Scenario & Results'!$B$5=1,'ILSfA Scenario InputAssumptions'!H8,IF('Scenario & Results'!$B$5=2,'ILSfA Scenario InputAssumptions'!H34,IF('Scenario & Results'!$B$5=3,'ILSfA Scenario InputAssumptions'!H60,IF('Scenario & Results'!$B$5=4,'ILSfA Scenario InputAssumptions'!H86,IF('Scenario & Results'!$B$5=5,'ILSfA Scenario InputAssumptions'!R8,IF('Scenario & Results'!$B$5=6,'ILSfA Scenario InputAssumptions'!R34,IF('Scenario & Results'!$B$5=7,'ILSfA Scenario InputAssumptions'!R60,IF('Scenario & Results'!$B$5=8,'ILSfA Scenario InputAssumptions'!R86,"Invalid"))))))))) ->  | AC8: =IF($V$3="","",IF('Scenario & Results'!$B$5=1,'ILSfA Scenario InputAssumptions'!I8,IF('Scenario & Results'!$B$5=2,'ILSfA Scenario InputAssumptions'!I34,IF('Scenario & Results'!$B$5=3,'ILSfA Scenario InputAssumptions'!I60,IF('Scenario & Results'!$B$5=4,'ILSfA Scenario InputAssumptions'!I86,IF('Scenario & Results'!$B$5=5,'ILSfA Scenario InputAssumptions'!S8,IF('Scenario & Results'!$B$5=6,'ILSfA Scenario InputAssumptions'!S34,IF('Scenario & Results'!$B$5=7,'ILSfA Scenario InputAssumptions'!S60,IF('Scenario & Results'!$B$5=8,'ILSfA Scenario InputAssumptions'!S86,"Invalid"))))))))) ->  | AD8: =IF($V$3="","",IF('Scenario & Results'!$B$5=1,'ILSfA Scenario InputAssumptions'!J8,IF('Scenario & Results'!$B$5=2,'ILSfA Scenario InputAssumptions'!J34,IF('Scenario & Results'!$B$5=3,'ILSfA Scenario InputAssumptions'!J60,IF('Scenario & Results'!$B$5=4,'ILSfA Scenario InputAssumptions'!J86,IF('Scenario & Results'!$B$5=5,'ILSfA Scenario InputAssumptions'!T8,IF('Scenario & Results'!$B$5=6,'ILSfA Scenario InputAssumptions'!T34,IF('Scenario & Results'!$B$5=7,'ILSfA Scenario InputAssumptions'!T60,IF('Scenario & Results'!$B$5=8,'ILSfA Scenario InputAssumptions'!T86,"Invalid"))))))))) -> 
A9: Distributed Generation (1-4 Unit) | B9: Balance of Plant | C9: $ | D9: ='NREL Capital Costs'!C$6*D5 -> 10162.93986 | E9: ='NREL Capital Costs'!F$6*E5 -> 24378.86765 | F9: ='NREL Capital Costs'!G$6*F5 -> 96286.48589 | G9: ='NREL Capital Costs'!H$6*G5 -> 170166.9036 | H9: ='NREL Capital Costs'!I$6*H5 -> 398791.4615 | I9: ='NREL Capital Costs'!J$6*I5 -> 1591235.536 | J9: ='NREL Capital Costs'!K$6*J5 -> 4061593.032 | K9: Distributed Generation (1-4 Unit) | L9: Balance of Plant | M9: $ | N9: ='NREL Capital Costs'!C$6*N5 -> 10050.30287 | O9: ='NREL Capital Costs'!F$6*O5 -> 24129.49879 | P9: ='NREL Capital Costs'!G$6*P5 -> 99730.05476 | Q9: ='NREL Capital Costs'!H$6*Q5 -> 175843.5764 | R9: ='NREL Capital Costs'!I$6*R5 -> 404225.9406 | S9: ='NREL Capital Costs'!J$6*S5 -> 1618886.586 | T9: ='NREL Capital Costs'!K$6*T5 -> 4053126.748 | V9: Balance of Plant | W9: $ | X9: =IF($V$3="","",IF('Scenario & Results'!$B$5=1,'ILSfA Scenario InputAssumptions'!D9,IF('Scenario & Results'!$B$5=2,'ILSfA Scenario InputAssumptions'!D35,IF('Scenario & Results'!$B$5=3,'ILSfA Scenario InputAssumptions'!D61,IF('Scenario & Results'!$B$5=4,'ILSfA Scenario InputAssumptions'!D87,IF('Scenario & Results'!$B$5=5,'ILSfA Scenario InputAssumptions'!N9,IF('Scenario & Results'!$B$5=6,'ILSfA Scenario InputAssumptions'!N35,IF('Scenario & Results'!$B$5=7,'ILSfA Scenario InputAssumptions'!N61,IF('Scenario & Results'!$B$5=8,'ILSfA Scenario InputAssumptions'!N87,"Invalid"))))))))) ->  | Y9: =IF($V$3="","",IF('Scenario & Results'!$B$5=1,'ILSfA Scenario InputAssumptions'!E9,IF('Scenario & Results'!$B$5=2,'ILSfA Scenario InputAssumptions'!E35,IF('Scenario & Results'!$B$5=3,'ILSfA Scenario InputAssumptions'!E61,IF('Scenario & Results'!$B$5=4,'ILSfA Scenario InputAssumptions'!E87,IF('Scenario & Results'!$B$5=5,'ILSfA Scenario InputAssumptions'!O9,IF('Scenario & Results'!$B$5=6,'ILSfA Scenario InputAssumptions'!O35,IF('Scenario & Results'!$B$5=7,'ILSfA Scenario InputAssumptions'!O61,IF('Scenario & Results'!$B$5=8,'ILSfA Scenario InputAssumptions'!O87,"Invalid"))))))))) ->  | Z9: =IF($V$3="","",IF('Scenario & Results'!$B$5=1,'ILSfA Scenario InputAssumptions'!F9,IF('Scenario & Results'!$B$5=2,'ILSfA Scenario InputAssumptions'!F35,IF('Scenario & Results'!$B$5=3,'ILSfA Scenario InputAssumptions'!F61,IF('Scenario & Results'!$B$5=4,'ILSfA Scenario InputAssumptions'!F87,IF('Scenario & Results'!$B$5=5,'ILSfA Scenario InputAssumptions'!P9,IF('Scenario & Results'!$B$5=6,'ILSfA Scenario InputAssumptions'!P35,IF('Scenario & Results'!$B$5=7,'ILSfA Scenario InputAssumptions'!P61,IF('Scenario & Results'!$B$5=8,'ILSfA Scenario InputAssumptions'!P87,"Invalid"))))))))) ->  | AA9: =IF($V$3="","",IF('Scenario & Results'!$B$5=1,'ILSfA Scenario InputAssumptions'!G9,IF('Scenario & Results'!$B$5=2,'ILSfA Scenario InputAssumptions'!G35,IF('Scenario & Results'!$B$5=3,'ILSfA Scenario InputAssumptions'!G61,IF('Scenario & Results'!$B$5=4,'ILSfA Scenario InputAssumptions'!G87,IF('Scenario & Results'!$B$5=5,'ILSfA Scenario InputAssumptions'!Q9,IF('Scenario & Results'!$B$5=6,'ILSfA Scenario InputAssumptions'!Q35,IF('Scenario & Results'!$B$5=7,'ILSfA Scenario InputAssumptions'!Q61,IF('Scenario & Results'!$B$5=8,'ILSfA Scenario InputAssumptions'!Q87,"Invalid"))))))))) ->  | AB9: =IF($V$3="","",IF('Scenario & Results'!$B$5=1,'ILSfA Scenario InputAssumptions'!H9,IF('Scenario & Results'!$B$5=2,'ILSfA Scenario InputAssumptions'!H35,IF('Scenario & Results'!$B$5=3,'ILSfA Scenario InputAssumptions'!H61,IF('Scenario & Results'!$B$5=4,'ILSfA Scenario InputAssumptions'!H87,IF('Scenario & Results'!$B$5=5,'ILSfA Scenario InputAssumptions'!R9,IF('Scenario & Results'!$B$5=6,'ILSfA Scenario InputAssumptions'!R35,IF('Scenario & Results'!$B$5=7,'ILSfA Scenario InputAssumptions'!R61,IF('Scenario & Results'!$B$5=8,'ILSfA Scenario InputAssumptions'!R87,"Invalid"))))))))) ->  | AC9: =IF($V$3="","",IF('Scenario & Results'!$B$5=1,'ILSfA Scenario InputAssumptions'!I9,IF('Scenario & Results'!$B$5=2,'ILSfA Scenario InputAssumptions'!I35,IF('Scenario & Results'!$B$5=3,'ILSfA Scenario InputAssumptions'!I61,IF('Scenario & Results'!$B$5=4,'ILSfA Scenario InputAssumptions'!I87,IF('Scenario & Results'!$B$5=5,'ILSfA Scenario InputAssumptions'!S9,IF('Scenario & Results'!$B$5=6,'ILSfA Scenario InputAssumptions'!S35,IF('Scenario & Results'!$B$5=7,'ILSfA Scenario InputAssumptions'!S61,IF('Scenario & Results'!$B$5=8,'ILSfA Scenario InputAssumptions'!S87,"Invalid"))))))))) ->  | AD9: =IF($V$3="","",IF('Scenario & Results'!$B$5=1,'ILSfA Scenario InputAssumptions'!J9,IF('Scenario & Results'!$B$5=2,'ILSfA Scenario InputAssumptions'!J35,IF('Scenario & Results'!$B$5=3,'ILSfA Scenario InputAssumptions'!J61,IF('Scenario & Results'!$B$5=4,'ILSfA Scenario InputAssumptions'!J87,IF('Scenario & Results'!$B$5=5,'ILSfA Scenario InputAssumptions'!T9,IF('Scenario & Results'!$B$5=6,'ILSfA Scenario InputAssumptions'!T35,IF('Scenario & Results'!$B$5=7,'ILSfA Scenario InputAssumptions'!T61,IF('Scenario & Results'!$B$5=8,'ILSfA Scenario InputAssumptions'!T87,"Invalid"))))))))) -> 
A10: Distributed Generation (1-4 Unit) | B10: Interconnection | C10: $ | D10: 200 | E10: 200 | F10: ='NREL Capital Costs'!G$8*F5 -> 15210.51871 | G10: ='NREL Capital Costs'!H$8*G5 -> 24026.90398 | H10: ='NREL Capital Costs'!I$8*H5 -> 50620.8969 | I10: ='NREL Capital Costs'!J$8*I5 -> 195054.6786 | J10: ='NREL Capital Costs'!K$8*J5 -> 421762.8929 | K10: Distributed Generation (1-4 Unit) | L10: Interconnection | M10: $ | N10: 200 | O10: 200 | P10: ='NREL Capital Costs'!G$8*P5 -> 15754.50438 | Q10: ='NREL Capital Costs'!H$8*Q5 -> 24828.42807 | R10: ='NREL Capital Costs'!I$8*R5 -> 51310.72663 | S10: ='NREL Capital Costs'!J$8*S5 -> 198444.1622 | T10: ='NREL Capital Costs'!K$8*T5 -> 420883.7392 | V10: Interconnection | W10: $ | X10: =IF($V$3="","",IF('Scenario & Results'!$B$5=1,'ILSfA Scenario InputAssumptions'!D10,IF('Scenario & Results'!$B$5=2,'ILSfA Scenario InputAssumptions'!D36,IF('Scenario & Results'!$B$5=3,'ILSfA Scenario InputAssumptions'!D62,IF('Scenario & Results'!$B$5=4,'ILSfA Scenario InputAssumptions'!D88,IF('Scenario & Results'!$B$5=5,'ILSfA Scenario InputAssumptions'!N10,IF('Scenario & Results'!$B$5=6,'ILSfA Scenario InputAssumptions'!N36,IF('Scenario & Results'!$B$5=7,'ILSfA Scenario InputAssumptions'!N62,IF('Scenario & Results'!$B$5=8,'ILSfA Scenario InputAssumptions'!N88,"Invalid"))))))))) ->  | Y10: =IF($V$3="","",IF('Scenario & Results'!$B$5=1,'ILSfA Scenario InputAssumptions'!E10,IF('Scenario & Results'!$B$5=2,'ILSfA Scenario InputAssumptions'!E36,IF('Scenario & Results'!$B$5=3,'ILSfA Scenario InputAssumptions'!E62,IF('Scenario & Results'!$B$5=4,'ILSfA Scenario InputAssumptions'!E88,IF('Scenario & Results'!$B$5=5,'ILSfA Scenario InputAssumptions'!O10,IF('Scenario & Results'!$B$5=6,'ILSfA Scenario InputAssumptions'!O36,IF('Scenario & Results'!$B$5=7,'ILSfA Scenario InputAssumptions'!O62,IF('Scenario & Results'!$B$5=8,'ILSfA Scenario InputAssumptions'!O88,"Invalid"))))))))) ->  | Z10: =IF($V$3="","",IF('Scenario & Results'!$B$5=1,'ILSfA Scenario InputAssumptions'!F10,IF('Scenario & Results'!$B$5=2,'ILSfA Scenario InputAssumptions'!F36,IF('Scenario & Results'!$B$5=3,'ILSfA Scenario InputAssumptions'!F62,IF('Scenario & Results'!$B$5=4,'ILSfA Scenario InputAssumptions'!F88,IF('Scenario & Results'!$B$5=5,'ILSfA Scenario InputAssumptions'!P10,IF('Scenario & Results'!$B$5=6,'ILSfA Scenario InputAssumptions'!P36,IF('Scenario & Results'!$B$5=7,'ILSfA Scenario InputAssumptions'!P62,IF('Scenario & Results'!$B$5=8,'ILSfA Scenario InputAssumptions'!P88,"Invalid"))))))))) ->  | AA10: =IF($V$3="","",IF('Scenario & Results'!$B$5=1,'ILSfA Scenario InputAssumptions'!G10,IF('Scenario & Results'!$B$5=2,'ILSfA Scenario InputAssumptions'!G36,IF('Scenario & Results'!$B$5=3,'ILSfA Scenario InputAssumptions'!G62,IF('Scenario & Results'!$B$5=4,'ILSfA Scenario InputAssumptions'!G88,IF('Scenario & Results'!$B$5=5,'ILSfA Scenario InputAssumptions'!Q10,IF('Scenario & Results'!$B$5=6,'ILSfA Scenario InputAssumptions'!Q36,IF('Scenario & Results'!$B$5=7,'ILSfA Scenario InputAssumptions'!Q62,IF('Scenario & Results'!$B$5=8,'ILSfA Scenario InputAssumptions'!Q88,"Invalid"))))))))) ->  | AB10: =IF($V$3="","",IF('Scenario & Results'!$B$5=1,'ILSfA Scenario InputAssumptions'!H10,IF('Scenario & Results'!$B$5=2,'ILSfA Scenario InputAssumptions'!H36,IF('Scenario & Results'!$B$5=3,'ILSfA Scenario InputAssumptions'!H62,IF('Scenario & Results'!$B$5=4,'ILSfA Scenario InputAssumptions'!H88,IF('Scenario & Results'!$B$5=5,'ILSfA Scenario InputAssumptions'!R10,IF('Scenario & Results'!$B$5=6,'ILSfA Scenario InputAssumptions'!R36,IF('Scenario & Results'!$B$5=7,'ILSfA Scenario InputAssumptions'!R62,IF('Scenario & Results'!$B$5=8,'ILSfA Scenario InputAssumptions'!R88,"Invalid"))))))))) ->  | AC10: =IF($V$3="","",IF('Scenario & Results'!$B$5=1,'ILSfA Scenario InputAssumptions'!I10,IF('Scenario & Results'!$B$5=2,'ILSfA Scenario InputAssumptions'!I36,IF('Scenario & Results'!$B$5=3,'ILSfA Scenario InputAssumptions'!I62,IF('Scenario & Results'!$B$5=4,'ILSfA Scenario InputAssumptions'!I88,IF('Scenario & Results'!$B$5=5,'ILSfA Scenario InputAssumptions'!S10,IF('Scenario & Results'!$B$5=6,'ILSfA Scenario InputAssumptions'!S36,IF('Scenario & Results'!$B$5=7,'ILSfA Scenario InputAssumptions'!S62,IF('Scenario & Results'!$B$5=8,'ILSfA Scenario InputAssumptions'!S88,"Invalid"))))))))) ->  | AD10: =IF($V$3="","",IF('Scenario & Results'!$B$5=1,'ILSfA Scenario InputAssumptions'!J10,IF('Scenario & Results'!$B$5=2,'ILSfA Scenario InputAssumptions'!J36,IF('Scenario & Results'!$B$5=3,'ILSfA Scenario InputAssumptions'!J62,IF('Scenario & Results'!$B$5=4,'ILSfA Scenario InputAssumptions'!J88,IF('Scenario & Results'!$B$5=5,'ILSfA Scenario InputAssumptions'!T10,IF('Scenario & Results'!$B$5=6,'ILSfA Scenario InputAssumptions'!T36,IF('Scenario & Results'!$B$5=7,'ILSfA Scenario InputAssumptions'!T62,IF('Scenario & Results'!$B$5=8,'ILSfA Scenario InputAssumptions'!T88,"Invalid"))))))))) -> 
A11: Distributed Generation (1-4 Unit) | B11: Development Costs & Fee | C11: $ | D11: ='NREL Capital Costs'!C$9*2*D5 -> 28804.05415 | E11: ='NREL Capital Costs'!F$9*2*E5 -> 46671.00181 | F11: ='NREL Capital Costs'!G$9*2*F5 -> 184331.234 | G11: ='NREL Capital Costs'!H$9*2*G5 -> 340049.797 | H11: ='NREL Capital Costs'!I$9*2*H5 -> 816574.6325 | I11: ='NREL Capital Costs'!J$9*2*I5 -> 3300530.482 | J11: ='NREL Capital Costs'!K$9*2*J5 -> 6983339.417 | K11: Distributed Generation (1-4 Unit) | L11: Development Costs & Fee | M11: $ | N11: ='NREL Capital Costs'!C$9*1.5*N5 -> 21363.61171 | O11: ='NREL Capital Costs'!F$9*1.5*O5 -> 34645.20681 | P11: ='NREL Capital Costs'!G$9*1.5*P5 -> 143192.712 | Q11: ='NREL Capital Costs'!H$9*1.5*Q5 -> 263545.2512 | R11: ='NREL Capital Costs'!I$9*1.5*R5 -> 620776.7984 | S11: ='NREL Capital Costs'!J$9*1.5*S5 -> 2518413.085 | T11: ='NREL Capital Costs'!K$9*1.5*T5 -> 5226587.122 | V11: Development Costs & Fee | W11: $ | X11: =IF($V$3="","",IF('Scenario & Results'!$B$5=1,'ILSfA Scenario InputAssumptions'!D11,IF('Scenario & Results'!$B$5=2,'ILSfA Scenario InputAssumptions'!D37,IF('Scenario & Results'!$B$5=3,'ILSfA Scenario InputAssumptions'!D63,IF('Scenario & Results'!$B$5=4,'ILSfA Scenario InputAssumptions'!D89,IF('Scenario & Results'!$B$5=5,'ILSfA Scenario InputAssumptions'!N11,IF('Scenario & Results'!$B$5=6,'ILSfA Scenario InputAssumptions'!N37,IF('Scenario & Results'!$B$5=7,'ILSfA Scenario InputAssumptions'!N63,IF('Scenario & Results'!$B$5=8,'ILSfA Scenario InputAssumptions'!N89,"Invalid"))))))))) ->  | Y11: =IF($V$3="","",IF('Scenario & Results'!$B$5=1,'ILSfA Scenario InputAssumptions'!E11,IF('Scenario & Results'!$B$5=2,'ILSfA Scenario InputAssumptions'!E37,IF('Scenario & Results'!$B$5=3,'ILSfA Scenario InputAssumptions'!E63,IF('Scenario & Results'!$B$5=4,'ILSfA Scenario InputAssumptions'!E89,IF('Scenario & Results'!$B$5=5,'ILSfA Scenario InputAssumptions'!O11,IF('Scenario & Results'!$B$5=6,'ILSfA Scenario InputAssumptions'!O37,IF('Scenario & Results'!$B$5=7,'ILSfA Scenario InputAssumptions'!O63,IF('Scenario & Results'!$B$5=8,'ILSfA Scenario InputAssumptions'!O89,"Invalid"))))))))) ->  | Z11: =IF($V$3="","",IF('Scenario & Results'!$B$5=1,'ILSfA Scenario InputAssumptions'!F11,IF('Scenario & Results'!$B$5=2,'ILSfA Scenario InputAssumptions'!F37,IF('Scenario & Results'!$B$5=3,'ILSfA Scenario InputAssumptions'!F63,IF('Scenario & Results'!$B$5=4,'ILSfA Scenario InputAssumptions'!F89,IF('Scenario & Results'!$B$5=5,'ILSfA Scenario InputAssumptions'!P11,IF('Scenario & Results'!$B$5=6,'ILSfA Scenario InputAssumptions'!P37,IF('Scenario & Results'!$B$5=7,'ILSfA Scenario InputAssumptions'!P63,IF('Scenario & Results'!$B$5=8,'ILSfA Scenario InputAssumptions'!P89,"Invalid"))))))))) ->  | AA11: =IF($V$3="","",IF('Scenario & Results'!$B$5=1,'ILSfA Scenario InputAssumptions'!G11,IF('Scenario & Results'!$B$5=2,'ILSfA Scenario InputAssumptions'!G37,IF('Scenario & Results'!$B$5=3,'ILSfA Scenario InputAssumptions'!G63,IF('Scenario & Results'!$B$5=4,'ILSfA Scenario InputAssumptions'!G89,IF('Scenario & Results'!$B$5=5,'ILSfA Scenario InputAssumptions'!Q11,IF('Scenario & Results'!$B$5=6,'ILSfA Scenario InputAssumptions'!Q37,IF('Scenario & Results'!$B$5=7,'ILSfA Scenario InputAssumptions'!Q63,IF('Scenario & Results'!$B$5=8,'ILSfA Scenario InputAssumptions'!Q89,"Invalid"))))))))) ->  | AB11: =IF($V$3="","",IF('Scenario & Results'!$B$5=1,'ILSfA Scenario InputAssumptions'!H11,IF('Scenario & Results'!$B$5=2,'ILSfA Scenario InputAssumptions'!H37,IF('Scenario & Results'!$B$5=3,'ILSfA Scenario InputAssumptions'!H63,IF('Scenario & Results'!$B$5=4,'ILSfA Scenario InputAssumptions'!H89,IF('Scenario & Results'!$B$5=5,'ILSfA Scenario InputAssumptions'!R11,IF('Scenario & Results'!$B$5=6,'ILSfA Scenario InputAssumptions'!R37,IF('Scenario & Results'!$B$5=7,'ILSfA Scenario InputAssumptions'!R63,IF('Scenario & Results'!$B$5=8,'ILSfA Scenario InputAssumptions'!R89,"Invalid"))))))))) ->  | AC11: =IF($V$3="","",IF('Scenario & Results'!$B$5=1,'ILSfA Scenario InputAssumptions'!I11,IF('Scenario & Results'!$B$5=2,'ILSfA Scenario InputAssumptions'!I37,IF('Scenario & Results'!$B$5=3,'ILSfA Scenario InputAssumptions'!I63,IF('Scenario & Results'!$B$5=4,'ILSfA Scenario InputAssumptions'!I89,IF('Scenario & Results'!$B$5=5,'ILSfA Scenario InputAssumptions'!S11,IF('Scenario & Results'!$B$5=6,'ILSfA Scenario InputAssumptions'!S37,IF('Scenario & Results'!$B$5=7,'ILSfA Scenario InputAssumptions'!S63,IF('Scenario & Results'!$B$5=8,'ILSfA Scenario InputAssumptions'!S89,"Invalid"))))))))) ->  | AD11: =IF($V$3="","",IF('Scenario & Results'!$B$5=1,'ILSfA Scenario InputAssumptions'!J11,IF('Scenario & Results'!$B$5=2,'ILSfA Scenario InputAssumptions'!J37,IF('Scenario & Results'!$B$5=3,'ILSfA Scenario InputAssumptions'!J63,IF('Scenario & Results'!$B$5=4,'ILSfA Scenario InputAssumptions'!J89,IF('Scenario & Results'!$B$5=5,'ILSfA Scenario InputAssumptions'!T11,IF('Scenario & Results'!$B$5=6,'ILSfA Scenario InputAssumptions'!T37,IF('Scenario & Results'!$B$5=7,'ILSfA Scenario InputAssumptions'!T63,IF('Scenario & Results'!$B$5=8,'ILSfA Scenario InputAssumptions'!T89,"Invalid"))))))))) -> 
A12: Distributed Generation (1-4 Unit) | B12: Project Management Yr 1 | C12: $/yr | D12: =VLOOKUP($B3,'Program-specific Assumptions'!$C$1:$N$9,3,0)*D$5 -> 85.2848938 | E12: =VLOOKUP($B3,'Program-specific Assumptions'!$C$1:$N$9,3,0)*E$5 -> 210.5850374 | F12: =VLOOKUP($B3,'Program-specific Assumptions'!$C$1:$N$9,3,0)*F$5 -> 831.7241607 | G12: =VLOOKUP($B3,'Program-specific Assumptions'!$C$1:$N$9,3,0)*G$5 -> 1679.37724 | H12: =VLOOKUP($B3,'Program-specific Assumptions'!$C$1:$N$9,3,0)*H$5 -> 4250.268677 | I12: =VLOOKUP($B3,'Program-specific Assumptions'!$C$1:$N$9,3,0)*I$5 -> 17555.33391 | J12: =VLOOKUP($B3,'Program-specific Assumptions'!$C$1:$N$9,3,0)*J$5 -> 44744.25473 | K12: Distributed Generation (1-4 Unit) | L12: Project Management Yr 1 | M12: $/yr | N12: =VLOOKUP($B3,'Program-specific Assumptions'!$C$1:$N$9,3,0)*N$5 -> 84.33967184 | O12: =VLOOKUP($B3,'Program-specific Assumptions'!$C$1:$N$9,3,0)*O$5 -> 208.4309854 | P12: =VLOOKUP($B3,'Program-specific Assumptions'!$C$1:$N$9,3,0)*P$5 -> 861.4697621 | Q12: =VLOOKUP($B3,'Program-specific Assumptions'!$C$1:$N$9,3,0)*Q$5 -> 1735.400326 | R12: =VLOOKUP($B3,'Program-specific Assumptions'!$C$1:$N$9,3,0)*R$5 -> 4308.188664 | S12: =VLOOKUP($B3,'Program-specific Assumptions'!$C$1:$N$9,3,0)*S$5 -> 17860.3946 | T12: =VLOOKUP($B3,'Program-specific Assumptions'!$C$1:$N$9,3,0)*T$5 -> 44650.98651 | V12: Project Management Yr 1 | W12: $/yr | X12: =IF($V$3="","",IF('Scenario & Results'!$B$5=1,'ILSfA Scenario InputAssumptions'!D12,IF('Scenario & Results'!$B$5=2,'ILSfA Scenario InputAssumptions'!D38,IF('Scenario & Results'!$B$5=3,'ILSfA Scenario InputAssumptions'!D64,IF('Scenario & Results'!$B$5=4,'ILSfA Scenario InputAssumptions'!D90,IF('Scenario & Results'!$B$5=5,'ILSfA Scenario InputAssumptions'!N12,IF('Scenario & Results'!$B$5=6,'ILSfA Scenario InputAssumptions'!N38,IF('Scenario & Results'!$B$5=7,'ILSfA Scenario InputAssumptions'!N64,IF('Scenario & Results'!$B$5=8,'ILSfA Scenario InputAssumptions'!N90,"Invalid"))))))))) ->  | Y12: =IF($V$3="","",IF('Scenario & Results'!$B$5=1,'ILSfA Scenario InputAssumptions'!E12,IF('Scenario & Results'!$B$5=2,'ILSfA Scenario InputAssumptions'!E38,IF('Scenario & Results'!$B$5=3,'ILSfA Scenario InputAssumptions'!E64,IF('Scenario & Results'!$B$5=4,'ILSfA Scenario InputAssumptions'!E90,IF('Scenario & Results'!$B$5=5,'ILSfA Scenario InputAssumptions'!O12,IF('Scenario & Results'!$B$5=6,'ILSfA Scenario InputAssumptions'!O38,IF('Scenario & Results'!$B$5=7,'ILSfA Scenario InputAssumptions'!O64,IF('Scenario & Results'!$B$5=8,'ILSfA Scenario InputAssumptions'!O90,"Invalid"))))))))) ->  | Z12: =IF($V$3="","",IF('Scenario & Results'!$B$5=1,'ILSfA Scenario InputAssumptions'!F12,IF('Scenario & Results'!$B$5=2,'ILSfA Scenario InputAssumptions'!F38,IF('Scenario & Results'!$B$5=3,'ILSfA Scenario InputAssumptions'!F64,IF('Scenario & Results'!$B$5=4,'ILSfA Scenario InputAssumptions'!F90,IF('Scenario & Results'!$B$5=5,'ILSfA Scenario InputAssumptions'!P12,IF('Scenario & Results'!$B$5=6,'ILSfA Scenario InputAssumptions'!P38,IF('Scenario & Results'!$B$5=7,'ILSfA Scenario InputAssumptions'!P64,IF('Scenario & Results'!$B$5=8,'ILSfA Scenario InputAssumptions'!P90,"Invalid"))))))))) ->  | AA12: =IF($V$3="","",IF('Scenario & Results'!$B$5=1,'ILSfA Scenario InputAssumptions'!G12,IF('Scenario & Results'!$B$5=2,'ILSfA Scenario InputAssumptions'!G38,IF('Scenario & Results'!$B$5=3,'ILSfA Scenario InputAssumptions'!G64,IF('Scenario & Results'!$B$5=4,'ILSfA Scenario InputAssumptions'!G90,IF('Scenario & Results'!$B$5=5,'ILSfA Scenario InputAssumptions'!Q12,IF('Scenario & Results'!$B$5=6,'ILSfA Scenario InputAssumptions'!Q38,IF('Scenario & Results'!$B$5=7,'ILSfA Scenario InputAssumptions'!Q64,IF('Scenario & Results'!$B$5=8,'ILSfA Scenario InputAssumptions'!Q90,"Invalid"))))))))) ->  | AB12: =IF($V$3="","",IF('Scenario & Results'!$B$5=1,'ILSfA Scenario InputAssumptions'!H12,IF('Scenario & Results'!$B$5=2,'ILSfA Scenario InputAssumptions'!H38,IF('Scenario & Results'!$B$5=3,'ILSfA Scenario InputAssumptions'!H64,IF('Scenario & Results'!$B$5=4,'ILSfA Scenario InputAssumptions'!H90,IF('Scenario & Results'!$B$5=5,'ILSfA Scenario InputAssumptions'!R12,IF('Scenario & Results'!$B$5=6,'ILSfA Scenario InputAssumptions'!R38,IF('Scenario & Results'!$B$5=7,'ILSfA Scenario InputAssumptions'!R64,IF('Scenario & Results'!$B$5=8,'ILSfA Scenario InputAssumptions'!R90,"Invalid"))))))))) ->  | AC12: =IF($V$3="","",IF('Scenario & Results'!$B$5=1,'ILSfA Scenario InputAssumptions'!I12,IF('Scenario & Results'!$B$5=2,'ILSfA Scenario InputAssumptions'!I38,IF('Scenario & Results'!$B$5=3,'ILSfA Scenario InputAssumptions'!I64,IF('Scenario & Results'!$B$5=4,'ILSfA Scenario InputAssumptions'!I90,IF('Scenario & Results'!$B$5=5,'ILSfA Scenario InputAssumptions'!S12,IF('Scenario & Results'!$B$5=6,'ILSfA Scenario InputAssumptions'!S38,IF('Scenario & Results'!$B$5=7,'ILSfA Scenario InputAssumptions'!S64,IF('Scenario & Results'!$B$5=8,'ILSfA Scenario InputAssumptions'!S90,"Invalid"))))))))) ->  | AD12: =IF($V$3="","",IF('Scenario & Results'!$B$5=1,'ILSfA Scenario InputAssumptions'!J12,IF('Scenario & Results'!$B$5=2,'ILSfA Scenario InputAssumptions'!J38,IF('Scenario & Results'!$B$5=3,'ILSfA Scenario InputAssumptions'!J64,IF('Scenario & Results'!$B$5=4,'ILSfA Scenario InputAssumptions'!J90,IF('Scenario & Results'!$B$5=5,'ILSfA Scenario InputAssumptions'!T12,IF('Scenario & Results'!$B$5=6,'ILSfA Scenario InputAssumptions'!T38,IF('Scenario & Results'!$B$5=7,'ILSfA Scenario InputAssumptions'!T64,IF('Scenario & Results'!$B$5=8,'ILSfA Scenario InputAssumptions'!T90,"Invalid"))))))))) -> 
A13: Distributed Generation (1-4 Unit) | B13: Property Tax or PILOT, Yr 1 | C13: $/yr | D13: =VLOOKUP($B3,'Program-specific Assumptions'!$C$1:$N$9,11,0)*D4 -> 0 | E13: =VLOOKUP($B3,'Program-specific Assumptions'!$C$1:$N$9,11,0)*E4 -> 0 | F13: =VLOOKUP($B3,'Program-specific Assumptions'!$C$1:$N$9,11,0)*F4 -> 0 | G13: =VLOOKUP($B3,'Program-specific Assumptions'!$C$1:$N$9,11,0)*G4 -> 0 | H13: =VLOOKUP($B3,'Program-specific Assumptions'!$C$1:$N$9,11,0)*H4 -> 0 | I13: =VLOOKUP($B3,'Program-specific Assumptions'!$C$1:$N$9,11,0)*I4 -> 0 | J13: =VLOOKUP($B3,'Program-specific Assumptions'!$C$1:$N$9,11,0)*J4 -> 0 | K13: Distributed Generation (1-4 Unit) | L13: Property Tax or PILOT, Yr 1 | M13: $/yr | N13: =VLOOKUP($B3,'Program-specific Assumptions'!$C$1:$N$9,11,0)*N4 -> 0 | O13: =VLOOKUP($B3,'Program-specific Assumptions'!$C$1:$N$9,11,0)*O4 -> 0 | P13: =VLOOKUP($B3,'Program-specific Assumptions'!$C$1:$N$9,11,0)*P4 -> 0 | Q13: =VLOOKUP($B3,'Program-specific Assumptions'!$C$1:$N$9,11,0)*Q4 -> 0 | R13: =VLOOKUP($B3,'Program-specific Assumptions'!$C$1:$N$9,11,0)*R4 -> 0 | S13: =VLOOKUP($B3,'Program-specific Assumptions'!$C$1:$N$9,11,0)*S4 -> 0 | T13: =VLOOKUP($B3,'Program-specific Assumptions'!$C$1:$N$9,11,0)*T4 -> 0 | V13: Property Tax or PILOT, Yr 1 | W13: $/yr | X13: =IF($V$3="","",IF('Scenario & Results'!$B$5=1,'ILSfA Scenario InputAssumptions'!D13,IF('Scenario & Results'!$B$5=2,'ILSfA Scenario InputAssumptions'!D39,IF('Scenario & Results'!$B$5=3,'ILSfA Scenario InputAssumptions'!D65,IF('Scenario & Results'!$B$5=4,'ILSfA Scenario InputAssumptions'!D91,IF('Scenario & Results'!$B$5=5,'ILSfA Scenario InputAssumptions'!N13,IF('Scenario & Results'!$B$5=6,'ILSfA Scenario InputAssumptions'!N39,IF('Scenario & Results'!$B$5=7,'ILSfA Scenario InputAssumptions'!N65,IF('Scenario & Results'!$B$5=8,'ILSfA Scenario InputAssumptions'!N91,"Invalid"))))))))) ->  | Y13: =IF($V$3="","",IF('Scenario & Results'!$B$5=1,'ILSfA Scenario InputAssumptions'!E13,IF('Scenario & Results'!$B$5=2,'ILSfA Scenario InputAssumptions'!E39,IF('Scenario & Results'!$B$5=3,'ILSfA Scenario InputAssumptions'!E65,IF('Scenario & Results'!$B$5=4,'ILSfA Scenario InputAssumptions'!E91,IF('Scenario & Results'!$B$5=5,'ILSfA Scenario InputAssumptions'!O13,IF('Scenario & Results'!$B$5=6,'ILSfA Scenario InputAssumptions'!O39,IF('Scenario & Results'!$B$5=7,'ILSfA Scenario InputAssumptions'!O65,IF('Scenario & Results'!$B$5=8,'ILSfA Scenario InputAssumptions'!O91,"Invalid"))))))))) ->  | Z13: =IF($V$3="","",IF('Scenario & Results'!$B$5=1,'ILSfA Scenario InputAssumptions'!F13,IF('Scenario & Results'!$B$5=2,'ILSfA Scenario InputAssumptions'!F39,IF('Scenario & Results'!$B$5=3,'ILSfA Scenario InputAssumptions'!F65,IF('Scenario & Results'!$B$5=4,'ILSfA Scenario InputAssumptions'!F91,IF('Scenario & Results'!$B$5=5,'ILSfA Scenario InputAssumptions'!P13,IF('Scenario & Results'!$B$5=6,'ILSfA Scenario InputAssumptions'!P39,IF('Scenario & Results'!$B$5=7,'ILSfA Scenario InputAssumptions'!P65,IF('Scenario & Results'!$B$5=8,'ILSfA Scenario InputAssumptions'!P91,"Invalid"))))))))) ->  | AA13: =IF($V$3="","",IF('Scenario & Results'!$B$5=1,'ILSfA Scenario InputAssumptions'!G13,IF('Scenario & Results'!$B$5=2,'ILSfA Scenario InputAssumptions'!G39,IF('Scenario & Results'!$B$5=3,'ILSfA Scenario InputAssumptions'!G65,IF('Scenario & Results'!$B$5=4,'ILSfA Scenario InputAssumptions'!G91,IF('Scenario & Results'!$B$5=5,'ILSfA Scenario InputAssumptions'!Q13,IF('Scenario & Results'!$B$5=6,'ILSfA Scenario InputAssumptions'!Q39,IF('Scenario & Results'!$B$5=7,'ILSfA Scenario InputAssumptions'!Q65,IF('Scenario & Results'!$B$5=8,'ILSfA Scenario InputAssumptions'!Q91,"Invalid"))))))))) ->  | AB13: =IF($V$3="","",IF('Scenario & Results'!$B$5=1,'ILSfA Scenario InputAssumptions'!H13,IF('Scenario & Results'!$B$5=2,'ILSfA Scenario InputAssumptions'!H39,IF('Scenario & Results'!$B$5=3,'ILSfA Scenario InputAssumptions'!H65,IF('Scenario & Results'!$B$5=4,'ILSfA Scenario InputAssumptions'!H91,IF('Scenario & Results'!$B$5=5,'ILSfA Scenario InputAssumptions'!R13,IF('Scenario & Results'!$B$5=6,'ILSfA Scenario InputAssumptions'!R39,IF('Scenario & Results'!$B$5=7,'ILSfA Scenario InputAssumptions'!R65,IF('Scenario & Results'!$B$5=8,'ILSfA Scenario InputAssumptions'!R91,"Invalid"))))))))) ->  | AC13: =IF($V$3="","",IF('Scenario & Results'!$B$5=1,'ILSfA Scenario InputAssumptions'!I13,IF('Scenario & Results'!$B$5=2,'ILSfA Scenario InputAssumptions'!I39,IF('Scenario & Results'!$B$5=3,'ILSfA Scenario InputAssumptions'!I65,IF('Scenario & Results'!$B$5=4,'ILSfA Scenario InputAssumptions'!I91,IF('Scenario & Results'!$B$5=5,'ILSfA Scenario InputAssumptions'!S13,IF('Scenario & Results'!$B$5=6,'ILSfA Scenario InputAssumptions'!S39,IF('Scenario & Results'!$B$5=7,'ILSfA Scenario InputAssumptions'!S65,IF('Scenario & Results'!$B$5=8,'ILSfA Scenario InputAssumptions'!S91,"Invalid"))))))))) ->  | AD13: =IF($V$3="","",IF('Scenario & Results'!$B$5=1,'ILSfA Scenario InputAssumptions'!J13,IF('Scenario & Results'!$B$5=2,'ILSfA Scenario InputAssumptions'!J39,IF('Scenario & Results'!$B$5=3,'ILSfA Scenario InputAssumptions'!J65,IF('Scenario & Results'!$B$5=4,'ILSfA Scenario InputAssumptions'!J91,IF('Scenario & Results'!$B$5=5,'ILSfA Scenario InputAssumptions'!T13,IF('Scenario & Results'!$B$5=6,'ILSfA Scenario InputAssumptions'!T39,IF('Scenario & Results'!$B$5=7,'ILSfA Scenario InputAssumptions'!T65,IF('Scenario & Results'!$B$5=8,'ILSfA Scenario InputAssumptions'!T91,"Invalid"))))))))) -> 
A14: Distributed Generation (1-4 Unit) | B14: Land Lease | C14: $/yr | D14: =VLOOKUP($B3,'Program-specific Assumptions'!$C$1:$N$9,2,0)*D$5 -> 0 | E14: =VLOOKUP($B3,'Program-specific Assumptions'!$C$1:$N$9,2,0)*E$5 -> 0 | F14: =VLOOKUP($B3,'Program-specific Assumptions'!$C$1:$N$9,2,0)*F$5 -> 0 | G14: =VLOOKUP($B3,'Program-specific Assumptions'!$C$1:$N$9,2,0)*G$5 -> 0 | H14: =VLOOKUP($B3,'Program-specific Assumptions'!$C$1:$N$9,2,0)*H$5 -> 0 | I14: =VLOOKUP($B3,'Program-specific Assumptions'!$C$1:$N$9,2,0)*I$5 -> 0 | J14: =VLOOKUP($B3,'Program-specific Assumptions'!$C$1:$N$9,2,0)*J$5 -> 0 | K14: Distributed Generation (1-4 Unit) | L14: Land Lease | M14: $/yr | N14: =VLOOKUP($B3,'Program-specific Assumptions'!$C$1:$N$9,2,0)*N$5 -> 0 | O14: =VLOOKUP($B3,'Program-specific Assumptions'!$C$1:$N$9,2,0)*O$5 -> 0 | P14: =VLOOKUP($B3,'Program-specific Assumptions'!$C$1:$N$9,2,0)*P$5 -> 0 | Q14: =VLOOKUP($B3,'Program-specific Assumptions'!$C$1:$N$9,2,0)*Q$5 -> 0 | R14: =VLOOKUP($B3,'Program-specific Assumptions'!$C$1:$N$9,2,0)*R$5 -> 0 | S14: =VLOOKUP($B3,'Program-specific Assumptions'!$C$1:$N$9,2,0)*S$5 -> 0 | T14: =VLOOKUP($B3,'Program-specific Assumptions'!$C$1:$N$9,2,0)*T$5 -> 0 | V14: Land Lease | W14: $/yr | X14: =IF($V$3="","",IF('Scenario & Results'!$B$5=1,'ILSfA Scenario InputAssumptions'!D14,IF('Scenario & Results'!$B$5=2,'ILSfA Scenario InputAssumptions'!D40,IF('Scenario & Results'!$B$5=3,'ILSfA Scenario InputAssumptions'!D66,IF('Scenario & Results'!$B$5=4,'ILSfA Scenario InputAssumptions'!D92,IF('Scenario & Results'!$B$5=5,'ILSfA Scenario InputAssumptions'!N14,IF('Scenario & Results'!$B$5=6,'ILSfA Scenario InputAssumptions'!N40,IF('Scenario & Results'!$B$5=7,'ILSfA Scenario InputAssumptions'!N66,IF('Scenario & Results'!$B$5=8,'ILSfA Scenario InputAssumptions'!N92,"Invalid"))))))))) ->  | Y14: =IF($V$3="","",IF('Scenario & Results'!$B$5=1,'ILSfA Scenario InputAssumptions'!E14,IF('Scenario & Results'!$B$5=2,'ILSfA Scenario InputAssumptions'!E40,IF('Scenario & Results'!$B$5=3,'ILSfA Scenario InputAssumptions'!E66,IF('Scenario & Results'!$B$5=4,'ILSfA Scenario InputAssumptions'!E92,IF('Scenario & Results'!$B$5=5,'ILSfA Scenario InputAssumptions'!O14,IF('Scenario & Results'!$B$5=6,'ILSfA Scenario InputAssumptions'!O40,IF('Scenario & Results'!$B$5=7,'ILSfA Scenario InputAssumptions'!O66,IF('Scenario & Results'!$B$5=8,'ILSfA Scenario InputAssumptions'!O92,"Invalid"))))))))) ->  | Z14: =IF($V$3="","",IF('Scenario & Results'!$B$5=1,'ILSfA Scenario InputAssumptions'!F14,IF('Scenario & Results'!$B$5=2,'ILSfA Scenario InputAssumptions'!F40,IF('Scenario & Results'!$B$5=3,'ILSfA Scenario InputAssumptions'!F66,IF('Scenario & Results'!$B$5=4,'ILSfA Scenario InputAssumptions'!F92,IF('Scenario & Results'!$B$5=5,'ILSfA Scenario InputAssumptions'!P14,IF('Scenario & Results'!$B$5=6,'ILSfA Scenario InputAssumptions'!P40,IF('Scenario & Results'!$B$5=7,'ILSfA Scenario InputAssumptions'!P66,IF('Scenario & Results'!$B$5=8,'ILSfA Scenario InputAssumptions'!P92,"Invalid"))))))))) ->  | AA14: =IF($V$3="","",IF('Scenario & Results'!$B$5=1,'ILSfA Scenario InputAssumptions'!G14,IF('Scenario & Results'!$B$5=2,'ILSfA Scenario InputAssumptions'!G40,IF('Scenario & Results'!$B$5=3,'ILSfA Scenario InputAssumptions'!G66,IF('Scenario & Results'!$B$5=4,'ILSfA Scenario InputAssumptions'!G92,IF('Scenario & Results'!$B$5=5,'ILSfA Scenario InputAssumptions'!Q14,IF('Scenario & Results'!$B$5=6,'ILSfA Scenario InputAssumptions'!Q40,IF('Scenario & Results'!$B$5=7,'ILSfA Scenario InputAssumptions'!Q66,IF('Scenario & Results'!$B$5=8,'ILSfA Scenario InputAssumptions'!Q92,"Invalid"))))))))) ->  | AB14: =IF($V$3="","",IF('Scenario & Results'!$B$5=1,'ILSfA Scenario InputAssumptions'!H14,IF('Scenario & Results'!$B$5=2,'ILSfA Scenario InputAssumptions'!H40,IF('Scenario & Results'!$B$5=3,'ILSfA Scenario InputAssumptions'!H66,IF('Scenario & Results'!$B$5=4,'ILSfA Scenario InputAssumptions'!H92,IF('Scenario & Results'!$B$5=5,'ILSfA Scenario InputAssumptions'!R14,IF('Scenario & Results'!$B$5=6,'ILSfA Scenario InputAssumptions'!R40,IF('Scenario & Results'!$B$5=7,'ILSfA Scenario InputAssumptions'!R66,IF('Scenario & Results'!$B$5=8,'ILSfA Scenario InputAssumptions'!R92,"Invalid"))))))))) ->  | AC14: =IF($V$3="","",IF('Scenario & Results'!$B$5=1,'ILSfA Scenario InputAssumptions'!I14,IF('Scenario & Results'!$B$5=2,'ILSfA Scenario InputAssumptions'!I40,IF('Scenario & Results'!$B$5=3,'ILSfA Scenario InputAssumptions'!I66,IF('Scenario & Results'!$B$5=4,'ILSfA Scenario InputAssumptions'!I92,IF('Scenario & Results'!$B$5=5,'ILSfA Scenario InputAssumptions'!S14,IF('Scenario & Results'!$B$5=6,'ILSfA Scenario InputAssumptions'!S40,IF('Scenario & Results'!$B$5=7,'ILSfA Scenario InputAssumptions'!S66,IF('Scenario & Results'!$B$5=8,'ILSfA Scenario InputAssumptions'!S92,"Invalid"))))))))) ->  | AD14: =IF($V$3="","",IF('Scenario & Results'!$B$5=1,'ILSfA Scenario InputAssumptions'!J14,IF('Scenario & Results'!$B$5=2,'ILSfA Scenario InputAssumptions'!J40,IF('Scenario & Results'!$B$5=3,'ILSfA Scenario InputAssumptions'!J66,IF('Scenario & Results'!$B$5=4,'ILSfA Scenario InputAssumptions'!J92,IF('Scenario & Results'!$B$5=5,'ILSfA Scenario InputAssumptions'!T14,IF('Scenario & Results'!$B$5=6,'ILSfA Scenario InputAssumptions'!T40,IF('Scenario & Results'!$B$5=7,'ILSfA Scenario InputAssumptions'!T66,IF('Scenario & Results'!$B$5=8,'ILSfA Scenario InputAssumptions'!T92,"Invalid"))))))))) -> 
B15: Construction Period | C15: months | D15: ='Size-specific Assumptions'!D$6 -> 6 | E15: ='Size-specific Assumptions'!E$6 -> 12 | F15: ='Size-specific Assumptions'!F$6 -> 12 | G15: ='Size-specific Assumptions'!G$6 -> 12 | H15: ='Size-specific Assumptions'!H$6 -> 12 | I15: ='Size-specific Assumptions'!I$6 -> 18 | J15: ='Size-specific Assumptions'!J$6 -> 18 | L15: Construction Period | M15: months | N15: ='Size-specific Assumptions'!D$6 -> 6 | O15: ='Size-specific Assumptions'!E$6 -> 12 | P15: ='Size-specific Assumptions'!F$6 -> 12 | Q15: ='Size-specific Assumptions'!G$6 -> 12 | R15: ='Size-specific Assumptions'!H$6 -> 12 | S15: ='Size-specific Assumptions'!I$6 -> 18 | T15: ='Size-specific Assumptions'!J$6 -> 18 | V15: Construction Period | W15: months | X15: =IF($V$3="","",IF('Scenario & Results'!$B$5=1,'ILSfA Scenario InputAssumptions'!D15,IF('Scenario & Results'!$B$5=2,'ILSfA Scenario InputAssumptions'!D41,IF('Scenario & Results'!$B$5=3,'ILSfA Scenario InputAssumptions'!D67,IF('Scenario & Results'!$B$5=4,'ILSfA Scenario InputAssumptions'!D93,IF('Scenario & Results'!$B$5=5,'ILSfA Scenario InputAssumptions'!N15,IF('Scenario & Results'!$B$5=6,'ILSfA Scenario InputAssumptions'!N41,IF('Scenario & Results'!$B$5=7,'ILSfA Scenario InputAssumptions'!N67,IF('Scenario & Results'!$B$5=8,'ILSfA Scenario InputAssumptions'!N93,"Invalid"))))))))) ->  | Y15: =IF($V$3="","",IF('Scenario & Results'!$B$5=1,'ILSfA Scenario InputAssumptions'!E15,IF('Scenario & Results'!$B$5=2,'ILSfA Scenario InputAssumptions'!E41,IF('Scenario & Results'!$B$5=3,'ILSfA Scenario InputAssumptions'!E67,IF('Scenario & Results'!$B$5=4,'ILSfA Scenario InputAssumptions'!E93,IF('Scenario & Results'!$B$5=5,'ILSfA Scenario InputAssumptions'!O15,IF('Scenario & Results'!$B$5=6,'ILSfA Scenario InputAssumptions'!O41,IF('Scenario & Results'!$B$5=7,'ILSfA Scenario InputAssumptions'!O67,IF('Scenario & Results'!$B$5=8,'ILSfA Scenario InputAssumptions'!O93,"Invalid"))))))))) ->  | Z15: =IF($V$3="","",IF('Scenario & Results'!$B$5=1,'ILSfA Scenario InputAssumptions'!F15,IF('Scenario & Results'!$B$5=2,'ILSfA Scenario InputAssumptions'!F41,IF('Scenario & Results'!$B$5=3,'ILSfA Scenario InputAssumptions'!F67,IF('Scenario & Results'!$B$5=4,'ILSfA Scenario InputAssumptions'!F93,IF('Scenario & Results'!$B$5=5,'ILSfA Scenario InputAssumptions'!P15,IF('Scenario & Results'!$B$5=6,'ILSfA Scenario InputAssumptions'!P41,IF('Scenario & Results'!$B$5=7,'ILSfA Scenario InputAssumptions'!P67,IF('Scenario & Results'!$B$5=8,'ILSfA Scenario InputAssumptions'!P93,"Invalid"))))))))) ->  | AA15: =IF($V$3="","",IF('Scenario & Results'!$B$5=1,'ILSfA Scenario InputAssumptions'!G15,IF('Scenario & Results'!$B$5=2,'ILSfA Scenario InputAssumptions'!G41,IF('Scenario & Results'!$B$5=3,'ILSfA Scenario InputAssumptions'!G67,IF('Scenario & Results'!$B$5=4,'ILSfA Scenario InputAssumptions'!G93,IF('Scenario & Results'!$B$5=5,'ILSfA Scenario InputAssumptions'!Q15,IF('Scenario & Results'!$B$5=6,'ILSfA Scenario InputAssumptions'!Q41,IF('Scenario & Results'!$B$5=7,'ILSfA Scenario InputAssumptions'!Q67,IF('Scenario & Results'!$B$5=8,'ILSfA Scenario InputAssumptions'!Q93,"Invalid"))))))))) ->  | AB15: =IF($V$3="","",IF('Scenario & Results'!$B$5=1,'ILSfA Scenario InputAssumptions'!H15,IF('Scenario & Results'!$B$5=2,'ILSfA Scenario InputAssumptions'!H41,IF('Scenario & Results'!$B$5=3,'ILSfA Scenario InputAssumptions'!H67,IF('Scenario & Results'!$B$5=4,'ILSfA Scenario InputAssumptions'!H93,IF('Scenario & Results'!$B$5=5,'ILSfA Scenario InputAssumptions'!R15,IF('Scenario & Results'!$B$5=6,'ILSfA Scenario InputAssumptions'!R41,IF('Scenario & Results'!$B$5=7,'ILSfA Scenario InputAssumptions'!R67,IF('Scenario & Results'!$B$5=8,'ILSfA Scenario InputAssumptions'!R93,"Invalid"))))))))) ->  | AC15: =IF($V$3="","",IF('Scenario & Results'!$B$5=1,'ILSfA Scenario InputAssumptions'!I15,IF('Scenario & Results'!$B$5=2,'ILSfA Scenario InputAssumptions'!I41,IF('Scenario & Results'!$B$5=3,'ILSfA Scenario InputAssumptions'!I67,IF('Scenario & Results'!$B$5=4,'ILSfA Scenario InputAssumptions'!I93,IF('Scenario & Results'!$B$5=5,'ILSfA Scenario InputAssumptions'!S15,IF('Scenario & Results'!$B$5=6,'ILSfA Scenario InputAssumptions'!S41,IF('Scenario & Results'!$B$5=7,'ILSfA Scenario InputAssumptions'!S67,IF('Scenario & Results'!$B$5=8,'ILSfA Scenario InputAssumptions'!S93,"Invalid"))))))))) ->  | AD15: =IF($V$3="","",IF('Scenario & Results'!$B$5=1,'ILSfA Scenario InputAssumptions'!J15,IF('Scenario & Results'!$B$5=2,'ILSfA Scenario InputAssumptions'!J41,IF('Scenario & Results'!$B$5=3,'ILSfA Scenario InputAssumptions'!J67,IF('Scenario & Results'!$B$5=4,'ILSfA Scenario InputAssumptions'!J93,IF('Scenario & Results'!$B$5=5,'ILSfA Scenario InputAssumptions'!T15,IF('Scenario & Results'!$B$5=6,'ILSfA Scenario InputAssumptions'!T41,IF('Scenario & Results'!$B$5=7,'ILSfA Scenario InputAssumptions'!T67,IF('Scenario & Results'!$B$5=8,'ILSfA Scenario InputAssumptions'!T93,"Invalid"))))))))) -> 
A16: Distributed Generation (1-4 Unit) | B16: % Debt (% of hard costs) (mortgage-style amort.) | C16: % | D16: =VLOOKUP($B3,'Program-specific Assumptions'!$C$1:$N$9,4,0) -> 0 | E16: =VLOOKUP($B3,'Program-specific Assumptions'!$C$1:$N$9,4,0) -> 0 | F16: =VLOOKUP($B3,'Program-specific Assumptions'!$C$1:$N$9,4,0) -> 0 | G16: =VLOOKUP($B3,'Program-specific Assumptions'!$C$1:$N$9,4,0) -> 0 | H16: =VLOOKUP($B3,'Program-specific Assumptions'!$C$1:$N$9,4,0) -> 0 | I16: =VLOOKUP($B3,'Program-specific Assumptions'!$C$1:$N$9,4,0) -> 0 | J16: =VLOOKUP($B3,'Program-specific Assumptions'!$C$1:$N$9,4,0) -> 0 | K16: Distributed Generation (1-4 Unit) | L16: % Debt (% of hard costs) (mortgage-style amort.) | M16: % | N16: =VLOOKUP($B3,'Program-specific Assumptions'!$C$1:$N$9,4,0) -> 0 | O16: =VLOOKUP($B3,'Program-specific Assumptions'!$C$1:$N$9,4,0) -> 0 | P16: =VLOOKUP($B3,'Program-specific Assumptions'!$C$1:$N$9,4,0) -> 0 | Q16: =VLOOKUP($B3,'Program-specific Assumptions'!$C$1:$N$9,4,0) -> 0 | R16: =VLOOKUP($B3,'Program-specific Assumptions'!$C$1:$N$9,4,0) -> 0 | S16: =VLOOKUP($B3,'Program-specific Assumptions'!$C$1:$N$9,4,0) -> 0 | T16: =VLOOKUP($B3,'Program-specific Assumptions'!$C$1:$N$9,4,0) -> 0 | V16: % Debt (% of hard costs) (mortgage-style amort.) | W16: % | X16: =IF($V$3="","",IF('Scenario & Results'!$B$5=1,'ILSfA Scenario InputAssumptions'!D16,IF('Scenario & Results'!$B$5=2,'ILSfA Scenario InputAssumptions'!D42,IF('Scenario & Results'!$B$5=3,'ILSfA Scenario InputAssumptions'!D68,IF('Scenario & Results'!$B$5=4,'ILSfA Scenario InputAssumptions'!D94,IF('Scenario & Results'!$B$5=5,'ILSfA Scenario InputAssumptions'!N16,IF('Scenario & Results'!$B$5=6,'ILSfA Scenario InputAssumptions'!N42,IF('Scenario & Results'!$B$5=7,'ILSfA Scenario InputAssumptions'!N68,IF('Scenario & Results'!$B$5=8,'ILSfA Scenario InputAssumptions'!N94,"Invalid"))))))))) ->  | Y16: =IF($V$3="","",IF('Scenario & Results'!$B$5=1,'ILSfA Scenario InputAssumptions'!E16,IF('Scenario & Results'!$B$5=2,'ILSfA Scenario InputAssumptions'!E42,IF('Scenario & Results'!$B$5=3,'ILSfA Scenario InputAssumptions'!E68,IF('Scenario & Results'!$B$5=4,'ILSfA Scenario InputAssumptions'!E94,IF('Scenario & Results'!$B$5=5,'ILSfA Scenario InputAssumptions'!O16,IF('Scenario & Results'!$B$5=6,'ILSfA Scenario InputAssumptions'!O42,IF('Scenario & Results'!$B$5=7,'ILSfA Scenario InputAssumptions'!O68,IF('Scenario & Results'!$B$5=8,'ILSfA Scenario InputAssumptions'!O94,"Invalid"))))))))) ->  | Z16: =IF($V$3="","",IF('Scenario & Results'!$B$5=1,'ILSfA Scenario InputAssumptions'!F16,IF('Scenario & Results'!$B$5=2,'ILSfA Scenario InputAssumptions'!F42,IF('Scenario & Results'!$B$5=3,'ILSfA Scenario InputAssumptions'!F68,IF('Scenario & Results'!$B$5=4,'ILSfA Scenario InputAssumptions'!F94,IF('Scenario & Results'!$B$5=5,'ILSfA Scenario InputAssumptions'!P16,IF('Scenario & Results'!$B$5=6,'ILSfA Scenario InputAssumptions'!P42,IF('Scenario & Results'!$B$5=7,'ILSfA Scenario InputAssumptions'!P68,IF('Scenario & Results'!$B$5=8,'ILSfA Scenario InputAssumptions'!P94,"Invalid"))))))))) ->  | AA16: =IF($V$3="","",IF('Scenario & Results'!$B$5=1,'ILSfA Scenario InputAssumptions'!G16,IF('Scenario & Results'!$B$5=2,'ILSfA Scenario InputAssumptions'!G42,IF('Scenario & Results'!$B$5=3,'ILSfA Scenario InputAssumptions'!G68,IF('Scenario & Results'!$B$5=4,'ILSfA Scenario InputAssumptions'!G94,IF('Scenario & Results'!$B$5=5,'ILSfA Scenario InputAssumptions'!Q16,IF('Scenario & Results'!$B$5=6,'ILSfA Scenario InputAssumptions'!Q42,IF('Scenario & Results'!$B$5=7,'ILSfA Scenario InputAssumptions'!Q68,IF('Scenario & Results'!$B$5=8,'ILSfA Scenario InputAssumptions'!Q94,"Invalid"))))))))) ->  | AB16: =IF($V$3="","",IF('Scenario & Results'!$B$5=1,'ILSfA Scenario InputAssumptions'!H16,IF('Scenario & Results'!$B$5=2,'ILSfA Scenario InputAssumptions'!H42,IF('Scenario & Results'!$B$5=3,'ILSfA Scenario InputAssumptions'!H68,IF('Scenario & Results'!$B$5=4,'ILSfA Scenario InputAssumptions'!H94,IF('Scenario & Results'!$B$5=5,'ILSfA Scenario InputAssumptions'!R16,IF('Scenario & Results'!$B$5=6,'ILSfA Scenario InputAssumptions'!R42,IF('Scenario & Results'!$B$5=7,'ILSfA Scenario InputAssumptions'!R68,IF('Scenario & Results'!$B$5=8,'ILSfA Scenario InputAssumptions'!R94,"Invalid"))))))))) ->  | AC16: =IF($V$3="","",IF('Scenario & Results'!$B$5=1,'ILSfA Scenario InputAssumptions'!I16,IF('Scenario & Results'!$B$5=2,'ILSfA Scenario InputAssumptions'!I42,IF('Scenario & Results'!$B$5=3,'ILSfA Scenario InputAssumptions'!I68,IF('Scenario & Results'!$B$5=4,'ILSfA Scenario InputAssumptions'!I94,IF('Scenario & Results'!$B$5=5,'ILSfA Scenario InputAssumptions'!S16,IF('Scenario & Results'!$B$5=6,'ILSfA Scenario InputAssumptions'!S42,IF('Scenario & Results'!$B$5=7,'ILSfA Scenario InputAssumptions'!S68,IF('Scenario & Results'!$B$5=8,'ILSfA Scenario InputAssumptions'!S94,"Invalid"))))))))) ->  | AD16: =IF($V$3="","",IF('Scenario & Results'!$B$5=1,'ILSfA Scenario InputAssumptions'!J16,IF('Scenario & Results'!$B$5=2,'ILSfA Scenario InputAssumptions'!J42,IF('Scenario & Results'!$B$5=3,'ILSfA Scenario InputAssumptions'!J68,IF('Scenario & Results'!$B$5=4,'ILSfA Scenario InputAssumptions'!J94,IF('Scenario & Results'!$B$5=5,'ILSfA Scenario InputAssumptions'!T16,IF('Scenario & Results'!$B$5=6,'ILSfA Scenario InputAssumptions'!T42,IF('Scenario & Results'!$B$5=7,'ILSfA Scenario InputAssumptions'!T68,IF('Scenario & Results'!$B$5=8,'ILSfA Scenario InputAssumptions'!T94,"Invalid"))))))))) -> 
A17: Distributed Generation (1-4 Unit) | B17: Debt Term | C17: years | D17: =VLOOKUP($B3,'Program-specific Assumptions'!$C$1:$N$9,5,0) -> 15 | E17: =VLOOKUP($B3,'Program-specific Assumptions'!$C$1:$N$9,5,0) -> 15 | F17: =VLOOKUP($B3,'Program-specific Assumptions'!$C$1:$N$9,5,0) -> 15 | G17: =VLOOKUP($B3,'Program-specific Assumptions'!$C$1:$N$9,5,0) -> 15 | H17: =VLOOKUP($B3,'Program-specific Assumptions'!$C$1:$N$9,5,0) -> 15 | I17: =VLOOKUP($B3,'Program-specific Assumptions'!$C$1:$N$9,5,0) -> 15 | J17: =VLOOKUP($B3,'Program-specific Assumptions'!$C$1:$N$9,5,0) -> 15 | K17: Distributed Generation (1-4 Unit) | L17: Debt Term | M17: years | N17: =VLOOKUP($B3,'Program-specific Assumptions'!$C$1:$N$9,5,0) -> 15 | O17: =VLOOKUP($B3,'Program-specific Assumptions'!$C$1:$N$9,5,0) -> 15 | P17: =VLOOKUP($B3,'Program-specific Assumptions'!$C$1:$N$9,5,0) -> 15 | Q17: =VLOOKUP($B3,'Program-specific Assumptions'!$C$1:$N$9,5,0) -> 15 | R17: =VLOOKUP($B3,'Program-specific Assumptions'!$C$1:$N$9,5,0) -> 15 | S17: =VLOOKUP($B3,'Program-specific Assumptions'!$C$1:$N$9,5,0) -> 15 | T17: =VLOOKUP($B3,'Program-specific Assumptions'!$C$1:$N$9,5,0) -> 15 | V17: Debt Term | W17: years | X17: =IF($V$3="","",IF('Scenario & Results'!$B$5=1,'ILSfA Scenario InputAssumptions'!D17,IF('Scenario & Results'!$B$5=2,'ILSfA Scenario InputAssumptions'!D43,IF('Scenario & Results'!$B$5=3,'ILSfA Scenario InputAssumptions'!D69,IF('Scenario & Results'!$B$5=4,'ILSfA Scenario InputAssumptions'!D95,IF('Scenario & Results'!$B$5=5,'ILSfA Scenario InputAssumptions'!N17,IF('Scenario & Results'!$B$5=6,'ILSfA Scenario InputAssumptions'!N43,IF('Scenario & Results'!$B$5=7,'ILSfA Scenario InputAssumptions'!N69,IF('Scenario & Results'!$B$5=8,'ILSfA Scenario InputAssumptions'!N95,"Invalid"))))))))) ->  | Y17: =IF($V$3="","",IF('Scenario & Results'!$B$5=1,'ILSfA Scenario InputAssumptions'!E17,IF('Scenario & Results'!$B$5=2,'ILSfA Scenario InputAssumptions'!E43,IF('Scenario & Results'!$B$5=3,'ILSfA Scenario InputAssumptions'!E69,IF('Scenario & Results'!$B$5=4,'ILSfA Scenario InputAssumptions'!E95,IF('Scenario & Results'!$B$5=5,'ILSfA Scenario InputAssumptions'!O17,IF('Scenario & Results'!$B$5=6,'ILSfA Scenario InputAssumptions'!O43,IF('Scenario & Results'!$B$5=7,'ILSfA Scenario InputAssumptions'!O69,IF('Scenario & Results'!$B$5=8,'ILSfA Scenario InputAssumptions'!O95,"Invalid"))))))))) ->  | Z17: =IF($V$3="","",IF('Scenario & Results'!$B$5=1,'ILSfA Scenario InputAssumptions'!F17,IF('Scenario & Results'!$B$5=2,'ILSfA Scenario InputAssumptions'!F43,IF('Scenario & Results'!$B$5=3,'ILSfA Scenario InputAssumptions'!F69,IF('Scenario & Results'!$B$5=4,'ILSfA Scenario InputAssumptions'!F95,IF('Scenario & Results'!$B$5=5,'ILSfA Scenario InputAssumptions'!P17,IF('Scenario & Results'!$B$5=6,'ILSfA Scenario InputAssumptions'!P43,IF('Scenario & Results'!$B$5=7,'ILSfA Scenario InputAssumptions'!P69,IF('Scenario & Results'!$B$5=8,'ILSfA Scenario InputAssumptions'!P95,"Invalid"))))))))) ->  | AA17: =IF($V$3="","",IF('Scenario & Results'!$B$5=1,'ILSfA Scenario InputAssumptions'!G17,IF('Scenario & Results'!$B$5=2,'ILSfA Scenario InputAssumptions'!G43,IF('Scenario & Results'!$B$5=3,'ILSfA Scenario InputAssumptions'!G69,IF('Scenario & Results'!$B$5=4,'ILSfA Scenario InputAssumptions'!G95,IF('Scenario & Results'!$B$5=5,'ILSfA Scenario InputAssumptions'!Q17,IF('Scenario & Results'!$B$5=6,'ILSfA Scenario InputAssumptions'!Q43,IF('Scenario & Results'!$B$5=7,'ILSfA Scenario InputAssumptions'!Q69,IF('Scenario & Results'!$B$5=8,'ILSfA Scenario InputAssumptions'!Q95,"Invalid"))))))))) ->  | AB17: =IF($V$3="","",IF('Scenario & Results'!$B$5=1,'ILSfA Scenario InputAssumptions'!H17,IF('Scenario & Results'!$B$5=2,'ILSfA Scenario InputAssumptions'!H43,IF('Scenario & Results'!$B$5=3,'ILSfA Scenario InputAssumptions'!H69,IF('Scenario & Results'!$B$5=4,'ILSfA Scenario InputAssumptions'!H95,IF('Scenario & Results'!$B$5=5,'ILSfA Scenario InputAssumptions'!R17,IF('Scenario & Results'!$B$5=6,'ILSfA Scenario InputAssumptions'!R43,IF('Scenario & Results'!$B$5=7,'ILSfA Scenario InputAssumptions'!R69,IF('Scenario & Results'!$B$5=8,'ILSfA Scenario InputAssumptions'!R95,"Invalid"))))))))) ->  | AC17: =IF($V$3="","",IF('Scenario & Results'!$B$5=1,'ILSfA Scenario InputAssumptions'!I17,IF('Scenario & Results'!$B$5=2,'ILSfA Scenario InputAssumptions'!I43,IF('Scenario & Results'!$B$5=3,'ILSfA Scenario InputAssumptions'!I69,IF('Scenario & Results'!$B$5=4,'ILSfA Scenario InputAssumptions'!I95,IF('Scenario & Results'!$B$5=5,'ILSfA Scenario InputAssumptions'!S17,IF('Scenario & Results'!$B$5=6,'ILSfA Scenario InputAssumptions'!S43,IF('Scenario & Results'!$B$5=7,'ILSfA Scenario InputAssumptions'!S69,IF('Scenario & Results'!$B$5=8,'ILSfA Scenario InputAssumptions'!S95,"Invalid"))))))))) ->  | AD17: =IF($V$3="","",IF('Scenario & Results'!$B$5=1,'ILSfA Scenario InputAssumptions'!J17,IF('Scenario & Results'!$B$5=2,'ILSfA Scenario InputAssumptions'!J43,IF('Scenario & Results'!$B$5=3,'ILSfA Scenario InputAssumptions'!J69,IF('Scenario & Results'!$B$5=4,'ILSfA Scenario InputAssumptions'!J95,IF('Scenario & Results'!$B$5=5,'ILSfA Scenario InputAssumptions'!T17,IF('Scenario & Results'!$B$5=6,'ILSfA Scenario InputAssumptions'!T43,IF('Scenario & Results'!$B$5=7,'ILSfA Scenario InputAssumptions'!T69,IF('Scenario & Results'!$B$5=8,'ILSfA Scenario InputAssumptions'!T95,"Invalid"))))))))) -> 
A18: Distributed Generation (1-4 Unit) | B18: Target After-Tax Equity IRR(%) | C18: % | D18: =VLOOKUP($B3,'Program-specific Assumptions'!$C$1:$N$9,7,0) -> 0.09 | E18: =VLOOKUP($B3,'Program-specific Assumptions'!$C$1:$N$9,7,0) -> 0.09 | F18: =VLOOKUP($B3,'Program-specific Assumptions'!$C$1:$N$9,7,0) -> 0.09 | G18: =VLOOKUP($B3,'Program-specific Assumptions'!$C$1:$N$9,7,0) -> 0.09 | H18: =VLOOKUP($B3,'Program-specific Assumptions'!$C$1:$N$9,7,0) -> 0.09 | I18: =VLOOKUP($B3,'Program-specific Assumptions'!$C$1:$N$9,7,0) -> 0.09 | J18: =VLOOKUP($B3,'Program-specific Assumptions'!$C$1:$N$9,7,0) -> 0.09 | K18: Distributed Generation (1-4 Unit) | L18: Target After-Tax Equity IRR(%) | M18: % | N18: =VLOOKUP($B3,'Program-specific Assumptions'!$C$1:$N$9,7,0) -> 0.09 | O18: =VLOOKUP($B3,'Program-specific Assumptions'!$C$1:$N$9,7,0) -> 0.09 | P18: =VLOOKUP($B3,'Program-specific Assumptions'!$C$1:$N$9,7,0) -> 0.09 | Q18: =VLOOKUP($B3,'Program-specific Assumptions'!$C$1:$N$9,7,0) -> 0.09 | R18: =VLOOKUP($B3,'Program-specific Assumptions'!$C$1:$N$9,7,0) -> 0.09 | S18: =VLOOKUP($B3,'Program-specific Assumptions'!$C$1:$N$9,7,0) -> 0.09 | T18: =VLOOKUP($B3,'Program-specific Assumptions'!$C$1:$N$9,7,0) -> 0.09 | V18: Target After-Tax Equity IRR(%) | W18: % | X18: =IF($V$3="","",IF('Scenario & Results'!$B$5=1,'ILSfA Scenario InputAssumptions'!D18,IF('Scenario & Results'!$B$5=2,'ILSfA Scenario InputAssumptions'!D44,IF('Scenario & Results'!$B$5=3,'ILSfA Scenario InputAssumptions'!D70,IF('Scenario & Results'!$B$5=4,'ILSfA Scenario InputAssumptions'!D96,IF('Scenario & Results'!$B$5=5,'ILSfA Scenario InputAssumptions'!N18,IF('Scenario & Results'!$B$5=6,'ILSfA Scenario InputAssumptions'!N44,IF('Scenario & Results'!$B$5=7,'ILSfA Scenario InputAssumptions'!N70,IF('Scenario & Results'!$B$5=8,'ILSfA Scenario InputAssumptions'!N96,"Invalid"))))))))) ->  | Y18: =IF($V$3="","",IF('Scenario & Results'!$B$5=1,'ILSfA Scenario InputAssumptions'!E18,IF('Scenario & Results'!$B$5=2,'ILSfA Scenario InputAssumptions'!E44,IF('Scenario & Results'!$B$5=3,'ILSfA Scenario InputAssumptions'!E70,IF('Scenario & Results'!$B$5=4,'ILSfA Scenario InputAssumptions'!E96,IF('Scenario & Results'!$B$5=5,'ILSfA Scenario InputAssumptions'!O18,IF('Scenario & Results'!$B$5=6,'ILSfA Scenario InputAssumptions'!O44,IF('Scenario & Results'!$B$5=7,'ILSfA Scenario InputAssumptions'!O70,IF('Scenario & Results'!$B$5=8,'ILSfA Scenario InputAssumptions'!O96,"Invalid"))))))))) ->  | Z18: =IF($V$3="","",IF('Scenario & Results'!$B$5=1,'ILSfA Scenario InputAssumptions'!F18,IF('Scenario & Results'!$B$5=2,'ILSfA Scenario InputAssumptions'!F44,IF('Scenario & Results'!$B$5=3,'ILSfA Scenario InputAssumptions'!F70,IF('Scenario & Results'!$B$5=4,'ILSfA Scenario InputAssumptions'!F96,IF('Scenario & Results'!$B$5=5,'ILSfA Scenario InputAssumptions'!P18,IF('Scenario & Results'!$B$5=6,'ILSfA Scenario InputAssumptions'!P44,IF('Scenario & Results'!$B$5=7,'ILSfA Scenario InputAssumptions'!P70,IF('Scenario & Results'!$B$5=8,'ILSfA Scenario InputAssumptions'!P96,"Invalid"))))))))) ->  | AA18: =IF($V$3="","",IF('Scenario & Results'!$B$5=1,'ILSfA Scenario InputAssumptions'!G18,IF('Scenario & Results'!$B$5=2,'ILSfA Scenario InputAssumptions'!G44,IF('Scenario & Results'!$B$5=3,'ILSfA Scenario InputAssumptions'!G70,IF('Scenario & Results'!$B$5=4,'ILSfA Scenario InputAssumptions'!G96,IF('Scenario & Results'!$B$5=5,'ILSfA Scenario InputAssumptions'!Q18,IF('Scenario & Results'!$B$5=6,'ILSfA Scenario InputAssumptions'!Q44,IF('Scenario & Results'!$B$5=7,'ILSfA Scenario InputAssumptions'!Q70,IF('Scenario & Results'!$B$5=8,'ILSfA Scenario InputAssumptions'!Q96,"Invalid"))))))))) ->  | AB18: =IF($V$3="","",IF('Scenario & Results'!$B$5=1,'ILSfA Scenario InputAssumptions'!H18,IF('Scenario & Results'!$B$5=2,'ILSfA Scenario InputAssumptions'!H44,IF('Scenario & Results'!$B$5=3,'ILSfA Scenario InputAssumptions'!H70,IF('Scenario & Results'!$B$5=4,'ILSfA Scenario InputAssumptions'!H96,IF('Scenario & Results'!$B$5=5,'ILSfA Scenario InputAssumptions'!R18,IF('Scenario & Results'!$B$5=6,'ILSfA Scenario InputAssumptions'!R44,IF('Scenario & Results'!$B$5=7,'ILSfA Scenario InputAssumptions'!R70,IF('Scenario & Results'!$B$5=8,'ILSfA Scenario InputAssumptions'!R96,"Invalid"))))))))) ->  | AC18: =IF($V$3="","",IF('Scenario & Results'!$B$5=1,'ILSfA Scenario InputAssumptions'!I18,IF('Scenario & Results'!$B$5=2,'ILSfA Scenario InputAssumptions'!I44,IF('Scenario & Results'!$B$5=3,'ILSfA Scenario InputAssumptions'!I70,IF('Scenario & Results'!$B$5=4,'ILSfA Scenario InputAssumptions'!I96,IF('Scenario & Results'!$B$5=5,'ILSfA Scenario InputAssumptions'!S18,IF('Scenario & Results'!$B$5=6,'ILSfA Scenario InputAssumptions'!S44,IF('Scenario & Results'!$B$5=7,'ILSfA Scenario InputAssumptions'!S70,IF('Scenario & Results'!$B$5=8,'ILSfA Scenario InputAssumptions'!S96,"Invalid"))))))))) ->  | AD18: =IF($V$3="","",IF('Scenario & Results'!$B$5=1,'ILSfA Scenario InputAssumptions'!J18,IF('Scenario & Results'!$B$5=2,'ILSfA Scenario InputAssumptions'!J44,IF('Scenario & Results'!$B$5=3,'ILSfA Scenario InputAssumptions'!J70,IF('Scenario & Results'!$B$5=4,'ILSfA Scenario InputAssumptions'!J96,IF('Scenario & Results'!$B$5=5,'ILSfA Scenario InputAssumptions'!T18,IF('Scenario & Results'!$B$5=6,'ILSfA Scenario InputAssumptions'!T44,IF('Scenario & Results'!$B$5=7,'ILSfA Scenario InputAssumptions'!T70,IF('Scenario & Results'!$B$5=8,'ILSfA Scenario InputAssumptions'!T96,"Invalid"))))))))) -> 
A19: Distributed Generation (1-4 Unit) | B19: State Income Tax Rate | C19: % | D19: ='Size-specific Assumptions'!D$3 -> 0.0495 | E19: ='Size-specific Assumptions'!E$3 -> 0.095 | F19: ='Size-specific Assumptions'!F$3 -> 0.095 | G19: ='Size-specific Assumptions'!G$3 -> 0.095 | H19: ='Size-specific Assumptions'!H$3 -> 0.095 | I19: ='Size-specific Assumptions'!I$3 -> 0.095 | J19: ='Size-specific Assumptions'!J$3 -> 0.095 | K19: Distributed Generation (1-4 Unit) | L19: State Income Tax Rate | M19: % | N19: ='Size-specific Assumptions'!D$3 -> 0.0495 | O19: ='Size-specific Assumptions'!E$3 -> 0.095 | P19: ='Size-specific Assumptions'!F$3 -> 0.095 | Q19: ='Size-specific Assumptions'!G$3 -> 0.095 | R19: ='Size-specific Assumptions'!H$3 -> 0.095 | S19: ='Size-specific Assumptions'!I$3 -> 0.095 | T19: ='Size-specific Assumptions'!J$3 -> 0.095 | V19: State Income Tax Rate | W19: % | X19: =IF($V$3="","",IF('Scenario & Results'!$B$5=1,'ILSfA Scenario InputAssumptions'!D19,IF('Scenario & Results'!$B$5=2,'ILSfA Scenario InputAssumptions'!D45,IF('Scenario & Results'!$B$5=3,'ILSfA Scenario InputAssumptions'!D71,IF('Scenario & Results'!$B$5=4,'ILSfA Scenario InputAssumptions'!D97,IF('Scenario & Results'!$B$5=5,'ILSfA Scenario InputAssumptions'!N19,IF('Scenario & Results'!$B$5=6,'ILSfA Scenario InputAssumptions'!N45,IF('Scenario & Results'!$B$5=7,'ILSfA Scenario InputAssumptions'!N71,IF('Scenario & Results'!$B$5=8,'ILSfA Scenario InputAssumptions'!N97,"Invalid"))))))))) ->  | Y19: =IF($V$3="","",IF('Scenario & Results'!$B$5=1,'ILSfA Scenario InputAssumptions'!E19,IF('Scenario & Results'!$B$5=2,'ILSfA Scenario InputAssumptions'!E45,IF('Scenario & Results'!$B$5=3,'ILSfA Scenario InputAssumptions'!E71,IF('Scenario & Results'!$B$5=4,'ILSfA Scenario InputAssumptions'!E97,IF('Scenario & Results'!$B$5=5,'ILSfA Scenario InputAssumptions'!O19,IF('Scenario & Results'!$B$5=6,'ILSfA Scenario InputAssumptions'!O45,IF('Scenario & Results'!$B$5=7,'ILSfA Scenario InputAssumptions'!O71,IF('Scenario & Results'!$B$5=8,'ILSfA Scenario InputAssumptions'!O97,"Invalid"))))))))) ->  | Z19: =IF($V$3="","",IF('Scenario & Results'!$B$5=1,'ILSfA Scenario InputAssumptions'!F19,IF('Scenario & Results'!$B$5=2,'ILSfA Scenario InputAssumptions'!F45,IF('Scenario & Results'!$B$5=3,'ILSfA Scenario InputAssumptions'!F71,IF('Scenario & Results'!$B$5=4,'ILSfA Scenario InputAssumptions'!F97,IF('Scenario & Results'!$B$5=5,'ILSfA Scenario InputAssumptions'!P19,IF('Scenario & Results'!$B$5=6,'ILSfA Scenario InputAssumptions'!P45,IF('Scenario & Results'!$B$5=7,'ILSfA Scenario InputAssumptions'!P71,IF('Scenario & Results'!$B$5=8,'ILSfA Scenario InputAssumptions'!P97,"Invalid"))))))))) ->  | AA19: =IF($V$3="","",IF('Scenario & Results'!$B$5=1,'ILSfA Scenario InputAssumptions'!G19,IF('Scenario & Results'!$B$5=2,'ILSfA Scenario InputAssumptions'!G45,IF('Scenario & Results'!$B$5=3,'ILSfA Scenario InputAssumptions'!G71,IF('Scenario & Results'!$B$5=4,'ILSfA Scenario InputAssumptions'!G97,IF('Scenario & Results'!$B$5=5,'ILSfA Scenario InputAssumptions'!Q19,IF('Scenario & Results'!$B$5=6,'ILSfA Scenario InputAssumptions'!Q45,IF('Scenario & Results'!$B$5=7,'ILSfA Scenario InputAssumptions'!Q71,IF('Scenario & Results'!$B$5=8,'ILSfA Scenario InputAssumptions'!Q97,"Invalid"))))))))) ->  | AB19: =IF($V$3="","",IF('Scenario & Results'!$B$5=1,'ILSfA Scenario InputAssumptions'!H19,IF('Scenario & Results'!$B$5=2,'ILSfA Scenario InputAssumptions'!H45,IF('Scenario & Results'!$B$5=3,'ILSfA Scenario InputAssumptions'!H71,IF('Scenario & Results'!$B$5=4,'ILSfA Scenario InputAssumptions'!H97,IF('Scenario & Results'!$B$5=5,'ILSfA Scenario InputAssumptions'!R19,IF('Scenario & Results'!$B$5=6,'ILSfA Scenario InputAssumptions'!R45,IF('Scenario & Results'!$B$5=7,'ILSfA Scenario InputAssumptions'!R71,IF('Scenario & Results'!$B$5=8,'ILSfA Scenario InputAssumptions'!R97,"Invalid"))))))))) ->  | AC19: =IF($V$3="","",IF('Scenario & Results'!$B$5=1,'ILSfA Scenario InputAssumptions'!I19,IF('Scenario & Results'!$B$5=2,'ILSfA Scenario InputAssumptions'!I45,IF('Scenario & Results'!$B$5=3,'ILSfA Scenario InputAssumptions'!I71,IF('Scenario & Results'!$B$5=4,'ILSfA Scenario InputAssumptions'!I97,IF('Scenario & Results'!$B$5=5,'ILSfA Scenario InputAssumptions'!S19,IF('Scenario & Results'!$B$5=6,'ILSfA Scenario InputAssumptions'!S45,IF('Scenario & Results'!$B$5=7,'ILSfA Scenario InputAssumptions'!S71,IF('Scenario & Results'!$B$5=8,'ILSfA Scenario InputAssumptions'!S97,"Invalid"))))))))) ->  | AD19: =IF($V$3="","",IF('Scenario & Results'!$B$5=1,'ILSfA Scenario InputAssumptions'!J19,IF('Scenario & Results'!$B$5=2,'ILSfA Scenario InputAssumptions'!J45,IF('Scenario & Results'!$B$5=3,'ILSfA Scenario InputAssumptions'!J71,IF('Scenario & Results'!$B$5=4,'ILSfA Scenario InputAssumptions'!J97,IF('Scenario & Results'!$B$5=5,'ILSfA Scenario InputAssumptions'!T19,IF('Scenario & Results'!$B$5=6,'ILSfA Scenario InputAssumptions'!T45,IF('Scenario & Results'!$B$5=7,'ILSfA Scenario InputAssumptions'!T71,IF('Scenario & Results'!$B$5=8,'ILSfA Scenario InputAssumptions'!T97,"Invalid"))))))))) -> 
A20: Distributed Generation (1-4 Unit) | B20: Payment Duration for Cost-Based Tariff | C20: years | D20: =VLOOKUP($B3,'Program-specific Assumptions'!$C$1:$N$9,6,0) -> 15 | E20: =VLOOKUP($B3,'Program-specific Assumptions'!$C$1:$N$9,6,0) -> 15 | F20: =VLOOKUP($B3,'Program-specific Assumptions'!$C$1:$N$9,6,0) -> 15 | G20: =VLOOKUP($B3,'Program-specific Assumptions'!$C$1:$N$9,6,0) -> 15 | H20: =VLOOKUP($B3,'Program-specific Assumptions'!$C$1:$N$9,6,0) -> 15 | I20: =VLOOKUP($B3,'Program-specific Assumptions'!$C$1:$N$9,6,0) -> 15 | J20: =VLOOKUP($B3,'Program-specific Assumptions'!$C$1:$N$9,6,0) -> 15 | K20: Distributed Generation (1-4 Unit) | L20: Payment Duration for Cost-Based Tariff | M20: years | N20: =VLOOKUP($B3,'Program-specific Assumptions'!$C$1:$N$9,6,0) -> 15 | O20: =VLOOKUP($B3,'Program-specific Assumptions'!$C$1:$N$9,6,0) -> 15 | P20: =VLOOKUP($B3,'Program-specific Assumptions'!$C$1:$N$9,6,0) -> 15 | Q20: =VLOOKUP($B3,'Program-specific Assumptions'!$C$1:$N$9,6,0) -> 15 | R20: =VLOOKUP($B3,'Program-specific Assumptions'!$C$1:$N$9,6,0) -> 15 | S20: =VLOOKUP($B3,'Program-specific Assumptions'!$C$1:$N$9,6,0) -> 15 | T20: =VLOOKUP($B3,'Program-specific Assumptions'!$C$1:$N$9,6,0) -> 15 | V20: Payment Duration for Cost-Based Tariff | W20: years | X20: =IF($V$3="","",IF('Scenario & Results'!$B$5=1,'ILSfA Scenario InputAssumptions'!D20,IF('Scenario & Results'!$B$5=2,'ILSfA Scenario InputAssumptions'!D46,IF('Scenario & Results'!$B$5=3,'ILSfA Scenario InputAssumptions'!D72,IF('Scenario & Results'!$B$5=4,'ILSfA Scenario InputAssumptions'!D98,IF('Scenario & Results'!$B$5=5,'ILSfA Scenario InputAssumptions'!N20,IF('Scenario & Results'!$B$5=6,'ILSfA Scenario InputAssumptions'!N46,IF('Scenario & Results'!$B$5=7,'ILSfA Scenario InputAssumptions'!N72,IF('Scenario & Results'!$B$5=8,'ILSfA Scenario InputAssumptions'!N98,"Invalid"))))))))) ->  | Y20: =IF($V$3="","",IF('Scenario & Results'!$B$5=1,'ILSfA Scenario InputAssumptions'!E20,IF('Scenario & Results'!$B$5=2,'ILSfA Scenario InputAssumptions'!E46,IF('Scenario & Results'!$B$5=3,'ILSfA Scenario InputAssumptions'!E72,IF('Scenario & Results'!$B$5=4,'ILSfA Scenario InputAssumptions'!E98,IF('Scenario & Results'!$B$5=5,'ILSfA Scenario InputAssumptions'!O20,IF('Scenario & Results'!$B$5=6,'ILSfA Scenario InputAssumptions'!O46,IF('Scenario & Results'!$B$5=7,'ILSfA Scenario InputAssumptions'!O72,IF('Scenario & Results'!$B$5=8,'ILSfA Scenario InputAssumptions'!O98,"Invalid"))))))))) ->  | Z20: =IF($V$3="","",IF('Scenario & Results'!$B$5=1,'ILSfA Scenario InputAssumptions'!F20,IF('Scenario & Results'!$B$5=2,'ILSfA Scenario InputAssumptions'!F46,IF('Scenario & Results'!$B$5=3,'ILSfA Scenario InputAssumptions'!F72,IF('Scenario & Results'!$B$5=4,'ILSfA Scenario InputAssumptions'!F98,IF('Scenario & Results'!$B$5=5,'ILSfA Scenario InputAssumptions'!P20,IF('Scenario & Results'!$B$5=6,'ILSfA Scenario InputAssumptions'!P46,IF('Scenario & Results'!$B$5=7,'ILSfA Scenario InputAssumptions'!P72,IF('Scenario & Results'!$B$5=8,'ILSfA Scenario InputAssumptions'!P98,"Invalid"))))))))) ->  | AA20: =IF($V$3="","",IF('Scenario & Results'!$B$5=1,'ILSfA Scenario InputAssumptions'!G20,IF('Scenario & Results'!$B$5=2,'ILSfA Scenario InputAssumptions'!G46,IF('Scenario & Results'!$B$5=3,'ILSfA Scenario InputAssumptions'!G72,IF('Scenario & Results'!$B$5=4,'ILSfA Scenario InputAssumptions'!G98,IF('Scenario & Results'!$B$5=5,'ILSfA Scenario InputAssumptions'!Q20,IF('Scenario & Results'!$B$5=6,'ILSfA Scenario InputAssumptions'!Q46,IF('Scenario & Results'!$B$5=7,'ILSfA Scenario InputAssumptions'!Q72,IF('Scenario & Results'!$B$5=8,'ILSfA Scenario InputAssumptions'!Q98,"Invalid"))))))))) ->  | AB20: =IF($V$3="","",IF('Scenario & Results'!$B$5=1,'ILSfA Scenario InputAssumptions'!H20,IF('Scenario & Results'!$B$5=2,'ILSfA Scenario InputAssumptions'!H46,IF('Scenario & Results'!$B$5=3,'ILSfA Scenario InputAssumptions'!H72,IF('Scenario & Results'!$B$5=4,'ILSfA Scenario InputAssumptions'!H98,IF('Scenario & Results'!$B$5=5,'ILSfA Scenario InputAssumptions'!R20,IF('Scenario & Results'!$B$5=6,'ILSfA Scenario InputAssumptions'!R46,IF('Scenario & Results'!$B$5=7,'ILSfA Scenario InputAssumptions'!R72,IF('Scenario & Results'!$B$5=8,'ILSfA Scenario InputAssumptions'!R98,"Invalid"))))))))) ->  | AC20: =IF($V$3="","",IF('Scenario & Results'!$B$5=1,'ILSfA Scenario InputAssumptions'!I20,IF('Scenario & Results'!$B$5=2,'ILSfA Scenario InputAssumptions'!I46,IF('Scenario & Results'!$B$5=3,'ILSfA Scenario InputAssumptions'!I72,IF('Scenario & Results'!$B$5=4,'ILSfA Scenario InputAssumptions'!I98,IF('Scenario & Results'!$B$5=5,'ILSfA Scenario InputAssumptions'!S20,IF('Scenario & Results'!$B$5=6,'ILSfA Scenario InputAssumptions'!S46,IF('Scenario & Results'!$B$5=7,'ILSfA Scenario InputAssumptions'!S72,IF('Scenario & Results'!$B$5=8,'ILSfA Scenario InputAssumptions'!S98,"Invalid"))))))))) ->  | AD20: =IF($V$3="","",IF('Scenario & Results'!$B$5=1,'ILSfA Scenario InputAssumptions'!J20,IF('Scenario & Results'!$B$5=2,'ILSfA Scenario InputAssumptions'!J46,IF('Scenario & Results'!$B$5=3,'ILSfA Scenario InputAssumptions'!J72,IF('Scenario & Results'!$B$5=4,'ILSfA Scenario InputAssumptions'!J98,IF('Scenario & Results'!$B$5=5,'ILSfA Scenario InputAssumptions'!T20,IF('Scenario & Results'!$B$5=6,'ILSfA Scenario InputAssumptions'!T46,IF('Scenario & Results'!$B$5=7,'ILSfA Scenario InputAssumptions'!T72,IF('Scenario & Results'!$B$5=8,'ILSfA Scenario InputAssumptions'!T98,"Invalid"))))))))) -> 
A21: Distributed Generation (1-4 Unit) | B21: Post-tariff market value, Yr 1 | C21: ¢/kWh | D21: ='Net Metering Credit'!$C$47*100*D27 -> 0 | E21: ='Net Metering Credit'!$C$36*100*E27 -> 0 | F21: ='Net Metering Credit'!$C$36*100*F27 -> 0 | G21: ='Net Metering Credit'!$C$36*100*G27 -> 0 | H21: ='Net Metering Credit'!$C$36*100*H27 -> 0 | I21: ='Net Metering Credit'!$C$36*100*I27 -> 0 | J21: ='Net Metering Credit'!$C$36*100*J27 -> 0 | K21: Distributed Generation (1-4 Unit) | L21: Post-tariff market value, Yr 1 | M21: ¢/kWh | N21: ='Net Metering Credit'!$C$25*100*N27 -> 0 | O21: ='Net Metering Credit'!$C$13*100*O27 -> 0 | P21: ='Net Metering Credit'!$C$13*100*P27 -> 0 | Q21: ='Net Metering Credit'!$C$13*100*Q27 -> 0 | R21: ='Net Metering Credit'!$C$13*100*R27 -> 0 | S21: ='Net Metering Credit'!$C$13*100*S27 -> 0 | T21: ='Net Metering Credit'!$C$13*100*T27 -> 0 | V21: Post-tariff market value, Yr 1 | W21: ¢/kWh | X21: =IF($V$3="","",IF('Scenario & Results'!$B$5=1,'ILSfA Scenario InputAssumptions'!D21,IF('Scenario & Results'!$B$5=2,'ILSfA Scenario InputAssumptions'!D47,IF('Scenario & Results'!$B$5=3,'ILSfA Scenario InputAssumptions'!D73,IF('Scenario & Results'!$B$5=4,'ILSfA Scenario InputAssumptions'!D99,IF('Scenario & Results'!$B$5=5,'ILSfA Scenario InputAssumptions'!N21,IF('Scenario & Results'!$B$5=6,'ILSfA Scenario InputAssumptions'!N47,IF('Scenario & Results'!$B$5=7,'ILSfA Scenario InputAssumptions'!N73,IF('Scenario & Results'!$B$5=8,'ILSfA Scenario InputAssumptions'!N99,"Invalid"))))))))) ->  | Y21: =IF($V$3="","",IF('Scenario & Results'!$B$5=1,'ILSfA Scenario InputAssumptions'!E21,IF('Scenario & Results'!$B$5=2,'ILSfA Scenario InputAssumptions'!E47,IF('Scenario & Results'!$B$5=3,'ILSfA Scenario InputAssumptions'!E73,IF('Scenario & Results'!$B$5=4,'ILSfA Scenario InputAssumptions'!E99,IF('Scenario & Results'!$B$5=5,'ILSfA Scenario InputAssumptions'!O21,IF('Scenario & Results'!$B$5=6,'ILSfA Scenario InputAssumptions'!O47,IF('Scenario & Results'!$B$5=7,'ILSfA Scenario InputAssumptions'!O73,IF('Scenario & Results'!$B$5=8,'ILSfA Scenario InputAssumptions'!O99,"Invalid"))))))))) ->  | Z21: =IF($V$3="","",IF('Scenario & Results'!$B$5=1,'ILSfA Scenario InputAssumptions'!F21,IF('Scenario & Results'!$B$5=2,'ILSfA Scenario InputAssumptions'!F47,IF('Scenario & Results'!$B$5=3,'ILSfA Scenario InputAssumptions'!F73,IF('Scenario & Results'!$B$5=4,'ILSfA Scenario InputAssumptions'!F99,IF('Scenario & Results'!$B$5=5,'ILSfA Scenario InputAssumptions'!P21,IF('Scenario & Results'!$B$5=6,'ILSfA Scenario InputAssumptions'!P47,IF('Scenario & Results'!$B$5=7,'ILSfA Scenario InputAssumptions'!P73,IF('Scenario & Results'!$B$5=8,'ILSfA Scenario InputAssumptions'!P99,"Invalid"))))))))) ->  | AA21: =IF($V$3="","",IF('Scenario & Results'!$B$5=1,'ILSfA Scenario InputAssumptions'!G21,IF('Scenario & Results'!$B$5=2,'ILSfA Scenario InputAssumptions'!G47,IF('Scenario & Results'!$B$5=3,'ILSfA Scenario InputAssumptions'!G73,IF('Scenario & Results'!$B$5=4,'ILSfA Scenario InputAssumptions'!G99,IF('Scenario & Results'!$B$5=5,'ILSfA Scenario InputAssumptions'!Q21,IF('Scenario & Results'!$B$5=6,'ILSfA Scenario InputAssumptions'!Q47,IF('Scenario & Results'!$B$5=7,'ILSfA Scenario InputAssumptions'!Q73,IF('Scenario & Results'!$B$5=8,'ILSfA Scenario InputAssumptions'!Q99,"Invalid"))))))))) ->  | AB21: =IF($V$3="","",IF('Scenario & Results'!$B$5=1,'ILSfA Scenario InputAssumptions'!H21,IF('Scenario & Results'!$B$5=2,'ILSfA Scenario InputAssumptions'!H47,IF('Scenario & Results'!$B$5=3,'ILSfA Scenario InputAssumptions'!H73,IF('Scenario & Results'!$B$5=4,'ILSfA Scenario InputAssumptions'!H99,IF('Scenario & Results'!$B$5=5,'ILSfA Scenario InputAssumptions'!R21,IF('Scenario & Results'!$B$5=6,'ILSfA Scenario InputAssumptions'!R47,IF('Scenario & Results'!$B$5=7,'ILSfA Scenario InputAssumptions'!R73,IF('Scenario & Results'!$B$5=8,'ILSfA Scenario InputAssumptions'!R99,"Invalid"))))))))) ->  | AC21: =IF($V$3="","",IF('Scenario & Results'!$B$5=1,'ILSfA Scenario InputAssumptions'!I21,IF('Scenario & Results'!$B$5=2,'ILSfA Scenario InputAssumptions'!I47,IF('Scenario & Results'!$B$5=3,'ILSfA Scenario InputAssumptions'!I73,IF('Scenario & Results'!$B$5=4,'ILSfA Scenario InputAssumptions'!I99,IF('Scenario & Results'!$B$5=5,'ILSfA Scenario InputAssumptions'!S21,IF('Scenario & Results'!$B$5=6,'ILSfA Scenario InputAssumptions'!S47,IF('Scenario & Results'!$B$5=7,'ILSfA Scenario InputAssumptions'!S73,IF('Scenario & Results'!$B$5=8,'ILSfA Scenario InputAssumptions'!S99,"Invalid"))))))))) ->  | AD21: =IF($V$3="","",IF('Scenario & Results'!$B$5=1,'ILSfA Scenario InputAssumptions'!J21,IF('Scenario & Results'!$B$5=2,'ILSfA Scenario InputAssumptions'!J47,IF('Scenario & Results'!$B$5=3,'ILSfA Scenario InputAssumptions'!J73,IF('Scenario & Results'!$B$5=4,'ILSfA Scenario InputAssumptions'!J99,IF('Scenario & Results'!$B$5=5,'ILSfA Scenario InputAssumptions'!T21,IF('Scenario & Results'!$B$5=6,'ILSfA Scenario InputAssumptions'!T47,IF('Scenario & Results'!$B$5=7,'ILSfA Scenario InputAssumptions'!T73,IF('Scenario & Results'!$B$5=8,'ILSfA Scenario InputAssumptions'!T99,"Invalid"))))))))) -> 
A22: Distributed Generation (1-4 Unit) | B22: Additional State Rebates/Grants | C22: $/Watt | D22: ='Size-specific Assumptions'!D$5 -> 0.25 | E22: ='Size-specific Assumptions'!E$5 -> 0.25 | F22: ='Size-specific Assumptions'!F$5 -> 0.25 | G22: ='Size-specific Assumptions'!G$5 -> 0.25 | H22: ='Size-specific Assumptions'!H$5 -> 0.25 | I22: ='Size-specific Assumptions'!I$5 -> 0.25 | J22: ='Size-specific Assumptions'!J$5 -> 0.25 | K22: Distributed Generation (1-4 Unit) | L22: Additional State Rebates/Grants | M22: $/Watt | N22: ='Size-specific Assumptions'!D$5 -> 0.25 | O22: ='Size-specific Assumptions'!E$5 -> 0.25 | P22: ='Size-specific Assumptions'!F$5 -> 0.25 | Q22: ='Size-specific Assumptions'!G$5 -> 0.25 | R22: ='Size-specific Assumptions'!H$5 -> 0.25 | S22: ='Size-specific Assumptions'!I$5 -> 0.25 | T22: ='Size-specific Assumptions'!J$5 -> 0.25 | V22: Additional State Rebates/Grants | W22: $/Watt | X22: =IF($V$3="","",IF('Scenario & Results'!$B$5=1,'ILSfA Scenario InputAssumptions'!D22,IF('Scenario & Results'!$B$5=2,'ILSfA Scenario InputAssumptions'!D48,IF('Scenario & Results'!$B$5=3,'ILSfA Scenario InputAssumptions'!D74,IF('Scenario & Results'!$B$5=4,'ILSfA Scenario InputAssumptions'!D100,IF('Scenario & Results'!$B$5=5,'ILSfA Scenario InputAssumptions'!N22,IF('Scenario & Results'!$B$5=6,'ILSfA Scenario InputAssumptions'!N48,IF('Scenario & Results'!$B$5=7,'ILSfA Scenario InputAssumptions'!N74,IF('Scenario & Results'!$B$5=8,'ILSfA Scenario InputAssumptions'!N100,"Invalid"))))))))) ->  | Y22: =IF($V$3="","",IF('Scenario & Results'!$B$5=1,'ILSfA Scenario InputAssumptions'!E22,IF('Scenario & Results'!$B$5=2,'ILSfA Scenario InputAssumptions'!E48,IF('Scenario & Results'!$B$5=3,'ILSfA Scenario InputAssumptions'!E74,IF('Scenario & Results'!$B$5=4,'ILSfA Scenario InputAssumptions'!E100,IF('Scenario & Results'!$B$5=5,'ILSfA Scenario InputAssumptions'!O22,IF('Scenario & Results'!$B$5=6,'ILSfA Scenario InputAssumptions'!O48,IF('Scenario & Results'!$B$5=7,'ILSfA Scenario InputAssumptions'!O74,IF('Scenario & Results'!$B$5=8,'ILSfA Scenario InputAssumptions'!O100,"Invalid"))))))))) ->  | Z22: =IF($V$3="","",IF('Scenario & Results'!$B$5=1,'ILSfA Scenario InputAssumptions'!F22,IF('Scenario & Results'!$B$5=2,'ILSfA Scenario InputAssumptions'!F48,IF('Scenario & Results'!$B$5=3,'ILSfA Scenario InputAssumptions'!F74,IF('Scenario & Results'!$B$5=4,'ILSfA Scenario InputAssumptions'!F100,IF('Scenario & Results'!$B$5=5,'ILSfA Scenario InputAssumptions'!P22,IF('Scenario & Results'!$B$5=6,'ILSfA Scenario InputAssumptions'!P48,IF('Scenario & Results'!$B$5=7,'ILSfA Scenario InputAssumptions'!P74,IF('Scenario & Results'!$B$5=8,'ILSfA Scenario InputAssumptions'!P100,"Invalid"))))))))) ->  | AA22: =IF($V$3="","",IF('Scenario & Results'!$B$5=1,'ILSfA Scenario InputAssumptions'!G22,IF('Scenario & Results'!$B$5=2,'ILSfA Scenario InputAssumptions'!G48,IF('Scenario & Results'!$B$5=3,'ILSfA Scenario InputAssumptions'!G74,IF('Scenario & Results'!$B$5=4,'ILSfA Scenario InputAssumptions'!G100,IF('Scenario & Results'!$B$5=5,'ILSfA Scenario InputAssumptions'!Q22,IF('Scenario & Results'!$B$5=6,'ILSfA Scenario InputAssumptions'!Q48,IF('Scenario & Results'!$B$5=7,'ILSfA Scenario InputAssumptions'!Q74,IF('Scenario & Results'!$B$5=8,'ILSfA Scenario InputAssumptions'!Q100,"Invalid"))))))))) ->  | AB22: =IF($V$3="","",IF('Scenario & Results'!$B$5=1,'ILSfA Scenario InputAssumptions'!H22,IF('Scenario & Results'!$B$5=2,'ILSfA Scenario InputAssumptions'!H48,IF('Scenario & Results'!$B$5=3,'ILSfA Scenario InputAssumptions'!H74,IF('Scenario & Results'!$B$5=4,'ILSfA Scenario InputAssumptions'!H100,IF('Scenario & Results'!$B$5=5,'ILSfA Scenario InputAssumptions'!R22,IF('Scenario & Results'!$B$5=6,'ILSfA Scenario InputAssumptions'!R48,IF('Scenario & Results'!$B$5=7,'ILSfA Scenario InputAssumptions'!R74,IF('Scenario & Results'!$B$5=8,'ILSfA Scenario InputAssumptions'!R100,"Invalid"))))))))) ->  | AC22: =IF($V$3="","",IF('Scenario & Results'!$B$5=1,'ILSfA Scenario InputAssumptions'!I22,IF('Scenario & Results'!$B$5=2,'ILSfA Scenario InputAssumptions'!I48,IF('Scenario & Results'!$B$5=3,'ILSfA Scenario InputAssumptions'!I74,IF('Scenario & Results'!$B$5=4,'ILSfA Scenario InputAssumptions'!I100,IF('Scenario & Results'!$B$5=5,'ILSfA Scenario InputAssumptions'!S22,IF('Scenario & Results'!$B$5=6,'ILSfA Scenario InputAssumptions'!S48,IF('Scenario & Results'!$B$5=7,'ILSfA Scenario InputAssumptions'!S74,IF('Scenario & Results'!$B$5=8,'ILSfA Scenario InputAssumptions'!S100,"Invalid"))))))))) ->  | AD22: =IF($V$3="","",IF('Scenario & Results'!$B$5=1,'ILSfA Scenario InputAssumptions'!J22,IF('Scenario & Results'!$B$5=2,'ILSfA Scenario InputAssumptions'!J48,IF('Scenario & Results'!$B$5=3,'ILSfA Scenario InputAssumptions'!J74,IF('Scenario & Results'!$B$5=4,'ILSfA Scenario InputAssumptions'!J100,IF('Scenario & Results'!$B$5=5,'ILSfA Scenario InputAssumptions'!T22,IF('Scenario & Results'!$B$5=6,'ILSfA Scenario InputAssumptions'!T48,IF('Scenario & Results'!$B$5=7,'ILSfA Scenario InputAssumptions'!T74,IF('Scenario & Results'!$B$5=8,'ILSfA Scenario InputAssumptions'!T100,"Invalid"))))))))) -> 
A23: Distributed Generation (1-4 Unit) | B23: 1st Replacement Cost ($ in year replaced) | C23: $/Watt dc | D23: ='Size-specific Assumptions'!D$4 -> 0.21 | E23: ='Size-specific Assumptions'!E$4 -> 0.13 | F23: ='Size-specific Assumptions'!F$4 -> 0.13 | G23: ='Size-specific Assumptions'!G$4 -> 0.13 | H23: ='Size-specific Assumptions'!H$4 -> 0.13 | I23: ='Size-specific Assumptions'!I$4 -> 0.13 | J23: ='Size-specific Assumptions'!J$4 -> 0.13 | K23: Distributed Generation (1-4 Unit) | L23: 1st Replacement Cost ($ in year replaced) | M23: $/Watt dc | N23: ='Size-specific Assumptions'!D$4 -> 0.21 | O23: ='Size-specific Assumptions'!E$4 -> 0.13 | P23: ='Size-specific Assumptions'!F$4 -> 0.13 | Q23: ='Size-specific Assumptions'!G$4 -> 0.13 | R23: ='Size-specific Assumptions'!H$4 -> 0.13 | S23: ='Size-specific Assumptions'!I$4 -> 0.13 | T23: ='Size-specific Assumptions'!J$4 -> 0.13 | V23: 1st Replacement Cost ($ in year replaced) | W23: $/Watt dc | X23: =IF($V$3="","",IF('Scenario & Results'!$B$5=1,'ILSfA Scenario InputAssumptions'!D23,IF('Scenario & Results'!$B$5=2,'ILSfA Scenario InputAssumptions'!D49,IF('Scenario & Results'!$B$5=3,'ILSfA Scenario InputAssumptions'!D75,IF('Scenario & Results'!$B$5=4,'ILSfA Scenario InputAssumptions'!D101,IF('Scenario & Results'!$B$5=5,'ILSfA Scenario InputAssumptions'!N23,IF('Scenario & Results'!$B$5=6,'ILSfA Scenario InputAssumptions'!N49,IF('Scenario & Results'!$B$5=7,'ILSfA Scenario InputAssumptions'!N75,IF('Scenario & Results'!$B$5=8,'ILSfA Scenario InputAssumptions'!N101,"Invalid"))))))))) ->  | Y23: =IF($V$3="","",IF('Scenario & Results'!$B$5=1,'ILSfA Scenario InputAssumptions'!E23,IF('Scenario & Results'!$B$5=2,'ILSfA Scenario InputAssumptions'!E49,IF('Scenario & Results'!$B$5=3,'ILSfA Scenario InputAssumptions'!E75,IF('Scenario & Results'!$B$5=4,'ILSfA Scenario InputAssumptions'!E101,IF('Scenario & Results'!$B$5=5,'ILSfA Scenario InputAssumptions'!O23,IF('Scenario & Results'!$B$5=6,'ILSfA Scenario InputAssumptions'!O49,IF('Scenario & Results'!$B$5=7,'ILSfA Scenario InputAssumptions'!O75,IF('Scenario & Results'!$B$5=8,'ILSfA Scenario InputAssumptions'!O101,"Invalid"))))))))) ->  | Z23: =IF($V$3="","",IF('Scenario & Results'!$B$5=1,'ILSfA Scenario InputAssumptions'!F23,IF('Scenario & Results'!$B$5=2,'ILSfA Scenario InputAssumptions'!F49,IF('Scenario & Results'!$B$5=3,'ILSfA Scenario InputAssumptions'!F75,IF('Scenario & Results'!$B$5=4,'ILSfA Scenario InputAssumptions'!F101,IF('Scenario & Results'!$B$5=5,'ILSfA Scenario InputAssumptions'!P23,IF('Scenario & Results'!$B$5=6,'ILSfA Scenario InputAssumptions'!P49,IF('Scenario & Results'!$B$5=7,'ILSfA Scenario InputAssumptions'!P75,IF('Scenario & Results'!$B$5=8,'ILSfA Scenario InputAssumptions'!P101,"Invalid"))))))))) ->  | AA23: =IF($V$3="","",IF('Scenario & Results'!$B$5=1,'ILSfA Scenario InputAssumptions'!G23,IF('Scenario & Results'!$B$5=2,'ILSfA Scenario InputAssumptions'!G49,IF('Scenario & Results'!$B$5=3,'ILSfA Scenario InputAssumptions'!G75,IF('Scenario & Results'!$B$5=4,'ILSfA Scenario InputAssumptions'!G101,IF('Scenario & Results'!$B$5=5,'ILSfA Scenario InputAssumptions'!Q23,IF('Scenario & Results'!$B$5=6,'ILSfA Scenario InputAssumptions'!Q49,IF('Scenario & Results'!$B$5=7,'ILSfA Scenario InputAssumptions'!Q75,IF('Scenario & Results'!$B$5=8,'ILSfA Scenario InputAssumptions'!Q101,"Invalid"))))))))) ->  | AB23: =IF($V$3="","",IF('Scenario & Results'!$B$5=1,'ILSfA Scenario InputAssumptions'!H23,IF('Scenario & Results'!$B$5=2,'ILSfA Scenario InputAssumptions'!H49,IF('Scenario & Results'!$B$5=3,'ILSfA Scenario InputAssumptions'!H75,IF('Scenario & Results'!$B$5=4,'ILSfA Scenario InputAssumptions'!H101,IF('Scenario & Results'!$B$5=5,'ILSfA Scenario InputAssumptions'!R23,IF('Scenario & Results'!$B$5=6,'ILSfA Scenario InputAssumptions'!R49,IF('Scenario & Results'!$B$5=7,'ILSfA Scenario InputAssumptions'!R75,IF('Scenario & Results'!$B$5=8,'ILSfA Scenario InputAssumptions'!R101,"Invalid"))))))))) ->  | AC23: =IF($V$3="","",IF('Scenario & Results'!$B$5=1,'ILSfA Scenario InputAssumptions'!I23,IF('Scenario & Results'!$B$5=2,'ILSfA Scenario InputAssumptions'!I49,IF('Scenario & Results'!$B$5=3,'ILSfA Scenario InputAssumptions'!I75,IF('Scenario & Results'!$B$5=4,'ILSfA Scenario InputAssumptions'!I101,IF('Scenario & Results'!$B$5=5,'ILSfA Scenario InputAssumptions'!S23,IF('Scenario & Results'!$B$5=6,'ILSfA Scenario InputAssumptions'!S49,IF('Scenario & Results'!$B$5=7,'ILSfA Scenario InputAssumptions'!S75,IF('Scenario & Results'!$B$5=8,'ILSfA Scenario InputAssumptions'!S101,"Invalid"))))))))) ->  | AD23: =IF($V$3="","",IF('Scenario & Results'!$B$5=1,'ILSfA Scenario InputAssumptions'!J23,IF('Scenario & Results'!$B$5=2,'ILSfA Scenario InputAssumptions'!J49,IF('Scenario & Results'!$B$5=3,'ILSfA Scenario InputAssumptions'!J75,IF('Scenario & Results'!$B$5=4,'ILSfA Scenario InputAssumptions'!J101,IF('Scenario & Results'!$B$5=5,'ILSfA Scenario InputAssumptions'!T23,IF('Scenario & Results'!$B$5=6,'ILSfA Scenario InputAssumptions'!T49,IF('Scenario & Results'!$B$5=7,'ILSfA Scenario InputAssumptions'!T75,IF('Scenario & Results'!$B$5=8,'ILSfA Scenario InputAssumptions'!T101,"Invalid"))))))))) -> 
A24: Distributed Generation (1-4 Unit) | B24: Taxable Entity | C24: Y/N | D24: =VLOOKUP($B3,'Program-specific Assumptions'!$C$1:$N$9,12,0) -> Yes | E24: =VLOOKUP($B3,'Program-specific Assumptions'!$C$1:$N$9,12,0) -> Yes | F24: =VLOOKUP($B3,'Program-specific Assumptions'!$C$1:$N$9,12,0) -> Yes | G24: =VLOOKUP($B3,'Program-specific Assumptions'!$C$1:$N$9,12,0) -> Yes | H24: =VLOOKUP($B3,'Program-specific Assumptions'!$C$1:$N$9,12,0) -> Yes | I24: =VLOOKUP($B3,'Program-specific Assumptions'!$C$1:$N$9,12,0) -> Yes | J24: =VLOOKUP($B3,'Program-specific Assumptions'!$C$1:$N$9,12,0) -> Yes | K24: Distributed Generation (1-4 Unit) | L24: Taxable Entity | M24: Y/N | N24: =VLOOKUP($B3,'Program-specific Assumptions'!$C$1:$N$9,12,0) -> Yes | O24: =VLOOKUP($B3,'Program-specific Assumptions'!$C$1:$N$9,12,0) -> Yes | P24: =VLOOKUP($B3,'Program-specific Assumptions'!$C$1:$N$9,12,0) -> Yes | Q24: =VLOOKUP($B3,'Program-specific Assumptions'!$C$1:$N$9,12,0) -> Yes | R24: =VLOOKUP($B3,'Program-specific Assumptions'!$C$1:$N$9,12,0) -> Yes | S24: =VLOOKUP($B3,'Program-specific Assumptions'!$C$1:$N$9,12,0) -> Yes | T24: =VLOOKUP($B3,'Program-specific Assumptions'!$C$1:$N$9,12,0) -> Yes | V24: Taxable Entity | W24: Y/N | X24: =IF($V$3="","",IF('Scenario & Results'!$B$5=1,'ILSfA Scenario InputAssumptions'!D24,IF('Scenario & Results'!$B$5=2,'ILSfA Scenario InputAssumptions'!D50,IF('Scenario & Results'!$B$5=3,'ILSfA Scenario InputAssumptions'!D76,IF('Scenario & Results'!$B$5=4,'ILSfA Scenario InputAssumptions'!D102,IF('Scenario & Results'!$B$5=5,'ILSfA Scenario InputAssumptions'!N24,IF('Scenario & Results'!$B$5=6,'ILSfA Scenario InputAssumptions'!N50,IF('Scenario & Results'!$B$5=7,'ILSfA Scenario InputAssumptions'!N76,IF('Scenario & Results'!$B$5=8,'ILSfA Scenario InputAssumptions'!N102,"Invalid"))))))))) ->  | Y24: =IF($V$3="","",IF('Scenario & Results'!$B$5=1,'ILSfA Scenario InputAssumptions'!E24,IF('Scenario & Results'!$B$5=2,'ILSfA Scenario InputAssumptions'!E50,IF('Scenario & Results'!$B$5=3,'ILSfA Scenario InputAssumptions'!E76,IF('Scenario & Results'!$B$5=4,'ILSfA Scenario InputAssumptions'!E102,IF('Scenario & Results'!$B$5=5,'ILSfA Scenario InputAssumptions'!O24,IF('Scenario & Results'!$B$5=6,'ILSfA Scenario InputAssumptions'!O50,IF('Scenario & Results'!$B$5=7,'ILSfA Scenario InputAssumptions'!O76,IF('Scenario & Results'!$B$5=8,'ILSfA Scenario InputAssumptions'!O102,"Invalid"))))))))) ->  | Z24: =IF($V$3="","",IF('Scenario & Results'!$B$5=1,'ILSfA Scenario InputAssumptions'!F24,IF('Scenario & Results'!$B$5=2,'ILSfA Scenario InputAssumptions'!F50,IF('Scenario & Results'!$B$5=3,'ILSfA Scenario InputAssumptions'!F76,IF('Scenario & Results'!$B$5=4,'ILSfA Scenario InputAssumptions'!F102,IF('Scenario & Results'!$B$5=5,'ILSfA Scenario InputAssumptions'!P24,IF('Scenario & Results'!$B$5=6,'ILSfA Scenario InputAssumptions'!P50,IF('Scenario & Results'!$B$5=7,'ILSfA Scenario InputAssumptions'!P76,IF('Scenario & Results'!$B$5=8,'ILSfA Scenario InputAssumptions'!P102,"Invalid"))))))))) ->  | AA24: =IF($V$3="","",IF('Scenario & Results'!$B$5=1,'ILSfA Scenario InputAssumptions'!G24,IF('Scenario & Results'!$B$5=2,'ILSfA Scenario InputAssumptions'!G50,IF('Scenario & Results'!$B$5=3,'ILSfA Scenario InputAssumptions'!G76,IF('Scenario & Results'!$B$5=4,'ILSfA Scenario InputAssumptions'!G102,IF('Scenario & Results'!$B$5=5,'ILSfA Scenario InputAssumptions'!Q24,IF('Scenario & Results'!$B$5=6,'ILSfA Scenario InputAssumptions'!Q50,IF('Scenario & Results'!$B$5=7,'ILSfA Scenario InputAssumptions'!Q76,IF('Scenario & Results'!$B$5=8,'ILSfA Scenario InputAssumptions'!Q102,"Invalid"))))))))) ->  | AB24: =IF($V$3="","",IF('Scenario & Results'!$B$5=1,'ILSfA Scenario InputAssumptions'!H24,IF('Scenario & Results'!$B$5=2,'ILSfA Scenario InputAssumptions'!H50,IF('Scenario & Results'!$B$5=3,'ILSfA Scenario InputAssumptions'!H76,IF('Scenario & Results'!$B$5=4,'ILSfA Scenario InputAssumptions'!H102,IF('Scenario & Results'!$B$5=5,'ILSfA Scenario InputAssumptions'!R24,IF('Scenario & Results'!$B$5=6,'ILSfA Scenario InputAssumptions'!R50,IF('Scenario & Results'!$B$5=7,'ILSfA Scenario InputAssumptions'!R76,IF('Scenario & Results'!$B$5=8,'ILSfA Scenario InputAssumptions'!R102,"Invalid"))))))))) ->  | AC24: =IF($V$3="","",IF('Scenario & Results'!$B$5=1,'ILSfA Scenario InputAssumptions'!I24,IF('Scenario & Results'!$B$5=2,'ILSfA Scenario InputAssumptions'!I50,IF('Scenario & Results'!$B$5=3,'ILSfA Scenario InputAssumptions'!I76,IF('Scenario & Results'!$B$5=4,'ILSfA Scenario InputAssumptions'!I102,IF('Scenario & Results'!$B$5=5,'ILSfA Scenario InputAssumptions'!S24,IF('Scenario & Results'!$B$5=6,'ILSfA Scenario InputAssumptions'!S50,IF('Scenario & Results'!$B$5=7,'ILSfA Scenario InputAssumptions'!S76,IF('Scenario & Results'!$B$5=8,'ILSfA Scenario InputAssumptions'!S102,"Invalid"))))))))) ->  | AD24: =IF($V$3="","",IF('Scenario & Results'!$B$5=1,'ILSfA Scenario InputAssumptions'!J24,IF('Scenario & Results'!$B$5=2,'ILSfA Scenario InputAssumptions'!J50,IF('Scenario & Results'!$B$5=3,'ILSfA Scenario InputAssumptions'!J76,IF('Scenario & Results'!$B$5=4,'ILSfA Scenario InputAssumptions'!J102,IF('Scenario & Results'!$B$5=5,'ILSfA Scenario InputAssumptions'!T24,IF('Scenario & Results'!$B$5=6,'ILSfA Scenario InputAssumptions'!T50,IF('Scenario & Results'!$B$5=7,'ILSfA Scenario InputAssumptions'!T76,IF('Scenario & Results'!$B$5=8,'ILSfA Scenario InputAssumptions'!T102,"Invalid"))))))))) -> 
A25: Distributed Generation (1-4 Unit) | B25: Net Metering Credit | C25: $ | D25: =NPV('CREST Inputs'!$G$63,'Net Metering Credit'!$C$53:$AA$53)*D27 -> 0 | E25: =NPV('CREST Inputs'!$G$63,'Net Metering Credit'!$C$52:$AA$52)*E27 -> 0 | F25: =NPV('CREST Inputs'!$G$63,'Net Metering Credit'!$C$52:$AA$52)*F27 -> 0 | G25: =NPV('CREST Inputs'!$G$63,'Net Metering Credit'!$C$52:$AA$52)*G27 -> 0 | H25: =NPV('CREST Inputs'!$G$63,'Net Metering Credit'!$C$52:$AA$52)*H27 -> 0 | I25: =NPV('CREST Inputs'!$G$63,'Net Metering Credit'!$C$52:$AA$52)*I27 -> 0 | J25: =NPV('CREST Inputs'!$G$63,'Net Metering Credit'!$C$52:$AA$52)*J27 -> 0 | K25: Distributed Generation (1-4 Unit) | L25: Net Metering Credit | M25: $ | N25: =NPV('CREST Inputs'!$G$63,'Net Metering Credit'!$C$51:$AA$51)*N27 -> 0 | O25: =NPV('CREST Inputs'!$G$63,'Net Metering Credit'!$C$50:$AA$50)*O27 -> 0 | P25: =NPV('CREST Inputs'!$G$63,'Net Metering Credit'!$C$50:$AA$50)*P27 -> 0 | Q25: =NPV('CREST Inputs'!$G$63,'Net Metering Credit'!$C$50:$AA$50)*Q27 -> 0 | R25: =NPV('CREST Inputs'!$G$63,'Net Metering Credit'!$C$50:$AA$50)*R27 -> 0 | S25: =NPV('CREST Inputs'!$G$63,'Net Metering Credit'!$C$50:$AA$50)*S27 -> 0 | T25: =NPV('CREST Inputs'!$G$63,'Net Metering Credit'!$C$50:$AA$50)*T27 -> 0 | V25: Net Metering Credit | W25: $ | X25: =IF($V$3="","",IF('Scenario & Results'!$B$5=1,'ILSfA Scenario InputAssumptions'!D25,IF('Scenario & Results'!$B$5=2,'ILSfA Scenario InputAssumptions'!D51,IF('Scenario & Results'!$B$5=3,'ILSfA Scenario InputAssumptions'!D77,IF('Scenario & Results'!$B$5=4,'ILSfA Scenario InputAssumptions'!D103,IF('Scenario & Results'!$B$5=5,'ILSfA Scenario InputAssumptions'!N25,IF('Scenario & Results'!$B$5=6,'ILSfA Scenario InputAssumptions'!N51,IF('Scenario & Results'!$B$5=7,'ILSfA Scenario InputAssumptions'!N77,IF('Scenario & Results'!$B$5=8,'ILSfA Scenario InputAssumptions'!N103,"Invalid"))))))))) ->  | Y25: =IF($V$3="","",IF('Scenario & Results'!$B$5=1,'ILSfA Scenario InputAssumptions'!E25,IF('Scenario & Results'!$B$5=2,'ILSfA Scenario InputAssumptions'!E51,IF('Scenario & Results'!$B$5=3,'ILSfA Scenario InputAssumptions'!E77,IF('Scenario & Results'!$B$5=4,'ILSfA Scenario InputAssumptions'!E103,IF('Scenario & Results'!$B$5=5,'ILSfA Scenario InputAssumptions'!O25,IF('Scenario & Results'!$B$5=6,'ILSfA Scenario InputAssumptions'!O51,IF('Scenario & Results'!$B$5=7,'ILSfA Scenario InputAssumptions'!O77,IF('Scenario & Results'!$B$5=8,'ILSfA Scenario InputAssumptions'!O103,"Invalid"))))))))) ->  | Z25: =IF($V$3="","",IF('Scenario & Results'!$B$5=1,'ILSfA Scenario InputAssumptions'!F25,IF('Scenario & Results'!$B$5=2,'ILSfA Scenario InputAssumptions'!F51,IF('Scenario & Results'!$B$5=3,'ILSfA Scenario InputAssumptions'!F77,IF('Scenario & Results'!$B$5=4,'ILSfA Scenario InputAssumptions'!F103,IF('Scenario & Results'!$B$5=5,'ILSfA Scenario InputAssumptions'!P25,IF('Scenario & Results'!$B$5=6,'ILSfA Scenario InputAssumptions'!P51,IF('Scenario & Results'!$B$5=7,'ILSfA Scenario InputAssumptions'!P77,IF('Scenario & Results'!$B$5=8,'ILSfA Scenario InputAssumptions'!P103,"Invalid"))))))))) ->  | AA25: =IF($V$3="","",IF('Scenario & Results'!$B$5=1,'ILSfA Scenario InputAssumptions'!G25,IF('Scenario & Results'!$B$5=2,'ILSfA Scenario InputAssumptions'!G51,IF('Scenario & Results'!$B$5=3,'ILSfA Scenario InputAssumptions'!G77,IF('Scenario & Results'!$B$5=4,'ILSfA Scenario InputAssumptions'!G103,IF('Scenario & Results'!$B$5=5,'ILSfA Scenario InputAssumptions'!Q25,IF('Scenario & Results'!$B$5=6,'ILSfA Scenario InputAssumptions'!Q51,IF('Scenario & Results'!$B$5=7,'ILSfA Scenario InputAssumptions'!Q77,IF('Scenario & Results'!$B$5=8,'ILSfA Scenario InputAssumptions'!Q103,"Invalid"))))))))) ->  | AB25: =IF($V$3="","",IF('Scenario & Results'!$B$5=1,'ILSfA Scenario InputAssumptions'!H25,IF('Scenario & Results'!$B$5=2,'ILSfA Scenario InputAssumptions'!H51,IF('Scenario & Results'!$B$5=3,'ILSfA Scenario InputAssumptions'!H77,IF('Scenario & Results'!$B$5=4,'ILSfA Scenario InputAssumptions'!H103,IF('Scenario & Results'!$B$5=5,'ILSfA Scenario InputAssumptions'!R25,IF('Scenario & Results'!$B$5=6,'ILSfA Scenario InputAssumptions'!R51,IF('Scenario & Results'!$B$5=7,'ILSfA Scenario InputAssumptions'!R77,IF('Scenario & Results'!$B$5=8,'ILSfA Scenario InputAssumptions'!R103,"Invalid"))))))))) ->  | AC25: =IF($V$3="","",IF('Scenario & Results'!$B$5=1,'ILSfA Scenario InputAssumptions'!I25,IF('Scenario & Results'!$B$5=2,'ILSfA Scenario InputAssumptions'!I51,IF('Scenario & Results'!$B$5=3,'ILSfA Scenario InputAssumptions'!I77,IF('Scenario & Results'!$B$5=4,'ILSfA Scenario InputAssumptions'!I103,IF('Scenario & Results'!$B$5=5,'ILSfA Scenario InputAssumptions'!S25,IF('Scenario & Results'!$B$5=6,'ILSfA Scenario InputAssumptions'!S51,IF('Scenario & Results'!$B$5=7,'ILSfA Scenario InputAssumptions'!S77,IF('Scenario & Results'!$B$5=8,'ILSfA Scenario InputAssumptions'!S103,"Invalid"))))))))) ->  | AD25: =IF($V$3="","",IF('Scenario & Results'!$B$5=1,'ILSfA Scenario InputAssumptions'!J25,IF('Scenario & Results'!$B$5=2,'ILSfA Scenario InputAssumptions'!J51,IF('Scenario & Results'!$B$5=3,'ILSfA Scenario InputAssumptions'!J77,IF('Scenario & Results'!$B$5=4,'ILSfA Scenario InputAssumptions'!J103,IF('Scenario & Results'!$B$5=5,'ILSfA Scenario InputAssumptions'!T25,IF('Scenario & Results'!$B$5=6,'ILSfA Scenario InputAssumptions'!T51,IF('Scenario & Results'!$B$5=7,'ILSfA Scenario InputAssumptions'!T77,IF('Scenario & Results'!$B$5=8,'ILSfA Scenario InputAssumptions'!T103,"Invalid"))))))))) -> 
A26: Distributed Generation (1-4 Unit) | B26: Subscriber Savings | C26: % | D26: =VLOOKUP($B3,'Program-specific Assumptions'!$C$1:$N$9,8,0) -> 1 | E26: =VLOOKUP($B3,'Program-specific Assumptions'!$C$1:$N$9,8,0) -> 1 | F26: =VLOOKUP($B3,'Program-specific Assumptions'!$C$1:$N$9,8,0) -> 1 | G26: =VLOOKUP($B3,'Program-specific Assumptions'!$C$1:$N$9,8,0) -> 1 | H26: =VLOOKUP($B3,'Program-specific Assumptions'!$C$1:$N$9,8,0) -> 1 | I26: =VLOOKUP($B3,'Program-specific Assumptions'!$C$1:$N$9,8,0) -> 1 | J26: =VLOOKUP($B3,'Program-specific Assumptions'!$C$1:$N$9,8,0) -> 1 | K26: Distributed Generation (1-4 Unit) | L26: Subscriber Savings | M26: % | N26: =VLOOKUP($B3,'Program-specific Assumptions'!$C$1:$N$9,8,0) -> 1 | O26: =VLOOKUP($B3,'Program-specific Assumptions'!$C$1:$N$9,8,0) -> 1 | P26: =VLOOKUP($B3,'Program-specific Assumptions'!$C$1:$N$9,8,0) -> 1 | Q26: =VLOOKUP($B3,'Program-specific Assumptions'!$C$1:$N$9,8,0) -> 1 | R26: =VLOOKUP($B3,'Program-specific Assumptions'!$C$1:$N$9,8,0) -> 1 | S26: =VLOOKUP($B3,'Program-specific Assumptions'!$C$1:$N$9,8,0) -> 1 | T26: =VLOOKUP($B3,'Program-specific Assumptions'!$C$1:$N$9,8,0) -> 1 | V26: Subscriber Savings | W26: % | X26: =IF($V$3="","",IF('Scenario & Results'!$B$5=1,'ILSfA Scenario InputAssumptions'!D26,IF('Scenario & Results'!$B$5=2,'ILSfA Scenario InputAssumptions'!D52,IF('Scenario & Results'!$B$5=3,'ILSfA Scenario InputAssumptions'!D78,IF('Scenario & Results'!$B$5=4,'ILSfA Scenario InputAssumptions'!D104,IF('Scenario & Results'!$B$5=5,'ILSfA Scenario InputAssumptions'!N26,IF('Scenario & Results'!$B$5=6,'ILSfA Scenario InputAssumptions'!N52,IF('Scenario & Results'!$B$5=7,'ILSfA Scenario InputAssumptions'!N78,IF('Scenario & Results'!$B$5=8,'ILSfA Scenario InputAssumptions'!N104,"Invalid"))))))))) ->  | Y26: =IF($V$3="","",IF('Scenario & Results'!$B$5=1,'ILSfA Scenario InputAssumptions'!E26,IF('Scenario & Results'!$B$5=2,'ILSfA Scenario InputAssumptions'!E52,IF('Scenario & Results'!$B$5=3,'ILSfA Scenario InputAssumptions'!E78,IF('Scenario & Results'!$B$5=4,'ILSfA Scenario InputAssumptions'!E104,IF('Scenario & Results'!$B$5=5,'ILSfA Scenario InputAssumptions'!O26,IF('Scenario & Results'!$B$5=6,'ILSfA Scenario InputAssumptions'!O52,IF('Scenario & Results'!$B$5=7,'ILSfA Scenario InputAssumptions'!O78,IF('Scenario & Results'!$B$5=8,'ILSfA Scenario InputAssumptions'!O104,"Invalid"))))))))) ->  | Z26: =IF($V$3="","",IF('Scenario & Results'!$B$5=1,'ILSfA Scenario InputAssumptions'!F26,IF('Scenario & Results'!$B$5=2,'ILSfA Scenario InputAssumptions'!F52,IF('Scenario & Results'!$B$5=3,'ILSfA Scenario InputAssumptions'!F78,IF('Scenario & Results'!$B$5=4,'ILSfA Scenario InputAssumptions'!F104,IF('Scenario & Results'!$B$5=5,'ILSfA Scenario InputAssumptions'!P26,IF('Scenario & Results'!$B$5=6,'ILSfA Scenario InputAssumptions'!P52,IF('Scenario & Results'!$B$5=7,'ILSfA Scenario InputAssumptions'!P78,IF('Scenario & Results'!$B$5=8,'ILSfA Scenario InputAssumptions'!P104,"Invalid"))))))))) ->  | AA26: =IF($V$3="","",IF('Scenario & Results'!$B$5=1,'ILSfA Scenario InputAssumptions'!G26,IF('Scenario & Results'!$B$5=2,'ILSfA Scenario InputAssumptions'!G52,IF('Scenario & Results'!$B$5=3,'ILSfA Scenario InputAssumptions'!G78,IF('Scenario & Results'!$B$5=4,'ILSfA Scenario InputAssumptions'!G104,IF('Scenario & Results'!$B$5=5,'ILSfA Scenario InputAssumptions'!Q26,IF('Scenario & Results'!$B$5=6,'ILSfA Scenario InputAssumptions'!Q52,IF('Scenario & Results'!$B$5=7,'ILSfA Scenario InputAssumptions'!Q78,IF('Scenario & Results'!$B$5=8,'ILSfA Scenario InputAssumptions'!Q104,"Invalid"))))))))) ->  | AB26: =IF($V$3="","",IF('Scenario & Results'!$B$5=1,'ILSfA Scenario InputAssumptions'!H26,IF('Scenario & Results'!$B$5=2,'ILSfA Scenario InputAssumptions'!H52,IF('Scenario & Results'!$B$5=3,'ILSfA Scenario InputAssumptions'!H78,IF('Scenario & Results'!$B$5=4,'ILSfA Scenario InputAssumptions'!H104,IF('Scenario & Results'!$B$5=5,'ILSfA Scenario InputAssumptions'!R26,IF('Scenario & Results'!$B$5=6,'ILSfA Scenario InputAssumptions'!R52,IF('Scenario & Results'!$B$5=7,'ILSfA Scenario InputAssumptions'!R78,IF('Scenario & Results'!$B$5=8,'ILSfA Scenario InputAssumptions'!R104,"Invalid"))))))))) ->  | AC26: =IF($V$3="","",IF('Scenario & Results'!$B$5=1,'ILSfA Scenario InputAssumptions'!I26,IF('Scenario & Results'!$B$5=2,'ILSfA Scenario InputAssumptions'!I52,IF('Scenario & Results'!$B$5=3,'ILSfA Scenario InputAssumptions'!I78,IF('Scenario & Results'!$B$5=4,'ILSfA Scenario InputAssumptions'!I104,IF('Scenario & Results'!$B$5=5,'ILSfA Scenario InputAssumptions'!S26,IF('Scenario & Results'!$B$5=6,'ILSfA Scenario InputAssumptions'!S52,IF('Scenario & Results'!$B$5=7,'ILSfA Scenario InputAssumptions'!S78,IF('Scenario & Results'!$B$5=8,'ILSfA Scenario InputAssumptions'!S104,"Invalid"))))))))) ->  | AD26: =IF($V$3="","",IF('Scenario & Results'!$B$5=1,'ILSfA Scenario InputAssumptions'!J26,IF('Scenario & Results'!$B$5=2,'ILSfA Scenario InputAssumptions'!J52,IF('Scenario & Results'!$B$5=3,'ILSfA Scenario InputAssumptions'!J78,IF('Scenario & Results'!$B$5=4,'ILSfA Scenario InputAssumptions'!J104,IF('Scenario & Results'!$B$5=5,'ILSfA Scenario InputAssumptions'!T26,IF('Scenario & Results'!$B$5=6,'ILSfA Scenario InputAssumptions'!T52,IF('Scenario & Results'!$B$5=7,'ILSfA Scenario InputAssumptions'!T78,IF('Scenario & Results'!$B$5=8,'ILSfA Scenario InputAssumptions'!T104,"Invalid"))))))))) -> 
A27: Distributed Generation (1-4 Unit) | B27: % of Net Metering Value Allocated | C27: % | D27: =VLOOKUP($B3,'Program-specific Assumptions'!$C$1:$N$9,9,0) -> 0 | E27: =VLOOKUP($B3,'Program-specific Assumptions'!$C$1:$N$9,9,0) -> 0 | F27: =VLOOKUP($B3,'Program-specific Assumptions'!$C$1:$N$9,9,0) -> 0 | G27: =VLOOKUP($B3,'Program-specific Assumptions'!$C$1:$N$9,9,0) -> 0 | H27: =VLOOKUP($B3,'Program-specific Assumptions'!$C$1:$N$9,9,0) -> 0 | I27: =VLOOKUP($B3,'Program-specific Assumptions'!$C$1:$N$9,9,0) -> 0 | J27: =VLOOKUP($B3,'Program-specific Assumptions'!$C$1:$N$9,9,0) -> 0 | K27: Distributed Generation (1-4 Unit) | L27: % of Net Metering Value Allocated | M27: % | N27: =VLOOKUP($B3,'Program-specific Assumptions'!$C$1:$N$9,9,0) -> 0 | O27: =VLOOKUP($B3,'Program-specific Assumptions'!$C$1:$N$9,9,0) -> 0 | P27: =VLOOKUP($B3,'Program-specific Assumptions'!$C$1:$N$9,9,0) -> 0 | Q27: =VLOOKUP($B3,'Program-specific Assumptions'!$C$1:$N$9,9,0) -> 0 | R27: =VLOOKUP($B3,'Program-specific Assumptions'!$C$1:$N$9,9,0) -> 0 | S27: =VLOOKUP($B3,'Program-specific Assumptions'!$C$1:$N$9,9,0) -> 0 | T27: =VLOOKUP($B3,'Program-specific Assumptions'!$C$1:$N$9,9,0) -> 0 | V27: % of Net Metering Value Allocated | W27: % | X27: =IF($V$3="","",IF('Scenario & Results'!$B$5=1,'ILSfA Scenario InputAssumptions'!D27,IF('Scenario & Results'!$B$5=2,'ILSfA Scenario InputAssumptions'!D53,IF('Scenario & Results'!$B$5=3,'ILSfA Scenario InputAssumptions'!D79,IF('Scenario & Results'!$B$5=4,'ILSfA Scenario InputAssumptions'!D105,IF('Scenario & Results'!$B$5=5,'ILSfA Scenario InputAssumptions'!N27,IF('Scenario & Results'!$B$5=6,'ILSfA Scenario InputAssumptions'!N53,IF('Scenario & Results'!$B$5=7,'ILSfA Scenario InputAssumptions'!N79,IF('Scenario & Results'!$B$5=8,'ILSfA Scenario InputAssumptions'!N105,"Invalid"))))))))) ->  | Y27: =IF($V$3="","",IF('Scenario & Results'!$B$5=1,'ILSfA Scenario InputAssumptions'!E27,IF('Scenario & Results'!$B$5=2,'ILSfA Scenario InputAssumptions'!E53,IF('Scenario & Results'!$B$5=3,'ILSfA Scenario InputAssumptions'!E79,IF('Scenario & Results'!$B$5=4,'ILSfA Scenario InputAssumptions'!E105,IF('Scenario & Results'!$B$5=5,'ILSfA Scenario InputAssumptions'!O27,IF('Scenario & Results'!$B$5=6,'ILSfA Scenario InputAssumptions'!O53,IF('Scenario & Results'!$B$5=7,'ILSfA Scenario InputAssumptions'!O79,IF('Scenario & Results'!$B$5=8,'ILSfA Scenario InputAssumptions'!O105,"Invalid"))))))))) ->  | Z27: =IF($V$3="","",IF('Scenario & Results'!$B$5=1,'ILSfA Scenario InputAssumptions'!F27,IF('Scenario & Results'!$B$5=2,'ILSfA Scenario InputAssumptions'!F53,IF('Scenario & Results'!$B$5=3,'ILSfA Scenario InputAssumptions'!F79,IF('Scenario & Results'!$B$5=4,'ILSfA Scenario InputAssumptions'!F105,IF('Scenario & Results'!$B$5=5,'ILSfA Scenario InputAssumptions'!P27,IF('Scenario & Results'!$B$5=6,'ILSfA Scenario InputAssumptions'!P53,IF('Scenario & Results'!$B$5=7,'ILSfA Scenario InputAssumptions'!P79,IF('Scenario & Results'!$B$5=8,'ILSfA Scenario InputAssumptions'!P105,"Invalid"))))))))) ->  | AA27: =IF($V$3="","",IF('Scenario & Results'!$B$5=1,'ILSfA Scenario InputAssumptions'!G27,IF('Scenario & Results'!$B$5=2,'ILSfA Scenario InputAssumptions'!G53,IF('Scenario & Results'!$B$5=3,'ILSfA Scenario InputAssumptions'!G79,IF('Scenario & Results'!$B$5=4,'ILSfA Scenario InputAssumptions'!G105,IF('Scenario & Results'!$B$5=5,'ILSfA Scenario InputAssumptions'!Q27,IF('Scenario & Results'!$B$5=6,'ILSfA Scenario InputAssumptions'!Q53,IF('Scenario & Results'!$B$5=7,'ILSfA Scenario InputAssumptions'!Q79,IF('Scenario & Results'!$B$5=8,'ILSfA Scenario InputAssumptions'!Q105,"Invalid"))))))))) ->  | AB27: =IF($V$3="","",IF('Scenario & Results'!$B$5=1,'ILSfA Scenario InputAssumptions'!H27,IF('Scenario & Results'!$B$5=2,'ILSfA Scenario InputAssumptions'!H53,IF('Scenario & Results'!$B$5=3,'ILSfA Scenario InputAssumptions'!H79,IF('Scenario & Results'!$B$5=4,'ILSfA Scenario InputAssumptions'!H105,IF('Scenario & Results'!$B$5=5,'ILSfA Scenario InputAssumptions'!R27,IF('Scenario & Results'!$B$5=6,'ILSfA Scenario InputAssumptions'!R53,IF('Scenario & Results'!$B$5=7,'ILSfA Scenario InputAssumptions'!R79,IF('Scenario & Results'!$B$5=8,'ILSfA Scenario InputAssumptions'!R105,"Invalid"))))))))) ->  | AC27: =IF($V$3="","",IF('Scenario & Results'!$B$5=1,'ILSfA Scenario InputAssumptions'!I27,IF('Scenario & Results'!$B$5=2,'ILSfA Scenario InputAssumptions'!I53,IF('Scenario & Results'!$B$5=3,'ILSfA Scenario InputAssumptions'!I79,IF('Scenario & Results'!$B$5=4,'ILSfA Scenario InputAssumptions'!I105,IF('Scenario & Results'!$B$5=5,'ILSfA Scenario InputAssumptions'!S27,IF('Scenario & Results'!$B$5=6,'ILSfA Scenario InputAssumptions'!S53,IF('Scenario & Results'!$B$5=7,'ILSfA Scenario InputAssumptions'!S79,IF('Scenario & Results'!$B$5=8,'ILSfA Scenario InputAssumptions'!S105,"Invalid"))))))))) ->  | AD27: =IF($V$3="","",IF('Scenario & Results'!$B$5=1,'ILSfA Scenario InputAssumptions'!J27,IF('Scenario & Results'!$B$5=2,'ILSfA Scenario InputAssumptions'!J53,IF('Scenario & Results'!$B$5=3,'ILSfA Scenario InputAssumptions'!J79,IF('Scenario & Results'!$B$5=4,'ILSfA Scenario InputAssumptions'!J105,IF('Scenario & Results'!$B$5=5,'ILSfA Scenario InputAssumptions'!T27,IF('Scenario & Results'!$B$5=6,'ILSfA Scenario InputAssumptions'!T53,IF('Scenario & Results'!$B$5=7,'ILSfA Scenario InputAssumptions'!T79,IF('Scenario & Results'!$B$5=8,'ILSfA Scenario InputAssumptions'!T105,"Invalid"))))))))) -> 
B29: Distributed Generation (5+ Units) | L29: Distributed Generation (5+ Units)
A30: =B$29 -> Distributed Generation (5+ Units) | B30: Generator Nameplate Capacity | C30: kW ac | D30: 10 | E30: 25 | F30: 100 | G30: 200 | H30: 500 | I30: 2000 | J30: 5000 | K30: =L$29 -> Distributed Generation (5+ Units) | L30: Generator Nameplate Capacity | M30: kW ac | N30: 10 | O30: 25 | P30: 100 | Q30: 200 | R30: 500 | S30: 2000 | T30: 5000
